Workbook

Sheet Start
A1: Sovereign Risk and Debt Sustainability Framework
A2: for Market Access Countries
A4: Readme: | B4: This is the new Sovereign Risk and Debt Sustainability Framework's public version template. It implements the tools for the near and medium-term risk assessments.
A6: Worksheet descriptions:
A7: Questions | B7: Users should start on this sheet. It contains the questionnaire for users to fill in that determines major settings for the data inputs, the information needed to fill in the debt data disclosures, and will eventually contain the switches to activate the customizations for the various tools. Before proceeding to other questions, please be sure to select a country name from the dropdown country list in cell C4 on this sheet.
A8: Macrofw | B8: After completing the questionnaire on Questions, users should go to this sheet, which contains the data input for the template, and fill in the data.
A9: NewMacrofw | B9: This sheet processes the data on the Macrofw sheet. It illustrates what observations are needed for the tools to run.
A10: IdentFin | B10: This sheet projects financing assumptions from Macrofw, users just need to check that they are reflected in this worksheet.
A11: ResidFin | B11: This worksheet handles the debt issuance to cover residual financing needs. Users may adjust/customize the terms and conditions of debt issued in residual financing instrument(s).
A12: Signals | B12: This sheet summarizes the results of the tools. Before finalizing the SRDSA, users should go to this sheet and set any final assessments where they wish to use judgment. They may also activate/de-activate certain stress tests.
A13: Output | B13: This worksheet has the output charts and tables.
A14: BaseDB | B14: This worksheet prepares the data obtained from BaseDB, performs a number of transformations and calculations on the data, and warehouses most information about the baseline scenario. No user interaction is required on this worksheet, though users may find it useful to look up key results.
A15: LOGIT | B15: This worksheet runs the logit model for the risk of sovereign stress (near-term assessment). No user interaction is needed, but users may wish to observe how the results are calculated.
A16: FAN | B16: This worksheet contains all the material needed to run the debt fanchart. To update the fanchart, click the button on the worksheet after uploading the data/projections into the template.
A17: GFN | B17: This worksheet implements the GFN financeability module. To update it, click the button on this worksheet.
A18: STDesign | B18: Handles calibration of the shocks for the stress tests.
A19: STOps | B19: Operation of the stress tests.
A20: Triangles | B20: Debt calculations for the GFN module stress scenario.
A21: Config | B21: This worksheet maintains all the key parameters for the worksheet. Users should not edit this worksheet.
A23: Worksheet tab color codes:
B24: User input sheet
B25: Output sheet
B26: Major function sheet
B27: Important function sheets (hidden, no user interaction needed)
A29: Cell color codes:
A30: ABC | B30: Organization or Section dividers, please do not write in these rows
A31: ABC | B31: User input requested. Pre-populated cells may be overwritten.
A32: 2020 | B32: Year row. Do not overwrite this row that is populated automatically.
A33: ABC | B33: Indicates a default parameter. Do not overwrite these cells (overrides are in user input cells nearby).
A34: ABC | B34: Do not overwrite this major functionality cell
B35: Something to take note of
B36: Function to be added
A37: ABC | B37: Consistency check

Sheet Questions
B1: Questionnaire
B2: Please input the requested information into the cells shaded in orange (█).
B3: Section A, Basic information:
B4: Country name | C4: *** MAC DSA sample *** | D4: IFS code: | E4: =VLOOKUP(Cname,CtryTab,MATCH(D4,CtryTabID,0),FALSE) ->  | F4: Document ID (e.g. SM/22/255):
B5: Engagement | C5: Surveillance | D5: Currency union: | E5: =VLOOKUP(Cname,CtryTab,MATCH(D5,CtryTabID,0),FALSE) ->  | F5: Document name:
B6: Projections start | C6: 2023 | D6: AE or EM: | E6: =VLOOKUP(Cname,CtryTab,MATCH(D6,CtryTabID,0),FALSE) ->  | F6: Document number (EDMS):
B7: Units scale | C7: Billion | D7: Arrangement: | E7: =VLOOKUP(Cname,CtryTab,MATCH(D7,CtryTabID,0),FALSE) ->  | F7: Issuance date (MM/DD/YYYY):
B8: Years in medium-term forecast horizon | C8: 5 | D8: Currency: | E8: =VLOOKUP(Cname,CtryTab,MATCH(D8,CtryTabID,0),FALSE) ->  | F8: Publication status:
B9: Base year for GDP series | C9: 2012 | D9: Flexible arrangement: | E9: =VLOOKUP(E7,FlexERList,2,FALSE) ->  | F9: Exceptional access: | G9: Yes
B10: Base currency for exchange rates | C10: U.S. dollar | F10: Resilience and Sustainability Facility (RSF) | G10: No
B14: Section B, Current-year overrides | D14: =ProjYr -> 2023 | E14: =ProjYr -> 2023
C15: Override | D15: Interest | E15: Amortization
B16: Local currency | C16: FALSE
B17: Foreign currency | C17: FALSE
B18: Local-linked | C18: FALSE
B20: Section C, Debt disclosures:
A21: PERIMETER | B21: Debt coverage in the DSA | C21: General government | G21: Cross holdings
A22: CGQUALIF | B22: If central government, are subnational governments or unconsolidated social security funds insignificant?
B23: Subsectors: | C23: Included? | D23: Normal setting: | E23: Comments: | G23: BCG | H23: EBFs | I23: SSFs | J23: SG | K23: LG | L23: PNFC | M23: CB | N23: OPFC | O23: CH-TOT
A24: BCG | B24: Budgetary central government (CG) | C24: Yes | D24: =VLOOKUP($C$21,Config!$O$21:$W$26,MATCH(B24,Config!$O$21:$W$21,0),FALSE) -> Yes | F24: BCG | O24: =SUMIF($G$23:$N$23,"<>"&$F24,$G24:$N24) -> 0
A25: EBFs | B25: Extra budgetary funds (EBFs) | C25: No | D25: =VLOOKUP($C$21,Config!$O$21:$W$26,MATCH(B25,Config!$O$21:$W$21,0),FALSE) -> If consolidated | E25: Not applicable | F25: EBFs | O25: =SUMIF($G$23:$N$23,"<>"&$F25,$G25:$N25) -> 0
A26: SSFs | B26: Social security funds (SSFs) | C26: No | D26: =VLOOKUP($C$21,Config!$O$21:$W$26,MATCH(B26,Config!$O$21:$W$21,0),FALSE) -> If consolidated | F26: SSFs | O26: 0
A27: SG | B27: State governments (SG) | C27: No | D27: =VLOOKUP($C$21,Config!$O$21:$W$26,MATCH(B27,Config!$O$21:$W$21,0),FALSE) -> Yes | F27: SG | O27: 0
A28: LG | B28: Local governments (LG) | C28: Yes | D28: =VLOOKUP($C$21,Config!$O$21:$W$26,MATCH(B28,Config!$O$21:$W$21,0),FALSE) -> Yes | F28: LG | O28: 0
A29: PNFC | B29: Public nonfinancial corporations (PNFC) | C29: No | D29: =VLOOKUP($C$21,Config!$O$21:$W$26,MATCH(B29,Config!$O$21:$W$21,0),FALSE) -> No | F29: PNFC | O29: 0
A30: CB | B30: Central bank (CB) | C30: No | D30: =VLOOKUP($C$21,Config!$O$21:$W$26,MATCH(B30,Config!$O$21:$W$21,0),FALSE) -> No | F30: CB | O30: 0
A31: OPFC | B31: Other public financial corporations (OPFC) | C31: No | D31: =VLOOKUP($C$21,Config!$O$21:$W$26,MATCH(B31,Config!$O$21:$W$21,0),FALSE) -> No | F31: OPFC | O31: 0
A32: CH-TOT | G32: =SUMIF($F$24:$F$31,"<>"&G$23,G$24:G$31) -> 0 | H32: =SUMIF($F$24:$F$31,"<>"&H$23,H$24:H$31) -> 0 | I32: 0 | J32: 0 | K32: 0 | L32: 0 | M32: 0 | N32: 0 | O32: =SUM(O24:O31) -> 0
B33: Instrument coverage:
B34: Currency & deposits | C34: Yes
B35: Loans | C35: Yes
B36: Debt securities | C36: Yes
B37: Other accounts payable | C37: No
B38: Insurance, pension, and standardized guarantee schemes | C38: No
B40: Accounting principles:
B41: Basis of recording | C41: Cash basis
B42: Valuation of debt stock | C42: Nominal value
B44: Consolidation across sectors: | C44: Non-consolidated
B46: Section D, Additional debt indicators | C46: =ProjYr-5 -> 2018 | D46: =ProjYr-4 -> 2019 | E46: =ProjYr-3 -> 2020 | F46: =ProjYr-2 -> 2021 | G46: =ProjYr-1 -> 2022
A47: C-M-RMAT | B47: Residual maturity of public debt (years): | G47: 6
B48: Historical Data on Marginal Effective Interest Rates | C48: =NA() ->  | D48: =NA() ->  | E48: =NA() ->  | F48: =NA() ->  | G48: =NA() -> 
B52: Settings for the tools (optional)
B53: Overall:
B54: Comparison group | C54: Not yet operational
B56: Logit model:
B57: Use currency union variable? | C57: No
B58: Adjust international reserves by liquid assets? | C58: Not yet operational
B60: Debt fanchart:
B61: Use stock-flow adjustment | C61: Not yet operational
B63: GFN financeability module:
B64: Year to begin shocks | C64: Not yet operational
A65: GFN-DN | B65: Domestic other investors (neutral/amplifier/mitigator) | C65: Neutral (default) | D65: Total assets: | F65: Claims on GG:
B67: REER Overvaluation
B68: Team's Assessment of REER Overvaluation (+) in percent terms: | C68: 0.088
B69: Emerging Market or Advanced Economy Classificaiton | C69: =IF(AEEM="AE","Advanced Economy","Emerging Market") -> 
A71: Shocks Header | D71: Value
B72: Natural Disaster Shock (for testing only, will be deleted)
B73: One-off shock to external PPG debt-GDP ratio in the second year of the projection period
C75: Default | D75: User defined
B76: Natural Disaster shock | C76: On | D76: On
A77: YR_SHK_ND | B77: Year of shock | C77: 1 | D77: 1
B78: Size:
A79: CL_SHK_ND | B79: Size of shock | C79: 0.045 | D79: =C79 -> 0.045
B81: Interaction:
A82: NGDP_RPCH_SHK_ND | B82: Size of associated real GDP growth shock | C82: =IF($C$76="On",-0.013, 0) -> -0.013 | D82: =C82 -> -0.013
A83: NX_RPCH_SHK_ND | B83: Size of associated exports growth shock | C83: =IF($C$76="On",-0.035, 0) -> -0.035 | D83: =C83 -> -0.035
B86: End of shocks table
B88: Contingent Liabilities Shock Calibration | C88: Domestic creditors | F88: External creditors
C89: Central bank | D89: Commercial banks | E89: Other domestic | F89: Official | G89: Private
B90: State and local government | C90: =VLOOKUP("FASAOS",MacrofwData,MATCH(-1,MacrofwDates,0),FALSE) -> N.A. | D90: =VLOOKUP("FOSAOG",MacrofwData,MATCH(-1,MacrofwDates,0),FALSE) -> N.A. | E90: 0
B91: Non-consolidated social security funds | C91: 0 | D91: 0 | E91: 0 | F91: 0 | G91: 0
B92: Optional: Public sector enterprises (SOEs) | C92: =VLOOKUP("FASAON",MacrofwData,MATCH(-1,MacrofwDates,0),FALSE) -> N.A. | D92: =VLOOKUP("FOSAON",MacrofwData,MATCH(-1,MacrofwDates,0),FALSE) -> N.A. | E92: 0
B93: Optional: Public-Private Partnerships (PPPs) | C93: 0 | D93: 0 | F93: 0
B94: Include SOEs? | C94: FALSE | F94: Total: | G94: =IF(C94,SUM(C90:G93),SUM(C90:G91)) -> 0

Sheet Macrofw
B1: Macroeconomic framework input
B3: Comments on data sources | C3: Series_code | E3: Descriptor | F3: Scale | G3: =StartYrDataIn -> 2000 | H3: =G3+1 -> 2001 | I3: 2002 | J3: 2003 | K3: 2004 | L3: 2005 | M3: 2006 | N3: 2007 | O3: 2008 | P3: 2009 | Q3: 2010 | R3: 2011 | S3: 2012 | T3: 2013 | U3: 2014 | V3: 2015 | W3: 2016 | X3: 2017 | Y3: 2018 | Z3: 2019 | AA3: 2020 | AB3: 2021 | AC3: 2022 | AD3: 2023 | AE3: 2024 | AF3: 2025 | AG3: 2026 | AH3: 2027 | AI3: 2028 | AJ3: 2029 | AK3: 2030 | AL3: 2031 | AM3: 2032 | AN3: 2033 | AO3: 2034 | AP3: 2035 | AQ3: 2036 | AR3: 2037 | AS3: 2038 | AT3: =AS3+1 -> 2039 | AU3: =AT3+1 -> 2040 | AV3: =AU3+1 -> 2041 | AW3: =AV3+1 -> 2042 | AX3: =AW3+1 -> 2043 | AY3: =AX3+1 -> 2044 | AZ3: =AY3+1 -> 2045 | BA3: =AZ3+1 -> 2046 | BB3: =BA3+1 -> 2047 | BC3: =BB3+1 -> 2048 | BD3: =BC3+1 -> 2049 | BE3: =BD3+1 -> 2050 | BF3: =BE3+1 -> 2051 | BG3: =BF3+1 -> 2052 | BH3: =BG3+1 -> 2053 | BI3: =BH3+1 -> 2054 | BJ3: =BI3+1 -> 2055 | BK3: =BJ3+1 -> 2056 | BL3: =BK3+1 -> 2057 | BM3: =BL3+1 -> 2058 | BN3: =BM3+1 -> 2059 | BO3: =BN3+1 -> 2060 | BP3: =BO3+1 -> 2061 | BQ3: =BP3+1 -> 2062 | BR3: =BQ3+1 -> 2063 | BS3: =BR3+1 -> 2064 | BT3: =BS3+1 -> 2065 | BU3: =BT3+1 -> 2066 | BV3: =BU3+1 -> 2067 | BW3: =BV3+1 -> 2068 | BX3: =BW3+1 -> 2069 | BY3: =BX3+1 -> 2070 | BZ3: =BY3+1 -> 2071 | CA3: =BZ3+1 -> 2072 | CB3: =CA3+1 -> 2073 | CC3: =CB3+1 -> 2074 | CD3: =CC3+1 -> 2075 | CE3: =CD3+1 -> 2076 | CF3: =CE3+1 -> 2077 | CG3: =CF3+1 -> 2078 | CH3: =CG3+1 -> 2079 | CI3: =CH3+1 -> 2080 | CJ3: =CI3+1 -> 2081 | CK3: =CJ3+1 -> 2082 | CL3: =CK3+1 -> 2083 | CM3: =CL3+1 -> 2084 | CN3: =CM3+1 -> 2085 | CO3: =CN3+1 -> 2086 | CP3: =CO3+1 -> 2087 | CQ3: =CP3+1 -> 2088 | CR3: =CQ3+1 -> 2089 | CS3: =CR3+1 -> 2090 | CT3: =CS3+1 -> 2091 | CU3: =CT3+1 -> 2092 | CV3: =CU3+1 -> 2093 | CW3: =CV3+1 -> 2094 | CX3: =CW3+1 -> 2095 | CY3: =CX3+1 -> 2096 | CZ3: =CY3+1 -> 2097 | DA3: =CZ3+1 -> 2098 | DB3: =DA3+1 -> 2099 | DC3: =DB3+1 -> 2100 | DD3: =DC3+1 -> 2101 | DE3: =DD3+1 -> 2102 | DF3: =DE3+1 -> 2103 | DG3: =DF3+1 -> 2104 | DH3: =DG3+1 -> 2105
A4: A) Macroframework
A5: Lookup out | G5: =G3-ProjYr -> -23 | H5: -22 | I5: -21 | J5: -20 | K5: -19 | L5: -18 | M5: -17 | N5: -16 | O5: -15 | P5: -14 | Q5: -13 | R5: -12 | S5: -11 | T5: -10 | U5: -9 | V5: -8 | W5: -7 | X5: -6 | Y5: -5 | Z5: -4 | AA5: -3 | AB5: -2 | AC5: -1 | AD5: 0 | AE5: 1 | AF5: 2 | AG5: 3 | AH5: 4 | AI5: 5 | AJ5: 6 | AK5: 7 | AL5: 8 | AM5: 9 | AN5: 10 | AO5: 11 | AP5: 12 | AQ5: 13 | AR5: 14 | AS5: 15
A6: NGDP | B6: Available in public WEO. | C6: =IFScode&A6 ->  | E6: Nominal GDP (current prices) FY | F6: Billion | G6: 50.84988672 | H6: 56.051815 | I6: 57.57421157 | J6: 69.37262864 | K6: 82.91163104 | L6: 99.22698068 | M6: 115.5763178 | N6: 136.0839745 | O6: 171.2380542 | P6: 138.9793065 | Q6: 140.9162943 | R6: 162.9138102 | S6: 175.7412438 | T6: 185.7869217 | U6: 192.4740889 | V6: 180.4704593 | W6: 165.0303811 | X6: 165.1988303 | Y6: 169.2354119 | Z6: 167.5664367 | AA6: 152.1907027 | AB6: 162.7201482 | AC6: 185.346505 | AD6: 191.6661411 | AE6: 195.9875586 | AF6: 202.4330684 | AG6: 208.5104758 | AH6: 214.8215469 | AI6: 221.5049343 | AJ6: 227.8880121 | AK6: 234.3157619 | AL6: 240.9750208 | AM6: 247.8742657 | AN6: 255.0222855 | AO6: 262.4281914
A7: NGDP_R | B7: Available in public WEO. | E7: Real GDP (2012 prices)FY | F7: Billion | G7: 93.02860284 | H7: 97.27419068 | I7: 103.5174125 | J7: 116.3477838 | K7: 126.7257165 | L7: 134.8284894 | M7: 151.5011964 | N7: 161.5879093 | O7: 167.5280145 | P7: 160.3258467 | Q7: 162.7546594 | R7: 164.2190981 | S7: 170.058537 | T7: 177.2318723 | U7: 183.7121944 | V7: 184.519985 | W7: 175.1755599 | X7: 166.3128214 | Y7: 162.5897536 | Z7: 162.6112733 | AA7: 153.5190918 | AB7: 148.487541 | AC7: 151.895186 | AD7: 157.3145716 | AE7: 160.8468611 | AF7: 164.6697049 | AG7: 168.0634873 | AH7: 171.0053031 | AI7: 173.8373126 | AJ7: 176.2971595 | AK7: 178.6690364 | AL7: 181.0835123 | AM7: 183.5413744 | AN7: 186.0434245 | AO7: 188.590479
A8: NGDP_D | B8: Could use the option of computing this series based on the formula in the cells. | E8: GDP Deflator (index) | G8: =G6/G7*100 -> 54.66048631 | H8: =H6/H7*100 -> 57.62249433 | I8: 55.6179006 | J8: 59.62522567 | K8: 65.42605034 | L8: 73.59496581 | M8: 76.2873961 | N8: 84.21668123 | O8: 102.2145787 | P8: 86.68552782 | Q8: 86.58203386 | R8: 99.20515463 | S8: 103.3416181 | T8: 104.8270378 | U8: 104.7693592 | V8: 97.80537286 | W8: 94.20856492 | X8: 99.33018326 | Y8: 104.0873783 | Z8: 103.0472447 | AA8: 99.13470753 | AB8: 109.5850514 | AC8: 122.0226327 | AD8: 121.8362286 | AE8: 121.8473008 | AF8: 122.9327936 | AG8: 124.0664937 | AH8: 125.6227397 | AI8: 127.4208229 | AJ8: 129.2635756 | AK8: 131.1451423 | AL8: 133.0739711 | AM8: 135.0508933 | AN8: 137.076753 | AO8: =AO6/AO7*100 -> 139.1524072
A9: NGDP_PCH | B9: Could use the option of computing this series based on the formula in the cells. | E9: Nominal GDP growth | H9: =100*(H6-G6)/G6 -> 10.22997026 | I9: =100*(I6-H6)/H6 -> 2.716052224 | J9: 20.49253779 | K9: 19.51634624 | L9: 19.67799865 | M9: 16.47670526 | N9: 17.74382245 | O9: 25.83263742 | P9: -18.83853904 | Q9: 1.39372394 | R9: 15.61034225 | S9: 7.873754605 | T9: 5.716175507 | U9: 3.599374518 | V9: -6.236491164 | W9: -8.55546014 | X9: 0.1020716086 | Y9: 2.443468687 | Z9: -0.9861856079 | AA9: -9.17590318 | AB9: 6.918586574 | AC9: 13.90507385 | AD9: 3.409633272 | AE9: 2.254658816 | AF9: 3.288734153 | AG9: 3.002181151 | AH9: 3.026740512 | AI9: 3.111134585 | AJ9: 2.881686487 | AK9: 2.820573923 | AL9: 2.842002081 | AM9: 2.863054003 | AN9: 2.883728048 | AO9: 2.904023057
A10: NGDP_RPCH | B10: Could use the option of computing this series based on the formula in the cells. | E10: Real GDP growth | H10: =100*(H7-G7)/G7 -> 4.563744602 | I10: 6.418168841 | J10: 12.39440883 | K10: 8.919751053 | L10: 6.393945264 | M10: 12.36586356 | N10: 6.657843677 | O10: 3.676082735 | P10: -4.299082622 | Q10: 1.514922727 | R10: 0.8997829213 | S10: 3.555882963 | T10: 4.218156552 | U10: 3.656408961 | V10: 0.4397043999 | W10: -5.06418047 | X10: -5.0593465 | Y10: -2.238593373 | Z10: 0.01323556894 | AA10: -5.591359845 | AB10: -3.277475621 | AC10: 2.294902991 | AD10: 3.567845513 | AE10: 2.245366981 | AF10: 2.376697828 | AG10: 2.060963409 | AH10: 1.750419375 | AI10: 1.656094551 | AJ10: 1.415028112 | AK10: 1.345385775 | AL10: 1.351367862 | AM10: 1.357308621 | AN10: 1.363207645 | AO10: 1.369064542
A11: NGDP_DPCH | B11: Could use the option of computing this series based on the formula in the cells. | E11: Inflation (GDP deflator) | H11: =100*(H8-G8)/G8 -> 5.418919988 | I11: -3.478838865 | J11: 7.205099481 | K11: 9.728809592 | L11: 12.48572309 | M11: 3.658443562 | N11: 10.39396484 | O11: 21.37094121 | P11: -15.19259879 | Q11: -0.1193901192 | R11: 14.57937658 | S11: 4.169605356 | T11: 1.437387692 | U11: -0.05502259257 | V11: -6.646968551 | W11: -3.677515703 | X11: 5.436467855 | Y11: 4.78927444 | Z11: -0.9992889153 | AA11: -3.796838222 | AB11: 10.54155923 | AC11: 11.34970612 | AD11: -0.1527619318 | AE11: 0.009087780849 | AF11: 0.8908631983 | AG11: 0.9222113042 | AH11: 1.254364498 | AI11: 1.43133576 | AJ11: 1.44619432 | AK11: 1.45560465 | AL11: 1.470758857 | AM11: 1.485581456 | AN11: 1.500071316 | AO11: 1.514227759
A12: NPGDP_R | B12: Not available in public WEO, so users would need to obtain this information from other sources. | E12: Potential RGDP FY | F12: Billion | G12: 93.2701516 | H12: 100.4565275 | I12: 108.7892838 | J12: 118.3718546 | K12: 128.6828199 | L12: 139.1038112 | M12: 148.9299628 | N12: 156.9808164 | O12: 162.6848907 | P12: 166.3795355 | Q12: 169.3145946 | R12: 172.2948347 | S12: 175.5538384 | T12: 178.4623716 | U12: 179.9013215 | V12: 178.9030782 | W12: 175.4115005 | X12: 170.5126757 | Y12: 165.4297248 | Z12: 160.8262888 | AA12: 157.1214067 | AB12: 155.1902532 | AC12: 155.1902532 | AD12: 155.1902532 | AE12: 155.1902532 | AF12: 155.1902532 | AG12: 155.1902532 | AH12: 155.1902532 | AI12: 155.1902532 | AJ12: 155.1902532 | AK12: 155.1902532 | AL12: 155.1902532 | AM12: 155.1902532 | AN12: 155.1902532 | AO12: 155.1902532
A13: ENDA | B13: Available in public IFS. | E13: Exchange Rates (period average ) | F13: Unit | G13: 6.299796667 | H13: 6.233216667 | I13: 6.248683333 | J13: 6.2951 | K13: 6.298991667 | L13: 6.299558333 | M13: 6.312283333 | N13: 6.308309503 | O13: 6.280478715 | P13: 6.311401267 | Q13: 6.375508333 | R13: 6.409300706 | S13: 6.429602656 | T13: 6.442629398 | U13: 6.409094578 | V13: 6.377441667 | W13: 6.666600461 | X13: 6.779524999 | Y13: 6.770750898 | Z13: 6.754326683 | AA13: 6.751052687 | AB13: 6.758530049 | AC13: 6.758033813 | AD13: 6.758033813 | AE13: 6.758033813 | AF13: 6.758033813 | AG13: 6.758033813 | AH13: 6.758033813 | AI13: 6.758033813 | AJ13: 6.758033813 | AK13: 6.758033813 | AL13: 6.758033813 | AM13: 6.758033813 | AN13: 6.758033813 | AO13: 6.758033813 | AP13: =AO13/AN13*AO13 -> 6.758033813 | AQ13: =AP13/AO13*AP13 -> 6.758033813 | AR13: 6.758033813 | AS13: 6.758033813
A14: ENDE | B14: Available in public IFS. | E14: Exchange Rates (end of fiscal year) | F14: Unit | G14: 6.2997 | H14: 6.2835 | I14: 6.2997 | J14: 6.2996 | K14: 6.2998 | L14: 6.3029 | M14: 6.3148 | N14: 6.30517024 | O14: 6.2875 | P14: 6.3702 | Q14: 6.4026 | R14: 6.406284211 | S14: 6.4403 | T14: 6.4597 | U14: 6.3839 | V14: 6.4342 | W14: 6.780199985 | X14: 6.7817 | Y14: 6.766323529 | Z14: 6.753127778 | AA14: 6.760358824 | AB14: 6.766425 | AC14: 6.754136842 | AD14: 6.754136842 | AE14: 6.754136842 | AF14: 6.754136842 | AG14: 6.754136842 | AH14: 6.754136842 | AI14: 6.754136842 | AJ14: 6.754136842 | AK14: 6.754136842 | AL14: 6.754136842 | AM14: 6.754136842 | AN14: 6.754136842 | AO14: 6.754136842 | AP14: =AO14/AN14*AO14 -> 6.754136842 | AQ14: =AP14/AO14*AP14 -> 6.754136842 | AR14: =AQ14/AP14*AQ14 -> 6.754136842 | AS14: =AR14/AQ14*AR14 -> 6.754136842
A15: GGXONLB | B15: Could use the option of computing this series based on the formula in the cells. | E15: Primary balance | F15: Billion | G15: =G29-G17 -> 2.182902 | H15: 2.14032551 | I15: 1.694811886 | J15: 3.469880494 | K15: 3.508692593 | L15: 4.385663678 | M15: 3.492284144 | N15: 6.277058205 | O15: 11.78084227 | P15: -4.114596 | Q15: 2.469001613 | R15: 0.8484167644 | S15: -0.174551291 | T15: -3.006112931 | U15: -5.884849656 | V15: -10.24015398 | W15: -12.59258809 | X15: -12.842346 | Y15: -5.353445182 | Z15: -1.551668059 | AA15: -12.6553478 | AB15: -8.854228974 | AC15: 4.499940458 | AD15: 0.05745547181 | AE15: 0.06670277488 | AF15: 0.6669805663 | AG15: 0.9882733613 | AH15: 1.304772684 | AI15: 1.518622958 | AJ15: 1.016934073 | AK15: 0.5042152909 | AL15: 0.002157077437 | AM15: -0.5182882847 | AN15: -1.057778451 | AO15: -1.616994385
A16: GGE | B16: Available in public WEO. | E16: Total expenditures | F16: Billion | G16: 12.067 | H16: 13.8604 | I16: 13.9614 | J16: 16.0482 | K16: 19.0677 | L16: 27.241331 | M16: 37.0848 | N16: 35.7357 | O16: 47.2854 | P16: 45.7308 | Q16: 43.6749 | R16: 48.6024 | S16: 51.4748 | T16: 57.6685 | U16: 61.9204 | V16: 59.9437 | W16: 50.2635 | X16: 49.6797 | Y16: 48.8338 | Z16: 49.4105 | AA16: 51.0478 | AB16: 49.6077 | AC16: 52.9001 | AD16: 56.56480378 | AE16: 56.56213263 | AF16: 58.14906915 | AG16: 59.51351994 | AH16: 60.91355714 | AI16: 62.34993854 | AJ16: 64.13163648 | AK16: 65.89395347 | AL16: 67.7119203 | AM16: 69.61732599 | AN16: 71.61432885 | AO16: 73.70728198
A17: GGEXI | B17: Could use the option of computing this series based on the formula in the cells. | E17: Non-interest expenditures | G17: =G16-G18 -> 9.5467 | H17: =H16-H18 -> 11.5306 | I17: 11.7019 | J17: 13.4563 | K17: 16.7034 | L17: 24.699831 | M17: 34.6315 | N17: 33.0376 | O17: 44.3181 | P17: 42.2309 | Q17: 40.3846 | R17: 45.736 | S17: 48.5377 | T17: 54.8598 | U17: 58.7978 | V17: 56.5053 | W17: 46.5011 | X17: 45.2113 | Y17: 44.047 | Z17: 44.365 | AA17: 45.9858 | AB17: 44.6696 | AC17: 48.2549 | AD17: 51.19150378 | AE17: 51.49363144 | AF17: 52.90749704 | AG17: 54.11241457 | AH17: 55.36065647 | AI17: 56.65093879 | AJ17: 58.2743501 | AK17: 59.84958943 | AL17: 61.45039708 | AM17: 63.1070827 | AN17: 64.8216076 | AO17: 66.59600212
A18: GGEI | B18: Could use the option of computing this series based on the formula in the cells. | E18: Total Interest expenditures | G18: =SUM(G19:G22) -> 2.5203 | H18: =SUM(H19:H22) -> 2.3298 | I18: 2.2595 | J18: 2.5919 | K18: 2.3643 | L18: 2.5415 | M18: 2.4533 | N18: 2.6981 | O18: 2.9673 | P18: 3.4999 | Q18: 3.2903 | R18: 2.8664 | S18: 2.9371 | T18: 2.8087 | U18: 3.1226 | V18: 3.4384 | W18: 3.7624 | X18: 4.4684 | Y18: 4.7868 | Z18: 5.0455 | AA18: 5.062 | AB18: 4.9381 | AC18: 4.6452 | AD18: 5.3733 | AE18: 5.068501188 | AF18: 5.241572114 | AG18: 5.401105366 | AH18: 5.552900678 | AI18: 5.698999755 | AJ18: 5.857286378 | AK18: 6.044364039 | AL18: 6.261523229 | AM18: 6.510243293 | AN18: 6.792721256 | AO18: 7.111279861
A19: GGEICL | B19: Not available in public WEO, so users would need to obtain this information from other sources. | E19: Total Interest expenditures on local currency debt | F19: Billion | G19: 1.6809 | H19: 1.4401 | I19: 1.4592 | J19: 1.8343 | K19: 1.6382 | L19: 1.8755 | M19: 1.8525 | N19: 2.094 | O19: 2.3296 | P19: 2.9553 | Q19: 2.8461 | R19: 2.4869 | S19: 2.5479 | T19: 2.4373 | U19: 2.6619 | V19: 2.9155 | W19: 3.1998 | X19: 3.574 | Y19: 3.7956 | Z19: 3.919 | AA19: 3.9603 | AB19: 3.9824 | AC19: 3.6812 | AD19: 4.1715 | AE19: 4.007610279 | AF19: 4.139199142 | AG19: 4.260495074 | AH19: 4.375907714 | AI19: 4.486989406 | AJ19: 4.607337505 | AK19: 4.749564176 | AL19: 4.914650603 | AM19: 5.103721559 | AN19: 5.31844748 | AO19: 5.560594387
A20: GGEICF | B20: Not available in public WEO, so users would need to obtain this information from other sources. | E20: Total Interest expenditures on foreign currency debt | F20: Billion | G20: 0.8394 | H20: 0.8897 | I20: 0.8003 | J20: 0.7576 | K20: 0.7261 | L20: 0.666 | M20: 0.6008 | N20: 0.6041 | O20: 0.6377 | P20: 0.5446 | Q20: 0.4442 | R20: 0.3795 | S20: 0.3892 | T20: 0.3714 | U20: 0.4607 | V20: 0.5229 | W20: 0.5626 | X20: 0.8944 | Y20: 0.9912 | Z20: 1.1265 | AA20: 1.1017 | AB20: 0.9557 | AC20: 0.964 | AD20: 1.2018 | AE20: 1.060890909 | AF20: 1.102372972 | AG20: 1.140610292 | AH20: 1.176992964 | AI20: 1.212010348 | AJ20: 1.249948873 | AK20: 1.294799863 | AL20: 1.346872626 | AM20: 1.406521734 | AN20: 1.474273776 | AO20: 1.550685473
A21: GGEICI1 | B21: Not available in public WEO, so users would need to obtain this information from other sources. If a country does not have local-linked debt, please enter 0. | E21: Total Interest expenditures on local-linked debt 1 | G21: 0 | H21: 0 | I21: 0 | J21: 0 | K21: 0 | L21: 0 | M21: 0 | N21: 0 | O21: 0 | P21: 0 | Q21: 0 | R21: 0 | S21: 0 | T21: 0 | U21: 0 | V21: 0 | W21: 0 | X21: 0 | Y21: 0 | Z21: 0 | AA21: 0 | AB21: 0 | AC21: 0 | AD21: 0 | AE21: 0 | AF21: 0 | AG21: 0 | AH21: 0 | AI21: 0 | AJ21: 0 | AK21: 0 | AL21: 0 | AM21: 0 | AN21: 0 | AO21: 0 | AP21: 0 | AQ21: 0 | AR21: 0 | AS21: 0
A22: GGEICI2 | B22: Not available in public WEO, so users would need to obtain this information from other sources. If a country does not have local-linked debt, please enter 0. | C22: =IFScode&A22 ->  | E22: Total Interest expenditures on local-linked debt 2 | G22: 0 | H22: 0 | I22: 0 | J22: 0 | K22: 0 | L22: 0 | M22: 0 | N22: 0 | O22: 0 | P22: 0 | Q22: 0 | R22: 0 | S22: 0 | T22: 0 | U22: 0 | V22: 0 | W22: 0 | X22: 0 | Y22: 0 | Z22: 0 | AA22: 0 | AB22: 0 | AC22: 0 | AD22: 0 | AE22: 0 | AF22: 0 | AG22: 0 | AH22: 0 | AI22: 0 | AJ22: 0 | AK22: 0 | AL22: 0 | AM22: 0 | AN22: 0 | AO22: 0 | AP22: 0 | AQ22: 0 | AR22: 0 | AS22: 0
A23: GGEI0 | B23: Could use the option of computing this series based on the formula in the cells. | E23: Interest expenditures on preexisting debt | G23: =SUM(G24:G27) -> 2.5203 | H23: =SUM(H24:H27) -> 2.3298 | I23: 2.2595 | J23: 2.5919 | K23: 2.3643 | L23: 2.5415 | M23: 2.4533 | N23: 2.6981 | O23: 2.9673 | P23: 3.4999 | Q23: 3.2903 | R23: 2.8664 | S23: 2.9371 | T23: 2.8087 | U23: 3.1226 | V23: 3.4384 | W23: 3.7624 | X23: 4.4684 | Y23: 4.7868 | Z23: 5.0455 | AA23: 1.22605208 | AB23: 1.003893036 | AC23: 3.787908713 | AD23: 5.3733 | AE23: 4.311325295 | AF23: 4.467304378 | AG23: 4.340198193 | AH23: 3.867850906 | AI23: 3.514320485 | AJ23: 3.318093876 | AK23: 3.139836307 | AL23: 2.797350947 | AM23: 2.57463786 | AN23: 2.256310655 | AO23: 2.071726509
A24: GGEICL0 | B24: Not available in public WEO, so users would need to obtain this information from other sources. | E24: Interest expenditures on preexisting local currency debt | F24: Billion | G24: 1.6809 | H24: 1.4401 | I24: 1.4592 | J24: 1.8343 | K24: 1.6382 | L24: 1.8755 | M24: 1.8525 | N24: 2.094 | O24: 2.3296 | P24: 2.9553 | Q24: 2.8461 | R24: 2.4869 | S24: 2.5479 | T24: 2.4373 | U24: 2.6619 | V24: 2.9155 | W24: 3.1998 | X24: 3.574 | Y24: 3.7956 | Z24: 3.919 | AA24: 0.0851 | AB24: 0.0615 | AC24: 2.822567902 | AD24: 4.1715 | AE24: 3.101121978 | AF24: 3.096652663 | AG24: 2.941617525 | AH24: 2.790252067 | AI24: 2.535553092 | AJ24: 2.381446909 | AK24: 2.243627137 | AL24: 2.104254224 | AM24: 1.937856605 | AN24: 1.675454579 | AO24: 1.537169532
A25: GGEICF0 | B25: Not available in public WEO, so users would need to obtain this information from other sources. | E25: Interest expenditures on preexisting foreign currency debt | F25: Billion | G25: 0.8394 | H25: 0.8897 | I25: 0.8003 | J25: 0.7576 | K25: 0.7261 | L25: 0.666 | M25: 0.6008 | N25: 0.6041 | O25: 0.6377 | P25: 0.5446 | Q25: 0.4442 | R25: 0.3795 | S25: 0.3892 | T25: 0.3714 | U25: 0.4607 | V25: 0.5229 | W25: 0.5626 | X25: 0.8944 | Y25: 0.9912 | Z25: 1.1265 | AA25: 1.14095208 | AB25: 0.9423930361 | AC25: 0.9653408114 | AD25: 1.2018 | AE25: 1.210203317 | AF25: 1.370651715 | AG25: 1.398580667 | AH25: 1.077598839 | AI25: 0.9787673926 | AJ25: 0.9366469668 | AK25: 0.8962091701 | AL25: 0.6930967234 | AM25: 0.6367812547 | AN25: 0.5808560762 | AO25: 0.534556977
A26: GGEICI01 | B26: Not available in public WEO, so users would need to obtain this information from other sources. If a country does not have local-linked debt, please enter 0. | E26: Interest expenditures on preexisting local-linked debt 1 | G26: 0 | H26: 0 | I26: 0 | J26: 0 | K26: 0 | L26: 0 | M26: 0 | N26: 0 | O26: 0 | P26: 0 | Q26: 0 | R26: 0 | S26: 0 | T26: 0 | U26: 0 | V26: 0 | W26: 0 | X26: 0 | Y26: 0 | Z26: 0 | AA26: 0 | AB26: 0 | AC26: 0 | AD26: 0 | AE26: 0 | AF26: 0 | AG26: 0 | AH26: 0 | AI26: 0 | AJ26: 0 | AK26: 0 | AL26: 0 | AM26: 0 | AN26: 0 | AO26: 0 | AP26: 0 | AQ26: 0 | AR26: 0 | AS26: 0
A27: GGEICI02 | B27: Not available in public WEO, so users would need to obtain this information from other sources. If a country does not have local-linked debt, please enter 0. | C27: =IFScode&A27 ->  | E27: Interest expenditures on preexisting local-linked debt 2 | G27: 0 | H27: 0 | I27: 0 | J27: 0 | K27: 0 | L27: 0 | M27: 0 | N27: 0 | O27: 0 | P27: 0 | Q27: 0 | R27: 0 | S27: 0 | T27: 0 | U27: 0 | V27: 0 | W27: 0 | X27: 0 | Y27: 0 | Z27: 0 | AA27: 0 | AB27: 0 | AC27: 0 | AD27: 0 | AE27: 0 | AF27: 0 | AG27: 0 | AH27: 0 | AI27: 0 | AJ27: 0 | AK27: 0 | AL27: 0 | AM27: 0 | AN27: 0 | AO27: 0 | AP27: 0 | AQ27: 0 | AR27: 0 | AS27: 0
A28: GGR | B28: Available in public WEO. | E28: Total revenues | F28: Billion | G28: 11.911802 | H28: 13.92942551 | I28: 13.59731189 | J28: 17.05288049 | K28: 20.29829259 | L28: 29.21499468 | M28: 38.40038414 | N28: 39.59805821 | O28: 56.27034227 | P28: 38.263904 | Q28: 43.02430161 | R28: 46.63441676 | S28: 48.42284871 | T28: 51.89128707 | U28: 52.94495034 | V28: 46.30514602 | W28: 33.94981191 | X28: 32.402954 | Y28: 38.72205482 | Z28: 42.83863194 | AA28: 33.3456522 | AB28: 35.83277103 | AC28: 52.75874046 | AD28: 51.25298619 | AE28: 51.56444578 | AF28: 53.57871802 | AG28: 55.10504912 | AH28: 56.66991561 | AI28: 58.17418085 | AJ28: 59.29602927 | AK28: 60.35867635 | AL28: 61.45755673 | AM28: 62.59393251 | AN28: 63.76910749 | AO28: 64.98443123
A29: GGRXI | B29: Could use the option of computing this series based on the formula in the cells. | E29: Noninterest revenues | G29: =G28-G30 -> 11.729602 | H29: =H28-H30 -> 13.67092551 | I29: 13.39671189 | J29: 16.92618049 | K29: 20.21209259 | L29: 29.08549468 | M29: 38.12378414 | N29: 39.31465821 | O29: 56.09894227 | P29: 38.116304 | Q29: 42.85360161 | R29: 46.58441676 | S29: 48.36314871 | T29: 51.85368707 | U29: 52.91295034 | V29: 46.26514602 | W29: 33.90851191 | X29: 32.368954 | Y29: 38.69355482 | Z29: 42.81333194 | AA29: 33.3304522 | AB29: 35.81537103 | AC29: 52.75484046 | AD29: 51.24895925 | AE29: 51.56033421 | AF29: 53.5744776 | AG29: 55.10068793 | AH29: 56.66542915 | AI29: 58.16956175 | AJ29: 59.29128418 | AK29: =AK28-AK30 -> 60.35380472 | AL29: =AL28-AL30 -> 61.45255415 | AM29: =AM28-AM30 -> 62.58879441 | AN29: =AN28-AN30 -> 63.76382915 | AO29: =AO28-AO30 -> 64.97900774 | AP29: =AP28-AP30 -> 
A30: GGROPI | B30: Not available in public WEO, so users would need to obtain this information from other sources. | E30: Interest revenues | F30: Billion | G30: 0.1822 | H30: 0.2585 | I30: 0.2006 | J30: 0.1267 | K30: 0.0862 | L30: 0.1295 | M30: 0.2766 | N30: 0.2834 | O30: 0.1714 | P30: 0.1476 | Q30: 0.1707 | R30: 0.05 | S30: 0.0597 | T30: 0.0376 | U30: 0.032 | V30: 0.04 | W30: 0.0413 | X30: 0.034 | Y30: 0.0285 | Z30: 0.0253 | AA30: 0.0152 | AB30: 0.0174 | AC30: 0.0039 | AD30: 0.004026935295 | AE30: 0.004111561604 | AF30: 0.004240419306 | AG30: 0.004361182601 | AH30: 0.0044864546 | AI30: 0.004619105582 | AJ30: 0.004745096079 | AK30: 0.00487162758 | AL30: 0.005002575474 | AM30: 0.00513809477 | AN30: 0.005278345931 | AO30: 0.005423495071
A31: GGFA | B31: Could use the option of computing this series based on the formula in the cells. | E31: Amortization | G31: =SUM(G32:G35) -> 2.3725 | H31: =SUM(H32:H35) -> 2.5188 | I31: 1.1993 | J31: 2.9712 | K31: 1.864284905 | L31: 3.3226 | M31: 1.6819 | N31: 2.3766 | O31: 1.3382 | P31: 1.4104 | Q31: 3.0218 | R31: 1.9945 | S31: 1.8382 | T31: 2.4816 | U31: 2.1301 | V31: 3.2303 | W31: 3.1343 | X31: 5.5715 | Y31: 5.8791 | Z31: 4.0216 | AA31: 9.0301 | AB31: 7.0964 | AC31: 6.0941 | AD31: 10.19372301 | AE31: 9.011118405 | AF31: 6.793458867 | AG31: 11.93074505 | AH31: 8.877138765 | AI31: 4.771979469 | AJ31: 4.978258925 | AK31: 6.105770005 | AL31: 5.76249808 | AM31: 5.401004623 | AN31: 6.406531904 | AO31: 2.046332785
A32: GGFACL | B32: Not available in public WEO, so users would need to obtain this information from other sources. | E32: Amortization, local currency debt | F32: Billion | G32: 1.4325 | H32: 1.2653 | I32: 0.7761 | J32: 2.505 | K32: 1.307 | L32: 1.7639 | M32: 1.0759 | N32: 1.1202 | O32: 0.933 | P32: 0.9947 | Q32: 1.1257 | R32: 1.3644 | S32: 1.1267 | T32: 1.8858 | U32: 1.6075 | V32: 2.6867 | W32: 2.6072 | X32: 5.0262 | Y32: 5.1832 | Z32: 3.1646 | AA32: 8.0017 | AB32: 5.8817 | AC32: 4.9413 | AD32: 8.945835791 | AE32: 4.031204646 | AF32: 5.4478622 | AG32: 3.326677902 | AH32: 5.950916178 | AI32: 2.738957825 | AJ32: 3.499196813 | AK32: 1.134250147 | AL32: 4.033543004 | AM32: 3.758849448 | AN32: 5.132367782 | AO32: 1.058605448
A33: GGFACF | B33: Not available in public WEO, so users would need to obtain this information from other sources. | E33: Amortization, foreign currency debt | F33: Billion | G33: 0.94 | H33: 1.2535 | I33: 0.4232 | J33: 0.4662 | K33: 0.557284905 | L33: 1.5587 | M33: 0.606 | N33: 1.2564 | O33: 0.4052 | P33: 0.4157 | Q33: 1.8961 | R33: 0.6301 | S33: 0.7115 | T33: 0.5958 | U33: 0.5226 | V33: 0.5436 | W33: 0.5271 | X33: 0.5453 | Y33: 0.6959 | Z33: 0.857 | AA33: 1.0284 | AB33: 1.2147 | AC33: 1.1528 | AD33: 1.247887218 | AE33: 4.979913759 | AF33: 1.345596667 | AG33: 8.604067152 | AH33: 2.926222587 | AI33: 2.033021645 | AJ33: 1.479062112 | AK33: 4.971519858 | AL33: 1.728955076 | AM33: 1.642155174 | AN33: 1.274164122 | AO33: 0.9877273367
A34: GGFACI1 | B34: Not available in public WEO, so users would need to obtain this information from other sources. If a country does not have local-linked debt, please enter 0. | E34: Amortization, local-linked debt 1 | G34: 0 | H34: 0 | I34: 0 | J34: 0 | K34: 0 | L34: 0 | M34: 0 | N34: 0 | O34: 0 | P34: 0 | Q34: 0 | R34: 0 | S34: 0 | T34: 0 | U34: 0 | V34: 0 | W34: 0 | X34: 0 | Y34: 0 | Z34: 0 | AA34: 0 | AB34: 0 | AC34: 0 | AD34: 0 | AE34: 0 | AF34: 0 | AG34: 0 | AH34: 0 | AI34: 0 | AJ34: 0 | AK34: 0 | AL34: 0 | AM34: 0 | AN34: 0 | AO34: 0 | AP34: 0 | AQ34: 0 | AR34: 0 | AS34: 0
A35: GGFACI2 | B35: Not available in public WEO, so users would need to obtain this information from other sources. If a country does not have local-linked debt, please enter 0. | C35: =IFScode&A35 ->  | E35: Amortization, local-linked debt 2 | G35: 0 | H35: 0 | I35: 0 | J35: 0 | K35: 0 | L35: 0 | M35: 0 | N35: 0 | O35: 0 | P35: 0 | Q35: 0 | R35: 0 | S35: 0 | T35: 0 | U35: 0 | V35: 0 | W35: 0 | X35: 0 | Y35: 0 | Z35: 0 | AA35: 0 | AB35: 0 | AC35: 0 | AD35: 0 | AE35: 0 | AF35: 0 | AG35: 0 | AH35: 0 | AI35: 0 | AJ35: 0 | AK35: 0 | AL35: 0 | AM35: 0 | AN35: 0 | AO35: 0 | AP35: 0 | AQ35: 0 | AR35: 0 | AS35: 0
A36: GGFA0 | B36: Could use the option of computing this series based on the formula in the cells. | E36: Amortization, pre-existing debt | G36: =SUM(G37:G40) -> 2.3725 | H36: =SUM(H37:H40) -> 2.5188 | I36: 1.1993 | J36: 2.9712 | K36: 1.864284905 | L36: 3.3226 | M36: 1.6819 | N36: 2.3766 | O36: 1.3382 | P36: 1.4104 | Q36: 3.0218 | R36: 1.9945 | S36: 1.8382 | T36: 2.4816 | U36: 2.1301 | V36: 3.2303 | W36: 3.1343 | X36: 5.5715 | Y36: 5.8791 | Z36: 4.0216 | AA36: 9.0301 | AB36: 7.0964 | AC36: 6.0941 | AD36: 10.19372301 | AE36: 9.011118405 | AF36: 6.793458867 | AG36: 11.93074505 | AH36: 8.877138765 | AI36: 4.771979469 | AJ36: 4.978258925 | AK36: 6.105770005 | AL36: 5.76249808 | AM36: 5.401004623 | AN36: 6.406531904 | AO36: 2.046332785
A37: GGFACL0 | B37: Not available in public WEO, so users would need to obtain this information from other sources. | E37: Amortization, preexisting local currency debt | F37: Billion | G37: 1.4325 | H37: 1.2653 | I37: 0.7761 | J37: 2.505 | K37: 1.307 | L37: 1.7639 | M37: 1.0759 | N37: 1.1202 | O37: 0.933 | P37: 0.9947 | Q37: 1.1257 | R37: 1.3644 | S37: 1.1267 | T37: 1.8858 | U37: 1.6075 | V37: 2.6867 | W37: 2.6072 | X37: 5.0262 | Y37: 5.1832 | Z37: 3.1646 | AA37: 8.0017 | AB37: 5.8817 | AC37: 4.9413 | AD37: 8.945835791 | AE37: 4.031204646 | AF37: 5.4478622 | AG37: 3.326677902 | AH37: 5.950916178 | AI37: 2.738957825 | AJ37: 3.499196813 | AK37: 1.134250147 | AL37: 4.033543004 | AM37: 3.758849448 | AN37: 5.132367782 | AO37: 1.058605448
A38: GGFACF0 | B38: Not available in public WEO, so users would need to obtain this information from other sources. | E38: Amortization, preexisting foreign currency debt | F38: Billion | G38: 0.94 | H38: 1.2535 | I38: 0.4232 | J38: 0.4662 | K38: 0.557284905 | L38: 1.5587 | M38: 0.606 | N38: 1.2564 | O38: 0.4052 | P38: 0.4157 | Q38: 1.8961 | R38: 0.6301 | S38: 0.7115 | T38: 0.5958 | U38: 0.5226 | V38: 0.5436 | W38: 0.5271 | X38: 0.5453 | Y38: 0.6959 | Z38: 0.857 | AA38: 1.0284 | AB38: 1.2147 | AC38: 1.1528 | AD38: 1.247887218 | AE38: 4.979913759 | AF38: 1.345596667 | AG38: 8.604067152 | AH38: 2.926222587 | AI38: 2.033021645 | AJ38: 1.479062112 | AK38: 4.971519858 | AL38: 1.728955076 | AM38: 1.642155174 | AN38: 1.274164122 | AO38: 0.9877273367
A39: GGFACI01 | B39: Not available in public WEO, so users would need to obtain this information from other sources. If a country does not have local-linked debt, please enter 0. | E39: Amortization, preexisting local-linked debt 1 | G39: 0 | H39: 0 | I39: 0 | J39: 0 | K39: 0 | L39: 0 | M39: 0 | N39: 0 | O39: 0 | P39: 0 | Q39: 0 | R39: 0 | S39: 0 | T39: 0 | U39: 0 | V39: 0 | W39: 0 | X39: 0 | Y39: 0 | Z39: 0 | AA39: 0 | AB39: 0 | AC39: 0 | AD39: 0 | AE39: 0 | AF39: 0 | AG39: 0 | AH39: 0 | AI39: 0 | AJ39: 0 | AK39: 0 | AL39: 0 | AM39: 0 | AN39: 0 | AO39: 0 | AP39: 0 | AQ39: 0 | AR39: 0 | AS39: 0
A40: GGFACI02 | B40: Not available in public WEO, so users would need to obtain this information from other sources. If a country does not have local-linked debt, please enter 0. | C40: =IFScode&A40 ->  | E40: Amortization, preexisting local-linked debt 2 | G40: 0 | H40: 0 | I40: 0 | J40: 0 | K40: 0 | L40: 0 | M40: 0 | N40: 0 | O40: 0 | P40: 0 | Q40: 0 | R40: 0 | S40: 0 | T40: 0 | U40: 0 | V40: 0 | W40: 0 | X40: 0 | Y40: 0 | Z40: 0 | AA40: 0 | AB40: 0 | AC40: 0 | AD40: 0 | AE40: 0 | AF40: 0 | AG40: 0 | AH40: 0 | AI40: 0 | AJ40: 0 | AK40: 0 | AL40: 0 | AM40: 0 | AN40: 0 | AO40: 0 | AP40: 0 | AQ40: 0 | AR40: 0 | AS40: 0
A41: CL | B41: Not available in public WEO, so users would need to obtain this information from other sources. | E41: Recognition of contingent liabilities | F41: Billion | G41: 0 | H41: 0 | I41: 0 | J41: 0 | K41: 0 | L41: 0 | M41: 0 | N41: 0 | O41: 0 | P41: 0 | Q41: 0 | R41: 0 | S41: 0 | T41: 0 | U41: 0 | V41: 0 | W41: 0 | X41: 0 | Y41: 0 | Z41: 0 | AA41: 0 | AB41: 0 | AC41: 0 | AD41: 0 | AE41: 0 | AF41: 0 | AG41: 0 | AH41: 0 | AI41: 0 | AJ41: 0 | AK41: 0 | AL41: 0 | AM41: 0 | AN41: 0 | AO41: 0
A42: ODCTL | B42: Not available in public WEO, so users would need to obtain this information from other sources. | E42: Other items (e.g. arrears), other debt creating transactions | F42: Billion | G42: 0 | H42: 0 | I42: 0 | J42: 0 | K42: 0 | L42: 0 | M42: 0 | N42: 0 | O42: 0 | P42: 0 | Q42: 0 | R42: 0 | S42: 0 | T42: 0 | U42: -4.5957 | V42: -10.238 | W42: -7.8662 | X42: -3.2519 | Y42: -3.8292 | Z42: -1.8993 | AA42: -7.1496 | AB42: -6.9337 | AC42: -1.7872 | AD42: -1.0015 | AE42: 0 | AF42: 0 | AG42: 0 | AH42: 0 | AI42: 0 | AJ42: 0 | AK42: 0 | AL42: 0 | AM42: 0 | AN42: 0 | AO42: 0
A43: ODCTA | B43: Not available in public WEO, so users would need to obtain this information from other sources. | E43: Use of asset buffers, other debt creating transactions | F43: Billion | G43: 0 | H43: 0 | I43: 0 | J43: 0 | K43: 0 | L43: 0 | M43: 0 | N43: 0 | O43: 0 | P43: 0 | Q43: 0 | R43: 0 | S43: 0 | T43: 0 | U43: 0 | V43: 0 | W43: 0 | X43: 0 | Y43: 0 | Z43: 0 | AA43: 0 | AB43: 0 | AC43: 0 | AD43: 0 | AE43: 0 | AF43: 0 | AG43: 0 | AH43: 0 | AI43: 0 | AJ43: 0 | AK43: 0 | AL43: 0 | AM43: 0 | AN43: 0 | AO43: 0
A44: ODCTP | B44: Not available in public WEO, so users would need to obtain this information from other sources. | E44: Debt issuance outside of GFN (e.g. pre-financing) | F44: Billion | G44: 0 | H44: 0 | I44: 0 | J44: 0 | K44: 0 | L44: 0 | M44: 0 | N44: 0 | O44: 0 | P44: 0 | Q44: 0 | R44: 0 | S44: 0 | T44: 0 | U44: 0 | V44: 0 | W44: 0 | X44: 0 | Y44: 0 | Z44: 0 | AA44: 0 | AB44: 0 | AC44: 0 | AD44: 0 | AE44: 0 | AF44: 0 | AG44: 0 | AH44: 0 | AI44: 0 | AJ44: 0 | AK44: 0 | AL44: 0 | AM44: 0 | AN44: 0 | AO44: 0
A45: GGXWDG | B45: Could use the option of computing this series based on the formula in the cells. | E45: Public debt | G45: =SUM(G46:G49) -> 20.57636634 | H45: =SUM(H46:H49) -> 20.96199091 | I45: 21.12393107 | J45: 22.01914715 | K45: 21.08406653 | L45: 21.18977418 | M45: 21.36280021 | N45: 24.53049051 | O45: 26.46587466 | P45: 28.89832211 | Q45: 33.11561332 | R45: 52.10670646 | S45: 47.41828437 | T45: 46.61173566 | U45: 51.97429777 | V45: 54.671831 | W45: 64.64092839 | X45: 74.45706666 | Y45: 77.74029049 | Z45: 84.63986764 | AA45: 99.92232196 | AB45: 107.9784189 | AC45: 111.3554694 | AD45: 115.6657869 | AE45: 120.6634738 | AF45: 125.2338249 | AG45: 129.6422957 | AH45: 133.8859373 | AI45: 138.061695 | AJ45: 142.8963022 | AK45: 148.4295793 | AL45: 154.6809429 | AM45: 161.7003364 | AN45: 169.5405577 | AO45: 178.2574085
A46: GGXWDGCL | B46: Not available in public WEO, so users would need to obtain this information from other sources. | E46: Public local currency debt | F46: Billion | G46: 9.989846339 | H46: 10.46682091 | I46: 11.36460107 | J46: 12.23335715 | K46: 12.61371653 | L46: 12.70304418 | M46: 13.40907929 | N46: 15.89121316 | O46: 17.17627451 | P46: 19.16906179 | Q46: 24.17921744 | R46: 42.64393373 | S46: 36.8349947 | T46: 36.88288886 | U46: 38.63780878 | V46: 40.68086104 | W46: 43.27708189 | X46: 50.92260871 | Y46: 52.99822793 | Z46: 58.29040297 | AA46: 68.30192084 | AB46: 76.81110981 | AC46: 79.28456935 | AD46: 82.07404547 | AE46: 85.65537511 | AF46: 88.95975034 | AG46: 92.16167708 | AH46: 95.25926889 | AI46: 98.31676539 | AJ46: 101.8164346 | AK46: 105.7844734 | AL46: 110.2339213 | AM46: 115.1981712 | AN46: 120.712521 | AO46: 126.8142734
A47: GGXWDGCF | B47: Not available in public WEO, so users would need to obtain this information from other sources. | E47: Public foreign currency debt | F47: Billion | G47: 10.58652 | H47: 10.49517 | I47: 9.75933 | J47: 9.78579 | K47: 8.47035 | L47: 8.48673 | M47: 7.953720919 | N47: 8.639277347 | O47: 9.289600147 | P47: 9.729260318 | Q47: 8.936395886 | R47: 9.462772723 | S47: 10.58328967 | T47: 9.728846797 | U47: 13.33648898 | V47: 13.99096996 | W47: 21.3638465 | X47: 23.53445794 | Y47: 24.74206256 | Z47: 26.34946467 | AA47: 31.62040112 | AB47: 31.16730911 | AC47: 32.0709 | AD47: 33.59174148 | AE47: 35.00809868 | AF47: 36.27407458 | AG47: 37.48061867 | AH47: 38.6266684 | AI47: 39.74492959 | AJ47: 41.07986755 | AK47: 42.64510586 | AL47: 44.44702155 | AM47: 46.50216517 | AN47: 48.82803669 | AO47: 51.44313506
A48: GGXWDGCI1 | B48: Not available in public WEO, so users would need to obtain this information from other sources. If a country does not have local-linked debt, please enter 0. | E48: Public local-linked debt 1 | G48: 0 | H48: 0 | I48: 0 | J48: 0 | K48: 0 | L48: 0 | M48: 0 | N48: 0 | O48: 0 | P48: 0 | Q48: 0 | R48: 0 | S48: 0 | T48: 0 | U48: 0 | V48: 0 | W48: 0 | X48: 0 | Y48: 0 | Z48: 0 | AA48: 0 | AB48: 0 | AC48: 0 | AD48: 0 | AE48: 0 | AF48: 0 | AG48: 0 | AH48: 0 | AI48: 0 | AJ48: 0 | AK48: 0 | AL48: 0 | AM48: 0 | AN48: 0 | AO48: 0 | AP48: 0 | AQ48: 0 | AR48: 0 | AS48: 0
A49: GGXWDGCI2 | B49: Not available in public WEO, so users would need to obtain this information from other sources. If a country does not have local-linked debt, please enter 0. | C49: =IFScode&A49 ->  | E49: Public local-linked debt 2 | G49: 0 | H49: 0 | I49: 0 | J49: 0 | K49: 0 | L49: 0 | M49: 0 | N49: 0 | O49: 0 | P49: 0 | Q49: 0 | R49: 0 | S49: 0 | T49: 0 | U49: 0 | V49: 0 | W49: 0 | X49: 0 | Y49: 0 | Z49: 0 | AA49: 0 | AB49: 0 | AC49: 0 | AD49: 0 | AE49: 0 | AF49: 0 | AG49: 0 | AH49: 0 | AI49: 0 | AJ49: 0 | AK49: 0 | AL49: 0 | AM49: 0 | AN49: 0 | AO49: 0 | AP49: 0 | AQ49: 0 | AR49: 0 | AS49: 0
A50: GGCBP_GDP | B50: Not available in public WEO, so users would need to obtain this information from other sources. | E50: General government cyclically adjusted primary balance (pct of GDP) | G50: 5.206153191 | H50: 4.85671695 | I50: 3.774411391 | J50: 5.689629585 | K50: 4.806929398 | L50: 5.069040339 | M50: 3.769584959 | N50: 5.264790196 | O50: 7.471717049 | P50: -2.326887061 | Q50: 2.510360486 | R50: 1.103798652 | S50: 0.43007539 | T50: -1.156322663 | U50: -2.67107446 | V50: -5.412824305 | W50: -7.531746571 | X50: -7.688325049 | Y50: -2.892494635 | Z50: -0.544923847 | AA50: -8.265719539 | AB50: -5.206370627 | AC50: 2.910326885 | AD50: 0.4327701838 | AE50: 0.4283868818 | AF50: 0.7317837533 | AG50: 0.878023885 | AH50: 1.013181836 | AI50: 1.090865229 | AJ50: 0.8391470863 | AK50: 0.5950537863 | AL50: 0.3677035897 | AM50: 0.144248766 | AN50: -0.07529300451 | AO50: -0.2909090072
A51: GGX_GDP | B51: Could use the option of computing this series based on the formula in the cells. | E51: Government expenditures, percent of GDP | G51: =100*G16/G6 -> 23.73063301 | H51: 24.72783441 | I51: 24.24939851 | J51: 23.13333128 | K51: 22.99761778 | L51: 27.45355226 | M51: 32.08685023 | N51: 26.2600355 | O51: 27.61383866 | P51: 32.90475479 | Q51: 30.9935059 | R51: 29.83319827 | S51: 29.29010794 | T51: 31.04012891 | U51: 32.17077185 | V51: 33.21524211 | W51: 30.45711927 | X51: 30.07267056 | Y51: 28.85554473 | Z51: 29.4871103 | AA51: 33.54199639 | AB51: 30.48651353 | AC51: 28.541191 | AD51: 29.51215246 | AE51: 28.86006286 | AF51: 28.7250841 | AG51: 28.54222058 | AH51: 28.35542246 | AI51: 28.1483294 | AJ51: 28.14173326 | AK51: 28.12186126 | AL51: 28.09914492 | AM51: 28.08574169 | AN51: 28.08159637 | AO51: 28.08664785
A52: GGXWDG_GDP | B52: Could use the option of computing this series based on the formula in the cells. | E52: Debt-to-GDP | G52: =100*G45/G6 -> 40.46492071 | H52: 37.3975239 | I52: 36.68991809 | J52: 31.74039616 | K52: 25.4295643 | L52: 21.35485131 | M52: 18.48371761 | N52: 18.02599506 | O52: 15.45560348 | P52: 20.79325537 | Q52: 23.50020165 | R52: 31.98421693 | S52: 26.98187594 | T52: 25.08881423 | U52: 27.00326993 | V52: 30.29406098 | W52: 39.16910811 | X52: 45.07118273 | Y52: 45.93618415 | Z52: 50.51122965 | AA52: 65.6559962 | AB52: 66.35835827 | AC52: 60.07961648 | AD52: 60.34753258 | AE52: 61.56690488 | AF52: 61.86431195 | AG52: 62.17543518 | AH52: 62.32425901 | AI52: 62.32894784 | AJ52: 62.70461569 | AK52: 63.34596448 | AL52: 64.189617 | AM52: 65.23482213 | AN52: 66.48068322 | AO52: 67.92616582
A53: GGXWDGCF_PCT | B53: Could use the option of computing this series based on the formula in the cells. | E53: Foreign currency debt, percent of total | G53: =100*G47/G45 -> 51.44990046 | H53: =100*H47/H45 -> 50.06762022 | I53: 46.20034959 | J53: 44.44218448 | K53: 40.17417602 | L53: 40.05106391 | M53: 37.23164023 | N53: 35.21852669 | O53: 35.10029526 | P53: 33.66721529 | Q53: 26.98544581 | R53: 18.16037391 | S53: 22.31900587 | T53: 20.87209725 | U53: 25.65977715 | V53: 25.59082018 | W53: 33.05003042 | X53: 31.60809175 | Y53: 31.82656304 | Z53: 31.13126876 | AA53: 31.64498233 | AB53: 28.86438737 | AC53: 28.80047131 | AD53: 29.04207231 | AE53: 29.01300417 | AF53: 28.96507761 | AG53: 28.91079524 | AH53: 28.85042984 | AI53: 28.7878036 | AJ53: 28.74802701 | AK53: 28.73086757 | AL53: 28.73464612 | AM53: 28.75823651 | AN53: 28.80021002 | AO53: 28.85890438
A54: GGXONLB_GDP | B54: Could use the option of computing this series based on the formula in the cells. | E54: Primary balance-to-GDP | G54: =100*G15/G6 -> 4.292835522 | H54: 3.818476725 | I54: 2.943699688 | J54: 5.001800512 | K54: 4.231846062 | L54: 4.419829817 | M54: 3.021626065 | N54: 4.61263586 | O54: 6.879803863 | P54: -2.960581762 | Q54: 1.752105124 | R54: 0.5207764544 | S54: -0.09932289497 | T54: -1.618043349 | U54: -3.057476303 | V54: -5.674144131 | W54: -7.63046659 | X54: -7.773872236 | Y54: -3.163312642 | Z54: -0.9260017038 | AA54: -8.315453955 | AB54: -5.441384532 | AC54: 2.427852879 | AD54: 0.0299768501 | AE54: 0.03403418837 | AF54: 0.3294820217 | AG54: 0.4739682058 | AH54: 0.6073751461 | AI54: 0.685593286 | AJ54: 0.4462428995 | AK54: 0.2151862456 | AL54: 0.0008951456589 | AM54: -0.2090932204 | AN54: -0.4147788295 | AO54: -0.6161664171
A55: SFA | B55: No need to fill out this row, as numbers will be computed by the spreadsheet. | E55: Stock-flow adjustment
A56: EREER | B56: Available in public IFS. | E56: Real effective exchange rate | F56: Index | G56: 72.63927638 | H56: 76.7577027 | I56: 78.70429598 | J56: 77.37096017 | K56: 76.00149061 | L56: 77.30049098 | M56: 80.44467691 | N56: 81.89101171 | O56: 86.78204933 | P56: 94.83226357 | Q56: 100 | R56: 98.70588567 | S56: 107.3161769 | T56: 111.2181969 | U56: 117.2431078 | V56: 131.0885962 | W56: 129.3769522 | X56: 126.5291611 | Y56: 124.7029236 | Z56: 126.7902125 | AA56: 127.6115251 | AB56: 129.3775308 | AC56: 119.7759655 | AD56: 127.3531561 | AE56: 131.9497015 | AF56: 135.0855424 | AG56: 137.8806551 | AH56: 140.5604084 | AI56: 143.2922435 | AJ56: 146.0771726 | AK56: 148.9162277 | AL56: 151.8104607 | AM56: 154.7609441 | AN56: 157.768771 | AO56: 160.8350559
A57: LLI1 | B57: Not available in public WEO, so users would need to obtain this information from other sources. Please note that the cells should not be blank or 0’s. | E57: Units of domestic currency per Local-Linked Bond index units 1, period average. | G57: 1 | H57: 1 | I57: 1 | J57: 1 | K57: 1 | L57: 1 | M57: 1 | N57: 1 | O57: 1 | P57: 1 | Q57: 1 | R57: 1 | S57: 1 | T57: 1 | U57: 1 | V57: 1 | W57: 1 | X57: 1 | Y57: 1 | Z57: 1 | AA57: 1 | AB57: 1 | AC57: 1 | AD57: 1 | AE57: 1 | AF57: 1 | AG57: 1 | AH57: 1 | AI57: 1 | AJ57: 1 | AK57: 1 | AL57: 1 | AM57: 1 | AN57: 1 | AO57: 1 | AP57: 1 | AQ57: 1 | AR57: 1 | AS57: 1
A58: LLIE1 | B58: Not available in public WEO, so users would need to obtain this information from other sources. Please note that the cells should not be blank or 0’s. | E58: Units of domestic currency per Local-Linked Bond index units 1, end of period. | G58: 1 | H58: 1 | I58: 1 | J58: 1 | K58: 1 | L58: 1 | M58: 1 | N58: 1 | O58: 1 | P58: 1 | Q58: 1 | R58: 1 | S58: 1 | T58: 1 | U58: 1 | V58: 1 | W58: 1 | X58: 1 | Y58: 1 | Z58: 1 | AA58: 1 | AB58: 1 | AC58: 1 | AD58: 1 | AE58: 1 | AF58: 1 | AG58: 1 | AH58: 1 | AI58: 1 | AJ58: 1 | AK58: 1 | AL58: 1 | AM58: 1 | AN58: 1 | AO58: 1 | AP58: 1 | AQ58: 1 | AR58: 1 | AS58: 1
A59: LLI2 | B59: Not available in public WEO, so users would need to obtain this information from other sources. Please note that the cells should not be blank or 0’s. | C59: =IFScode&A59 ->  | E59: Units of domestic currency per Local-Linked Bond index units 2, period average. | G59: 1 | H59: 1 | I59: 1 | J59: 1 | K59: 1 | L59: 1 | M59: 1 | N59: 1 | O59: 1 | P59: 1 | Q59: 1 | R59: 1 | S59: 1 | T59: 1 | U59: 1 | V59: 1 | W59: 1 | X59: 1 | Y59: 1 | Z59: 1 | AA59: 1 | AB59: 1 | AC59: 1 | AD59: 1 | AE59: 1 | AF59: 1 | AG59: 1 | AH59: 1 | AI59: 1 | AJ59: 1 | AK59: 1 | AL59: 1 | AM59: 1 | AN59: 1 | AO59: 1 | AP59: 1 | AQ59: 1 | AR59: 1 | AS59: 1
A60: LLIE2 | B60: Not available in public WEO, so users would need to obtain this information from other sources. Please note that the cells should not be blank or 0’s. | E60: Units of domestic currency per Local-Linked Bond index units 2, end of period. | G60: 1 | H60: 1 | I60: 1 | J60: 1 | K60: 1 | L60: 1 | M60: 1 | N60: 1 | O60: 1 | P60: 1 | Q60: 1 | R60: 1 | S60: 1 | T60: 1 | U60: 1 | V60: 1 | W60: 1 | X60: 1 | Y60: 1 | Z60: 1 | AA60: 1 | AB60: 1 | AC60: 1 | AD60: 1 | AE60: 1 | AF60: 1 | AG60: 1 | AH60: 1 | AI60: 1 | AJ60: 1 | AK60: 1 | AL60: 1 | AM60: 1 | AN60: 1 | AO60: 1 | AP60: 1 | AQ60: 1 | AR60: 1 | AS60: 1
A62: For debt decomposition
A63: GGXWDGLD_H | B63: Not available in public WEO, so users would need to obtain this information from other sources. | C63: =IFScode&A63 ->  | E63: Debt stock by governing law: Domestic | AC63: =NA() -> 
A64: GGXWDGLI_H | B64: Not available in public WEO, so users would need to obtain this information from other sources. | E64: Debt stock by governing law: International | AC64: =NA() -> 
A65: GGXWDGLM_H | B65: Not available in public WEO, so users would need to obtain this information from other sources. | E65: Debt stock by governing law: Multilateral | AC65: =NA() -> 
A66: GGXWDGM1_H | B66: Not available in public WEO, so users would need to obtain this information from other sources. | E66: Debt stock by residual maturity: < 1 year | Y66: =NA() ->  | Z66: =NA() ->  | AA66: =NA() ->  | AB66: =NA() ->  | AC66: =NA() -> 
A67: GGXWDGM5_H | B67: Not available in public WEO, so users would need to obtain this information from other sources. | E67: Debt stock by residual maturity: 2 to 5 years | Y67: =NA() ->  | Z67: =NA() ->  | AA67: =NA() ->  | AB67: =NA() ->  | AC67: =NA() -> 
A68: GGXWDGML_H | B68: Not available in public WEO, so users would need to obtain this information from other sources. | E68: Debt stock by residual maturity: > 5 years | Y68: =NA() ->  | Z68: =NA() ->  | AA68: =NA() ->  | AB68: =NA() ->  | AC68: =NA() -> 
A69: GGFATM_H | B69: Not available in public WEO, so users would need to obtain this information from other sources. | E69: Debt stock by marketability: Preexisting marketable instruments | Y69: =NA() ->  | Z69: =NA() ->  | AA69: =NA() ->  | AB69: =NA() ->  | AC69: =NA() -> 
A70: GGFATN_H | B70: Not available in public WEO, so users would need to obtain this information from other sources. | E70: Debt stock by marketability: Preexisting nonmarketable instruments | Y70: =NA() ->  | Z70: =NA() ->  | AA70: =NA() ->  | AB70: =NA() ->  | AC70: =NA() -> 
C71: =IFScode&A71 ->  | E71: Debt amortization by marketability: Preexisting marketable instruments | AD71: =NA() ->  | AE71: =NA() ->  | AF71: =NA() ->  | AG71: =NA() ->  | AH71: =NA() ->  | AI71: =NA() -> 
E72: Debt amortization by marketability: Preexisting nonmarketable instruments | AD72: =NA() ->  | AE72: =NA() ->  | AF72: =NA() ->  | AG72: =NA() ->  | AH72: =NA() ->  | AI72: =NA() -> 
A74: B) Central database (suggested data comes from SPR, teams can refresh and must complete missing values)
A76: FI_R | B76: Not available in public WEO (in particular, public WEO does not have data on general government interest expenditures used to derive this series) | C76: =IFScode&A76&".A" ->  | E76: Real effective interest rate on public debt | F76: Unit | G76: 1.482980111 | H76: 8.136839683 | I76: 16.26239914 | J76: 1.688719926 | K76: 1.568847439 | L76: -0.3989578689 | M76: 11.60926382 | N76: 0.6798174081 | O76: -8.097797728 | P76: 57.41818949 | Q76: 0.7893127337 | R76: -4.458332712 | S76: 5.375858323 | T76: 3.059786856 | U76: 5.583351812 | V76: 21.54053816 | W76: 9.359531109 | X76: -0.2587889822 | Y76: 3.944039038 | Z76: 7.308085297 | AA76: 10.62255661 | AB76: -5.856158045 | AC76: -10.01728112 | AD76: 9.864872283 | AE76: 8.835810199 | AF76: 5.175217933 | AG76: 4.652086661 | AH76: N.A. | AI76: N.A. | AJ76: N.A. | AK76: N.A. | AL76: N.A. | AM76: N.A. | AN76: N.A. | AO76: N.A. | AP76: N.A. | AQ76: N.A. | AR76: N.A. | AS76: N.A. | AT76: N.A. | AU76: N.A. | AV76: N.A. | AW76: N.A. | AX76: N.A. | AY76: N.A. | AZ76: N.A. | BA76: N.A. | BB76: N.A. | BC76: N.A. | BD76: N.A. | BE76: N.A. | BF76: N.A. | BG76: N.A. | BH76: N.A. | BI76: N.A. | BJ76: N.A. | BK76: N.A. | BL76: N.A. | BM76: N.A. | BN76: N.A. | BO76: N.A. | BP76: N.A. | BQ76: N.A. | BR76: N.A. | BS76: N.A. | BT76: N.A. | BU76: N.A. | BV76: N.A. | BW76: N.A. | BX76: N.A. | BY76: N.A. | BZ76: N.A. | CA76: N.A. | CB76: N.A. | CC76: N.A. | CD76: N.A. | CE76: N.A. | CF76: N.A. | CG76: N.A. | CH76: N.A. | CI76: N.A. | CJ76: N.A. | CK76: N.A. | CL76: N.A. | CM76: N.A. | CN76: N.A. | CO76: N.A. | CP76: N.A. | CQ76: N.A. | CR76: N.A. | CS76: N.A. | CT76: N.A. | CU76: N.A. | CV76: N.A. | CW76: N.A. | CX76: N.A. | CY76: N.A. | CZ76: N.A. | DA76: N.A. | DB76: N.A. | DC76: N.A. | DD76: N.A. | DE76: N.A. | DF76: N.A. | DG76: N.A. | DH76: N.A.
A77: ERERUS_RPCH | B77: Derived based on publicly available variables ENDA (period average exchange rate per US dollar, available in public IFS) and NGDP_D (GDP deflator, available in public WEO). | C77: =IFScode&A77&".A" ->  | E77: Percent change in real ER vs. US dollar | F77: Unit | G77: -8.731582468 | H77: -1.842466697 | I77: 6.589738518 | J77: -7.330560039 | K77: -6.218644883 | L77: -9.008868751 | M77: 2.323462488 | N77: -9.496807194 | O77: -17.95234764 | P77: 38.25012403 | Q77: -9.058057561 | R77: -11.02626016 | S77: 1.255691657 | T77: -1.70609519 | U77: -0.2732394538 | V77: 12.80377094 | W77: 6.501051406 | X77: -4.250434166 | Y77: -1.068673837 | Z77: 1.335897785 | AA77: 4.669218325 | AB77: -7.793103056 | AC77: -8.860541682 | AD77: 7.156342709 | AE77: 4.691890907 | AF77: 0.9705674789 | AG77: 0.5375374228 | AH77: N.A. | AI77: N.A. | AJ77: N.A. | AK77: N.A. | AL77: N.A. | AM77: N.A. | AN77: N.A. | AO77: N.A. | AP77: N.A. | AQ77: N.A. | AR77: N.A. | AS77: N.A. | AT77: N.A. | AU77: N.A. | AV77: N.A. | AW77: N.A. | AX77: N.A. | AY77: N.A. | AZ77: N.A. | BA77: N.A. | BB77: N.A. | BC77: N.A. | BD77: N.A. | BE77: N.A. | BF77: N.A. | BG77: N.A. | BH77: N.A. | BI77: N.A. | BJ77: N.A. | BK77: N.A. | BL77: N.A. | BM77: N.A. | BN77: N.A. | BO77: N.A. | BP77: N.A. | BQ77: N.A. | BR77: N.A. | BS77: N.A. | BT77: N.A. | BU77: N.A. | BV77: N.A. | BW77: N.A. | BX77: N.A. | BY77: N.A. | BZ77: N.A. | CA77: N.A. | CB77: N.A. | CC77: N.A. | CD77: N.A. | CE77: N.A. | CF77: N.A. | CG77: N.A. | CH77: N.A. | CI77: N.A. | CJ77: N.A. | CK77: N.A. | CL77: N.A. | CM77: N.A. | CN77: N.A. | CO77: N.A. | CP77: N.A. | CQ77: N.A. | CR77: N.A. | CS77: N.A. | CT77: N.A. | CU77: N.A. | CV77: N.A. | CW77: N.A. | CX77: N.A. | CY77: N.A. | CZ77: N.A. | DA77: N.A. | DB77: N.A. | DC77: N.A. | DD77: N.A. | DE77: N.A. | DF77: N.A. | DG77: N.A. | DH77: N.A.
A78: 111NGDP_DPCH | B78: Can be derived based on publicly available variable NGDP_D (GDP deflator, available in WEO). | C78: =A78&".A" -> 111NGDP_DPCH.A | E78: Deflator of Gross domestic product, current prices, percent change | F78: Unit | G78: 2.265563242 | H78: 2.252936354 | I78: 1.558570648 | J78: 1.973698886 | K78: 2.684373751 | L78: 3.135966119 | M78: 3.085664304 | N78: 2.702447673 | O78: 1.917654328 | P78: 0.6409055885 | Q78: 1.201991934 | R78: 2.077737795 | S78: 1.870389109 | T78: 1.751312613 | U78: 1.869827474 | V78: 1.000410195 | W78: 1.002029863 | X78: 1.898132096 | Y78: 2.388830087 | Z78: 1.788932486 | AA78: 1.205081834 | AB78: 3.603606489 | AC78: 2.752377396 | AD78: 2.379457925 | AE78: 2.279290968 | AF78: 2.17229034 | AG78: 2.072200751 | AH78: =AH79/AG79*100-100 -> 1.935056466 | AI78: =AI79/AH79*100-100 -> 1.935056466 | AJ78: =AJ79/AI79*100-100 -> 1.935056466 | AK78: 1.935056466 | AL78: 1.935056466 | AM78: 1.935056466 | AN78: 1.935056466
A79: 111NGDP_D | B79: Available in public WEO. | C79: =A79&".A" -> 111NGDP_D.A | E79: Deflator of Gross domestic product, current prices | F79: Unit | G79: 78.02489715 | H79: 79.78274842 | I79: 81.02621892 | J79: 82.6254325 | K79: 84.84340792 | L79: 87.50406845 | M79: 90.20415026 | N79: 92.64187021 | O79: 94.41842105 | P79: 95.02355399 | Q79: 96.16572944 | R79: 98.16380115 | S79: 99.99984619 | T79: 101.7511561 | U79: 103.6537272 | V79: 104.6906896 | W79: 105.7397216 | X79: 107.7468012 | Y79: 110.3206892 | Z79: 112.2942519 | AA79: 113.6474895 | AB79: 118.369897 | AC79: 126.7856545 | AD79: 131.3029704 | AE79: 134.0580405 | AF79: 136.5495148 | AG79: 139.1491099 | AH79: 141.8417237 | AI79: 144.5864412 | AJ79: 147.3842705 | AK79: 150.2362393 | AL79: 153.1433954 | AM79: 156.1068065 | AN79: 159.1275614 | AO79: N.A. | AP79: N.A. | AQ79: N.A. | AR79: N.A. | AS79: N.A. | AT79: N.A. | AU79: N.A. | AV79: N.A. | AW79: N.A. | AX79: N.A. | AY79: N.A. | AZ79: N.A. | BA79: N.A. | BB79: N.A. | BC79: N.A. | BD79: N.A. | BE79: N.A. | BF79: N.A. | BG79: N.A. | BH79: N.A. | BI79: N.A. | BJ79: N.A. | BK79: N.A. | BL79: N.A. | BM79: N.A. | BN79: N.A. | BO79: N.A. | BP79: N.A. | BQ79: N.A. | BR79: N.A. | BS79: N.A. | BT79: N.A. | BU79: N.A. | BV79: N.A. | BW79: N.A. | BX79: N.A. | BY79: N.A. | BZ79: N.A. | CA79: N.A. | CB79: N.A. | CC79: N.A. | CD79: N.A. | CE79: N.A. | CF79: N.A. | CG79: N.A. | CH79: N.A. | CI79: N.A. | CJ79: N.A. | CK79: N.A. | CL79: N.A. | CM79: N.A. | CN79: N.A. | CO79: N.A. | CP79: N.A. | CQ79: N.A. | CR79: N.A. | CS79: N.A. | CT79: N.A. | CU79: N.A. | CV79: N.A. | CW79: N.A. | CX79: N.A. | CY79: N.A. | CZ79: N.A. | DA79: N.A. | DB79: N.A. | DC79: N.A. | DD79: N.A. | DE79: N.A. | DF79: N.A. | DG79: N.A. | DH79: N.A.
A80: IAR_GDP | B80: Not available in public WEO, but can be approximated using data available in public IFS. | C80: =IFScode&A80&".A" ->  | E80: International reserves-to-GDP | F80: Unit | G80: 16.71054233 | H80: 20.93552795 | I80: 21.02637568 | J80: 19.69459471 | K80: 22.21637003 | L80: 29.60695461 | M80: 27.44771355 | N80: 30.60138391 | O80: 33.1501292 | P80: 45.01955503 | Q80: 41.19479062 | R80: 38.70899224 | S80: 36.37273103 | T80: 37.3204802 | U80: 41.6165721 | V80: 39.61034115 | W80: 42.46114716 | X80: 37.24072667 | Y80: 31.8168264 | Z80: 28.75073149 | AA80: 28.14607103 | AB80: 24.19395424 | AC80: 20.3138194 | AD80: 17.31767084 | AE80: 14.74426263 | AF80: 12.43273229 | AG80: N.A. | AH80: N.A. | AI80: N.A. | AJ80: N.A. | AK80: N.A. | AL80: N.A. | AM80: N.A. | AN80: N.A. | AO80: N.A. | AP80: N.A. | AQ80: N.A. | AR80: N.A. | AS80: N.A. | AT80: N.A. | AU80: N.A. | AV80: N.A. | AW80: N.A. | AX80: N.A. | AY80: N.A. | AZ80: N.A. | BA80: N.A. | BB80: N.A. | BC80: N.A. | BD80: N.A. | BE80: N.A. | BF80: N.A. | BG80: N.A. | BH80: N.A. | BI80: N.A. | BJ80: N.A. | BK80: N.A. | BL80: N.A. | BM80: N.A. | BN80: N.A. | BO80: N.A. | BP80: N.A. | BQ80: N.A. | BR80: N.A. | BS80: N.A. | BT80: N.A. | BU80: N.A. | BV80: N.A. | BW80: N.A. | BX80: N.A. | BY80: N.A. | BZ80: N.A. | CA80: N.A. | CB80: N.A. | CC80: N.A. | CD80: N.A. | CE80: N.A. | CF80: N.A. | CG80: N.A. | CH80: N.A. | CI80: N.A. | CJ80: N.A. | CK80: N.A. | CL80: N.A. | CM80: N.A. | CN80: N.A. | CO80: N.A. | CP80: N.A. | CQ80: N.A. | CR80: N.A. | CS80: N.A. | CT80: N.A. | CU80: N.A. | CV80: N.A. | CW80: N.A. | CX80: N.A. | CY80: N.A. | CZ80: N.A. | DA80: N.A. | DB80: N.A. | DC80: N.A. | DD80: N.A. | DE80: N.A. | DF80: N.A. | DG80: N.A. | DH80: N.A.
A81: BCA_GDP_BP6 | B81: Available in public WEO. | C81: =IFScode&A81&".A" ->  | E81: Balance of Payments, Current Account, Total, Net(BPM6), percent of GDP in U.S. dollars | F81: Unit | G81: 6.561971484 | H81: 4.642667568 | I81: 0.8351521194 | J81: 8.589833641 | K81: 13.30843379 | L81: 24.00360505 | M81: 38.30447156 | N81: 23.47764268 | O81: 30.10272408 | P81: 8.346866077 | Q81: 18.52563473 | R81: 18.2570114 | S81: 14.99710179 | T81: 20.4119767 | U81: 15.02938911 | V81: 8.166033479 | W81: -3.468858072 | X81: 6.079316759 | Y81: 6.82532656 | Z81: 4.270847807 | AA81: -6.340689568 | AB81: 10.44583848 | AC81: 14.33739283 | AD81: 15.88683336 | AE81: 15.72359351 | AF81: 14.97826837 | AG81: 13.56406435 | AH81: 12.92350757 | AI81: N.A. | AJ81: N.A. | AK81: N.A. | AL81: N.A. | AM81: N.A. | AN81: N.A. | AO81: N.A. | AP81: N.A. | AQ81: N.A. | AR81: N.A. | AS81: N.A. | AT81: N.A. | AU81: N.A. | AV81: N.A. | AW81: N.A. | AX81: N.A. | AY81: N.A. | AZ81: N.A. | BA81: N.A. | BB81: N.A. | BC81: N.A. | BD81: N.A. | BE81: N.A. | BF81: N.A. | BG81: N.A. | BH81: N.A. | BI81: N.A. | BJ81: N.A. | BK81: N.A. | BL81: N.A. | BM81: N.A. | BN81: N.A. | BO81: N.A. | BP81: N.A. | BQ81: N.A. | BR81: N.A. | BS81: N.A. | BT81: N.A. | BU81: N.A. | BV81: N.A. | BW81: N.A. | BX81: N.A. | BY81: N.A. | BZ81: N.A. | CA81: N.A. | CB81: N.A. | CC81: N.A. | CD81: N.A. | CE81: N.A. | CF81: N.A. | CG81: N.A. | CH81: N.A. | CI81: N.A. | CJ81: N.A. | CK81: N.A. | CL81: N.A. | CM81: N.A. | CN81: N.A. | CO81: N.A. | CP81: N.A. | CQ81: N.A. | CR81: N.A. | CS81: N.A. | CT81: N.A. | CU81: N.A. | CV81: N.A. | CW81: N.A. | CX81: N.A. | CY81: N.A. | CZ81: N.A. | DA81: N.A. | DB81: N.A. | DC81: N.A. | DD81: N.A. | DE81: N.A. | DF81: N.A. | DG81: N.A. | DH81: N.A.
A82: FOSAGG | B82: Available in public IFS (sum of claims on central government and claims on state and local government in domestic currency). | C82: =IFScode&A82 ->  | E82: Bank claims on general government (other depository corporations) | F82: =UnitScale -> Billion | G82: N.A. | H82: 4.147186 | I82: 4.509842 | J82: 5.146123 | K82: 5.72455 | L82: 7.65739162 | M82: 6.410736 | N82: 6.654356 | O82: 7.2274563 | P82: 12.71698672 | Q82: 15.05773306 | R82: 14.50578305 | S82: 19.34628232 | T82: 18.12031617 | U82: 20.704086 | V82: 17.616455 | W82: 22.231119 | X82: 20.128179 | Y82: 20.69598 | Z82: 16.458612 | AA82: 21.32348125 | AB82: 24.191132 | AC82: =AC102 -> 40.10168058 | AD82: N.A. | AE82: N.A. | AF82: N.A. | AG82: N.A. | AH82: N.A. | AI82: N.A. | AJ82: N.A. | AK82: N.A. | AL82: N.A. | AM82: N.A. | AN82: N.A. | AO82: N.A. | AP82: N.A. | AQ82: N.A. | AR82: N.A. | AS82: N.A. | AT82: N.A. | AU82: N.A. | AV82: N.A. | AW82: N.A. | AX82: N.A. | AY82: N.A. | AZ82: N.A. | BA82: N.A. | BB82: N.A. | BC82: N.A. | BD82: N.A. | BE82: N.A. | BF82: N.A. | BG82: N.A. | BH82: N.A. | BI82: N.A. | BJ82: N.A. | BK82: N.A. | BL82: N.A. | BM82: N.A. | BN82: N.A. | BO82: N.A. | BP82: N.A. | BQ82: N.A. | BR82: N.A. | BS82: N.A. | BT82: N.A. | BU82: N.A. | BV82: N.A. | BW82: N.A. | BX82: N.A. | BY82: N.A. | BZ82: N.A. | CA82: N.A. | CB82: N.A. | CC82: N.A. | CD82: N.A. | CE82: N.A. | CF82: N.A. | CG82: N.A. | CH82: N.A. | CI82: N.A. | CJ82: N.A. | CK82: N.A. | CL82: N.A. | CM82: N.A. | CN82: N.A. | CO82: N.A. | CP82: N.A. | CQ82: N.A. | CR82: N.A. | CS82: N.A. | CT82: N.A. | CU82: N.A. | CV82: N.A. | CW82: N.A. | CX82: N.A. | CY82: N.A. | CZ82: N.A. | DA82: N.A. | DB82: N.A. | DC82: N.A. | DD82: N.A. | DE82: N.A. | DF82: N.A. | DG82: N.A. | DH82: N.A.
A83: FODA | B83: Available in public IFS (assets in domestic currency). | C83: =IFScode&A83 ->  | E83: Banking System Assets (other depository corporations) | F83: =UnitScale -> Billion | G83: N.A. | H83: 54.282487 | I83: 56.998566 | J83: 63.449502 | K83: 72.532327 | L83: 79.59574712 | M83: 89.174525 | N83: 99.908835 | O83: 111.2388219 | P83: 115.1471865 | Q83: 112.4585449 | R83: 119.1333166 | S83: 128.6004588 | T83: 133.9229436 | U83: 141.9164575 | V83: 142.41141 | W83: 146.322734 | X83: 143.919608 | Y83: 148.119064 | Z83: 156.878824 | AA83: 165.7983723 | AB83: 168.898198 | AC83: =AC6/AB6*AB83 -> 192.3836172 | AD83: N.A. | AE83: N.A. | AF83: N.A. | AG83: N.A. | AH83: N.A. | AI83: N.A. | AJ83: N.A. | AK83: N.A. | AL83: N.A. | AM83: N.A. | AN83: N.A. | AO83: N.A. | AP83: N.A. | AQ83: N.A. | AR83: N.A. | AS83: N.A. | AT83: N.A. | AU83: N.A. | AV83: N.A. | AW83: N.A. | AX83: N.A. | AY83: N.A. | AZ83: N.A. | BA83: N.A. | BB83: N.A. | BC83: N.A. | BD83: N.A. | BE83: N.A. | BF83: N.A. | BG83: N.A. | BH83: N.A. | BI83: N.A. | BJ83: N.A. | BK83: N.A. | BL83: N.A. | BM83: N.A. | BN83: N.A. | BO83: N.A. | BP83: N.A. | BQ83: N.A. | BR83: N.A. | BS83: N.A. | BT83: N.A. | BU83: N.A. | BV83: N.A. | BW83: N.A. | BX83: N.A. | BY83: N.A. | BZ83: N.A. | CA83: N.A. | CB83: N.A. | CC83: N.A. | CD83: N.A. | CE83: N.A. | CF83: N.A. | CG83: N.A. | CH83: N.A. | CI83: N.A. | CJ83: N.A. | CK83: N.A. | CL83: N.A. | CM83: N.A. | CN83: N.A. | CO83: N.A. | CP83: N.A. | CQ83: N.A. | CR83: N.A. | CS83: N.A. | CT83: N.A. | CU83: N.A. | CV83: N.A. | CW83: N.A. | CX83: N.A. | CY83: N.A. | CZ83: N.A. | DA83: N.A. | DB83: N.A. | DC83: N.A. | DD83: N.A. | DE83: N.A. | DF83: N.A. | DG83: N.A. | DH83: N.A.
A84: IQI | B84: Average of Government Effectiveness and Regulatory Quality indicators available through the Worldwide Governance Indicators (WGI) project (http://info.worldbank.org/governance/wgi/). | C84: =IFScode&A84 ->  | E84: Institutional Quality Index | F84: Unit | G84: 0.1590107605 | H84: 0.1590107605 | I84: 0.03339087963 | J84: 0.1238249296 | K84: 0.2635206431 | L84: 1.173865199 | M84: 0.968423456 | N84: 0.755040437 | O84: 0.6128475964 | P84: 0.7151981443 | Q84: 0.5897993296 | R84: 0.6909615546 | S84: 0.5245200992 | T84: 0.5349064916 | U84: 0.1542616617 | V84: 0.146728036 | W84: 0.1884229481 | X84: 0.3513190001 | Y84: 0.3071656525 | Z84: 0.3020021021 | AA84: 0.3422643989 | AB84: 0.1418993697 | AC84: 0.1418993697 | AD84: 0.1418993697 | AE84: 0.1418993697 | AF84: 0.1418993697 | AG84: 0.1418993697 | AH84: 0.1418993697 | AI84: 0.1418993697 | AJ84: 0.1418993697 | AK84: 0.1418993697 | AL84: 0.1418993697 | AM84: 0.1418993697 | AN84: N.A. | AO84: N.A. | AP84: N.A. | AQ84: N.A. | AR84: N.A. | AS84: N.A. | AT84: N.A. | AU84: N.A. | AV84: N.A. | AW84: N.A. | AX84: N.A. | AY84: N.A. | AZ84: N.A. | BA84: N.A. | BB84: N.A. | BC84: N.A. | BD84: N.A. | BE84: N.A. | BF84: N.A. | BG84: N.A. | BH84: N.A. | BI84: N.A. | BJ84: N.A. | BK84: N.A. | BL84: N.A. | BM84: N.A. | BN84: N.A. | BO84: N.A. | BP84: N.A. | BQ84: N.A. | BR84: N.A. | BS84: N.A. | BT84: N.A. | BU84: N.A. | BV84: N.A. | BW84: N.A. | BX84: N.A. | BY84: N.A. | BZ84: N.A. | CA84: N.A. | CB84: N.A. | CC84: N.A. | CD84: N.A. | CE84: N.A. | CF84: N.A. | CG84: N.A. | CH84: N.A. | CI84: N.A. | CJ84: N.A. | CK84: N.A. | CL84: N.A. | CM84: N.A. | CN84: N.A. | CO84: N.A. | CP84: N.A. | CQ84: N.A. | CR84: N.A. | CS84: N.A. | CT84: N.A. | CU84: N.A. | CV84: N.A. | CW84: N.A. | CX84: N.A. | CY84: N.A. | CZ84: N.A. | DA84: N.A. | DB84: N.A. | DC84: N.A. | DD84: N.A. | DE84: N.A. | DF84: N.A. | DG84: N.A. | DH84: N.A.
A85: IQI_MIN | B85: Derived based on data available through the Worldwide Governance Indicators (WGI) project (http://info.worldbank.org/governance/wgi/). | C85: ="001"&A85 -> 001IQI_MIN | E85: Minimum institutional quality index | F85: Unit | G85: -2.2486 | H85: -2.2486 | I85: -2.2486 | J85: -2.2486 | K85: -2.2486 | L85: -2.2486 | M85: -2.2486 | N85: -2.2486 | O85: -2.2486 | P85: -2.2486 | Q85: -2.2486 | R85: -2.2486 | S85: -2.2486 | T85: -2.2486 | U85: -2.2486 | V85: -2.2486 | W85: -2.2486 | X85: -2.2486 | Y85: -2.2486 | Z85: -2.2486 | AA85: -2.2486 | AB85: -2.2486 | AC85: -2.2486 | AD85: -2.2486 | AE85: -2.2486 | AF85: -2.2486 | AG85: -2.2486 | AH85: -2.2486 | AI85: -2.2486 | AJ85: -2.2486 | AK85: -2.2486 | AL85: -2.2486 | AM85: -2.2486 | AN85: N.A. | AO85: N.A. | AP85: N.A. | AQ85: N.A. | AR85: N.A. | AS85: N.A. | AT85: N.A. | AU85: N.A. | AV85: N.A. | AW85: N.A. | AX85: N.A. | AY85: N.A. | AZ85: N.A. | BA85: N.A. | BB85: N.A. | BC85: N.A. | BD85: N.A. | BE85: N.A. | BF85: N.A. | BG85: N.A. | BH85: N.A. | BI85: N.A. | BJ85: N.A. | BK85: N.A. | BL85: N.A. | BM85: N.A. | BN85: N.A. | BO85: N.A. | BP85: N.A. | BQ85: N.A. | BR85: N.A. | BS85: N.A. | BT85: N.A. | BU85: N.A. | BV85: N.A. | BW85: N.A. | BX85: N.A. | BY85: N.A. | BZ85: N.A. | CA85: N.A. | CB85: N.A. | CC85: N.A. | CD85: N.A. | CE85: N.A. | CF85: N.A. | CG85: N.A. | CH85: N.A. | CI85: N.A. | CJ85: N.A. | CK85: N.A. | CL85: N.A. | CM85: N.A. | CN85: N.A. | CO85: N.A. | CP85: N.A. | CQ85: N.A. | CR85: N.A. | CS85: N.A. | CT85: N.A. | CU85: N.A. | CV85: N.A. | CW85: N.A. | CX85: N.A. | CY85: N.A. | CZ85: N.A. | DA85: N.A. | DB85: N.A. | DC85: N.A. | DD85: N.A. | DE85: N.A. | DF85: N.A. | DG85: N.A. | DH85: N.A.
A86: IQI_SF | B86: Derived based on data available through the Worldwide Governance Indicators (WGI) project (http://info.worldbank.org/governance/wgi/). | C86: ="001"&A86 -> 001IQI_SF | E86: Scaling factor for institutional quality index | F86: Unit | G86: 3.7787 | H86: 3.7787 | I86: 3.7787 | J86: 3.7787 | K86: 3.7787 | L86: 3.7787 | M86: 3.7787 | N86: 3.7787 | O86: 3.7787 | P86: 3.7787 | Q86: 3.7787 | R86: 3.7787 | S86: 3.7787 | T86: 3.7787 | U86: 3.7787 | V86: 3.7787 | W86: 3.7787 | X86: 3.7787 | Y86: 3.7787 | Z86: 3.7787 | AA86: 3.7787 | AB86: 3.7787 | AC86: 3.7787 | AD86: 3.7787 | AE86: 3.7787 | AF86: 3.7787 | AG86: 3.7787 | AH86: 3.7787 | AI86: 3.7787 | AJ86: 3.7787 | AK86: 3.7787 | AL86: 3.7787 | AM86: 3.7787 | AN86: N.A. | AO86: N.A. | AP86: N.A. | AQ86: N.A. | AR86: N.A. | AS86: N.A. | AT86: N.A. | AU86: N.A. | AV86: N.A. | AW86: N.A. | AX86: N.A. | AY86: N.A. | AZ86: N.A. | BA86: N.A. | BB86: N.A. | BC86: N.A. | BD86: N.A. | BE86: N.A. | BF86: N.A. | BG86: N.A. | BH86: N.A. | BI86: N.A. | BJ86: N.A. | BK86: N.A. | BL86: N.A. | BM86: N.A. | BN86: N.A. | BO86: N.A. | BP86: N.A. | BQ86: N.A. | BR86: N.A. | BS86: N.A. | BT86: N.A. | BU86: N.A. | BV86: N.A. | BW86: N.A. | BX86: N.A. | BY86: N.A. | BZ86: N.A. | CA86: N.A. | CB86: N.A. | CC86: N.A. | CD86: N.A. | CE86: N.A. | CF86: N.A. | CG86: N.A. | CH86: N.A. | CI86: N.A. | CJ86: N.A. | CK86: N.A. | CL86: N.A. | CM86: N.A. | CN86: N.A. | CO86: N.A. | CP86: N.A. | CQ86: N.A. | CR86: N.A. | CS86: N.A. | CT86: N.A. | CU86: N.A. | CV86: N.A. | CW86: N.A. | CX86: N.A. | CY86: N.A. | CZ86: N.A. | DA86: N.A. | DB86: N.A. | DC86: N.A. | DD86: N.A. | DE86: N.A. | DF86: N.A. | DG86: N.A. | DH86: N.A.
A87: ISH | B87: IMF staff estimates, users would need to obtain this information from other sources. | C87: =IFScode&A87 ->  | E87: Country stress history | F87: Unit | G87: 0.3486784401 | H87: 0.3138105961 | I87: 0.2824295365 | J87: 0.2541865828 | K87: 0.2287679245 | L87: 0.2058911321 | M87: 0.1853020189 | N87: 0.166771817 | O87: 0.1500946353 | P87: 0.1350851718 | Q87: 0.1215766546 | R87: 0.1094189891 | S87: 0.09847709022 | T87: 0.0886293812 | U87: 0.07976644308 | V87: 0.07178979877 | W87: 0.06461081889 | X87: 0.058149737 | Y87: 0.0523347633 | Z87: 0.04710128697 | AA87: N.A. | AB87: N.A. | AC87: N.A. | AD87: N.A. | AE87: N.A. | AF87: N.A. | AG87: N.A. | AH87: N.A. | AI87: N.A. | AJ87: N.A. | AK87: N.A. | AL87: N.A. | AM87: N.A. | AN87: N.A. | AO87: N.A. | AP87: N.A. | AQ87: N.A. | AR87: N.A. | AS87: N.A. | AT87: N.A. | AU87: N.A. | AV87: N.A. | AW87: N.A. | AX87: N.A. | AY87: N.A. | AZ87: N.A. | BA87: N.A. | BB87: N.A. | BC87: N.A. | BD87: N.A. | BE87: N.A. | BF87: N.A. | BG87: N.A. | BH87: N.A. | BI87: N.A. | BJ87: N.A. | BK87: N.A. | BL87: N.A. | BM87: N.A. | BN87: N.A. | BO87: N.A. | BP87: N.A. | BQ87: N.A. | BR87: N.A. | BS87: N.A. | BT87: N.A. | BU87: N.A. | BV87: N.A. | BW87: N.A. | BX87: N.A. | BY87: N.A. | BZ87: N.A. | CA87: N.A. | CB87: N.A. | CC87: N.A. | CD87: N.A. | CE87: N.A. | CF87: N.A. | CG87: N.A. | CH87: N.A. | CI87: N.A. | CJ87: N.A. | CK87: N.A. | CL87: N.A. | CM87: N.A. | CN87: N.A. | CO87: N.A. | CP87: N.A. | CQ87: N.A. | CR87: N.A. | CS87: N.A. | CT87: N.A. | CU87: N.A. | CV87: N.A. | CW87: N.A. | CX87: N.A. | CY87: N.A. | CZ87: N.A. | DA87: N.A. | DB87: N.A. | DC87: N.A. | DD87: N.A. | DE87: N.A. | DF87: N.A. | DG87: N.A. | DH87: N.A.
A88: FOSAOP_YGAP_LAG | B88: Bank for International Settlements (BIS) Credit-to-GDP Gap statistics, can be downloaded from https://www.bis.org/statistics/c_gaps.htm (please use columns marked as ‘actual-trend’). | C88: =IFScode&A88 ->  | E88: Credit Gap (Systemic Risk tracker if BIS not present) | F88: Unit | G88: =G89 -> 0.2724117339 | H88: =H89 -> -1.550129294 | I88: 13.1096344 | J88: 9.87362957 | K88: 0.7432813048 | L88: -1.328645945 | M88: -5.006718636 | N88: -4.849000931 | O88: -4.638150692 | P88: -8.256036758 | Q88: 1.331354141 | R88: -3.172184944 | S88: -4.591114998 | T88: -2.747270107 | U88: -2.301357031 | V88: -0.07094105333 | W88: 4.808560848 | X88: 7.570586681 | Y88: 6.063965797 | Z88: 5.1928792 | AA88: 5.5146451 | AB88: 8.178150177 | AC88: N.A. | AD88: N.A. | AE88: N.A. | AF88: N.A. | AG88: N.A. | AH88: N.A. | AI88: N.A. | AJ88: N.A. | AK88: N.A. | AL88: N.A. | AM88: N.A. | AN88: N.A. | AO88: N.A. | AP88: N.A. | AQ88: N.A. | AR88: N.A. | AS88: N.A.
A89: FOSAOP_YGAP_LAG_SR | B89: IMF staff estimates, data is not publicly available. | C89: =IFScode&A89 ->  | E89: Credit gap, if positive, lagged 1 year (Systemic Risk Tracker) | F89: Unit | G89: 0.2724117339 | H89: -1.550129294 | I89: 13.1096344 | J89: 9.87362957 | K89: 0.7432813048 | L89: -1.328645945 | M89: -5.006718636 | N89: -4.849000931 | O89: -4.638150692 | P89: -8.256036758 | Q89: 1.331354141 | R89: -3.172184944 | S89: -4.591114998 | T89: -2.747270107 | U89: -2.301357031 | V89: -0.07094105333 | W89: 4.808560848 | X89: 7.570586681 | Y89: 6.063965797 | Z89: 5.1928792 | AA89: 5.5146451 | AB89: 8.178150177 | AC89: N.A. | AD89: N.A. | AE89: N.A. | AF89: N.A. | AG89: N.A. | AH89: N.A. | AI89: N.A. | AJ89: N.A. | AK89: N.A. | AL89: N.A. | AM89: N.A. | AN89: N.A. | AO89: N.A. | AP89: N.A. | AQ89: N.A. | AR89: N.A. | AS89: N.A. | AT89: N.A. | AU89: N.A. | AV89: N.A. | AW89: N.A. | AX89: N.A. | AY89: N.A. | AZ89: N.A. | BA89: N.A. | BB89: N.A. | BC89: N.A. | BD89: N.A. | BE89: N.A. | BF89: N.A. | BG89: N.A. | BH89: N.A. | BI89: N.A. | BJ89: N.A. | BK89: N.A. | BL89: N.A. | BM89: N.A. | BN89: N.A. | BO89: N.A. | BP89: N.A. | BQ89: N.A. | BR89: N.A. | BS89: N.A. | BT89: N.A. | BU89: N.A. | BV89: N.A. | BW89: N.A. | BX89: N.A. | BY89: N.A. | BZ89: N.A. | CA89: N.A. | CB89: N.A. | CC89: N.A. | CD89: N.A. | CE89: N.A. | CF89: N.A. | CG89: N.A. | CH89: N.A. | CI89: N.A. | CJ89: N.A. | CK89: N.A. | CL89: N.A. | CM89: N.A. | CN89: N.A. | CO89: N.A. | CP89: N.A. | CQ89: N.A. | CR89: N.A. | CS89: N.A. | CT89: N.A. | CU89: N.A. | CV89: N.A. | CW89: N.A. | CX89: N.A. | CY89: N.A. | CZ89: N.A. | DA89: N.A. | DB89: N.A. | DC89: N.A. | DD89: N.A. | DE89: N.A. | DF89: N.A. | DG89: N.A. | DH89: N.A.
A90: VIX_CHG | B90: Derived based on publicly available data (data can be accessed from https://www.cboe.com/tradable_products/vix/). | C90: 111VIX_B2010_CHG | E90: Change in VIX, 2010=100 | F90: Unit | G90: -4.691921609 | H90: 10.79732767 | I90: 6.841946429 | J90: -23.54707232 | K90: -28.83734109 | L90: -11.85554492 | M90: -0.002348796538 | N90: 20.97399306 | O90: 67.21693701 | P90: -5.38402257 | Q90: -39.6014304 | R90: 7.333800279 | S90: -28.39917921 | T90: -15.82677076 | U90: -0.2400427994 | V90: 11.07874952 | W90: -3.762899661 | X90: -21.00057302 | Y90: 24.61141931 | Z90: -5.552306815 | AA90: 61.48173098 | AB90: -42.55900223 | AC90: 26.47076521 | AD90: -22.02522184 | AE90: N.A. | AF90: N.A. | AG90: N.A. | AH90: N.A. | AI90: N.A. | AJ90: N.A. | AK90: N.A. | AL90: N.A. | AM90: N.A. | AN90: N.A. | AO90: N.A. | AP90: N.A. | AQ90: N.A. | AR90: N.A. | AS90: N.A. | AT90: N.A. | AU90: N.A. | AV90: N.A. | AW90: N.A. | AX90: N.A. | AY90: N.A. | AZ90: N.A. | BA90: N.A. | BB90: N.A. | BC90: N.A. | BD90: N.A. | BE90: N.A. | BF90: N.A. | BG90: N.A. | BH90: N.A. | BI90: N.A. | BJ90: N.A. | BK90: N.A. | BL90: N.A. | BM90: N.A. | BN90: N.A. | BO90: N.A. | BP90: N.A. | BQ90: N.A. | BR90: N.A. | BS90: N.A. | BT90: N.A. | BU90: N.A. | BV90: N.A. | BW90: N.A. | BX90: N.A. | BY90: N.A. | BZ90: N.A. | CA90: N.A. | CB90: N.A. | CC90: N.A. | CD90: N.A. | CE90: N.A. | CF90: N.A. | CG90: N.A. | CH90: N.A. | CI90: N.A. | CJ90: N.A. | CK90: N.A. | CL90: N.A. | CM90: N.A. | CN90: N.A. | CO90: N.A. | CP90: N.A. | CQ90: N.A. | CR90: N.A. | CS90: N.A. | CT90: N.A. | CU90: N.A. | CV90: N.A. | CW90: N.A. | CX90: N.A. | CY90: N.A. | CZ90: N.A. | DA90: N.A. | DB90: N.A. | DC90: N.A. | DD90: N.A. | DE90: N.A. | DF90: N.A. | DG90: N.A. | DH90: N.A.
A91: EREER_IX_3PCH | B91: Available in public IFS. | C91: =IFScode&A91 ->  | E91: REER (CPI-based), 3-year percent change | F91: Unit | G91: 7.999430063 | H91: 9.825797361 | I91: 10.78702173 | J91: 6.513946664 | K91: -0.9852242694 | L91: -1.783670918 | M91: 3.972658013 | N91: 7.749207381 | O91: 12.26584405 | P91: 17.88507374 | Q91: 22.1135311 | R91: 13.73997216 | S91: 13.16420854 | T91: 11.21819689 | U91: 18.78026017 | V91: 22.15175753 | W91: 16.32714414 | X91: 7.920340419 | Y91: -4.871264773 | Z91: -1.999382176 | AA91: 1.139938629 | AB91: -0.6007379038 | AC91: N.A. | AD91: N.A. | AE91: N.A. | AF91: N.A. | AG91: N.A. | AH91: N.A. | AI91: N.A. | AJ91: N.A. | AK91: N.A. | AL91: N.A. | AM91: N.A. | AN91: N.A. | AO91: N.A. | AP91: N.A. | AQ91: N.A. | AR91: N.A. | AS91: N.A. | AT91: N.A. | AU91: N.A. | AV91: N.A. | AW91: N.A. | AX91: N.A. | AY91: N.A. | AZ91: N.A. | BA91: N.A. | BB91: N.A. | BC91: N.A. | BD91: N.A. | BE91: N.A. | BF91: N.A. | BG91: N.A. | BH91: N.A. | BI91: N.A. | BJ91: N.A. | BK91: N.A. | BL91: N.A. | BM91: N.A. | BN91: N.A. | BO91: N.A. | BP91: N.A. | BQ91: N.A. | BR91: N.A. | BS91: N.A. | BT91: N.A. | BU91: N.A. | BV91: N.A. | BW91: N.A. | BX91: N.A. | BY91: N.A. | BZ91: N.A. | CA91: N.A. | CB91: N.A. | CC91: N.A. | CD91: N.A. | CE91: N.A. | CF91: N.A. | CG91: N.A. | CH91: N.A. | CI91: N.A. | CJ91: N.A. | CK91: N.A. | CL91: N.A. | CM91: N.A. | CN91: N.A. | CO91: N.A. | CP91: N.A. | CQ91: N.A. | CR91: N.A. | CS91: N.A. | CT91: N.A. | CU91: N.A. | CV91: N.A. | CW91: N.A. | CX91: N.A. | CY91: N.A. | CZ91: N.A. | DA91: N.A. | DB91: N.A. | DC91: N.A. | DD91: N.A. | DE91: N.A. | DF91: N.A. | DG91: N.A. | DH91: N.A.
A92: GAAF | B92: Difference between variables GGXWDG (General government gross debt) and GGXWDN (General government net debt), both variables are available in public WEO (in national currency). | C92: =IFScode&A92&".A" ->  | E92: Financial assets | F92: =UnitScale -> Billion | G92: 3.897 | H92: 5.828591355 | I92: 5.982511566 | J92: 7.814555858 | K92: 10.6027521 | L92: 22.77425837 | M92: 31.34565796 | N92: 31.03054836 | O92: 43.21930822 | P92: 38.97018294 | Q92: 45.12925672 | R92: 52.54474941 | S92: 55.59525208 | T92: 64.73898494 | U92: 68.58450604 | V92: 75.3995177 | W92: 67.35705091 | X92: 78.03843368 | Y92: 82.51959074 | Z92: 75.64837634 | AA92: 76.91703249 | AB92: 78.22374834 | AC92: 79.56966566 | AD92: 80.9559605 | AE92: 82.38384418 | AF92: 83.85456437 | AG92: N.A. | AH92: N.A. | AI92: N.A. | AJ92: N.A. | AK92: N.A. | AL92: N.A. | AM92: N.A. | AN92: N.A. | AO92: N.A. | AP92: N.A. | AQ92: N.A. | AR92: N.A. | AS92: N.A. | AT92: N.A. | AU92: N.A. | AV92: N.A. | AW92: N.A. | AX92: N.A. | AY92: N.A. | AZ92: N.A. | BA92: N.A. | BB92: N.A. | BC92: N.A. | BD92: N.A. | BE92: N.A. | BF92: N.A. | BG92: N.A. | BH92: N.A. | BI92: N.A. | BJ92: N.A. | BK92: N.A. | BL92: N.A. | BM92: N.A. | BN92: N.A. | BO92: N.A. | BP92: N.A. | BQ92: N.A. | BR92: N.A. | BS92: N.A. | BT92: N.A. | BU92: N.A. | BV92: N.A. | BW92: N.A. | BX92: N.A. | BY92: N.A. | BZ92: N.A. | CA92: N.A. | CB92: N.A. | CC92: N.A. | CD92: N.A. | CE92: N.A. | CF92: N.A. | CG92: N.A. | CH92: N.A. | CI92: N.A. | CJ92: N.A. | CK92: N.A. | CL92: N.A. | CM92: N.A. | CN92: N.A. | CO92: N.A. | CP92: N.A. | CQ92: N.A. | CR92: N.A. | CS92: N.A. | CT92: N.A. | CU92: N.A. | CV92: N.A. | CW92: N.A. | CX92: N.A. | CY92: N.A. | CZ92: N.A. | DA92: N.A. | DB92: N.A. | DC92: N.A. | DD92: N.A. | DE92: N.A. | DF92: N.A. | DG92: N.A. | DH92: N.A.
A93: SDDREV | B93: IMF staff estimates, users would need to obtain this information from other sources. | C93: =IFScode&A93 ->  | E93: Standard deviation of debt revisions | F93: Unit | G93: N.A. | H93: N.A. | I93: N.A. | J93: N.A. | K93: N.A. | L93: N.A. | M93: N.A. | N93: N.A. | O93: N.A. | P93: N.A. | Q93: 13.2 | R93: 13.2 | S93: 9.621968836 | T93: 8.815692471 | U93: 8.200293157 | V93: 8.088712973 | W93: 7.697526385 | X93: 7.323776159 | Y93: 9.760125964 | Z93: 9.402695628 | AA93: 9.043791259 | AB93: 8.749769094 | AC93: 8.45995708 | AD93: 8.45995708 | AE93: N.A. | AF93: N.A. | AG93: N.A. | AH93: N.A. | AI93: N.A. | AJ93: N.A. | AK93: N.A. | AL93: N.A. | AM93: N.A. | AN93: N.A. | AO93: N.A. | AP93: N.A. | AQ93: N.A. | AR93: N.A. | AS93: N.A. | AT93: N.A. | AU93: N.A. | AV93: N.A. | AW93: N.A. | AX93: N.A. | AY93: N.A. | AZ93: N.A. | BA93: N.A. | BB93: N.A. | BC93: N.A. | BD93: N.A. | BE93: N.A. | BF93: N.A. | BG93: N.A. | BH93: N.A. | BI93: N.A. | BJ93: N.A. | BK93: N.A. | BL93: N.A. | BM93: N.A. | BN93: N.A. | BO93: N.A. | BP93: N.A. | BQ93: N.A. | BR93: N.A. | BS93: N.A. | BT93: N.A. | BU93: N.A. | BV93: N.A. | BW93: N.A. | BX93: N.A. | BY93: N.A. | BZ93: N.A. | CA93: N.A. | CB93: N.A. | CC93: N.A. | CD93: N.A. | CE93: N.A. | CF93: N.A. | CG93: N.A. | CH93: N.A. | CI93: N.A. | CJ93: N.A. | CK93: N.A. | CL93: N.A. | CM93: N.A. | CN93: N.A. | CO93: N.A. | CP93: N.A. | CQ93: N.A. | CR93: N.A. | CS93: N.A. | CT93: N.A. | CU93: N.A. | CV93: N.A. | CW93: N.A. | CX93: N.A. | CY93: N.A. | CZ93: N.A. | DA93: N.A. | DB93: N.A. | DC93: N.A. | DD93: N.A. | DE93: N.A. | DF93: N.A. | DG93: N.A. | DH93: N.A.
A94: GGXWDG_GDP.A | B94: Available in public WEO. | C94: =IFScode&A94 ->  | E94: General government gross debt, percent of Fiscal year GDP | F94: Unit | G94: 40.58665358 | H94: 37.2116314 | I94: 35.82448203 | J94: 30.63741952 | K94: 24.1094216 | L94: 19.84035776 | M94: 16.76202276 | N94: 16.28133448 | O94: 13.76807454 | P94: 18.06812567 | Q94: 20.29391863 | R94: 28.9263858 | S94: 24.57023988 | T94: 24.70974969 | U94: 23.46755469 | V94: 27.13172245 | W94: 36.98807487 | X94: 41.47869501 | Y94: 41.83305327 | Z94: 45.41275175 | AA94: 59.27309864 | AB94: 60.58910967 | AC94: 54.73252688 | AD94: 54.43560355 | AE94: 56.11757073 | AF94: 56.42298504 | AG94: 56.7316258 | AH94: 57.00314908 | AI94: N.A. | AJ94: N.A. | AK94: N.A. | AL94: N.A. | AM94: N.A. | AN94: N.A. | AO94: N.A. | AP94: N.A. | AQ94: N.A. | AR94: N.A. | AS94: N.A. | AT94: N.A. | AU94: N.A. | AV94: N.A. | AW94: N.A. | AX94: N.A. | AY94: N.A. | AZ94: N.A. | BA94: N.A. | BB94: N.A. | BC94: N.A. | BD94: N.A. | BE94: N.A. | BF94: N.A. | BG94: N.A. | BH94: N.A. | BI94: N.A. | BJ94: N.A. | BK94: N.A. | BL94: N.A. | BM94: N.A. | BN94: N.A. | BO94: N.A. | BP94: N.A. | BQ94: N.A. | BR94: N.A. | BS94: N.A. | BT94: N.A. | BU94: N.A. | BV94: N.A. | BW94: N.A. | BX94: N.A. | BY94: N.A. | BZ94: N.A. | CA94: N.A. | CB94: N.A. | CC94: N.A. | CD94: N.A. | CE94: N.A. | CF94: N.A. | CG94: N.A. | CH94: N.A. | CI94: N.A. | CJ94: N.A. | CK94: N.A. | CL94: N.A. | CM94: N.A. | CN94: N.A. | CO94: N.A. | CP94: N.A. | CQ94: N.A. | CR94: N.A. | CS94: N.A. | CT94: N.A. | CU94: N.A. | CV94: N.A. | CW94: N.A. | CX94: N.A. | CY94: N.A. | CZ94: N.A. | DA94: N.A. | DB94: N.A. | DC94: N.A. | DD94: N.A. | DE94: N.A. | DF94: N.A. | DG94: N.A. | DH94: N.A.
A95: GGXONLB_GDP.A | B95: Available in public WEO. | C95: =IFScode&A95 ->  | E95: General government primary net lending/borrowing, percent of Fiscal year GDP | F95: Unit | G95: 4.842468999 | H95: 4.386312914 | I95: 3.421462051 | J95: 5.504433421 | K95: 4.701400985 | L95: 4.936371617 | M95: 3.525936971 | N95: 5.052454348 | O95: 7.369507388 | P95: -2.434682965 | Q95: 2.387161802 | R95: 1.07252248 | S95: 0.4108118423 | T95: -1.233098641 | U95: -2.85396502 | V95: -5.795157671 | W95: -7.968128498 | X95: -7.958573946 | Y95: -2.975149556 | Z95: -0.5628474998 | AA95: -8.17871829 | AB95: -5.677381029 | AC95: 0.3189369709 | AD95: 1.03280176 | AE95: 1.244613792 | AF95: 1.477294598 | AG95: 1.518898813 | AH95: 1.632847502 | AI95: N.A. | AJ95: N.A. | AK95: N.A. | AL95: N.A. | AM95: N.A. | AN95: N.A. | AO95: N.A. | AP95: N.A. | AQ95: N.A. | AR95: N.A. | AS95: N.A. | AT95: N.A. | AU95: N.A. | AV95: N.A. | AW95: N.A. | AX95: N.A. | AY95: N.A. | AZ95: N.A. | BA95: N.A. | BB95: N.A. | BC95: N.A. | BD95: N.A. | BE95: N.A. | BF95: N.A. | BG95: N.A. | BH95: N.A. | BI95: N.A. | BJ95: N.A. | BK95: N.A. | BL95: N.A. | BM95: N.A. | BN95: N.A. | BO95: N.A. | BP95: N.A. | BQ95: N.A. | BR95: N.A. | BS95: N.A. | BT95: N.A. | BU95: N.A. | BV95: N.A. | BW95: N.A. | BX95: N.A. | BY95: N.A. | BZ95: N.A. | CA95: N.A. | CB95: N.A. | CC95: N.A. | CD95: N.A. | CE95: N.A. | CF95: N.A. | CG95: N.A. | CH95: N.A. | CI95: N.A. | CJ95: N.A. | CK95: N.A. | CL95: N.A. | CM95: N.A. | CN95: N.A. | CO95: N.A. | CP95: N.A. | CQ95: N.A. | CR95: N.A. | CS95: N.A. | CT95: N.A. | CU95: N.A. | CV95: N.A. | CW95: N.A. | CX95: N.A. | CY95: N.A. | CZ95: N.A. | DA95: N.A. | DB95: N.A. | DC95: N.A. | DD95: N.A. | DE95: N.A. | DF95: N.A. | DG95: N.A. | DH95: N.A.
A96: FIGB | B96: Available in public IFS. | C96: ="111"&A96 -> 111FIGB | E96: Long-term bond yield | F96: Unit | G96: 6.029166667 | H96: 5.0175 | I96: 4.610833333 | J96: 4.015 | K96: 4.274166667 | L96: 4.29 | M96: 4.791666667 | N96: 4.629166667 | O96: 3.666666667 | P96: 3.256666667 | Q96: 3.214166667 | R96: 2.785833333 | S96: 1.8025 | T96: 2.350833333 | U96: 2.540833333 | V96: 2.135833333 | W96: 1.841666667 | X96: 2.33 | Y96: 2.91 | Z96: 2.144166667 | AA96: 0.8941666667 | AB96: 1.4425 | AC96: 2.951666667 | AD96: 3.770407878 | AE96: 3.622203849 | AF96: 3.453597972 | AG96: 3.380719328 | AH96: 3.375 | AI96: 3.375 | AJ96: N.A. | AK96: N.A. | AL96: N.A. | AM96: N.A. | AN96: N.A. | AO96: N.A. | AP96: N.A. | AQ96: N.A. | AR96: N.A. | AS96: N.A. | AT96: N.A. | AU96: N.A. | AV96: N.A. | AW96: N.A. | AX96: N.A. | AY96: N.A. | AZ96: N.A. | BA96: N.A. | BB96: N.A. | BC96: N.A. | BD96: N.A. | BE96: N.A. | BF96: N.A. | BG96: N.A. | BH96: N.A. | BI96: N.A. | BJ96: N.A. | BK96: N.A. | BL96: N.A. | BM96: N.A. | BN96: N.A. | BO96: N.A. | BP96: N.A. | BQ96: N.A. | BR96: N.A. | BS96: N.A. | BT96: N.A. | BU96: N.A. | BV96: N.A. | BW96: N.A. | BX96: N.A. | BY96: N.A. | BZ96: N.A. | CA96: N.A. | CB96: N.A. | CC96: N.A. | CD96: N.A. | CE96: N.A. | CF96: N.A. | CG96: N.A. | CH96: N.A. | CI96: N.A. | CJ96: N.A. | CK96: N.A. | CL96: N.A. | CM96: N.A. | CN96: N.A. | CO96: N.A. | CP96: N.A. | CQ96: N.A. | CR96: N.A. | CS96: N.A. | CT96: N.A. | CU96: N.A. | CV96: N.A. | CW96: N.A. | CX96: N.A. | CY96: N.A. | CZ96: N.A. | DA96: N.A. | DB96: N.A. | DC96: N.A. | DD96: N.A. | DE96: N.A. | DF96: N.A. | DG96: N.A. | DH96: N.A.
A98: Source for next few rows is Arslanalp-Tsuda Debt Database. Some series may be missing. Teams need to complete this.
A99: GGD_AT | B99: Data sources (publicly available): (1) Serkan Arslanalp and Takahiro Tsuda (2014) "Tracking Global Demand for Emerging Market Sovereign Debt", IMF Working Paper WP/14/39, Washington, DC; and (2) Arslanalp S. and T. Tsuda, 2014, "Tracking Global Demand for Advanced Economy Sovereign Debt" IMF Economic Review, Volume 62, Number 3, Washington DC. | C99: =IFScode&A99 ->  | E99: Total public debt | F99: =UnitScale -> Billion | G99: 20.333 | H99: 20.449 | I99: 20.361 | J99: 20.96 | K99: 19.694 | L99: 19.366 | M99: 19.029 | N99: 21.73 | O99: 23.088 | P99: 24.74 | Q99: 28.119 | R99: 46.244 | S99: 40.7 | T99: 42.829 | U99: 41.499 | V99: 44.709 | W99: 56.248 | X99: 64.36 | Y99: 67.038 | Z99: 73.261 | AA99: 87.999 | AB99: 95.63560911 | AC99: =AC45 -> 111.3554694 | AD99: N.A. | AE99: N.A. | AF99: N.A. | AG99: N.A. | AH99: N.A. | AI99: N.A. | AJ99: N.A. | AK99: N.A. | AL99: N.A. | AM99: N.A. | AN99: N.A. | AO99: N.A. | AP99: N.A. | AQ99: N.A. | AR99: N.A. | AS99: N.A. | AT99: N.A. | AU99: N.A. | AV99: N.A. | AW99: N.A. | AX99: N.A. | AY99: N.A. | AZ99: N.A. | BA99: N.A. | BB99: N.A. | BC99: N.A. | BD99: N.A. | BE99: N.A. | BF99: N.A. | BG99: N.A. | BH99: N.A. | BI99: N.A. | BJ99: N.A. | BK99: N.A. | BL99: N.A. | BM99: N.A. | BN99: N.A. | BO99: N.A. | BP99: N.A. | BQ99: N.A. | BR99: N.A. | BS99: N.A. | BT99: N.A. | BU99: N.A. | BV99: N.A. | BW99: N.A. | BX99: N.A. | BY99: N.A. | BZ99: N.A. | CA99: N.A. | CB99: N.A. | CC99: N.A. | CD99: N.A. | CE99: N.A. | CF99: N.A. | CG99: N.A. | CH99: N.A. | CI99: N.A. | CJ99: N.A. | CK99: N.A. | CL99: N.A. | CM99: N.A. | CN99: N.A. | CO99: N.A. | CP99: N.A. | CQ99: N.A. | CR99: N.A. | CS99: N.A. | CT99: N.A. | CU99: N.A. | CV99: N.A. | CW99: N.A. | CX99: N.A. | CY99: N.A. | CZ99: N.A. | DA99: N.A. | DB99: N.A. | DC99: N.A. | DD99: N.A. | DE99: N.A. | DF99: N.A. | DG99: N.A. | DH99: N.A.
A100: GGDD_AT | E100: Public debt held by domestic creditors | F100: Billion | G100: N.A. | H100: N.A. | I100: N.A. | J100: N.A. | K100: N.A. | L100: N.A. | M100: N.A. | N100: N.A. | O100: N.A. | P100: N.A. | Q100: N.A. | R100: N.A. | S100: N.A. | T100: N.A. | U100: N.A. | V100: 30.634 | W100: 35.372 | X100: 41.083 | Y100: 41.532 | Z100: 46.73 | AA100: N.A. | AB100: 64.4683 | AC100: =AB100/AB$99*AC$99 -> 75.065113 | AD100: N.A. | AE100: N.A. | AF100: N.A. | AG100: N.A. | AH100: N.A. | AI100: N.A. | AJ100: N.A. | AK100: N.A. | AL100: N.A. | AM100: N.A. | AN100: N.A. | AO100: N.A. | AP100: N.A. | AQ100: N.A. | AR100: N.A. | AS100: N.A. | AT100: N.A. | AU100: N.A. | AV100: N.A. | AW100: N.A. | AX100: N.A. | AY100: N.A. | AZ100: N.A. | BA100: N.A. | BB100: N.A. | BC100: N.A. | BD100: N.A. | BE100: N.A. | BF100: N.A. | BG100: N.A. | BH100: N.A. | BI100: N.A. | BJ100: N.A. | BK100: N.A. | BL100: N.A. | BM100: N.A. | BN100: N.A. | BO100: N.A. | BP100: N.A. | BQ100: N.A. | BR100: N.A. | BS100: N.A. | BT100: N.A. | BU100: N.A. | BV100: N.A. | BW100: N.A. | BX100: N.A. | BY100: N.A. | BZ100: N.A. | CA100: N.A. | CB100: N.A. | CC100: N.A. | CD100: N.A. | CE100: N.A. | CF100: N.A. | CG100: N.A. | CH100: N.A. | CI100: N.A. | CJ100: N.A. | CK100: N.A. | CL100: N.A. | CM100: N.A. | CN100: N.A. | CO100: N.A. | CP100: N.A. | CQ100: N.A. | CR100: N.A. | CS100: N.A. | CT100: N.A. | CU100: N.A. | CV100: N.A. | CW100: N.A. | CX100: N.A. | CY100: N.A. | CZ100: N.A. | DA100: N.A. | DB100: N.A. | DC100: N.A. | DD100: N.A. | DE100: N.A. | DF100: N.A. | DG100: N.A. | DH100: N.A.
A101: GGDDC_AT | E101: Public debt held by the domestic central bank | F101: Billion | G101: N.A. | H101: 0.961 | I101: 1.105 | J101: 1.13 | K101: 0.926 | L101: 9.48 | M101: 11.845 | N101: 10.263 | O101: 12.617 | P101: 21.305 | Q101: 23.15 | R101: 26.128 | S101: 32.446 | T101: 37.512 | U101: N.A. | V101: N.A. | W101: N.A. | X101: N.A. | Y101: N.A. | Z101: N.A. | AA101: N.A. | AB101: 8.199971 | AC101: =AB101/AB$99*AC$99 -> 9.547820397 | AD101: N.A. | AE101: N.A. | AF101: N.A. | AG101: N.A. | AH101: N.A. | AI101: N.A. | AJ101: N.A. | AK101: N.A. | AL101: N.A. | AM101: N.A. | AN101: N.A. | AO101: N.A. | AP101: N.A. | AQ101: N.A. | AR101: N.A. | AS101: N.A. | AT101: N.A. | AU101: N.A. | AV101: N.A. | AW101: N.A. | AX101: N.A. | AY101: N.A. | AZ101: N.A. | BA101: N.A. | BB101: N.A. | BC101: N.A. | BD101: N.A. | BE101: N.A. | BF101: N.A. | BG101: N.A. | BH101: N.A. | BI101: N.A. | BJ101: N.A. | BK101: N.A. | BL101: N.A. | BM101: N.A. | BN101: N.A. | BO101: N.A. | BP101: N.A. | BQ101: N.A. | BR101: N.A. | BS101: N.A. | BT101: N.A. | BU101: N.A. | BV101: N.A. | BW101: N.A. | BX101: N.A. | BY101: N.A. | BZ101: N.A. | CA101: N.A. | CB101: N.A. | CC101: N.A. | CD101: N.A. | CE101: N.A. | CF101: N.A. | CG101: N.A. | CH101: N.A. | CI101: N.A. | CJ101: N.A. | CK101: N.A. | CL101: N.A. | CM101: N.A. | CN101: N.A. | CO101: N.A. | CP101: N.A. | CQ101: N.A. | CR101: N.A. | CS101: N.A. | CT101: N.A. | CU101: N.A. | CV101: N.A. | CW101: N.A. | CX101: N.A. | CY101: N.A. | CZ101: N.A. | DA101: N.A. | DB101: N.A. | DC101: N.A. | DD101: N.A. | DE101: N.A. | DF101: N.A. | DG101: N.A. | DH101: N.A.
A102: GGDDB_AT | E102: Public debt held by domestic commercial banks | F102: Billion | G102: N.A. | H102: 4.082 | I102: 4.491 | J102: 5.13 | K102: 5.718 | L102: 7.631 | M102: 6.255 | N102: 6.323 | O102: 6.868 | P102: 12.389 | Q102: 14.712 | R102: 14.175 | S102: 19.089 | T102: 18.094 | U102: N.A. | V102: N.A. | W102: N.A. | X102: N.A. | Y102: N.A. | Z102: N.A. | AA102: N.A. | AB102: 34.44059525 | AC102: 40.10168058 | AD102: N.A. | AE102: N.A. | AF102: N.A. | AG102: N.A. | AH102: N.A. | AI102: N.A. | AJ102: N.A. | AK102: N.A. | AL102: N.A. | AM102: N.A. | AN102: N.A. | AO102: N.A. | AP102: N.A. | AQ102: N.A. | AR102: N.A. | AS102: N.A. | AT102: N.A. | AU102: N.A. | AV102: N.A. | AW102: N.A. | AX102: N.A. | AY102: N.A. | AZ102: N.A. | BA102: N.A. | BB102: N.A. | BC102: N.A. | BD102: N.A. | BE102: N.A. | BF102: N.A. | BG102: N.A. | BH102: N.A. | BI102: N.A. | BJ102: N.A. | BK102: N.A. | BL102: N.A. | BM102: N.A. | BN102: N.A. | BO102: N.A. | BP102: N.A. | BQ102: N.A. | BR102: N.A. | BS102: N.A. | BT102: N.A. | BU102: N.A. | BV102: N.A. | BW102: N.A. | BX102: N.A. | BY102: N.A. | BZ102: N.A. | CA102: N.A. | CB102: N.A. | CC102: N.A. | CD102: N.A. | CE102: N.A. | CF102: N.A. | CG102: N.A. | CH102: N.A. | CI102: N.A. | CJ102: N.A. | CK102: N.A. | CL102: N.A. | CM102: N.A. | CN102: N.A. | CO102: N.A. | CP102: N.A. | CQ102: N.A. | CR102: N.A. | CS102: N.A. | CT102: N.A. | CU102: N.A. | CV102: N.A. | CW102: N.A. | CX102: N.A. | CY102: N.A. | CZ102: N.A. | DA102: N.A. | DB102: N.A. | DC102: N.A. | DD102: N.A. | DE102: N.A. | DF102: N.A. | DG102: N.A. | DH102: N.A.
A103: GGDDN_AT | E103: Public debt held by domestic nonbanks | F103: Billion | G103: N.A. | H103: N.A. | I103: N.A. | J103: N.A. | K103: N.A. | L103: N.A. | M103: N.A. | N103: N.A. | O103: N.A. | P103: N.A. | Q103: N.A. | R103: N.A. | S103: N.A. | T103: N.A. | U103: N.A. | V103: N.A. | W103: N.A. | X103: N.A. | Y103: N.A. | Z103: N.A. | AA103: N.A. | AB103: 21.82773375 | AC103: 25.41561203 | AD103: N.A. | AE103: N.A. | AF103: N.A. | AG103: N.A. | AH103: N.A. | AI103: N.A. | AJ103: N.A. | AK103: N.A. | AL103: N.A. | AM103: N.A. | AN103: N.A. | AO103: N.A. | AP103: N.A. | AQ103: N.A. | AR103: N.A. | AS103: N.A. | AT103: N.A. | AU103: N.A. | AV103: N.A. | AW103: N.A. | AX103: N.A. | AY103: N.A. | AZ103: N.A. | BA103: N.A. | BB103: N.A. | BC103: N.A. | BD103: N.A. | BE103: N.A. | BF103: N.A. | BG103: N.A. | BH103: N.A. | BI103: N.A. | BJ103: N.A. | BK103: N.A. | BL103: N.A. | BM103: N.A. | BN103: N.A. | BO103: N.A. | BP103: N.A. | BQ103: N.A. | BR103: N.A. | BS103: N.A. | BT103: N.A. | BU103: N.A. | BV103: N.A. | BW103: N.A. | BX103: N.A. | BY103: N.A. | BZ103: N.A. | CA103: N.A. | CB103: N.A. | CC103: N.A. | CD103: N.A. | CE103: N.A. | CF103: N.A. | CG103: N.A. | CH103: N.A. | CI103: N.A. | CJ103: N.A. | CK103: N.A. | CL103: N.A. | CM103: N.A. | CN103: N.A. | CO103: N.A. | CP103: N.A. | CQ103: N.A. | CR103: N.A. | CS103: N.A. | CT103: N.A. | CU103: N.A. | CV103: N.A. | CW103: N.A. | CX103: N.A. | CY103: N.A. | CZ103: N.A. | DA103: N.A. | DB103: N.A. | DC103: N.A. | DD103: N.A. | DE103: N.A. | DF103: N.A. | DG103: N.A. | DH103: N.A.
A104: GGDX_AT | E104: Public debt held by external creditors | F104: Billion | G104: N.A. | H104: N.A. | I104: N.A. | J104: N.A. | K104: N.A. | L104: N.A. | M104: N.A. | N104: N.A. | O104: N.A. | P104: N.A. | Q104: N.A. | R104: N.A. | S104: N.A. | T104: N.A. | U104: N.A. | V104: 14.075 | W104: 20.876 | X104: 23.277 | Y104: 25.506 | Z104: 26.531 | AA104: N.A. | AB104: 31.16730945 | AC104: 36.29035674 | AD104: N.A. | AE104: N.A. | AF104: N.A. | AG104: N.A. | AH104: N.A. | AI104: N.A. | AJ104: N.A. | AK104: N.A. | AL104: N.A. | AM104: N.A. | AN104: N.A. | AO104: N.A. | AP104: N.A. | AQ104: N.A. | AR104: N.A. | AS104: N.A. | AT104: N.A. | AU104: N.A. | AV104: N.A. | AW104: N.A. | AX104: N.A. | AY104: N.A. | AZ104: N.A. | BA104: N.A. | BB104: N.A. | BC104: N.A. | BD104: N.A. | BE104: N.A. | BF104: N.A. | BG104: N.A. | BH104: N.A. | BI104: N.A. | BJ104: N.A. | BK104: N.A. | BL104: N.A. | BM104: N.A. | BN104: N.A. | BO104: N.A. | BP104: N.A. | BQ104: N.A. | BR104: N.A. | BS104: N.A. | BT104: N.A. | BU104: N.A. | BV104: N.A. | BW104: N.A. | BX104: N.A. | BY104: N.A. | BZ104: N.A. | CA104: N.A. | CB104: N.A. | CC104: N.A. | CD104: N.A. | CE104: N.A. | CF104: N.A. | CG104: N.A. | CH104: N.A. | CI104: N.A. | CJ104: N.A. | CK104: N.A. | CL104: N.A. | CM104: N.A. | CN104: N.A. | CO104: N.A. | CP104: N.A. | CQ104: N.A. | CR104: N.A. | CS104: N.A. | CT104: N.A. | CU104: N.A. | CV104: N.A. | CW104: N.A. | CX104: N.A. | CY104: N.A. | CZ104: N.A. | DA104: N.A. | DB104: N.A. | DC104: N.A. | DD104: N.A. | DE104: N.A. | DF104: N.A. | DG104: N.A. | DH104: N.A.
A105: GGDXO_AT | E105: Public debt held by official external creditors | F105: Billion | G105: N.A. | H105: N.A. | I105: N.A. | J105: N.A. | K105: N.A. | L105: N.A. | M105: N.A. | N105: N.A. | O105: N.A. | P105: N.A. | Q105: N.A. | R105: N.A. | S105: N.A. | T105: N.A. | U105: N.A. | V105: N.A. | W105: N.A. | X105: N.A. | Y105: N.A. | Z105: N.A. | AA105: N.A. | AB105: 16.78202044 | AC105: 19.54052241 | AD105: N.A. | AE105: N.A. | AF105: N.A. | AG105: N.A. | AH105: N.A. | AI105: N.A. | AJ105: N.A. | AK105: N.A. | AL105: N.A. | AM105: N.A. | AN105: N.A. | AO105: N.A. | AP105: N.A. | AQ105: N.A. | AR105: N.A. | AS105: N.A. | AT105: N.A. | AU105: N.A. | AV105: N.A. | AW105: N.A. | AX105: N.A. | AY105: N.A. | AZ105: N.A. | BA105: N.A. | BB105: N.A. | BC105: N.A. | BD105: N.A. | BE105: N.A. | BF105: N.A. | BG105: N.A. | BH105: N.A. | BI105: N.A. | BJ105: N.A. | BK105: N.A. | BL105: N.A. | BM105: N.A. | BN105: N.A. | BO105: N.A. | BP105: N.A. | BQ105: N.A. | BR105: N.A. | BS105: N.A. | BT105: N.A. | BU105: N.A. | BV105: N.A. | BW105: N.A. | BX105: N.A. | BY105: N.A. | BZ105: N.A. | CA105: N.A. | CB105: N.A. | CC105: N.A. | CD105: N.A. | CE105: N.A. | CF105: N.A. | CG105: N.A. | CH105: N.A. | CI105: N.A. | CJ105: N.A. | CK105: N.A. | CL105: N.A. | CM105: N.A. | CN105: N.A. | CO105: N.A. | CP105: N.A. | CQ105: N.A. | CR105: N.A. | CS105: N.A. | CT105: N.A. | CU105: N.A. | CV105: N.A. | CW105: N.A. | CX105: N.A. | CY105: N.A. | CZ105: N.A. | DA105: N.A. | DB105: N.A. | DC105: N.A. | DD105: N.A. | DE105: N.A. | DF105: N.A. | DG105: N.A. | DH105: N.A.
A106: GGDXP_AT | E106: Public debt held by external private creditors | F106: Billion | G106: N.A. | H106: N.A. | I106: N.A. | J106: N.A. | K106: N.A. | L106: N.A. | M106: N.A. | N106: N.A. | O106: N.A. | P106: N.A. | Q106: N.A. | R106: N.A. | S106: N.A. | T106: N.A. | U106: N.A. | V106: N.A. | W106: N.A. | X106: N.A. | Y106: N.A. | Z106: N.A. | AA106: N.A. | AB106: 14.8443011 | AC106: 17.28429538 | AD106: N.A. | AE106: N.A. | AF106: N.A. | AG106: N.A. | AH106: N.A. | AI106: N.A. | AJ106: N.A. | AK106: N.A. | AL106: N.A. | AM106: N.A. | AN106: N.A. | AO106: N.A. | AP106: N.A. | AQ106: N.A. | AR106: N.A. | AS106: N.A. | AT106: N.A. | AU106: N.A. | AV106: N.A. | AW106: N.A. | AX106: N.A. | AY106: N.A. | AZ106: N.A. | BA106: N.A. | BB106: N.A. | BC106: N.A. | BD106: N.A. | BE106: N.A. | BF106: N.A. | BG106: N.A. | BH106: N.A. | BI106: N.A. | BJ106: N.A. | BK106: N.A. | BL106: N.A. | BM106: N.A. | BN106: N.A. | BO106: N.A. | BP106: N.A. | BQ106: N.A. | BR106: N.A. | BS106: N.A. | BT106: N.A. | BU106: N.A. | BV106: N.A. | BW106: N.A. | BX106: N.A. | BY106: N.A. | BZ106: N.A. | CA106: N.A. | CB106: N.A. | CC106: N.A. | CD106: N.A. | CE106: N.A. | CF106: N.A. | CG106: N.A. | CH106: N.A. | CI106: N.A. | CJ106: N.A. | CK106: N.A. | CL106: N.A. | CM106: N.A. | CN106: N.A. | CO106: N.A. | CP106: N.A. | CQ106: N.A. | CR106: N.A. | CS106: N.A. | CT106: N.A. | CU106: N.A. | CV106: N.A. | CW106: N.A. | CX106: N.A. | CY106: N.A. | CZ106: N.A. | DA106: N.A. | DB106: N.A. | DC106: N.A. | DD106: N.A. | DE106: N.A. | DF106: N.A. | DG106: N.A. | DH106: N.A.
A107: SH_GGDDC_AT | B107: Could use the option of computing this series based on the formula in the cells. | C107: =IFScode&A107 ->  | E107: Domestic central bank holder share | F107: Unit | G107: =G101/G$99 ->  | H107: =H101/H$99 -> 0.04699496308 | I107: =I101/I$99 -> 0.05427041894 | J107: 0.05391221374 | K107: 0.04701939677 | L107: 0.4895177115 | M107: 0.6224709654 | N107: 0.4722963645 | O107: 0.546474359 | P107: 0.8611560226 | Q107: =Q101/Q$99 -> 0.8232867456 | R107: 0.5650030274 | S107: 0.7971990172 | T107: 0.8758551449 | AB107: 0.0857418181 | AC107: 0.0857418181 | AQ107: =AQ101/AQ$99 ->  | AR107: =AR101/AR$99 ->  | AS107: =AS101/AS$99 ->  | AT107: N.A. | AU107: N.A. | AV107: N.A. | AW107: N.A. | AX107: N.A. | AY107: N.A. | AZ107: N.A. | BA107: N.A. | BB107: N.A. | BC107: N.A. | BD107: N.A. | BE107: N.A. | BF107: N.A. | BG107: N.A. | BH107: N.A. | BI107: N.A. | BJ107: N.A. | BK107: N.A. | BL107: N.A. | BM107: N.A. | BN107: N.A. | BO107: N.A. | BP107: N.A. | BQ107: N.A. | BR107: N.A. | BS107: N.A. | BT107: N.A. | BU107: N.A. | BV107: N.A. | BW107: N.A. | BX107: N.A. | BY107: N.A. | BZ107: N.A. | CA107: N.A. | CB107: N.A. | CC107: N.A. | CD107: N.A. | CE107: N.A. | CF107: N.A. | CG107: N.A. | CH107: N.A. | CI107: N.A. | CJ107: N.A. | CK107: N.A. | CL107: N.A. | CM107: N.A. | CN107: N.A. | CO107: N.A. | CP107: N.A. | CQ107: N.A. | CR107: N.A. | CS107: N.A. | CT107: N.A. | CU107: N.A. | CV107: N.A. | CW107: N.A. | CX107: N.A. | CY107: N.A. | CZ107: N.A. | DA107: N.A. | DB107: N.A. | DC107: N.A. | DD107: N.A. | DE107: N.A. | DF107: N.A. | DG107: N.A. | DH107: N.A.
A108: SH_GGDDB_AT | B108: Could use the option of computing this series based on the formula in the cells. | C108: =IFScode&A108 ->  | E108: Domestic commercial banks' holder share | F108: Unit | G108: =G102/G$99 ->  | H108: 0.1996185633 | I108: =I102/I$99 -> 0.2205687343 | J108: 0.2447519084 | K108: 0.2903422362 | L108: 0.394041103 | M108: 0.3287088129 | N108: 0.2909802117 | O108: 0.2974705475 | P108: 0.5007679871 | Q108: =Q102/Q$99 -> 0.5232049504 | R108: 0.3065262521 | S108: 0.469017199 | T108: 0.4224707558 | AB108: 0.3601231337 | AC108: 0.3601231337 | AT108: N.A. | AU108: N.A. | AV108: N.A. | AW108: N.A. | AX108: N.A. | AY108: N.A. | AZ108: N.A. | BA108: N.A. | BB108: N.A. | BC108: N.A. | BD108: N.A. | BE108: N.A. | BF108: N.A. | BG108: N.A. | BH108: N.A. | BI108: N.A. | BJ108: N.A. | BK108: N.A. | BL108: N.A. | BM108: N.A. | BN108: N.A. | BO108: N.A. | BP108: N.A. | BQ108: N.A. | BR108: N.A. | BS108: N.A. | BT108: N.A. | BU108: N.A. | BV108: N.A. | BW108: N.A. | BX108: N.A. | BY108: N.A. | BZ108: N.A. | CA108: N.A. | CB108: N.A. | CC108: N.A. | CD108: N.A. | CE108: N.A. | CF108: N.A. | CG108: N.A. | CH108: N.A. | CI108: N.A. | CJ108: N.A. | CK108: N.A. | CL108: N.A. | CM108: N.A. | CN108: N.A. | CO108: N.A. | CP108: N.A. | CQ108: N.A. | CR108: N.A. | CS108: N.A. | CT108: N.A. | CU108: N.A. | CV108: N.A. | CW108: N.A. | CX108: N.A. | CY108: N.A. | CZ108: N.A. | DA108: N.A. | DB108: N.A. | DC108: N.A. | DD108: N.A. | DE108: N.A. | DF108: N.A. | DG108: N.A. | DH108: N.A.
A109: SH_GGDDN_AT | B109: Could use the option of computing this series based on the formula in the cells. | C109: =IFScode&A109 ->  | E109: Domestic nonbank creditors' holder share | F109: Unit | I109: =I103/I$99 ->  | Q109: =Q103/Q$99 ->  | AB109: 0.2282385605 | AC109: 0.2282385605 | AT109: N.A. | AU109: N.A. | AV109: N.A. | AW109: N.A. | AX109: N.A. | AY109: N.A. | AZ109: N.A. | BA109: N.A. | BB109: N.A. | BC109: N.A. | BD109: N.A. | BE109: N.A. | BF109: N.A. | BG109: N.A. | BH109: N.A. | BI109: N.A. | BJ109: N.A. | BK109: N.A. | BL109: N.A. | BM109: N.A. | BN109: N.A. | BO109: N.A. | BP109: N.A. | BQ109: N.A. | BR109: N.A. | BS109: N.A. | BT109: N.A. | BU109: N.A. | BV109: N.A. | BW109: N.A. | BX109: N.A. | BY109: N.A. | BZ109: N.A. | CA109: N.A. | CB109: N.A. | CC109: N.A. | CD109: N.A. | CE109: N.A. | CF109: N.A. | CG109: N.A. | CH109: N.A. | CI109: N.A. | CJ109: N.A. | CK109: N.A. | CL109: N.A. | CM109: N.A. | CN109: N.A. | CO109: N.A. | CP109: N.A. | CQ109: N.A. | CR109: N.A. | CS109: N.A. | CT109: N.A. | CU109: N.A. | CV109: N.A. | CW109: N.A. | CX109: N.A. | CY109: N.A. | CZ109: N.A. | DA109: N.A. | DB109: N.A. | DC109: N.A. | DD109: N.A. | DE109: N.A. | DF109: N.A. | DG109: N.A. | DH109: N.A.
A110: SH_GGDXO_AT | B110: Could use the option of computing this series based on the formula in the cells. | C110: =IFScode&A110 ->  | E110: External official creditors' holder share | F110: Unit | G110: =G105/G$99 ->  | H110: =H105/H$99 ->  | I110: =I105/I$99 ->  | Q110: =Q105/Q$99 ->  | AB110: 0.1754787845 | AC110: 0.1754787845 | AT110: N.A. | AU110: N.A. | AV110: N.A. | AW110: N.A. | AX110: N.A. | AY110: N.A. | AZ110: N.A. | BA110: N.A. | BB110: N.A. | BC110: N.A. | BD110: N.A. | BE110: N.A. | BF110: N.A. | BG110: N.A. | BH110: N.A. | BI110: N.A. | BJ110: N.A. | BK110: N.A. | BL110: N.A. | BM110: N.A. | BN110: N.A. | BO110: N.A. | BP110: N.A. | BQ110: N.A. | BR110: N.A. | BS110: N.A. | BT110: N.A. | BU110: N.A. | BV110: N.A. | BW110: N.A. | BX110: N.A. | BY110: N.A. | BZ110: N.A. | CA110: N.A. | CB110: N.A. | CC110: N.A. | CD110: N.A. | CE110: N.A. | CF110: N.A. | CG110: N.A. | CH110: N.A. | CI110: N.A. | CJ110: N.A. | CK110: N.A. | CL110: N.A. | CM110: N.A. | CN110: N.A. | CO110: N.A. | CP110: N.A. | CQ110: N.A. | CR110: N.A. | CS110: N.A. | CT110: N.A. | CU110: N.A. | CV110: N.A. | CW110: N.A. | CX110: N.A. | CY110: N.A. | CZ110: N.A. | DA110: N.A. | DB110: N.A. | DC110: N.A. | DD110: N.A. | DE110: N.A. | DF110: N.A. | DG110: N.A. | DH110: N.A.
A111: SH_GGDXP_AT | B111: Could use the option of computing this series based on the formula in the cells. | C111: =IFScode&A111 ->  | E111: External private creditors' holder share | F111: Unit | G111: =G106/G$99 ->  | H111: =H106/H$99 ->  | I111: =I106/I$99 ->  | Q111: =Q106/Q$99 ->  | AB111: 0.1552173008 | AC111: 0.1552173008 | AT111: N.A. | AU111: N.A. | AV111: N.A. | AW111: N.A. | AX111: N.A. | AY111: N.A. | AZ111: N.A. | BA111: N.A. | BB111: N.A. | BC111: N.A. | BD111: N.A. | BE111: N.A. | BF111: N.A. | BG111: N.A. | BH111: N.A. | BI111: N.A. | BJ111: N.A. | BK111: N.A. | BL111: N.A. | BM111: N.A. | BN111: N.A. | BO111: N.A. | BP111: N.A. | BQ111: N.A. | BR111: N.A. | BS111: N.A. | BT111: N.A. | BU111: N.A. | BV111: N.A. | BW111: N.A. | BX111: N.A. | BY111: N.A. | BZ111: N.A. | CA111: N.A. | CB111: N.A. | CC111: N.A. | CD111: N.A. | CE111: N.A. | CF111: N.A. | CG111: N.A. | CH111: N.A. | CI111: N.A. | CJ111: N.A. | CK111: N.A. | CL111: N.A. | CM111: N.A. | CN111: N.A. | CO111: N.A. | CP111: N.A. | CQ111: N.A. | CR111: N.A. | CS111: N.A. | CT111: N.A. | CU111: N.A. | CV111: N.A. | CW111: N.A. | CX111: N.A. | CY111: N.A. | CZ111: N.A. | DA111: N.A. | DB111: N.A. | DC111: N.A. | DD111: N.A. | DE111: N.A. | DF111: N.A. | DG111: N.A. | DH111: N.A.
A113: GGXWDGCF_GDP.A | B113: Internal source, users would need to obtain this information from other sources. | C113: =IFScode&A113 ->  | E113: Foreign currency general government debt-to-GDP | F113: Unit | G113: 20.25921771 | H113: 18.79106904 | I113: 17.07275924 | J113: 13.56044911 | K113: 9.981854066 | L113: 8.331521246 | M113: 6.774220186 | N113: 6.223372194 | O113: 5.2389079 | P113: 7.880447057 | Q113: 6.223609102 | R113: 5.724884675 | S113: 6.389053608 | T113: 5.235881855 | U113: 7.149760748 | V113: 8.608584423 | W113: 14.37407165 | X113: 15.43805786 | Y113: 15.32882624 | Z113: 16.14685329 | AA113: 22.36625556 | AB113: 24.09492104 | AC113: 24.91126522 | AD113: 26.16861918 | AE113: 27.42952373 | AF113: 28.61139694 | AG113: N.A. | AH113: N.A. | AI113: N.A. | AJ113: N.A. | AK113: N.A. | AL113: N.A. | AM113: N.A. | AN113: N.A. | AO113: N.A. | AP113: N.A. | AQ113: N.A. | AR113: N.A. | AS113: N.A. | AT113: N.A. | AU113: N.A. | AV113: N.A. | AW113: N.A. | AX113: N.A. | AY113: N.A. | AZ113: N.A. | BA113: N.A. | BB113: N.A. | BC113: N.A. | BD113: N.A. | BE113: N.A. | BF113: N.A. | BG113: N.A. | BH113: N.A. | BI113: N.A. | BJ113: N.A. | BK113: N.A. | BL113: N.A. | BM113: N.A. | BN113: N.A. | BO113: N.A. | BP113: N.A. | BQ113: N.A. | BR113: N.A. | BS113: N.A. | BT113: N.A. | BU113: N.A. | BV113: N.A. | BW113: N.A. | BX113: N.A. | BY113: N.A. | BZ113: N.A. | CA113: N.A. | CB113: N.A. | CC113: N.A. | CD113: N.A. | CE113: N.A. | CF113: N.A. | CG113: N.A. | CH113: N.A. | CI113: N.A. | CJ113: N.A. | CK113: N.A. | CL113: N.A. | CM113: N.A. | CN113: N.A. | CO113: N.A. | CP113: N.A. | CQ113: N.A. | CR113: N.A. | CS113: N.A. | CT113: N.A. | CU113: N.A. | CV113: N.A. | CW113: N.A. | CX113: N.A. | CY113: N.A. | CZ113: N.A. | DA113: N.A. | DB113: N.A. | DC113: N.A. | DD113: N.A. | DE113: N.A. | DF113: N.A. | DG113: N.A. | DH113: N.A.
A114: NGDP_RPCH.A | B114: Available in public WEO. | C114: =IFScode&A114 ->  | E114: Gross domestic product, constant prices, National Currency, percent change | F114: =UnitScale -> Billion | G114: 6.901359504e-09 | H114: 3.697812561e-09 | I114: 7.152133282e-09 | J114: 1.387798649e-08 | K114: 7.327760168e-09 | L114: 5.895082952e-09 | M114: 1.418144411e-08 | N114: 4.255073702e-09 | O114: 3.286033689e-09 | P114: -4.823296316e-09 | Q114: 3.461141356e-09 | R114: -1.917242733e-10 | S114: -6.329892509e-10 | T114: 2.270222834e-09 | U114: -8.553086575e-10 | V114: 1.783567959e-09 | W114: -6.31755344e-09 | X114: -2.681210792e-09 | Y114: -7.064353083e-10 | Z114: -1.71437013e-10 | AA114: -7.374285265e-09 | AB114: -7.040926085e-10 | AC114: 4.03692075e-09 | AD114: 3.466860685e-09 | AE114: 3.524394691e-09 | AF114: 2.543130649e-09 | AG114: 1.139727362e-09 | AH114: 1.641030129e-09 | AI114: N.A. | AJ114: N.A. | AK114: N.A. | AL114: N.A. | AM114: N.A. | AN114: N.A. | AO114: N.A. | AP114: N.A. | AQ114: N.A. | AR114: N.A. | AS114: N.A. | AT114: N.A. | AU114: N.A. | AV114: N.A. | AW114: N.A. | AX114: N.A. | AY114: N.A. | AZ114: N.A. | BA114: N.A. | BB114: N.A. | BC114: N.A. | BD114: N.A. | BE114: N.A. | BF114: N.A. | BG114: N.A. | BH114: N.A. | BI114: N.A. | BJ114: N.A. | BK114: N.A. | BL114: N.A. | BM114: N.A. | BN114: N.A. | BO114: N.A. | BP114: N.A. | BQ114: N.A. | BR114: N.A. | BS114: N.A. | BT114: N.A. | BU114: N.A. | BV114: N.A. | BW114: N.A. | BX114: N.A. | BY114: N.A. | BZ114: N.A. | CA114: N.A. | CB114: N.A. | CC114: N.A. | CD114: N.A. | CE114: N.A. | CF114: N.A. | CG114: N.A. | CH114: N.A. | CI114: N.A. | CJ114: N.A. | CK114: N.A. | CL114: N.A. | CM114: N.A. | CN114: N.A. | CO114: N.A. | CP114: N.A. | CQ114: N.A. | CR114: N.A. | CS114: N.A. | CT114: N.A. | CU114: N.A. | CV114: N.A. | CW114: N.A. | CX114: N.A. | CY114: N.A. | CZ114: N.A. | DA114: N.A. | DB114: N.A. | DC114: N.A. | DD114: N.A. | DE114: N.A. | DF114: N.A. | DG114: N.A. | DH114: N.A.
A115: NGDP_DPCH.A | B115: Can be derived based on publicly available variable NGDP_D (GDP deflator, available in WEO). | C115: =IFScode&A115 ->  | E115: Deflator of Gross domestic product, current prices, percent change | F115: Unit | G115: 12.04315316 | H115: 3.071321243 | I115: -4.483703236 | J115: 10.85767128 | K115: 9.561067536 | L115: 13.35747008 | M115: 0.9483974351 | N115: 13.40792437 | O115: 23.669617 | P115: -26.84533076 | Q115: 12.4123067 | R115: 15.33603608 | S115: 0.9257550733 | T115: 3.727150501 | U115: 1.617238652 | V115: -10.90582022 | W115: -0.8633726939 | X115: 8.224166101 | Y115: 3.360908854 | Z115: 0.2034019582 | AA115: -3.356472182 | AB115: 13.08337668 | AC115: 17.51424526 | AD115: -3.353406428 | AE115: -2.4773998 | AF115: 0.8794015527 | AG115: 1.358932459 | AH115: 0.9667811749 | AI115: N.A. | AJ115: N.A. | AK115: N.A. | AL115: N.A. | AM115: N.A. | AN115: N.A. | AO115: N.A. | AP115: N.A. | AQ115: N.A. | AR115: N.A. | AS115: N.A. | AT115: N.A. | AU115: N.A. | AV115: N.A. | AW115: N.A. | AX115: N.A. | AY115: N.A. | AZ115: N.A. | BA115: N.A. | BB115: N.A. | BC115: N.A. | BD115: N.A. | BE115: N.A. | BF115: N.A. | BG115: N.A. | BH115: N.A. | BI115: N.A. | BJ115: N.A. | BK115: N.A. | BL115: N.A. | BM115: N.A. | BN115: N.A. | BO115: N.A. | BP115: N.A. | BQ115: N.A. | BR115: N.A. | BS115: N.A. | BT115: N.A. | BU115: N.A. | BV115: N.A. | BW115: N.A. | BX115: N.A. | BY115: N.A. | BZ115: N.A. | CA115: N.A. | CB115: N.A. | CC115: N.A. | CD115: N.A. | CE115: N.A. | CF115: N.A. | CG115: N.A. | CH115: N.A. | CI115: N.A. | CJ115: N.A. | CK115: N.A. | CL115: N.A. | CM115: N.A. | CN115: N.A. | CO115: N.A. | CP115: N.A. | CQ115: N.A. | CR115: N.A. | CS115: N.A. | CT115: N.A. | CU115: N.A. | CV115: N.A. | CW115: N.A. | CX115: N.A. | CY115: N.A. | CZ115: N.A. | DA115: N.A. | DB115: N.A. | DC115: N.A. | DD115: N.A. | DE115: N.A. | DF115: N.A. | DG115: N.A. | DH115: N.A.
A116: NGDP_R_PCH_WX001 | B116: Internal source, users would need to obtain this information from other sources. | C116: =IFScode&A116&".A" ->  | E116: Gross domestic product, constant prices, percent change, weighted by exports | F116: =UnitScale -> Billion | G116: 2.778508734e-09 | H116: 1.413255623e-09 | I116: 6.861121917e-10 | J116: 3.390902021e-09 | K116: 4.132825587e-09 | L116: 4.73768777e-09 | M116: 4.58072107e-09 | N116: 5.1753638e-09 | O116: 3.400484553e-09 | P116: 6.353661735e-10 | Q116: 4.247155866e-09 | R116: 3.165318517e-09 | S116: 3.372688678e-09 | T116: 2.591227632e-09 | U116: 2.226238652e-09 | V116: 2.26924341e-09 | W116: 2.190517035e-09 | X116: 3.11251534e-09 | Y116: 2.347898357e-09 | Z116: 1.939225082e-09 | AA116: -4.866306083e-09 | AB116: 5.419590903e-09 | AC116: 5.208150167e-09 | AD116: 3.840702675e-09 | AE116: 2.696826837e-09 | AF116: 2.577261659e-09 | AG116: 2.480639948e-09 | AH116: N.A. | AI116: N.A. | AJ116: N.A. | AK116: N.A. | AL116: N.A. | AM116: N.A. | AN116: N.A. | AO116: N.A. | AP116: N.A. | AQ116: N.A. | AR116: N.A. | AS116: N.A. | AT116: N.A. | AU116: N.A. | AV116: N.A. | AW116: N.A. | AX116: N.A. | AY116: N.A. | AZ116: N.A. | BA116: N.A. | BB116: N.A. | BC116: N.A. | BD116: N.A. | BE116: N.A. | BF116: N.A. | BG116: N.A. | BH116: N.A. | BI116: N.A. | BJ116: N.A. | BK116: N.A. | BL116: N.A. | BM116: N.A. | BN116: N.A. | BO116: N.A. | BP116: N.A. | BQ116: N.A. | BR116: N.A. | BS116: N.A. | BT116: N.A. | BU116: N.A. | BV116: N.A. | BW116: N.A. | BX116: N.A. | BY116: N.A. | BZ116: N.A. | CA116: N.A. | CB116: N.A. | CC116: N.A. | CD116: N.A. | CE116: N.A. | CF116: N.A. | CG116: N.A. | CH116: N.A. | CI116: N.A. | CJ116: N.A. | CK116: N.A. | CL116: N.A. | CM116: N.A. | CN116: N.A. | CO116: N.A. | CP116: N.A. | CQ116: N.A. | CR116: N.A. | CS116: N.A. | CT116: N.A. | CU116: N.A. | CV116: N.A. | CW116: N.A. | CX116: N.A. | CY116: N.A. | CZ116: N.A. | DA116: N.A. | DB116: N.A. | DC116: N.A. | DD116: N.A. | DE116: N.A. | DF116: N.A. | DG116: N.A. | DH116: N.A.
A118: FOSAOPCRGAPSRT | B118: IMF staff estimates. | C118: =IFScode&A118 ->  | E118: Credit-to-GDP gap from H-P trend | F118: Unit | G118: N.A. | H118: N.A. | I118: N.A. | J118: N.A. | K118: N.A. | L118: -5.119652271 | M118: -5.521949768 | N118: -4.859965324 | O118: -8.128947258 | P118: -0.1506407261 | Q118: -2.526704311 | R118: -4.723397255 | S118: -3.297158718 | T118: -2.601561546 | U118: -0.3066693246 | V118: 4.11973381 | W118: 7.014585972 | X118: 5.925508976 | Y118: 5.217259407 | Z118: 5.402295113 | AA118: 7.704205513 | AB118: 6.633909702 | AC118: 6.633909702 | AD118: N.A. | AE118: N.A. | AF118: N.A. | AG118: N.A. | AH118: N.A. | AI118: N.A. | AJ118: N.A. | AK118: N.A. | AL118: N.A. | AM118: N.A. | AN118: N.A. | AO118: N.A. | AP118: N.A. | AQ118: N.A. | AR118: N.A. | AS118: N.A. | AT118: N.A. | AU118: N.A. | AV118: N.A. | AW118: N.A. | AX118: N.A. | AY118: N.A. | AZ118: N.A. | BA118: N.A. | BB118: N.A. | BC118: N.A. | BD118: N.A. | BE118: N.A. | BF118: N.A. | BG118: N.A. | BH118: N.A. | BI118: N.A. | BJ118: N.A. | BK118: N.A. | BL118: N.A. | BM118: N.A. | BN118: N.A. | BO118: N.A. | BP118: N.A. | BQ118: N.A. | BR118: N.A. | BS118: N.A. | BT118: N.A. | BU118: N.A. | BV118: N.A. | BW118: N.A. | BX118: N.A. | BY118: N.A. | BZ118: N.A. | CA118: N.A. | CB118: N.A. | CC118: N.A. | CD118: N.A. | CE118: N.A. | CF118: N.A. | CG118: N.A. | CH118: N.A. | CI118: N.A. | CJ118: N.A. | CK118: N.A. | CL118: N.A. | CM118: N.A. | CN118: N.A. | CO118: N.A. | CP118: N.A. | CQ118: N.A. | CR118: N.A. | CS118: N.A. | CT118: N.A. | CU118: N.A. | CV118: N.A. | CW118: N.A. | CX118: N.A. | CY118: N.A. | CZ118: N.A. | DA118: N.A. | DB118: N.A. | DC118: N.A. | DD118: N.A. | DE118: N.A. | DF118: N.A. | DG118: N.A. | DH118: N.A.
A119: FOSAOPCRDLTGDPSRT | B119: IMF staff estimates. | E119: 3-year change in ratio of credit to private sector to GDP | F119: Unit | G119: N.A. | H119: N.A. | I119: N.A. | J119: N.A. | K119: N.A. | L119: -13.82424355 | M119: -8.117598534 | N119: -6.582647324 | O119: -6.281000137 | P119: 2.111056328 | Q119: -0.4040203094 | R119: 1.003025055 | S119: -5.825828552 | T119: -3.409391403 | U119: 1.575950623 | V119: 5.926530838 | W119: 10.2172966 | X119: 8.834129333 | Y119: 4.898235321 | Z119: 2.46821022 | AA119: 6.364910126 | AB119: 6.816667557 | AC119: 6.816667557 | AD119: N.A. | AE119: N.A. | AF119: N.A. | AG119: N.A. | AH119: N.A. | AI119: N.A. | AJ119: N.A. | AK119: N.A. | AL119: N.A. | AM119: N.A. | AN119: N.A. | AO119: N.A. | AP119: N.A. | AQ119: N.A. | AR119: N.A. | AS119: N.A. | AT119: N.A. | AU119: N.A. | AV119: N.A. | AW119: N.A. | AX119: N.A. | AY119: N.A. | AZ119: N.A. | BA119: N.A. | BB119: N.A. | BC119: N.A. | BD119: N.A. | BE119: N.A. | BF119: N.A. | BG119: N.A. | BH119: N.A. | BI119: N.A. | BJ119: N.A. | BK119: N.A. | BL119: N.A. | BM119: N.A. | BN119: N.A. | BO119: N.A. | BP119: N.A. | BQ119: N.A. | BR119: N.A. | BS119: N.A. | BT119: N.A. | BU119: N.A. | BV119: N.A. | BW119: N.A. | BX119: N.A. | BY119: N.A. | BZ119: N.A. | CA119: N.A. | CB119: N.A. | CC119: N.A. | CD119: N.A. | CE119: N.A. | CF119: N.A. | CG119: N.A. | CH119: N.A. | CI119: N.A. | CJ119: N.A. | CK119: N.A. | CL119: N.A. | CM119: N.A. | CN119: N.A. | CO119: N.A. | CP119: N.A. | CQ119: N.A. | CR119: N.A. | CS119: N.A. | CT119: N.A. | CU119: N.A. | CV119: N.A. | CW119: N.A. | CX119: N.A. | CY119: N.A. | CZ119: N.A. | DA119: N.A. | DB119: N.A. | DC119: N.A. | DD119: N.A. | DE119: N.A. | DF119: N.A. | DG119: N.A. | DH119: N.A.
A120: FSLTDSRT | B120: IMF staff estimates. | E120: Loans-to-deposits ratio | F120: Unit | G120: N.A. | H120: N.A. | I120: N.A. | J120: N.A. | K120: N.A. | L120: N.A. | M120: 176.7020416 | N120: 189.0174561 | O120: 93.00803375 | P120: 75.94321442 | Q120: 75.17828369 | R120: 72.09279633 | S120: 66.83466339 | T120: 62.56222534 | U120: 63.21605301 | V120: 69.57207489 | W120: 67.30449677 | X120: 71.46341705 | Y120: 73.62207794 | Z120: 76.27838898 | AA120: 70.27545929 | AB120: 70.51567078 | AC120: 70.51567078 | AD120: N.A. | AE120: N.A. | AF120: N.A. | AG120: N.A. | AH120: N.A. | AI120: N.A. | AJ120: N.A. | AK120: N.A. | AL120: N.A. | AM120: N.A. | AN120: N.A. | AO120: N.A. | AP120: N.A. | AQ120: N.A. | AR120: N.A. | AS120: N.A. | AT120: N.A. | AU120: N.A. | AV120: N.A. | AW120: N.A. | AX120: N.A. | AY120: N.A. | AZ120: N.A. | BA120: N.A. | BB120: N.A. | BC120: N.A. | BD120: N.A. | BE120: N.A. | BF120: N.A. | BG120: N.A. | BH120: N.A. | BI120: N.A. | BJ120: N.A. | BK120: N.A. | BL120: N.A. | BM120: N.A. | BN120: N.A. | BO120: N.A. | BP120: N.A. | BQ120: N.A. | BR120: N.A. | BS120: N.A. | BT120: N.A. | BU120: N.A. | BV120: N.A. | BW120: N.A. | BX120: N.A. | BY120: N.A. | BZ120: N.A. | CA120: N.A. | CB120: N.A. | CC120: N.A. | CD120: N.A. | CE120: N.A. | CF120: N.A. | CG120: N.A. | CH120: N.A. | CI120: N.A. | CJ120: N.A. | CK120: N.A. | CL120: N.A. | CM120: N.A. | CN120: N.A. | CO120: N.A. | CP120: N.A. | CQ120: N.A. | CR120: N.A. | CS120: N.A. | CT120: N.A. | CU120: N.A. | CV120: N.A. | CW120: N.A. | CX120: N.A. | CY120: N.A. | CZ120: N.A. | DA120: N.A. | DB120: N.A. | DC120: N.A. | DD120: N.A. | DE120: N.A. | DF120: N.A. | DG120: N.A. | DH120: N.A.
A121: FPMISPRCSRT | B121: IMF staff estimates. | E121: Economy-Wide Mispricing Risk Index | F121: Unit | G121: N.A. | H121: N.A. | I121: N.A. | J121: N.A. | K121: N.A. | L121: N.A. | M121: N.A. | N121: 64.5 | O121: 48.5 | P121: 37.75 | Q121: 37.75 | R121: 37.75 | S121: 37.75 | T121: 40.25 | U121: 50.75 | V121: 48.5 | W121: 34.75 | X121: 50.5 | Y121: 49.5 | Z121: 41 | AA121: 35 | AB121: 52.25 | AC121: 53.75 | AD121: N.A. | AE121: N.A. | AF121: N.A. | AG121: N.A. | AH121: N.A. | AI121: N.A. | AJ121: N.A. | AK121: N.A. | AL121: N.A. | AM121: N.A. | AN121: N.A. | AO121: N.A. | AP121: N.A. | AQ121: N.A. | AR121: N.A. | AS121: N.A. | AT121: N.A. | AU121: N.A. | AV121: N.A. | AW121: N.A. | AX121: N.A. | AY121: N.A. | AZ121: N.A. | BA121: N.A. | BB121: N.A. | BC121: N.A. | BD121: N.A. | BE121: N.A. | BF121: N.A. | BG121: N.A. | BH121: N.A. | BI121: N.A. | BJ121: N.A. | BK121: N.A. | BL121: N.A. | BM121: N.A. | BN121: N.A. | BO121: N.A. | BP121: N.A. | BQ121: N.A. | BR121: N.A. | BS121: N.A. | BT121: N.A. | BU121: N.A. | BV121: N.A. | BW121: N.A. | BX121: N.A. | BY121: N.A. | BZ121: N.A. | CA121: N.A. | CB121: N.A. | CC121: N.A. | CD121: N.A. | CE121: N.A. | CF121: N.A. | CG121: N.A. | CH121: N.A. | CI121: N.A. | CJ121: N.A. | CK121: N.A. | CL121: N.A. | CM121: N.A. | CN121: N.A. | CO121: N.A. | CP121: N.A. | CQ121: N.A. | CR121: N.A. | CS121: N.A. | CT121: N.A. | CU121: N.A. | CV121: N.A. | CW121: N.A. | CX121: N.A. | CY121: N.A. | CZ121: N.A. | DA121: N.A. | DB121: N.A. | DC121: N.A. | DD121: N.A. | DE121: N.A. | DF121: N.A. | DG121: N.A. | DH121: N.A.
A122: FS_ODX_CT1SRT | B122: IMF staff estimates. | E122: Regulatory Tier 1 capital | F122: =UnitScale -> Billion | G122: N.A. | H122: N.A. | I122: N.A. | J122: N.A. | K122: N.A. | L122: N.A. | M122: 6.68845 | N122: 8.02008 | O122: 8.84375 | P122: 10.18552 | Q122: 11.44062 | R122: 12.30613 | S122: 13.271 | T122: 13.75501 | U122: 14.1601 | V122: 15.48338 | W122: 14.54834 | X122: 15.07332 | Y122: 15.48257 | Z122: 15.43084 | AA122: 15.67895 | AB122: 15.65892 | AC122: 15.65892 | AD122: N.A. | AE122: N.A. | AF122: N.A. | AG122: N.A. | AH122: N.A. | AI122: N.A. | AJ122: N.A. | AK122: N.A. | AL122: N.A. | AM122: N.A. | AN122: N.A. | AO122: N.A. | AP122: N.A. | AQ122: N.A. | AR122: N.A. | AS122: N.A. | AT122: N.A. | AU122: N.A. | AV122: N.A. | AW122: N.A. | AX122: N.A. | AY122: N.A. | AZ122: N.A. | BA122: N.A. | BB122: N.A. | BC122: N.A. | BD122: N.A. | BE122: N.A. | BF122: N.A. | BG122: N.A. | BH122: N.A. | BI122: N.A. | BJ122: N.A. | BK122: N.A. | BL122: N.A. | BM122: N.A. | BN122: N.A. | BO122: N.A. | BP122: N.A. | BQ122: N.A. | BR122: N.A. | BS122: N.A. | BT122: N.A. | BU122: N.A. | BV122: N.A. | BW122: N.A. | BX122: N.A. | BY122: N.A. | BZ122: N.A. | CA122: N.A. | CB122: N.A. | CC122: N.A. | CD122: N.A. | CE122: N.A. | CF122: N.A. | CG122: N.A. | CH122: N.A. | CI122: N.A. | CJ122: N.A. | CK122: N.A. | CL122: N.A. | CM122: N.A. | CN122: N.A. | CO122: N.A. | CP122: N.A. | CQ122: N.A. | CR122: N.A. | CS122: N.A. | CT122: N.A. | CU122: N.A. | CV122: N.A. | CW122: N.A. | CX122: N.A. | CY122: N.A. | CZ122: N.A. | DA122: N.A. | DB122: N.A. | DC122: N.A. | DD122: N.A. | DE122: N.A. | DF122: N.A. | DG122: N.A. | DH122: N.A.
A123: FODASRT | B123: IMF staff estimates. | E123: Total assets of deposit money banks | F123: =UnitScale -> Billion | G123: N.A. | H123: N.A. | I123: N.A. | J123: N.A. | K123: N.A. | L123: 79.59574712 | M123: 89.174525 | N123: 99.908835 | O123: 111.2388219 | P123: 115.1471865 | Q123: 112.4585449 | R123: 119.1333166 | S123: 128.6004588 | T123: 133.9229436 | U123: 141.9164575 | V123: 142.41141 | W123: 146.322734 | X123: 143.919608 | Y123: 148.119064 | Z123: 156.878824 | AA123: 165.7983723 | AB123: 168.898198 | AC123: 168.898198 | AD123: N.A. | AE123: N.A. | AF123: N.A. | AG123: N.A. | AH123: N.A. | AI123: N.A. | AJ123: N.A. | AK123: N.A. | AL123: N.A. | AM123: N.A. | AN123: N.A. | AO123: N.A. | AP123: N.A. | AQ123: N.A. | AR123: N.A. | AS123: N.A. | AT123: N.A. | AU123: N.A. | AV123: N.A. | AW123: N.A. | AX123: N.A. | AY123: N.A. | AZ123: N.A. | BA123: N.A. | BB123: N.A. | BC123: N.A. | BD123: N.A. | BE123: N.A. | BF123: N.A. | BG123: N.A. | BH123: N.A. | BI123: N.A. | BJ123: N.A. | BK123: N.A. | BL123: N.A. | BM123: N.A. | BN123: N.A. | BO123: N.A. | BP123: N.A. | BQ123: N.A. | BR123: N.A. | BS123: N.A. | BT123: N.A. | BU123: N.A. | BV123: N.A. | BW123: N.A. | BX123: N.A. | BY123: N.A. | BZ123: N.A. | CA123: N.A. | CB123: N.A. | CC123: N.A. | CD123: N.A. | CE123: N.A. | CF123: N.A. | CG123: N.A. | CH123: N.A. | CI123: N.A. | CJ123: N.A. | CK123: N.A. | CL123: N.A. | CM123: N.A. | CN123: N.A. | CO123: N.A. | CP123: N.A. | CQ123: N.A. | CR123: N.A. | CS123: N.A. | CT123: N.A. | CU123: N.A. | CV123: N.A. | CW123: N.A. | CX123: N.A. | CY123: N.A. | CZ123: N.A. | DA123: N.A. | DB123: N.A. | DC123: N.A. | DD123: N.A. | DE123: N.A. | DF123: N.A. | DG123: N.A. | DH123: N.A.
A124: FODALGGSRT | B124: IMF staff estimates. | E124: Claims on public sector of DMBs | F124: =UnitScale -> Billion | G124: N.A. | H124: N.A. | I124: N.A. | J124: N.A. | K124: N.A. | L124: 8.83047262 | M124: 6.9608 | N124: 6.950785 | O124: 7.528158354 | P124: 14.47542561 | Q124: 17.1910492 | R124: 16.81944192 | S124: 21.07450432 | T124: 19.96605417 | U124: 24.845331 | V124: 23.796122 | W124: 27.000218 | X124: 24.025636 | Y124: 23.183558 | Z124: 20.15169 | AA124: 25.34525765 | AB124: 28.653115 | AC124: 28.653115 | AD124: N.A. | AE124: N.A. | AF124: N.A. | AG124: N.A. | AH124: N.A. | AI124: N.A. | AJ124: N.A. | AK124: N.A. | AL124: N.A. | AM124: N.A. | AN124: N.A. | AO124: N.A. | AP124: N.A. | AQ124: N.A. | AR124: N.A. | AS124: N.A. | AT124: N.A. | AU124: N.A. | AV124: N.A. | AW124: N.A. | AX124: N.A. | AY124: N.A. | AZ124: N.A. | BA124: N.A. | BB124: N.A. | BC124: N.A. | BD124: N.A. | BE124: N.A. | BF124: N.A. | BG124: N.A. | BH124: N.A. | BI124: N.A. | BJ124: N.A. | BK124: N.A. | BL124: N.A. | BM124: N.A. | BN124: N.A. | BO124: N.A. | BP124: N.A. | BQ124: N.A. | BR124: N.A. | BS124: N.A. | BT124: N.A. | BU124: N.A. | BV124: N.A. | BW124: N.A. | BX124: N.A. | BY124: N.A. | BZ124: N.A. | CA124: N.A. | CB124: N.A. | CC124: N.A. | CD124: N.A. | CE124: N.A. | CF124: N.A. | CG124: N.A. | CH124: N.A. | CI124: N.A. | CJ124: N.A. | CK124: N.A. | CL124: N.A. | CM124: N.A. | CN124: N.A. | CO124: N.A. | CP124: N.A. | CQ124: N.A. | CR124: N.A. | CS124: N.A. | CT124: N.A. | CU124: N.A. | CV124: N.A. | CW124: N.A. | CX124: N.A. | CY124: N.A. | CZ124: N.A. | DA124: N.A. | DB124: N.A. | DC124: N.A. | DD124: N.A. | DE124: N.A. | DF124: N.A. | DG124: N.A. | DH124: N.A.
A125: DFI | B125: Internal source. | E125: Debt fanchart index | F125: Unit | G125: N.A. | H125: N.A. | I125: N.A. | J125: N.A. | K125: N.A. | L125: N.A. | M125: N.A. | N125: N.A. | O125: N.A. | P125: N.A. | Q125: N.A. | R125: N.A. | S125: N.A. | T125: N.A. | U125: N.A. | V125: N.A. | W125: N.A. | X125: N.A. | Y125: N.A. | Z125: 3.18161695 | AA125: 3.538637856 | AB125: 3.430091641 | AC125: N.A. | AD125: N.A. | AE125: N.A. | AF125: N.A. | AG125: N.A. | AH125: N.A. | AI125: N.A. | AJ125: N.A. | AK125: N.A. | AL125: N.A. | AM125: N.A. | AN125: N.A. | AO125: N.A. | AP125: N.A. | AQ125: N.A. | AR125: N.A. | AS125: N.A. | AT125: N.A. | AU125: N.A. | AV125: N.A. | AW125: N.A. | AX125: N.A. | AY125: N.A. | AZ125: N.A. | BA125: N.A. | BB125: N.A. | BC125: N.A. | BD125: N.A. | BE125: N.A. | BF125: N.A. | BG125: N.A. | BH125: N.A. | BI125: N.A. | BJ125: N.A. | BK125: N.A. | BL125: N.A. | BM125: N.A. | BN125: N.A. | BO125: N.A. | BP125: N.A. | BQ125: N.A. | BR125: N.A. | BS125: N.A. | BT125: N.A. | BU125: N.A. | BV125: N.A. | BW125: N.A. | BX125: N.A. | BY125: N.A. | BZ125: N.A. | CA125: N.A. | CB125: N.A. | CC125: N.A. | CD125: N.A. | CE125: N.A. | CF125: N.A. | CG125: N.A. | CH125: N.A. | CI125: N.A. | CJ125: N.A. | CK125: N.A. | CL125: N.A. | CM125: N.A. | CN125: N.A. | CO125: N.A. | CP125: N.A. | CQ125: N.A. | CR125: N.A. | CS125: N.A. | CT125: N.A. | CU125: N.A. | CV125: N.A. | CW125: N.A. | CX125: N.A. | CY125: N.A. | CZ125: N.A. | DA125: N.A. | DB125: N.A. | DC125: N.A. | DD125: N.A. | DE125: N.A. | DF125: N.A. | DG125: N.A. | DH125: N.A.
A126: GFI | B126: Internal source. | E126: GFN index | F126: Unit | G126: N.A. | H126: N.A. | I126: N.A. | J126: N.A. | K126: N.A. | L126: N.A. | M126: N.A. | N126: N.A. | O126: N.A. | P126: N.A. | Q126: N.A. | R126: N.A. | S126: N.A. | T126: N.A. | U126: 10.44782647 | V126: N.A. | W126: 19.88097693 | X126: 21.47045166 | Y126: 9.476936725 | Z126: N.A. | AA126: N.A. | AB126: N.A. | AC126: N.A. | AD126: N.A. | AE126: N.A. | AF126: N.A. | AG126: N.A. | AH126: N.A. | AI126: N.A. | AJ126: N.A. | AK126: N.A. | AL126: N.A. | AM126: N.A. | AN126: N.A. | AO126: N.A. | AP126: N.A. | AQ126: N.A. | AR126: N.A. | AS126: N.A. | AT126: N.A. | AU126: N.A. | AV126: N.A. | AW126: N.A. | AX126: N.A. | AY126: N.A. | AZ126: N.A. | BA126: N.A. | BB126: N.A. | BC126: N.A. | BD126: N.A. | BE126: N.A. | BF126: N.A. | BG126: N.A. | BH126: N.A. | BI126: N.A. | BJ126: N.A. | BK126: N.A. | BL126: N.A. | BM126: N.A. | BN126: N.A. | BO126: N.A. | BP126: N.A. | BQ126: N.A. | BR126: N.A. | BS126: N.A. | BT126: N.A. | BU126: N.A. | BV126: N.A. | BW126: N.A. | BX126: N.A. | BY126: N.A. | BZ126: N.A. | CA126: N.A. | CB126: N.A. | CC126: N.A. | CD126: N.A. | CE126: N.A. | CF126: N.A. | CG126: N.A. | CH126: N.A. | CI126: N.A. | CJ126: N.A. | CK126: N.A. | CL126: N.A. | CM126: N.A. | CN126: N.A. | CO126: N.A. | CP126: N.A. | CQ126: N.A. | CR126: N.A. | CS126: N.A. | CT126: N.A. | CU126: N.A. | CV126: N.A. | CW126: N.A. | CX126: N.A. | CY126: N.A. | CZ126: N.A. | DA126: N.A. | DB126: N.A. | DC126: N.A. | DD126: N.A. | DE126: N.A. | DF126: N.A. | DG126: N.A. | DH126: N.A.
A128: FOSAOG | B128: Available in public IFS. | C128: =IFScode&A128 ->  | E128: Bank claims on state and local government (other depository corporations) | F128: Billion | G128: N.A. | H128: 0.065698 | I128: 0.019195 | J128: 0.016428 | K128: 0.00678 | L128: 0.026923 | M128: 0.155782 | N128: 0.331586 | O128: 0.3591165901 | P128: 0.3281159681 | Q128: 0.345518 | R128: 0.3308361249 | S128: 0.257316 | T128: 0.02652948276 | U128: 0.089366 | V128: 0.006027 | W128: 0.127861 | X128: 0.20035 | Y128: 0.000209 | Z128: 0 | AA128: 0.015505 | AB128: 0.040116 | AC128: N.A. | AD128: N.A. | AE128: N.A. | AF128: N.A. | AG128: N.A. | AH128: N.A. | AI128: N.A. | AJ128: N.A. | AK128: N.A. | AL128: N.A. | AM128: N.A. | AN128: N.A. | AO128: N.A. | AP128: N.A. | AQ128: N.A. | AR128: N.A. | AS128: N.A. | AT128: N.A. | AU128: N.A. | AV128: N.A. | AW128: N.A. | AX128: N.A. | AY128: N.A. | AZ128: N.A. | BA128: N.A. | BB128: N.A. | BC128: N.A. | BD128: N.A. | BE128: N.A. | BF128: N.A. | BG128: N.A. | BH128: N.A. | BI128: N.A. | BJ128: N.A. | BK128: N.A. | BL128: N.A. | BM128: N.A. | BN128: N.A. | BO128: N.A. | BP128: N.A. | BQ128: N.A. | BR128: N.A. | BS128: N.A. | BT128: N.A. | BU128: N.A. | BV128: N.A. | BW128: N.A. | BX128: N.A. | BY128: N.A. | BZ128: N.A. | CA128: N.A. | CB128: N.A. | CC128: N.A. | CD128: N.A. | CE128: N.A. | CF128: N.A. | CG128: N.A. | CH128: N.A. | CI128: N.A. | CJ128: N.A. | CK128: N.A. | CL128: N.A. | CM128: N.A. | CN128: N.A. | CO128: N.A. | CP128: N.A. | CQ128: N.A. | CR128: N.A. | CS128: N.A. | CT128: N.A. | CU128: N.A. | CV128: N.A. | CW128: N.A. | CX128: N.A. | CY128: N.A. | CZ128: N.A. | DA128: N.A. | DB128: N.A. | DC128: N.A. | DD128: N.A. | DE128: N.A. | DF128: N.A. | DG128: N.A. | DH128: N.A.
A129: FASAOS | B129: Available in public IFS. | C129: =IFScode&A129 ->  | E129: Central Bank claims on state and local government | F129: Billion | G129: N.A. | H129: 0 | I129: 0 | J129: 0 | K129: 0 | L129: 0 | M129: 0 | N129: 0 | O129: 0 | P129: 0 | Q129: 0 | R129: 0 | S129: 0 | T129: 0 | U129: 0 | V129: 0 | W129: 0 | X129: 0 | Y129: 0 | Z129: 0 | AA129: 0 | AB129: 0 | AC129: N.A. | AD129: N.A. | AE129: N.A. | AF129: N.A. | AG129: N.A. | AH129: N.A. | AI129: N.A. | AJ129: N.A. | AK129: N.A. | AL129: N.A. | AM129: N.A. | AN129: N.A. | AO129: N.A. | AP129: N.A. | AQ129: N.A. | AR129: N.A. | AS129: N.A. | AT129: N.A. | AU129: N.A. | AV129: N.A. | AW129: N.A. | AX129: N.A. | AY129: N.A. | AZ129: N.A. | BA129: N.A. | BB129: N.A. | BC129: N.A. | BD129: N.A. | BE129: N.A. | BF129: N.A. | BG129: N.A. | BH129: N.A. | BI129: N.A. | BJ129: N.A. | BK129: N.A. | BL129: N.A. | BM129: N.A. | BN129: N.A. | BO129: N.A. | BP129: N.A. | BQ129: N.A. | BR129: N.A. | BS129: N.A. | BT129: N.A. | BU129: N.A. | BV129: N.A. | BW129: N.A. | BX129: N.A. | BY129: N.A. | BZ129: N.A. | CA129: N.A. | CB129: N.A. | CC129: N.A. | CD129: N.A. | CE129: N.A. | CF129: N.A. | CG129: N.A. | CH129: N.A. | CI129: N.A. | CJ129: N.A. | CK129: N.A. | CL129: N.A. | CM129: N.A. | CN129: N.A. | CO129: N.A. | CP129: N.A. | CQ129: N.A. | CR129: N.A. | CS129: N.A. | CT129: N.A. | CU129: N.A. | CV129: N.A. | CW129: N.A. | CX129: N.A. | CY129: N.A. | CZ129: N.A. | DA129: N.A. | DB129: N.A. | DC129: N.A. | DD129: N.A. | DE129: N.A. | DF129: N.A. | DG129: N.A. | DH129: N.A.
A130: FOSAON | B130: Available in public IFS. | C130: =IFScode&A130 ->  | E130: Bank claims on public non-fiinancial institutions | F130: Billion | G130: N.A. | H130: 1.355062 | I130: 1.558971 | J130: 1.571272 | K130: 1.240621 | L130: 3.344699 | M130: 2.375389 | N130: 3.069864 | O130: 3.380037054 | P130: 6.083828884 | Q130: 6.385611142 | R130: 5.778257869 | S130: 5.918539 | T130: 6.669628 | U130: 8.70847 | V130: 11.087151 | W130: 10.615332 | X130: 9.724854 | Y130: 10.225084 | Z130: 11.470251 | AA130: 10.6120374 | AB130: N.A. | AC130: N.A. | AD130: N.A. | AE130: N.A. | AF130: N.A. | AG130: N.A. | AH130: N.A. | AI130: N.A. | AJ130: N.A. | AK130: N.A. | AL130: N.A. | AM130: N.A. | AN130: N.A. | AO130: N.A. | AP130: N.A. | AQ130: N.A. | AR130: N.A. | AS130: N.A. | AT130: N.A. | AU130: N.A. | AV130: N.A. | AW130: N.A. | AX130: N.A. | AY130: N.A. | AZ130: N.A. | BA130: N.A. | BB130: N.A. | BC130: N.A. | BD130: N.A. | BE130: N.A. | BF130: N.A. | BG130: N.A. | BH130: N.A. | BI130: N.A. | BJ130: N.A. | BK130: N.A. | BL130: N.A. | BM130: N.A. | BN130: N.A. | BO130: N.A. | BP130: N.A. | BQ130: N.A. | BR130: N.A. | BS130: N.A. | BT130: N.A. | BU130: N.A. | BV130: N.A. | BW130: N.A. | BX130: N.A. | BY130: N.A. | BZ130: N.A. | CA130: N.A. | CB130: N.A. | CC130: N.A. | CD130: N.A. | CE130: N.A. | CF130: N.A. | CG130: N.A. | CH130: N.A. | CI130: N.A. | CJ130: N.A. | CK130: N.A. | CL130: N.A. | CM130: N.A. | CN130: N.A. | CO130: N.A. | CP130: N.A. | CQ130: N.A. | CR130: N.A. | CS130: N.A. | CT130: N.A. | CU130: N.A. | CV130: N.A. | CW130: N.A. | CX130: N.A. | CY130: N.A. | CZ130: N.A. | DA130: N.A. | DB130: N.A. | DC130: N.A. | DD130: N.A. | DE130: N.A. | DF130: N.A. | DG130: N.A. | DH130: N.A.
A131: FASAON | B131: Available in public IFS. | C131: =IFScode&A131 ->  | E131: Central bank claims on public non-financial institutions | F131: Billion | G131: N.A. | H131: 0.310324161 | I131: 0.30014691 | J131: 0.279958124 | K131: 0.24544617 | L131: 4.167768e-05 | M131: 1.945368e-05 | N131: 5.489418e-05 | O131: 9.46619e-06 | P131: 3.445744e-05 | Q131: 3.01194e-06 | R131: 1.765169e-05 | S131: 3.632133e-05 | T131: 4.566583e-05 | U131: 5.27408e-06 | V131: 2.003933e-05 | W131: 9.71308e-06 | X131: 2.720133e-05 | Y131: 2.624933e-05 | Z131: 2.670658e-05 | AA131: 3.157233e-05 | AB131: N.A. | AC131: N.A. | AD131: N.A. | AE131: N.A. | AF131: N.A. | AG131: N.A. | AH131: N.A. | AI131: N.A. | AJ131: N.A. | AK131: N.A. | AL131: N.A. | AM131: N.A. | AN131: N.A. | AO131: N.A. | AP131: N.A. | AQ131: N.A. | AR131: N.A. | AS131: N.A. | AT131: N.A. | AU131: N.A. | AV131: N.A. | AW131: N.A. | AX131: N.A. | AY131: N.A. | AZ131: N.A. | BA131: N.A. | BB131: N.A. | BC131: N.A. | BD131: N.A. | BE131: N.A. | BF131: N.A. | BG131: N.A. | BH131: N.A. | BI131: N.A. | BJ131: N.A. | BK131: N.A. | BL131: N.A. | BM131: N.A. | BN131: N.A. | BO131: N.A. | BP131: N.A. | BQ131: N.A. | BR131: N.A. | BS131: N.A. | BT131: N.A. | BU131: N.A. | BV131: N.A. | BW131: N.A. | BX131: N.A. | BY131: N.A. | BZ131: N.A. | CA131: N.A. | CB131: N.A. | CC131: N.A. | CD131: N.A. | CE131: N.A. | CF131: N.A. | CG131: N.A. | CH131: N.A. | CI131: N.A. | CJ131: N.A. | CK131: N.A. | CL131: N.A. | CM131: N.A. | CN131: N.A. | CO131: N.A. | CP131: N.A. | CQ131: N.A. | CR131: N.A. | CS131: N.A. | CT131: N.A. | CU131: N.A. | CV131: N.A. | CW131: N.A. | CX131: N.A. | CY131: N.A. | CZ131: N.A. | DA131: N.A. | DB131: N.A. | DC131: N.A. | DD131: N.A. | DE131: N.A. | DF131: N.A. | DG131: N.A. | DH131: N.A.
A133: MTI | B133: Internal source. | C133: =IFScode&A133 ->  | E133: Medium-term Index | F133: Unit | G133: N.A. | H133: N.A. | I133: N.A. | J133: N.A. | K133: N.A. | L133: N.A. | M133: N.A. | N133: N.A. | O133: N.A. | P133: N.A. | Q133: N.A. | R133: N.A. | S133: N.A. | T133: N.A. | U133: N.A. | V133: N.A. | W133: N.A. | X133: N.A. | Y133: N.A. | Z133: N.A. | AA133: N.A. | AB133: N.A. | AC133: N.A. | AD133: N.A. | AE133: N.A. | AF133: N.A. | AG133: N.A. | AH133: N.A. | AI133: N.A. | AJ133: N.A. | AK133: N.A. | AL133: N.A. | AM133: N.A. | AN133: N.A. | AO133: N.A. | AP133: N.A. | AQ133: N.A. | AR133: N.A. | AS133: N.A. | AT133: N.A. | AU133: N.A. | AV133: N.A. | AW133: N.A. | AX133: N.A. | AY133: N.A. | AZ133: N.A. | BA133: N.A. | BB133: N.A. | BC133: N.A. | BD133: N.A. | BE133: N.A. | BF133: N.A. | BG133: N.A. | BH133: N.A. | BI133: N.A. | BJ133: N.A. | BK133: N.A. | BL133: N.A. | BM133: N.A. | BN133: N.A. | BO133: N.A. | BP133: N.A. | BQ133: N.A. | BR133: N.A. | BS133: N.A. | BT133: N.A. | BU133: N.A. | BV133: N.A. | BW133: N.A. | BX133: N.A. | BY133: N.A. | BZ133: N.A. | CA133: N.A. | CB133: N.A. | CC133: N.A. | CD133: N.A. | CE133: N.A. | CF133: N.A. | CG133: N.A. | CH133: N.A. | CI133: N.A. | CJ133: N.A. | CK133: N.A. | CL133: N.A. | CM133: N.A. | CN133: N.A. | CO133: N.A. | CP133: N.A. | CQ133: N.A. | CR133: N.A. | CS133: N.A. | CT133: N.A. | CU133: N.A. | CV133: N.A. | CW133: N.A. | CX133: N.A. | CY133: N.A. | CZ133: N.A. | DA133: N.A. | DB133: N.A. | DC133: N.A. | DD133: N.A. | DE133: N.A. | DF133: N.A. | DG133: N.A. | DH133: N.A.
A134: Sheet ends
A137: C)
A156: D) Financing Projections
A157: INST1_A | B157: NOTE: Users need to fill out fields below with their own financing projections. | C157: =IFScode&A157 ->  | E157: Instrument 1: amount issued | AD157: 1.428182437 | AE157: 0.8923094773 | AF157: 1.03737582 | AG157: 0.7461695901 | AH157: 1.071592032 | AI157: 0.6468124281 | AJ157: 0.801849455 | AK157: 0.554154479 | AL157: 0.9924686691 | AM157: 1.022467772 | AN157: 1.271284405 | AO157: 0.8167642851
A158: INST2_A | B158: =IF(D158,FrameDb,"") ->  | E158: Instrument 2: amount issued | AD158: 5.493009373 | AE158: 3.350440749 | AF158: 3.753032505 | AG158: 3.26482426 | AH158: 3.947999771 | AI158: 3.221912478 | AJ158: 2.97020437 | AK158: 3.259553769 | AL158: 3.632656981 | AM158: 4.247301183 | AN158: 4.276969108 | AO158: 4.21574864
A159: INST3_A | E159: Instrument 3: amount issued | AD159: 4.064826936 | AE159: 2.348330244 | AF159: 3.615348269 | AG159: 2.400458199 | AH159: 2.929100734 | AI159: 1.84092768 | AJ159: 2.28218691 | AK159: 2.177208902 | AL159: 2.92471852 | AM159: 3.910100581 | AN159: 4.918271 | AO159: 3.324636811
A160: INST4_A | E160: Instrument 4: amount issued | AD160: 0.1384364348 | AE160: 0.3198135482 | AF160: 0.1305786283 | AG160: 0.490530562 | AH160: 0.2036136157 | AI160: 0.157564142 | AJ160: 0.1407000035 | AK160: 0.3268379083 | AL160: 0.4765435381 | AM160: 0.1848649401 | AN160: 0.4800017818 | AO160: 0.3801412855
A161: INST5_A | E161: Instrument 5: amount issued | AD161: 1.384364348 | AE161: 3.198135482 | AF161: 1.305786283 | AG161: 4.90530562 | AH161: 3.036136157 | AI161: 1.57564142 | AJ161: 2.447959159 | AK161: 3.268379083 | AL161: 2.765435381 | AM161: 3.548649401 | AN161: 3.900017818 | AO161: 3.801412855
A162: INST6_A | E162: Instrument 6: amount issued | AD162: 1.245927913 | AE162: 2.878321934 | AF162: 1.175207655 | AG162: 4.414775058 | AH162: 1.832522541 | AI162: 1.418077278 | AJ162: 1.466300032 | AK162: 2.941541175 | AL162: 2.588891843 | AM162: 1.663784461 | AN162: 1.920016037 | AO162: 1.621271569
A163: INST7_A
A164: INST8_A
A165: INST9_A
A166: INST10_A
A167: INST11_A
A168: INST12_A
A169: INST13_A
A170: INST14_A
A171: INST15_A
A172: INST16_A
A173: INST17_A
A174: INST18_A
A175: INST19_A
A176: INST20_A
A177: INST21_A
A178: INST22_A
A179: INST23_A
A180: INST24_A
A181: INST25_A
A183: INST1_I | B183: =IF(D183,FrameDb,"") ->  | C183: =IFScode&A183 ->  | E183: Instrument 1: interest rate | AD183: 0.05 | AE183: 0.03 | AF183: 0.03 | AG183: 0.03 | AH183: 0.03 | AI183: 0.03 | AJ183: 0.03 | AK183: 0.03 | AL183: 0.03 | AM183: 0.03 | AN183: 0.03 | AO183: 0.03
A184: INST2_I | E184: Instrument 2: interest rate | AD184: 0.045 | AE184: 0.045 | AF184: 0.045 | AG184: 0.045 | AH184: 0.045 | AI184: 0.034 | AJ184: 0.034 | AK184: 0.034 | AL184: 0.034 | AM184: 0.034 | AN184: 0.034 | AO184: 0.034
A185: INST3_I | E185: Instrument 3: interest rate | AD185: 0.02 | AE185: 0.02 | AF185: 0.02 | AG185: 0.02 | AH185: 0.02 | AI185: 0.02 | AJ185: 0.02 | AK185: 0.02 | AL185: 0.02 | AM185: 0.02 | AN185: 0.02 | AO185: 0.02
A186: INST4_I | E186: Instrument 4: interest rate | AD186: 0.04 | AE186: 0.04 | AF186: 0.04 | AG186: 0.04 | AH186: 0.04 | AI186: 0.04 | AJ186: 0.04 | AK186: 0.04 | AL186: 0.04 | AM186: 0.04 | AN186: 0.04 | AO186: 0.04
A187: INST5_I | E187: Instrument 5: interest rate | AD187: 0.03 | AE187: 0.02 | AF187: 0.02 | AG187: 0.02 | AH187: 0.02 | AI187: 0.02 | AJ187: 0.02 | AK187: 0.02 | AL187: 0.02 | AM187: 0.02 | AN187: 0.02 | AO187: 0.02
A188: INST6_I | E188: Instrument 6: interest rate | AD188: 0.03 | AE188: 0.02 | AF188: 0.02 | AG188: 0.02 | AH188: 0.02 | AI188: 0.02 | AJ188: 0.02 | AK188: 0.02 | AL188: 0.02 | AM188: 0.02 | AN188: 0.02 | AO188: 0.02
A189: INST7_I
A190: INST8_I
A191: INST9_I
A192: INST10_I
A193: INST11_I
A194: INST12_I
A195: INST13_I
A196: INST14_I
A197: INST15_I
A198: INST16_I
A199: INST17_I
A200: INST18_I
A201: INST19_I
A202: INST20_I
A203: INST21_I
A204: INST22_I
A205: INST23_I
A206: INST24_I
A207: INST25_I
A209: INST1_G | B209: =IF(D209,FrameDb,"") ->  | C209: =IFScode&A209 ->  | E209: Instrument 1: grace period | AD209: 1 | AE209: 1 | AF209: 1 | AG209: 1 | AH209: 1 | AI209: 1 | AJ209: 1 | AK209: 1 | AL209: 1 | AM209: 1 | AN209: 1 | AO209: 1
A210: INST2_G | E210: Instrument 2: grace period | AD210: 5 | AE210: 5 | AF210: 5 | AG210: 5 | AH210: 5 | AI210: 5 | AJ210: 5 | AK210: 5 | AL210: 5 | AM210: 5 | AN210: 5 | AO210: 5
A211: INST3_G | E211: Instrument 3: grace period | AD211: 6 | AE211: 6 | AF211: 6 | AG211: 6 | AH211: 6 | AI211: 6 | AJ211: 6 | AK211: 6 | AL211: 6 | AM211: 6 | AN211: 6 | AO211: 6
A212: INST4_G | E212: Instrument 4: grace period | AD212: 8 | AE212: 8 | AF212: 8 | AG212: 8 | AH212: 8 | AI212: 8 | AJ212: 8 | AK212: 8 | AL212: 8 | AM212: 8 | AN212: 8 | AO212: 8
A213: INST5_G | E213: Instrument 5: grace period | AD213: 5 | AE213: 5 | AF213: 5 | AG213: 5 | AH213: 5 | AI213: 5 | AJ213: 5 | AK213: 5 | AL213: 5 | AM213: 5 | AN213: 5 | AO213: 5
A214: INST6_G | E214: Instrument 6: grace period | AD214: 6 | AE214: 6 | AF214: 6 | AG214: 6 | AH214: 6 | AI214: 6 | AJ214: 6 | AK214: 6 | AL214: 6 | AM214: 6 | AN214: 6 | AO214: 6
A215: INST7_G
A216: INST8_G
A217: INST9_G
A218: INST10_G
A219: INST11_G
A220: INST12_G
A221: INST13_G
A222: INST14_G
A223: INST15_G
A224: INST16_G
A225: INST17_G
A226: INST18_G
A227: INST19_G
A228: INST20_G
A229: INST21_G
A230: INST22_G
A231: INST23_G
... 78 more rows

Sheet NewMacrofw
B1: Macroeconomic framework
H2: Please provide series:
B3: Check consistency with forecast horizon: | G3: =IF(MAX($4:$4)=ProjYr+MTHorizon,"Ok",IF(MAX($4:$4)<ProjYr+MTHorizon,"Insufficient observations in MT horizon, extend dates",IF(MAX($4:$4)>ProjYr+MTHorizon,"Years exceed MT horizon"))) -> Years exceed MT horizon
H4: Start: | I4: End: | J4: =FirstYr -> 2000 | K4: =J4+1 -> 2001 | L4: 2002 | M4: 2003 | N4: 2004 | O4: 2005 | P4: 2006 | Q4: 2007 | R4: 2008 | S4: 2009 | T4: 2010 | U4: 2011 | V4: 2012 | W4: 2013 | X4: 2014 | Y4: 2015 | Z4: 2016 | AA4: 2017 | AB4: 2018 | AC4: 2019 | AD4: 2020 | AE4: 2021 | AF4: 2022 | AG4: 2023 | AH4: 2024 | AI4: 2025 | AJ4: 2026 | AK4: =AJ4+1 -> 2027 | AL4: 2028 | AM4: 2029 | AN4: 2030 | AO4: 2031 | AP4: 2032 | AQ4: 2033 | AR4: 2034 | AS4: 2035 | AT4: 2036 | AU4: 2037 | AV4: 2038
H5: 3 | I5: 4
A6: HEADER | G6: UNIT_OR_PERIMETER | J6: =J4-ProjYr -> -23 | K6: -22 | L6: -21 | M6: -20 | N6: -19 | O6: -18 | P6: -17 | Q6: -16 | R6: -15 | S6: -14 | T6: -13 | U6: -12 | V6: -11 | W6: -10 | X6: -9 | Y6: -8 | Z6: -7 | AA6: -6 | AB6: -5 | AC6: -4 | AD6: -3 | AE6: -2 | AF6: -1 | AG6: 0 | AH6: 1 | AI6: 2 | AJ6: 3 | AK6: =AK4-ProjYr -> 4 | AL6: 5 | AM6: 6 | AN6: 7 | AO6: 8 | AP6: 9 | AQ6: 10 | AR6: 11 | AS6: =AS4-ProjYr -> 12 | AT6: =AT4-ProjYr -> 13 | AU6: =AU4-ProjYr -> 14 | AV6: =AV4-ProjYr -> 15
B7: National accounts-related items:
A8: NGDP_R | C8: Real GDP | G8: =UnitScale&" "&GDPBaseYr&" "&CurrencyName ->  | H8: =VLOOKUP($A8,Dictionary,H$5,FALSE) -> 2000 | I8: =VLOOKUP($A8,Dictionary,I$5,FALSE) -> 2028 | J8: =Macrofw!G7 -> 93.02860284 | K8: =Macrofw!H7 -> 97.27419068 | L8: =Macrofw!I7 -> 103.5174125 | M8: =Macrofw!J7 -> 116.3477838 | N8: =Macrofw!K7 -> 126.7257165 | O8: =Macrofw!L7 -> 134.8284894 | P8: =Macrofw!M7 -> 151.5011964 | Q8: =Macrofw!N7 -> 161.5879093 | R8: =Macrofw!O7 -> 167.5280145 | S8: =Macrofw!P7 -> 160.3258467 | T8: =Macrofw!Q7 -> 162.7546594 | U8: =Macrofw!R7 -> 164.2190981 | V8: =Macrofw!S7 -> 170.058537 | W8: =Macrofw!T7 -> 177.2318723 | X8: =Macrofw!U7 -> 183.7121944 | Y8: =Macrofw!V7 -> 184.519985 | Z8: =Macrofw!W7 -> 175.1755599 | AA8: =Macrofw!X7 -> 166.3128214 | AB8: =Macrofw!Y7 -> 162.5897536 | AC8: =Macrofw!Z7 -> 162.6112733 | AD8: =Macrofw!AA7 -> 153.5190918 | AE8: =Macrofw!AB7 -> 148.487541 | AF8: =Macrofw!AC7 -> 151.895186 | AG8: =Macrofw!AD7 -> 157.3145716 | AH8: =Macrofw!AE7 -> 160.8468611 | AI8: =Macrofw!AF7 -> 164.6697049 | AJ8: =Macrofw!AG7 -> 168.0634873 | AK8: =Macrofw!AH7 -> 171.0053031 | AL8: =Macrofw!AI7 -> 173.8373126 | AM8: =Macrofw!AJ7 -> 176.2971595 | AN8: =Macrofw!AK7 -> 178.6690364 | AO8: =Macrofw!AL7 -> 181.0835123 | AP8: =Macrofw!AM7 -> 183.5413744 | AQ8: =Macrofw!AN7 -> 186.0434245 | AR8: =Macrofw!AO7 -> 188.590479 | AS8: =Macrofw!AP7 ->  | AT8: =Macrofw!AQ7 ->  | AU8: =Macrofw!AR7 ->  | AV8: =Macrofw!AS7 -> 
A9: NGDP_RPCH | D9: Growth | G9: Percent change | H9: =VLOOKUP($A9,Dictionary,H$5,FALSE) -> 2001 | I9: =VLOOKUP($A9,Dictionary,I$5,FALSE) -> 2028 | K9: =K8/J8-1 -> 0.04563744602 | L9: =L8/K8-1 -> 0.06418168841 | M9: 0.1239440883 | N9: 0.08919751053 | O9: 0.06393945264 | P9: 0.1236586356 | Q9: 0.06657843677 | R9: 0.03676082735 | S9: -0.04299082622 | T9: 0.01514922727 | U9: 0.008997829213 | V9: 0.03555882963 | W9: 0.04218156552 | X9: 0.03656408961 | Y9: 0.004397043999 | Z9: -0.0506418047 | AA9: -0.050593465 | AB9: -0.02238593373 | AC9: 0.0001323556894 | AD9: -0.05591359845 | AE9: -0.03277475621 | AF9: 0.02294902991 | AG9: 0.03567845513 | AH9: 0.02245366981 | AI9: 0.02376697828 | AJ9: 0.02060963409 | AK9: =AK8/AJ8-1 -> 0.01750419375 | AL9: 0.01656094551 | AM9: 0.01415028112 | AN9: 0.01345385775 | AO9: 0.01351367862 | AP9: 0.01357308621 | AQ9: 0.01363207645 | AR9: 0.01369064542
A11: NGDP_D | C11: GDP deflator | G11: ="Index, " & GDPBaseYr & "=100" -> Index, 2012=100 | H11: =VLOOKUP($A11,Dictionary,H$5,FALSE) -> 2000 | I11: =VLOOKUP($A11,Dictionary,I$5,FALSE) -> 2028 | J11: =Macrofw!G8 -> 54.66048631 | K11: =Macrofw!H8 -> 57.62249433 | L11: =Macrofw!I8 -> 55.6179006 | M11: =Macrofw!J8 -> 59.62522567 | N11: =Macrofw!K8 -> 65.42605034 | O11: =Macrofw!L8 -> 73.59496581 | P11: =Macrofw!M8 -> 76.2873961 | Q11: =Macrofw!N8 -> 84.21668123 | R11: =Macrofw!O8 -> 102.2145787 | S11: =Macrofw!P8 -> 86.68552782 | T11: =Macrofw!Q8 -> 86.58203386 | U11: =Macrofw!R8 -> 99.20515463 | V11: =Macrofw!S8 -> 103.3416181 | W11: =Macrofw!T8 -> 104.8270378 | X11: =Macrofw!U8 -> 104.7693592 | Y11: =Macrofw!V8 -> 97.80537286 | Z11: =Macrofw!W8 -> 94.20856492 | AA11: =Macrofw!X8 -> 99.33018326 | AB11: =Macrofw!Y8 -> 104.0873783 | AC11: =Macrofw!Z8 -> 103.0472447 | AD11: =Macrofw!AA8 -> 99.13470753 | AE11: =Macrofw!AB8 -> 109.5850514 | AF11: =Macrofw!AC8 -> 122.0226327 | AG11: =Macrofw!AD8 -> 121.8362286 | AH11: =Macrofw!AE8 -> 121.8473008 | AI11: =Macrofw!AF8 -> 122.9327936 | AJ11: =Macrofw!AG8 -> 124.0664937 | AK11: =Macrofw!AH8 -> 125.6227397 | AL11: =Macrofw!AI8 -> 127.4208229 | AM11: =Macrofw!AJ8 -> 129.2635756 | AN11: =Macrofw!AK8 -> 131.1451423 | AO11: =Macrofw!AL8 -> 133.0739711 | AP11: =Macrofw!AM8 -> 135.0508933 | AQ11: =Macrofw!AN8 -> 137.076753 | AR11: =Macrofw!AO8 -> 139.1524072 | AS11: =Macrofw!AP8 ->  | AT11: =Macrofw!AQ8 ->  | AU11: =Macrofw!AR8 ->  | AV11: =Macrofw!AS8 -> 
A12: NGDP_DPCH | D12: Inflation | G12: Percent | H12: =VLOOKUP($A12,Dictionary,H$5,FALSE) -> 2001 | I12: =VLOOKUP($A12,Dictionary,I$5,FALSE) -> 2028 | K12: =K11/J11-1 -> 0.05418919988 | L12: -0.03478838865 | M12: 0.07205099481 | N12: 0.09728809592 | O12: 0.1248572309 | P12: 0.03658443562 | Q12: 0.1039396484 | R12: 0.2137094121 | S12: -0.1519259879 | T12: -0.001193901192 | U12: 0.1457937658 | V12: 0.04169605356 | W12: 0.01437387692 | X12: -0.0005502259257 | Y12: -0.06646968551 | Z12: -0.03677515703 | AA12: 0.05436467855 | AB12: 0.0478927444 | AC12: -0.009992889153 | AD12: -0.03796838222 | AE12: 0.1054155923 | AF12: 0.1134970612 | AG12: -0.001527619318 | AH12: 9.087780849e-05 | AI12: 0.008908631983 | AJ12: 0.009222113042 | AK12: =AK11/AJ11-1 -> 0.01254364498 | AL12: 0.0143133576 | AM12: 0.0144619432 | AN12: 0.0145560465 | AO12: 0.01470758857 | AP12: 0.01485581456 | AQ12: 0.01500071316 | AR12: 0.01514227759
A14: NGDP | C14: Nominal GDP | G14: =UnitScale&" "&CurrencyName ->  | H14: =VLOOKUP($A14,Dictionary,H$5,FALSE) -> 2000 | I14: =VLOOKUP($A14,Dictionary,I$5,FALSE) -> 2028 | J14: =Macrofw!G6 -> 50.84988672 | K14: =Macrofw!H6 -> 56.051815 | L14: =Macrofw!I6 -> 57.57421157 | M14: =Macrofw!J6 -> 69.37262864 | N14: =Macrofw!K6 -> 82.91163104 | O14: =Macrofw!L6 -> 99.22698068 | P14: =Macrofw!M6 -> 115.5763178 | Q14: =Macrofw!N6 -> 136.0839745 | R14: =Macrofw!O6 -> 171.2380542 | S14: =Macrofw!P6 -> 138.9793065 | T14: =Macrofw!Q6 -> 140.9162943 | U14: =Macrofw!R6 -> 162.9138102 | V14: =Macrofw!S6 -> 175.7412438 | W14: =Macrofw!T6 -> 185.7869217 | X14: =Macrofw!U6 -> 192.4740889 | Y14: =Macrofw!V6 -> 180.4704593 | Z14: =Macrofw!W6 -> 165.0303811 | AA14: =Macrofw!X6 -> 165.1988303 | AB14: =Macrofw!Y6 -> 169.2354119 | AC14: =Macrofw!Z6 -> 167.5664367 | AD14: =Macrofw!AA6 -> 152.1907027 | AE14: =Macrofw!AB6 -> 162.7201482 | AF14: =Macrofw!AC6 -> 185.346505 | AG14: =Macrofw!AD6 -> 191.6661411 | AH14: =Macrofw!AE6 -> 195.9875586 | AI14: =Macrofw!AF6 -> 202.4330684 | AJ14: =Macrofw!AG6 -> 208.5104758 | AK14: =Macrofw!AH6 -> 214.8215469 | AL14: =Macrofw!AI6 -> 221.5049343 | AM14: =Macrofw!AJ6 -> 227.8880121 | AN14: =Macrofw!AK6 -> 234.3157619 | AO14: =Macrofw!AL6 -> 240.9750208 | AP14: =Macrofw!AM6 -> 247.8742657 | AQ14: =Macrofw!AN6 -> 255.0222855 | AR14: =Macrofw!AO6 -> 262.4281914 | AS14: =Macrofw!AP6 ->  | AT14: =Macrofw!AQ6 ->  | AU14: =Macrofw!AR6 ->  | AV14: =Macrofw!AS6 -> 
A15: NGDP_PCH | D15: Growth | G15: Percent change | H15: =VLOOKUP($A15,Dictionary,H$5,FALSE) -> 2001 | I15: =VLOOKUP($A15,Dictionary,I$5,FALSE) -> 2028 | K15: =K14/J14-1 -> 0.1022997026 | L15: 0.02716052224 | M15: 0.2049253779 | N15: 0.1951634624 | O15: 0.1967799865 | P15: 0.1647670526 | Q15: 0.1774382245 | R15: 0.2583263742 | S15: -0.1883853904 | T15: 0.0139372394 | U15: 0.1561034225 | V15: 0.07873754605 | W15: 0.05716175507 | X15: 0.03599374518 | Y15: -0.06236491164 | Z15: -0.0855546014 | AA15: 0.001020716086 | AB15: 0.02443468687 | AC15: -0.009861856079 | AD15: -0.0917590318 | AE15: 0.06918586574 | AF15: 0.1390507385 | AG15: 0.03409633272 | AH15: 0.02254658816 | AI15: 0.03288734153 | AJ15: 0.03002181151 | AK15: =AK14/AJ14-1 -> 0.03026740512 | AL15: 0.03111134585 | AM15: 0.02881686487 | AN15: 0.02820573923 | AO15: 0.02842002081 | AP15: 0.02863054003 | AQ15: 0.02883728048 | AR15: 0.02904023057
B17: Fiscal accounts-related items:
A18: GGR | C18: Total revenues | G18: =UnitScale&" "&CurrencyName ->  | H18: =VLOOKUP($A18,Dictionary,H$5,FALSE) -> 2012 | I18: 2028 | T18: =Macrofw!Q28 -> 43.02430161 | U18: =Macrofw!R28 -> 46.63441676 | V18: =Macrofw!S28 -> 48.42284871 | W18: =Macrofw!T28 -> 51.89128707 | X18: =Macrofw!U28 -> 52.94495034 | Y18: =Macrofw!V28 -> 46.30514602 | Z18: =Macrofw!W28 -> 33.94981191 | AA18: =Macrofw!X28 -> 32.402954 | AB18: =Macrofw!Y28 -> 38.72205482 | AC18: =Macrofw!Z28 -> 42.83863194 | AD18: =Macrofw!AA28 -> 33.3456522 | AE18: =Macrofw!AB28 -> 35.83277103 | AF18: =Macrofw!AC28 -> 52.75874046 | AG18: =Macrofw!AD28 -> 51.25298619 | AH18: =Macrofw!AE28 -> 51.56444578 | AI18: =Macrofw!AF28 -> 53.57871802 | AJ18: =Macrofw!AG28 -> 55.10504912 | AK18: =Macrofw!AH28 -> 56.66991561 | AL18: =Macrofw!AI28 -> 58.17418085 | AM18: =Macrofw!AJ28 -> 59.29602927 | AN18: =Macrofw!AK28 -> 60.35867635 | AO18: =Macrofw!AL28 -> 61.45755673 | AP18: =Macrofw!AM28 -> 62.59393251 | AQ18: =Macrofw!AN28 -> 63.76910749 | AR18: =Macrofw!AO28 -> 64.98443123 | AS18: =Macrofw!AP28 ->  | AT18: =Macrofw!AQ28 ->  | AU18: =Macrofw!AR28 ->  | AV18: =Macrofw!AS28 -> 
A19: GGRXI | D19: Noninterest revenues | G19: =UnitScale&" "&CurrencyName ->  | H19: 2012 | I19: 2028 | T19: =Macrofw!Q29 -> 42.85360161 | U19: =Macrofw!R29 -> 46.58441676 | V19: =Macrofw!S29 -> 48.36314871 | W19: =Macrofw!T29 -> 51.85368707 | X19: =Macrofw!U29 -> 52.91295034 | Y19: =Macrofw!V29 -> 46.26514602 | Z19: =Macrofw!W29 -> 33.90851191 | AA19: =Macrofw!X29 -> 32.368954 | AB19: =Macrofw!Y29 -> 38.69355482 | AC19: =Macrofw!Z29 -> 42.81333194 | AD19: =Macrofw!AA29 -> 33.3304522 | AE19: =Macrofw!AB29 -> 35.81537103 | AF19: =Macrofw!AC29 -> 52.75484046 | AG19: =Macrofw!AD29 -> 51.24895925 | AH19: =Macrofw!AE29 -> 51.56033421 | AI19: =Macrofw!AF29 -> 53.5744776 | AJ19: =Macrofw!AG29 -> 55.10068793 | AK19: =Macrofw!AH29 -> 56.66542915 | AL19: =Macrofw!AI29 -> 58.16956175 | AM19: =Macrofw!AJ29 -> 59.29128418 | AN19: =Macrofw!AK29 -> 60.35380472 | AO19: =Macrofw!AL29 -> 61.45255415 | AP19: =Macrofw!AM29 -> 62.58879441 | AQ19: =Macrofw!AN29 -> 63.76382915 | AR19: =Macrofw!AO29 -> 64.97900774 | AS19: =Macrofw!AP29 ->  | AT19: =Macrofw!AQ29 ->  | AU19: =Macrofw!AR29 ->  | AV19: =Macrofw!AS29 -> 
A20: GGROPI | D20: Interest revenues | G20: =UnitScale&" "&CurrencyName ->  | H20: 2012 | I20: 2028 | T20: =Macrofw!Q30 -> 0.1707 | U20: =Macrofw!R30 -> 0.05 | V20: =Macrofw!S30 -> 0.0597 | W20: =Macrofw!T30 -> 0.0376 | X20: =Macrofw!U30 -> 0.032 | Y20: =Macrofw!V30 -> 0.04 | Z20: =Macrofw!W30 -> 0.0413 | AA20: =Macrofw!X30 -> 0.034 | AB20: =Macrofw!Y30 -> 0.0285 | AC20: =Macrofw!Z30 -> 0.0253 | AD20: =Macrofw!AA30 -> 0.0152 | AE20: =Macrofw!AB30 -> 0.0174 | AF20: =Macrofw!AC30 -> 0.0039 | AG20: =Macrofw!AD30 -> 0.004026935295 | AH20: =Macrofw!AE30 -> 0.004111561604 | AI20: =Macrofw!AF30 -> 0.004240419306 | AJ20: =Macrofw!AG30 -> 0.004361182601 | AK20: =Macrofw!AH30 -> 0.0044864546 | AL20: =Macrofw!AI30 -> 0.004619105582 | AM20: =Macrofw!AJ30 -> 0.004745096079 | AN20: =Macrofw!AK30 -> 0.00487162758 | AO20: =Macrofw!AL30 -> 0.005002575474 | AP20: =Macrofw!AM30 -> 0.00513809477 | AQ20: =Macrofw!AN30 -> 0.005278345931 | AR20: =Macrofw!AO30 -> 0.005423495071 | AS20: =Macrofw!AP30 ->  | AT20: =Macrofw!AQ30 ->  | AU20: =Macrofw!AR30 ->  | AV20: =Macrofw!AS30 -> 
A22: GGE | C22: Total expenditures | G22: =UnitScale&" "&CurrencyName ->  | H22: =VLOOKUP($A22,Dictionary,H$5,FALSE) -> 2012 | I22: 2028 | T22: =Macrofw!Q16 -> 43.6749 | U22: =Macrofw!R16 -> 48.6024 | V22: =Macrofw!S16 -> 51.4748 | W22: =Macrofw!T16 -> 57.6685 | X22: =Macrofw!U16 -> 61.9204 | Y22: =Macrofw!V16 -> 59.9437 | Z22: =Macrofw!W16 -> 50.2635 | AA22: =Macrofw!X16 -> 49.6797 | AB22: =Macrofw!Y16 -> 48.8338 | AC22: =Macrofw!Z16 -> 49.4105 | AD22: =Macrofw!AA16 -> 51.0478 | AE22: =Macrofw!AB16 -> 49.6077 | AF22: =Macrofw!AC16 -> 52.9001 | AG22: =Macrofw!AD16 -> 56.56480378 | AH22: =Macrofw!AE16 -> 56.56213263 | AI22: =Macrofw!AF16 -> 58.14906915 | AJ22: =Macrofw!AG16 -> 59.51351994 | AK22: =Macrofw!AH16 -> 60.91355714 | AL22: =Macrofw!AI16 -> 62.34993854 | AM22: =Macrofw!AJ16 -> 64.13163648 | AN22: =Macrofw!AK16 -> 65.89395347 | AO22: =Macrofw!AL16 -> 67.7119203 | AP22: =Macrofw!AM16 -> 69.61732599 | AQ22: =Macrofw!AN16 -> 71.61432885 | AR22: =Macrofw!AO16 -> 73.70728198 | AS22: =Macrofw!AP16 ->  | AT22: =Macrofw!AQ16 ->  | AU22: =Macrofw!AR16 ->  | AV22: =Macrofw!AS16 -> 
A23: GGEXI | D23: Noninterest expenditures | H23: 2012 | I23: 2028 | T23: =Macrofw!Q17 -> 40.3846 | U23: =Macrofw!R17 -> 45.736 | V23: =Macrofw!S17 -> 48.5377 | W23: =Macrofw!T17 -> 54.8598 | X23: =Macrofw!U17 -> 58.7978 | Y23: =Macrofw!V17 -> 56.5053 | Z23: =Macrofw!W17 -> 46.5011 | AA23: =Macrofw!X17 -> 45.2113 | AB23: =Macrofw!Y17 -> 44.047 | AC23: =Macrofw!Z17 -> 44.365 | AD23: =Macrofw!AA17 -> 45.9858 | AE23: =Macrofw!AB17 -> 44.6696 | AF23: =Macrofw!AC17 -> 48.2549 | AG23: =Macrofw!AD17 -> 51.19150378 | AH23: =Macrofw!AE17 -> 51.49363144 | AI23: =Macrofw!AF17 -> 52.90749704 | AJ23: =Macrofw!AG17 -> 54.11241457 | AK23: =Macrofw!AH17 -> 55.36065647 | AL23: =Macrofw!AI17 -> 56.65093879 | AM23: =Macrofw!AJ17 -> 58.2743501 | AN23: =Macrofw!AK17 -> 59.84958943 | AO23: =Macrofw!AL17 -> 61.45039708 | AP23: =Macrofw!AM17 -> 63.1070827 | AQ23: =Macrofw!AN17 -> 64.8216076 | AR23: =Macrofw!AO17 -> 66.59600212 | AS23: =Macrofw!AP17 ->  | AT23: =Macrofw!AQ17 ->  | AU23: =Macrofw!AR17 ->  | AV23: =Macrofw!AS17 -> 
A24: GGEI | D24: Interest expenditures | H24: 2012 | I24: 2022 | T24: =Macrofw!Q18 -> 3.2903 | U24: =Macrofw!R18 -> 2.8664 | V24: =Macrofw!S18 -> 2.9371 | W24: =Macrofw!T18 -> 2.8087 | X24: =Macrofw!U18 -> 3.1226 | Y24: =Macrofw!V18 -> 3.4384 | Z24: =Macrofw!W18 -> 3.7624 | AA24: =Macrofw!X18 -> 4.4684 | AB24: =Macrofw!Y18 -> 4.7868 | AC24: =Macrofw!Z18 -> 5.0455 | AD24: =Macrofw!AA18 -> 5.062 | AE24: =Macrofw!AB18 -> 4.9381 | AF24: =Macrofw!AC18 -> 4.6452
A25: GGEICL | E25: Interest on local currency debt | H25: 2012 | I25: 2022 | T25: =Macrofw!Q19 -> 2.8461 | U25: =Macrofw!R19 -> 2.4869 | V25: =Macrofw!S19 -> 2.5479 | W25: =Macrofw!T19 -> 2.4373 | X25: =Macrofw!U19 -> 2.6619 | Y25: =Macrofw!V19 -> 2.9155 | Z25: =Macrofw!W19 -> 3.1998 | AA25: =Macrofw!X19 -> 3.574 | AB25: =Macrofw!Y19 -> 3.7956 | AC25: =Macrofw!Z19 -> 3.919 | AD25: =Macrofw!AA19 -> 3.9603 | AE25: =Macrofw!AB19 -> 3.9824 | AF25: =Macrofw!AC19 -> 3.6812
A26: GGEICL_H | F26: o/w: Interest on existing local currency debt | H26: 2023 | I26: 2028 | AE26: =Macrofw!AB24 -> 0.0615 | AF26: =Macrofw!AC24 -> 2.822567902 | AG26: =Macrofw!AD24 -> 4.1715 | AH26: =Macrofw!AE24 -> 3.101121978 | AI26: =Macrofw!AF24 -> 3.096652663 | AJ26: =Macrofw!AG24 -> 2.941617525 | AK26: =Macrofw!AH24 -> 2.790252067 | AL26: =Macrofw!AI24 -> 2.535553092 | AM26: =Macrofw!AJ24 -> 2.381446909 | AN26: =Macrofw!AK24 -> 2.243627137 | AO26: =Macrofw!AL24 -> 2.104254224 | AP26: =Macrofw!AM24 -> 1.937856605 | AQ26: =Macrofw!AN24 -> 1.675454579 | AR26: =Macrofw!AO24 -> 1.537169532 | AS26: =Macrofw!AP24 ->  | AT26: =Macrofw!AQ24 ->  | AU26: =Macrofw!AR24 ->  | AV26: =Macrofw!AS24 -> 
A27: GGEICF | E27: Interest on foreign currency debt | H27: 2012 | I27: 2022 | T27: =Macrofw!Q20 -> 0.4442 | U27: =Macrofw!R20 -> 0.3795 | V27: =Macrofw!S20 -> 0.3892 | W27: =Macrofw!T20 -> 0.3714 | X27: =Macrofw!U20 -> 0.4607 | Y27: =Macrofw!V20 -> 0.5229 | Z27: =Macrofw!W20 -> 0.5626 | AA27: =Macrofw!X20 -> 0.8944 | AB27: =Macrofw!Y20 -> 0.9912 | AC27: =Macrofw!Z20 -> 1.1265 | AD27: =Macrofw!AA20 -> 1.1017 | AE27: =Macrofw!AB20 -> 0.9557 | AF27: =Macrofw!AC20 -> 0.964
A28: GGEICF_H | F28: o/w: Interest on existing foreign currency debt | H28: 2023 | I28: 2028 | AE28: =Macrofw!AB25 -> 0.9423930361 | AF28: =Macrofw!AC25 -> 0.9653408114 | AG28: =Macrofw!AD25 -> 1.2018 | AH28: =Macrofw!AE25 -> 1.210203317 | AI28: =Macrofw!AF25 -> 1.370651715 | AJ28: =Macrofw!AG25 -> 1.398580667 | AK28: =Macrofw!AH25 -> 1.077598839 | AL28: =Macrofw!AI25 -> 0.9787673926 | AM28: =Macrofw!AJ25 -> 0.9366469668 | AN28: =Macrofw!AK25 -> 0.8962091701 | AO28: =Macrofw!AL25 -> 0.6930967234 | AP28: =Macrofw!AM25 -> 0.6367812547 | AQ28: =Macrofw!AN25 -> 0.5808560762 | AR28: =Macrofw!AO25 -> 0.534556977 | AS28: =Macrofw!AP25 ->  | AT28: =Macrofw!AQ25 ->  | AU28: =Macrofw!AR25 ->  | AV28: =Macrofw!AS25 -> 
A29: GGEICI | E29: Interest on local-linked debt | H29: 2012 | I29: 2022 | T29: =Macrofw!Q21+Macrofw!Q22 -> 0 | U29: =Macrofw!R21+Macrofw!R22 -> 0 | V29: =Macrofw!S21+Macrofw!S22 -> 0 | W29: =Macrofw!T21+Macrofw!T22 -> 0 | X29: =Macrofw!U21+Macrofw!U22 -> 0 | Y29: =Macrofw!V21+Macrofw!V22 -> 0 | Z29: =Macrofw!W21+Macrofw!W22 -> 0 | AA29: =Macrofw!X21+Macrofw!X22 -> 0 | AB29: =Macrofw!Y21+Macrofw!Y22 -> 0 | AC29: =Macrofw!Z21+Macrofw!Z22 -> 0 | AD29: =Macrofw!AA21+Macrofw!AA22 -> 0 | AE29: =Macrofw!AB21+Macrofw!AB22 -> 0 | AF29: =Macrofw!AC21+Macrofw!AC22 -> 0 | AG29: =Macrofw!AD21+Macrofw!AD22 -> 0 | AH29: =Macrofw!AE21+Macrofw!AE22 -> 0 | AI29: =Macrofw!AF21+Macrofw!AF22 -> 0 | AJ29: =Macrofw!AG21+Macrofw!AG22 -> 0 | AK29: =Macrofw!AH21+Macrofw!AH22 -> 0 | AL29: =Macrofw!AI21+Macrofw!AI22 -> 0 | AM29: =Macrofw!AJ21+Macrofw!AJ22 -> 0 | AN29: =Macrofw!AK21+Macrofw!AK22 -> 0 | AO29: =Macrofw!AL21+Macrofw!AL22 -> 0 | AP29: =Macrofw!AM21+Macrofw!AM22 -> 0 | AQ29: =Macrofw!AN21+Macrofw!AN22 -> 0 | AR29: =Macrofw!AO21+Macrofw!AO22 -> 0 | AS29: =Macrofw!AP21+Macrofw!AP22 -> 0 | AT29: =Macrofw!AQ21+Macrofw!AQ22 -> 0 | AU29: =Macrofw!AR21+Macrofw!AR22 -> 0 | AV29: =Macrofw!AS21+Macrofw!AS22 -> 0
A30: GGEICI_H | F30: o/w: Interest on existing local-linked debt | H30: 2023 | I30: 2028 | AE30: =Macrofw!AB26+Macrofw!AB27 -> 0 | AF30: =Macrofw!AC26+Macrofw!AC27 -> 0 | AG30: =Macrofw!AD26+Macrofw!AD27 -> 0 | AH30: =Macrofw!AE26+Macrofw!AE27 -> 0 | AI30: =Macrofw!AF26+Macrofw!AF27 -> 0 | AJ30: =Macrofw!AG26+Macrofw!AG27 -> 0 | AK30: =Macrofw!AH26+Macrofw!AH27 -> 0 | AL30: =Macrofw!AI26+Macrofw!AI27 -> 0 | AM30: =Macrofw!AJ26+Macrofw!AJ27 -> 0 | AN30: =Macrofw!AK26+Macrofw!AK27 -> 0 | AO30: =Macrofw!AL26+Macrofw!AL27 -> 0 | AP30: =Macrofw!AM26+Macrofw!AM27 -> 0 | AQ30: =Macrofw!AN26+Macrofw!AN27 -> 0 | AR30: =Macrofw!AO26+Macrofw!AO27 -> 0 | AS30: =Macrofw!AP26+Macrofw!AP27 -> 0 | AT30: =Macrofw!AQ26+Macrofw!AQ27 -> 0 | AU30: =Macrofw!AR26+Macrofw!AR27 -> 0 | AV30: =Macrofw!AS26+Macrofw!AS27 -> 0
A32: GGXONLB | D32: Primary fiscal balance | G32: =UnitScale&" "&CurrencyName ->  | H32: =VLOOKUP($A32,Dictionary,H$5,FALSE) -> 2000 | I32: =VLOOKUP($A32,Dictionary,I$5,FALSE) -> 2028 | J32: =Macrofw!G15 -> 2.182902 | K32: =Macrofw!H15 -> 2.14032551 | L32: =Macrofw!I15 -> 1.694811886 | M32: =Macrofw!J15 -> 3.469880494 | N32: =Macrofw!K15 -> 3.508692593 | O32: =Macrofw!L15 -> 4.385663678 | P32: =Macrofw!M15 -> 3.492284144 | Q32: =Macrofw!N15 -> 6.277058205 | R32: =Macrofw!O15 -> 11.78084227 | S32: =Macrofw!P15 -> -4.114596 | T32: =Macrofw!Q15 -> 2.469001613 | U32: =Macrofw!R15 -> 0.8484167644 | V32: =Macrofw!S15 -> -0.174551291 | W32: =Macrofw!T15 -> -3.006112931 | X32: =Macrofw!U15 -> -5.884849656 | Y32: =Macrofw!V15 -> -10.24015398 | Z32: =Macrofw!W15 -> -12.59258809 | AA32: =Macrofw!X15 -> -12.842346 | AB32: =Macrofw!Y15 -> -5.353445182 | AC32: =Macrofw!Z15 -> -1.551668059 | AD32: =Macrofw!AA15 -> -12.6553478 | AE32: =Macrofw!AB15 -> -8.854228974 | AF32: =Macrofw!AC15 -> 4.499940458 | AG32: =Macrofw!AD15 -> 0.05745547181 | AH32: =Macrofw!AE15 -> 0.06670277488 | AI32: =Macrofw!AF15 -> 0.6669805663 | AJ32: =Macrofw!AG15 -> 0.9882733613 | AK32: =Macrofw!AH15 -> 1.304772684 | AL32: =Macrofw!AI15 -> 1.518622958 | AM32: =Macrofw!AJ15 -> 1.016934073 | AN32: =Macrofw!AK15 -> 0.5042152909 | AO32: =Macrofw!AL15 -> 0.002157077437 | AP32: =Macrofw!AM15 -> -0.5182882847 | AQ32: =Macrofw!AN15 -> -1.057778451 | AR32: =Macrofw!AO15 -> -1.616994385 | AS32: =Macrofw!AP15 ->  | AT32: =Macrofw!AQ15 ->  | AU32: =Macrofw!AR15 ->  | AV32: =Macrofw!AS15 -> 
A33: GSBP | D33: Structural primary balance | G33: =UnitScale&" "&CurrencyName ->  | H33: =VLOOKUP($A33,Dictionary,H$5,FALSE) -> 2020 | I33: =VLOOKUP($A33,Dictionary,I$5,FALSE) -> 2028
B35: Government debt and asset items:
A36: GGXWDG | C36: Total public debt | G36: =UnitScale&" "&CurrencyName ->  | H36: =VLOOKUP($A36,Dictionary,H$5,FALSE) -> 2000 | I36: 2028 | J36: =Macrofw!G45 -> 20.57636634 | K36: =Macrofw!H45 -> 20.96199091 | L36: =Macrofw!I45 -> 21.12393107 | M36: =Macrofw!J45 -> 22.01914715 | N36: =Macrofw!K45 -> 21.08406653 | O36: =Macrofw!L45 -> 21.18977418 | P36: =Macrofw!M45 -> 21.36280021 | Q36: =Macrofw!N45 -> 24.53049051 | R36: =Macrofw!O45 -> 26.46587466 | S36: =Macrofw!P45 -> 28.89832211 | T36: =Macrofw!Q45 -> 33.11561332 | U36: =Macrofw!R45 -> 52.10670646 | V36: =Macrofw!S45 -> 47.41828437 | W36: =Macrofw!T45 -> 46.61173566 | X36: =Macrofw!U45 -> 51.97429777 | Y36: =Macrofw!V45 -> 54.671831 | Z36: =Macrofw!W45 -> 64.64092839 | AA36: =Macrofw!X45 -> 74.45706666 | AB36: =Macrofw!Y45 -> 77.74029049 | AC36: =Macrofw!Z45 -> 84.63986764 | AD36: =Macrofw!AA45 -> 99.92232196 | AE36: =Macrofw!AB45 -> 107.9784189 | AF36: =Macrofw!AC45 -> 111.3554694 | AG36: =Macrofw!AD45 -> 115.6657869 | AH36: =Macrofw!AE45 -> 120.6634738 | AI36: =Macrofw!AF45 -> 125.2338249 | AJ36: =Macrofw!AG45 -> 129.6422957 | AK36: =Macrofw!AH45 -> 133.8859373 | AL36: =Macrofw!AI45 -> 138.061695 | AM36: =Macrofw!AJ45 -> 142.8963022 | AN36: =Macrofw!AK45 -> 148.4295793 | AO36: =Macrofw!AL45 -> 154.6809429 | AP36: =Macrofw!AM45 -> 161.7003364 | AQ36: =Macrofw!AN45 -> 169.5405577 | AR36: =Macrofw!AO45 -> 178.2574085 | AS36: =Macrofw!AP45 ->  | AT36: =Macrofw!AQ45 ->  | AU36: =Macrofw!AR45 ->  | AV36: =Macrofw!AS45 -> 
A38: P_CURRENCY | C38: By currency:
A39: GGXWDGCL_H | B39: ` | D39: Local currency denominated public debt | G39: =UnitScale&" "&CurrencyName ->  | H39: 2000 | I39: 2022 | J39: =Macrofw!G46 -> 9.989846339 | K39: =Macrofw!H46 -> 10.46682091 | L39: =Macrofw!I46 -> 11.36460107 | M39: =Macrofw!J46 -> 12.23335715 | N39: =Macrofw!K46 -> 12.61371653 | O39: =Macrofw!L46 -> 12.70304418 | P39: =Macrofw!M46 -> 13.40907929 | Q39: =Macrofw!N46 -> 15.89121316 | R39: =Macrofw!O46 -> 17.17627451 | S39: =Macrofw!P46 -> 19.16906179 | T39: =Macrofw!Q46 -> 24.17921744 | U39: =Macrofw!R46 -> 42.64393373 | V39: =Macrofw!S46 -> 36.8349947 | W39: =Macrofw!T46 -> 36.88288886 | X39: =Macrofw!U46 -> 38.63780878 | Y39: =Macrofw!V46 -> 40.68086104 | Z39: =Macrofw!W46 -> 43.27708189 | AA39: =Macrofw!X46 -> 50.92260871 | AB39: =Macrofw!Y46 -> 52.99822793 | AC39: =Macrofw!Z46 -> 58.29040297 | AD39: =Macrofw!AA46 -> 68.30192084 | AE39: =Macrofw!AB46 -> 76.81110981 | AF39: =Macrofw!AC46 -> 79.28456935 | AG39: =Macrofw!AD46 -> 82.07404547 | AH39: =Macrofw!AE46 -> 85.65537511 | AI39: =Macrofw!AF46 -> 88.95975034 | AJ39: =Macrofw!AG46 -> 92.16167708 | AK39: =Macrofw!AH46 -> 95.25926889 | AL39: =Macrofw!AI46 -> 98.31676539 | AM39: =Macrofw!AJ46 -> 101.8164346 | AN39: =Macrofw!AK46 -> 105.7844734 | AO39: =Macrofw!AL46 -> 110.2339213 | AP39: =Macrofw!AM46 -> 115.1981712 | AQ39: =Macrofw!AN46 -> 120.712521 | AR39: =Macrofw!AO46 -> 126.8142734 | AS39: =Macrofw!AP46 ->  | AT39: =Macrofw!AQ46 ->  | AU39: =Macrofw!AR46 ->  | AV39: =Macrofw!AS46 -> 
A40: GGXWDGCF_H | D40: Foreign currency denominated public debt | G40: =UnitScale&" "&CurrencyName ->  | H40: 2000 | I40: 2022 | J40: =Macrofw!G47 -> 10.58652 | K40: =Macrofw!H47 -> 10.49517 | L40: =Macrofw!I47 -> 9.75933 | M40: =Macrofw!J47 -> 9.78579 | N40: =Macrofw!K47 -> 8.47035 | O40: =Macrofw!L47 -> 8.48673 | P40: =Macrofw!M47 -> 7.953720919 | Q40: =Macrofw!N47 -> 8.639277347 | R40: =Macrofw!O47 -> 9.289600147 | S40: =Macrofw!P47 -> 9.729260318 | T40: =Macrofw!Q47 -> 8.936395886 | U40: =Macrofw!R47 -> 9.462772723 | V40: =Macrofw!S47 -> 10.58328967 | W40: =Macrofw!T47 -> 9.728846797 | X40: =Macrofw!U47 -> 13.33648898 | Y40: =Macrofw!V47 -> 13.99096996 | Z40: =Macrofw!W47 -> 21.3638465 | AA40: =Macrofw!X47 -> 23.53445794 | AB40: =Macrofw!Y47 -> 24.74206256 | AC40: =Macrofw!Z47 -> 26.34946467 | AD40: =Macrofw!AA47 -> 31.62040112 | AE40: =Macrofw!AB47 -> 31.16730911 | AF40: =Macrofw!AC47 -> 32.0709 | AG40: =Macrofw!AD47 -> 33.59174148 | AH40: =Macrofw!AE47 -> 35.00809868 | AI40: =Macrofw!AF47 -> 36.27407458 | AJ40: =Macrofw!AG47 -> 37.48061867 | AK40: =Macrofw!AH47 -> 38.6266684 | AL40: =Macrofw!AI47 -> 39.74492959 | AM40: =Macrofw!AJ47 -> 41.07986755 | AN40: =Macrofw!AK47 -> 42.64510586 | AO40: =Macrofw!AL47 -> 44.44702155 | AP40: =Macrofw!AM47 -> 46.50216517 | AQ40: =Macrofw!AN47 -> 48.82803669 | AR40: =Macrofw!AO47 -> 51.44313506 | AS40: =Macrofw!AP47 ->  | AT40: =Macrofw!AQ47 ->  | AU40: =Macrofw!AR47 ->  | AV40: =Macrofw!AS47 -> 
A41: GGXWDGCI_H | D41: Local-linked public debt | G41: =UnitScale&" "&CurrencyName ->  | H41: 2000 | I41: 2022 | J41: =Macrofw!G48+Macrofw!G49 -> 0 | K41: =Macrofw!H48+Macrofw!H49 -> 0 | L41: =Macrofw!I48+Macrofw!I49 -> 0 | M41: =Macrofw!J48+Macrofw!J49 -> 0 | N41: =Macrofw!K48+Macrofw!K49 -> 0 | O41: =Macrofw!L48+Macrofw!L49 -> 0 | P41: =Macrofw!M48+Macrofw!M49 -> 0 | Q41: =Macrofw!N48+Macrofw!N49 -> 0 | R41: =Macrofw!O48+Macrofw!O49 -> 0 | S41: =Macrofw!P48+Macrofw!P49 -> 0 | T41: =Macrofw!Q48+Macrofw!Q49 -> 0 | U41: =Macrofw!R48+Macrofw!R49 -> 0 | V41: =Macrofw!S48+Macrofw!S49 -> 0 | W41: =Macrofw!T48+Macrofw!T49 -> 0 | X41: =Macrofw!U48+Macrofw!U49 -> 0 | Y41: =Macrofw!V48+Macrofw!V49 -> 0 | Z41: =Macrofw!W48+Macrofw!W49 -> 0 | AA41: =Macrofw!X48+Macrofw!X49 -> 0 | AB41: =Macrofw!Y48+Macrofw!Y49 -> 0 | AC41: =Macrofw!Z48+Macrofw!Z49 -> 0 | AD41: =Macrofw!AA48+Macrofw!AA49 -> 0 | AE41: =Macrofw!AB48+Macrofw!AB49 -> 0 | AF41: =Macrofw!AC48+Macrofw!AC49 -> 0 | AG41: =Macrofw!AD48+Macrofw!AD49 -> 0 | AH41: =Macrofw!AE48+Macrofw!AE49 -> 0 | AI41: =Macrofw!AF48+Macrofw!AF49 -> 0 | AJ41: =Macrofw!AG48+Macrofw!AG49 -> 0 | AK41: =Macrofw!AH48+Macrofw!AH49 -> 0 | AL41: =Macrofw!AI48+Macrofw!AI49 -> 0 | AM41: =Macrofw!AJ48+Macrofw!AJ49 -> 0 | AN41: =Macrofw!AK48+Macrofw!AK49 -> 0 | AO41: =Macrofw!AL48+Macrofw!AL49 -> 0 | AP41: =Macrofw!AM48+Macrofw!AM49 -> 0 | AQ41: =Macrofw!AN48+Macrofw!AN49 -> 0 | AR41: =Macrofw!AO48+Macrofw!AO49 -> 0 | AS41: =Macrofw!AP48+Macrofw!AP49 -> 0 | AT41: =Macrofw!AQ48+Macrofw!AQ49 -> 0 | AU41: =Macrofw!AR48+Macrofw!AR49 -> 0 | AV41: =Macrofw!AS48+Macrofw!AS49 -> 0
A43: P_HOLDER | C43: By holder (enter perimeter in column G): | G43: General government
A44: GGXWDGDC_H | D44: Domestic central bank | G44: =UnitScale&" "&CurrencyName ->  | H44: =VLOOKUP($A44,Dictionary,H$5,FALSE) -> 2013 | I44: 2022 | J44: =IF(ISNUMBER(Macrofw!G101),Macrofw!G101,#N/A) ->  | K44: =IF(ISNUMBER(Macrofw!H101),Macrofw!H101,#N/A) -> 0.961 | L44: =IF(ISNUMBER(Macrofw!I101),Macrofw!I101,#N/A) -> 1.105 | M44: =IF(ISNUMBER(Macrofw!J101),Macrofw!J101,#N/A) -> 1.13 | N44: =IF(ISNUMBER(Macrofw!K101),Macrofw!K101,#N/A) -> 0.926 | O44: =IF(ISNUMBER(Macrofw!L101),Macrofw!L101,#N/A) -> 9.48 | P44: =IF(ISNUMBER(Macrofw!M101),Macrofw!M101,#N/A) -> 11.845 | Q44: =IF(ISNUMBER(Macrofw!N101),Macrofw!N101,#N/A) -> 10.263 | R44: =IF(ISNUMBER(Macrofw!O101),Macrofw!O101,#N/A) -> 12.617 | S44: =IF(ISNUMBER(Macrofw!P101),Macrofw!P101,#N/A) -> 21.305 | T44: =IF(ISNUMBER(Macrofw!Q101),Macrofw!Q101,#N/A) -> 23.15 | U44: =IF(ISNUMBER(Macrofw!R101),Macrofw!R101,#N/A) -> 26.128 | V44: =IF(ISNUMBER(Macrofw!S101),Macrofw!S101,#N/A) -> 32.446 | W44: =IF(ISNUMBER(Macrofw!T101),Macrofw!T101,#N/A) -> 37.512 | X44: =IF(ISNUMBER(Macrofw!U101),Macrofw!U101,#N/A) ->  | Y44: =IF(ISNUMBER(Macrofw!V101),Macrofw!V101,#N/A) ->  | Z44: =IF(ISNUMBER(Macrofw!W101),Macrofw!W101,#N/A) ->  | AA44: =IF(ISNUMBER(Macrofw!X101),Macrofw!X101,#N/A) ->  | AB44: =IF(ISNUMBER(Macrofw!Y101),Macrofw!Y101,#N/A) ->  | AC44: =IF(ISNUMBER(Macrofw!Z101),Macrofw!Z101,#N/A) ->  | AD44: =IF(ISNUMBER(Macrofw!AA101),Macrofw!AA101,#N/A) ->  | AE44: =IF(ISNUMBER(Macrofw!AB101),Macrofw!AB101,#N/A) -> 8.199971 | AF44: =IF(ISNUMBER(Macrofw!AC101),Macrofw!AC101,#N/A) -> 9.547820397 | AG44: =IF(ISNUMBER(Macrofw!AD101),Macrofw!AD101,#N/A) ->  | AH44: =IF(ISNUMBER(Macrofw!AE101),Macrofw!AE101,#N/A) ->  | AI44: =IF(ISNUMBER(Macrofw!AF101),Macrofw!AF101,#N/A) ->  | AJ44: =IF(ISNUMBER(Macrofw!AG101),Macrofw!AG101,#N/A) ->  | AK44: =IF(ISNUMBER(Macrofw!AH101),Macrofw!AH101,#N/A) ->  | AL44: =IF(ISNUMBER(Macrofw!AI101),Macrofw!AI101,#N/A) ->  | AM44: =IF(ISNUMBER(Macrofw!AJ101),Macrofw!AJ101,#N/A) ->  | AN44: =IF(ISNUMBER(Macrofw!AK101),Macrofw!AK101,#N/A) ->  | AO44: =IF(ISNUMBER(Macrofw!AL101),Macrofw!AL101,#N/A) ->  | AP44: =IF(ISNUMBER(Macrofw!AM101),Macrofw!AM101,#N/A) ->  | AQ44: =IF(ISNUMBER(Macrofw!AN101),Macrofw!AN101,#N/A) ->  | AR44: =IF(ISNUMBER(Macrofw!AO101),Macrofw!AO101,#N/A) ->  | AS44: =IF(ISNUMBER(Macrofw!AP101),Macrofw!AP101,#N/A) ->  | AT44: =IF(ISNUMBER(Macrofw!AQ101),Macrofw!AQ101,#N/A) ->  | AU44: =IF(ISNUMBER(Macrofw!AR101),Macrofw!AR101,#N/A) ->  | AV44: =IF(ISNUMBER(Macrofw!AS101),Macrofw!AS101,#N/A) -> 
A45: GGXWDGDB_H | D45: Domestic commercial banks | G45: =UnitScale&" "&CurrencyName ->  | H45: 2013 | I45: 2022 | J45: =IF(ISNUMBER(Macrofw!G102),Macrofw!G102,#N/A) ->  | K45: =IF(ISNUMBER(Macrofw!H102),Macrofw!H102,#N/A) -> 4.082 | L45: =IF(ISNUMBER(Macrofw!I102),Macrofw!I102,#N/A) -> 4.491 | M45: =IF(ISNUMBER(Macrofw!J102),Macrofw!J102,#N/A) -> 5.13 | N45: =IF(ISNUMBER(Macrofw!K102),Macrofw!K102,#N/A) -> 5.718 | O45: =IF(ISNUMBER(Macrofw!L102),Macrofw!L102,#N/A) -> 7.631 | P45: =IF(ISNUMBER(Macrofw!M102),Macrofw!M102,#N/A) -> 6.255 | Q45: =IF(ISNUMBER(Macrofw!N102),Macrofw!N102,#N/A) -> 6.323 | R45: =IF(ISNUMBER(Macrofw!O102),Macrofw!O102,#N/A) -> 6.868 | S45: =IF(ISNUMBER(Macrofw!P102),Macrofw!P102,#N/A) -> 12.389 | T45: =IF(ISNUMBER(Macrofw!Q102),Macrofw!Q102,#N/A) -> 14.712 | U45: =IF(ISNUMBER(Macrofw!R102),Macrofw!R102,#N/A) -> 14.175 | V45: =IF(ISNUMBER(Macrofw!S102),Macrofw!S102,#N/A) -> 19.089 | W45: =IF(ISNUMBER(Macrofw!T102),Macrofw!T102,#N/A) -> 18.094 | X45: =IF(ISNUMBER(Macrofw!U102),Macrofw!U102,#N/A) ->  | Y45: =IF(ISNUMBER(Macrofw!V102),Macrofw!V102,#N/A) ->  | Z45: =IF(ISNUMBER(Macrofw!W102),Macrofw!W102,#N/A) ->  | AA45: =IF(ISNUMBER(Macrofw!X102),Macrofw!X102,#N/A) ->  | AB45: =IF(ISNUMBER(Macrofw!Y102),Macrofw!Y102,#N/A) ->  | AC45: =IF(ISNUMBER(Macrofw!Z102),Macrofw!Z102,#N/A) ->  | AD45: =IF(ISNUMBER(Macrofw!AA102),Macrofw!AA102,#N/A) ->  | AE45: =IF(ISNUMBER(Macrofw!AB102),Macrofw!AB102,#N/A) -> 34.44059525 | AF45: =IF(ISNUMBER(Macrofw!AC102),Macrofw!AC102,#N/A) -> 40.10168058 | AG45: =IF(ISNUMBER(Macrofw!AD102),Macrofw!AD102,#N/A) ->  | AH45: =IF(ISNUMBER(Macrofw!AE102),Macrofw!AE102,#N/A) ->  | AI45: =IF(ISNUMBER(Macrofw!AF102),Macrofw!AF102,#N/A) ->  | AJ45: =IF(ISNUMBER(Macrofw!AG102),Macrofw!AG102,#N/A) ->  | AK45: =IF(ISNUMBER(Macrofw!AH102),Macrofw!AH102,#N/A) ->  | AL45: =IF(ISNUMBER(Macrofw!AI102),Macrofw!AI102,#N/A) ->  | AM45: =IF(ISNUMBER(Macrofw!AJ102),Macrofw!AJ102,#N/A) ->  | AN45: =IF(ISNUMBER(Macrofw!AK102),Macrofw!AK102,#N/A) ->  | AO45: =IF(ISNUMBER(Macrofw!AL102),Macrofw!AL102,#N/A) ->  | AP45: =IF(ISNUMBER(Macrofw!AM102),Macrofw!AM102,#N/A) ->  | AQ45: =IF(ISNUMBER(Macrofw!AN102),Macrofw!AN102,#N/A) ->  | AR45: =IF(ISNUMBER(Macrofw!AO102),Macrofw!AO102,#N/A) ->  | AS45: =IF(ISNUMBER(Macrofw!AP102),Macrofw!AP102,#N/A) ->  | AT45: =IF(ISNUMBER(Macrofw!AQ102),Macrofw!AQ102,#N/A) ->  | AU45: =IF(ISNUMBER(Macrofw!AR102),Macrofw!AR102,#N/A) ->  | AV45: =IF(ISNUMBER(Macrofw!AS102),Macrofw!AS102,#N/A) -> 
A46: GGXWDGDN_H | D46: Domestic other creditors | G46: =UnitScale&" "&CurrencyName ->  | H46: 2013 | I46: 2022 | J46: =IF(ISNUMBER(Macrofw!G103),Macrofw!G103,#N/A) ->  | K46: =IF(ISNUMBER(Macrofw!H103),Macrofw!H103,#N/A) ->  | L46: =IF(ISNUMBER(Macrofw!I103),Macrofw!I103,#N/A) ->  | M46: =IF(ISNUMBER(Macrofw!J103),Macrofw!J103,#N/A) ->  | N46: =IF(ISNUMBER(Macrofw!K103),Macrofw!K103,#N/A) ->  | O46: =IF(ISNUMBER(Macrofw!L103),Macrofw!L103,#N/A) ->  | P46: =IF(ISNUMBER(Macrofw!M103),Macrofw!M103,#N/A) ->  | Q46: =IF(ISNUMBER(Macrofw!N103),Macrofw!N103,#N/A) ->  | R46: =IF(ISNUMBER(Macrofw!O103),Macrofw!O103,#N/A) ->  | S46: =IF(ISNUMBER(Macrofw!P103),Macrofw!P103,#N/A) ->  | T46: =IF(ISNUMBER(Macrofw!Q103),Macrofw!Q103,#N/A) ->  | U46: =IF(ISNUMBER(Macrofw!R103),Macrofw!R103,#N/A) ->  | V46: =IF(ISNUMBER(Macrofw!S103),Macrofw!S103,#N/A) ->  | W46: =IF(ISNUMBER(Macrofw!T103),Macrofw!T103,#N/A) ->  | X46: =IF(ISNUMBER(Macrofw!U103),Macrofw!U103,#N/A) ->  | Y46: =IF(ISNUMBER(Macrofw!V103),Macrofw!V103,#N/A) ->  | Z46: =IF(ISNUMBER(Macrofw!W103),Macrofw!W103,#N/A) ->  | AA46: =IF(ISNUMBER(Macrofw!X103),Macrofw!X103,#N/A) ->  | AB46: =IF(ISNUMBER(Macrofw!Y103),Macrofw!Y103,#N/A) ->  | AC46: =IF(ISNUMBER(Macrofw!Z103),Macrofw!Z103,#N/A) ->  | AD46: =IF(ISNUMBER(Macrofw!AA103),Macrofw!AA103,#N/A) ->  | AE46: =IF(ISNUMBER(Macrofw!AB103),Macrofw!AB103,#N/A) -> 21.82773375 | AF46: =IF(ISNUMBER(Macrofw!AC103),Macrofw!AC103,#N/A) -> 25.41561203 | AG46: =IF(ISNUMBER(Macrofw!AD103),Macrofw!AD103,#N/A) ->  | AH46: =IF(ISNUMBER(Macrofw!AE103),Macrofw!AE103,#N/A) ->  | AI46: =IF(ISNUMBER(Macrofw!AF103),Macrofw!AF103,#N/A) ->  | AJ46: =IF(ISNUMBER(Macrofw!AG103),Macrofw!AG103,#N/A) ->  | AK46: =IF(ISNUMBER(Macrofw!AH103),Macrofw!AH103,#N/A) ->  | AL46: =IF(ISNUMBER(Macrofw!AI103),Macrofw!AI103,#N/A) ->  | AM46: =IF(ISNUMBER(Macrofw!AJ103),Macrofw!AJ103,#N/A) ->  | AN46: =IF(ISNUMBER(Macrofw!AK103),Macrofw!AK103,#N/A) ->  | AO46: =IF(ISNUMBER(Macrofw!AL103),Macrofw!AL103,#N/A) ->  | AP46: =IF(ISNUMBER(Macrofw!AM103),Macrofw!AM103,#N/A) ->  | AQ46: =IF(ISNUMBER(Macrofw!AN103),Macrofw!AN103,#N/A) ->  | AR46: =IF(ISNUMBER(Macrofw!AO103),Macrofw!AO103,#N/A) ->  | AS46: =IF(ISNUMBER(Macrofw!AP103),Macrofw!AP103,#N/A) ->  | AT46: =IF(ISNUMBER(Macrofw!AQ103),Macrofw!AQ103,#N/A) ->  | AU46: =IF(ISNUMBER(Macrofw!AR103),Macrofw!AR103,#N/A) ->  | AV46: =IF(ISNUMBER(Macrofw!AS103),Macrofw!AS103,#N/A) -> 
A47: GGXWDGXO_H | D47: External official creditors | G47: =UnitScale&" "&CurrencyName ->  | H47: 2013 | I47: 2022 | J47: =IF(ISNUMBER(Macrofw!G105),Macrofw!G105,#N/A) ->  | K47: =IF(ISNUMBER(Macrofw!H105),Macrofw!H105,#N/A) ->  | L47: =IF(ISNUMBER(Macrofw!I105),Macrofw!I105,#N/A) ->  | M47: =IF(ISNUMBER(Macrofw!J105),Macrofw!J105,#N/A) ->  | N47: =IF(ISNUMBER(Macrofw!K105),Macrofw!K105,#N/A) ->  | O47: =IF(ISNUMBER(Macrofw!L105),Macrofw!L105,#N/A) ->  | P47: =IF(ISNUMBER(Macrofw!M105),Macrofw!M105,#N/A) ->  | Q47: =IF(ISNUMBER(Macrofw!N105),Macrofw!N105,#N/A) ->  | R47: =IF(ISNUMBER(Macrofw!O105),Macrofw!O105,#N/A) ->  | S47: =IF(ISNUMBER(Macrofw!P105),Macrofw!P105,#N/A) ->  | T47: =IF(ISNUMBER(Macrofw!Q105),Macrofw!Q105,#N/A) ->  | U47: =IF(ISNUMBER(Macrofw!R105),Macrofw!R105,#N/A) ->  | V47: =IF(ISNUMBER(Macrofw!S105),Macrofw!S105,#N/A) ->  | W47: =IF(ISNUMBER(Macrofw!T105),Macrofw!T105,#N/A) ->  | X47: =IF(ISNUMBER(Macrofw!U105),Macrofw!U105,#N/A) ->  | Y47: =IF(ISNUMBER(Macrofw!V105),Macrofw!V105,#N/A) ->  | Z47: =IF(ISNUMBER(Macrofw!W105),Macrofw!W105,#N/A) ->  | AA47: =IF(ISNUMBER(Macrofw!X105),Macrofw!X105,#N/A) ->  | AB47: =IF(ISNUMBER(Macrofw!Y105),Macrofw!Y105,#N/A) ->  | AC47: =IF(ISNUMBER(Macrofw!Z105),Macrofw!Z105,#N/A) ->  | AD47: =IF(ISNUMBER(Macrofw!AA105),Macrofw!AA105,#N/A) ->  | AE47: =IF(ISNUMBER(Macrofw!AB105),Macrofw!AB105,#N/A) -> 16.78202044 | AF47: =IF(ISNUMBER(Macrofw!AC105),Macrofw!AC105,#N/A) -> 19.54052241 | AG47: =IF(ISNUMBER(Macrofw!AD105),Macrofw!AD105,#N/A) ->  | AH47: =IF(ISNUMBER(Macrofw!AE105),Macrofw!AE105,#N/A) ->  | AI47: =IF(ISNUMBER(Macrofw!AF105),Macrofw!AF105,#N/A) ->  | AJ47: =IF(ISNUMBER(Macrofw!AG105),Macrofw!AG105,#N/A) ->  | AK47: =IF(ISNUMBER(Macrofw!AH105),Macrofw!AH105,#N/A) ->  | AL47: =IF(ISNUMBER(Macrofw!AI105),Macrofw!AI105,#N/A) ->  | AM47: =IF(ISNUMBER(Macrofw!AJ105),Macrofw!AJ105,#N/A) ->  | AN47: =IF(ISNUMBER(Macrofw!AK105),Macrofw!AK105,#N/A) ->  | AO47: =IF(ISNUMBER(Macrofw!AL105),Macrofw!AL105,#N/A) ->  | AP47: =IF(ISNUMBER(Macrofw!AM105),Macrofw!AM105,#N/A) ->  | AQ47: =IF(ISNUMBER(Macrofw!AN105),Macrofw!AN105,#N/A) ->  | AR47: =IF(ISNUMBER(Macrofw!AO105),Macrofw!AO105,#N/A) ->  | AS47: =IF(ISNUMBER(Macrofw!AP105),Macrofw!AP105,#N/A) ->  | AT47: =IF(ISNUMBER(Macrofw!AQ105),Macrofw!AQ105,#N/A) ->  | AU47: =IF(ISNUMBER(Macrofw!AR105),Macrofw!AR105,#N/A) ->  | AV47: =IF(ISNUMBER(Macrofw!AS105),Macrofw!AS105,#N/A) -> 
A48: GGXWDGXP_H | D48: External private creditors | G48: =UnitScale&" "&CurrencyName ->  | H48: 2013 | I48: 2022 | J48: =IF(ISNUMBER(Macrofw!G106),Macrofw!G106,#N/A) ->  | K48: =IF(ISNUMBER(Macrofw!H106),Macrofw!H106,#N/A) ->  | L48: =IF(ISNUMBER(Macrofw!I106),Macrofw!I106,#N/A) ->  | M48: =IF(ISNUMBER(Macrofw!J106),Macrofw!J106,#N/A) ->  | N48: =IF(ISNUMBER(Macrofw!K106),Macrofw!K106,#N/A) ->  | O48: =IF(ISNUMBER(Macrofw!L106),Macrofw!L106,#N/A) ->  | P48: =IF(ISNUMBER(Macrofw!M106),Macrofw!M106,#N/A) ->  | Q48: =IF(ISNUMBER(Macrofw!N106),Macrofw!N106,#N/A) ->  | R48: =IF(ISNUMBER(Macrofw!O106),Macrofw!O106,#N/A) ->  | S48: =IF(ISNUMBER(Macrofw!P106),Macrofw!P106,#N/A) ->  | T48: =IF(ISNUMBER(Macrofw!Q106),Macrofw!Q106,#N/A) ->  | U48: =IF(ISNUMBER(Macrofw!R106),Macrofw!R106,#N/A) ->  | V48: =IF(ISNUMBER(Macrofw!S106),Macrofw!S106,#N/A) ->  | W48: =IF(ISNUMBER(Macrofw!T106),Macrofw!T106,#N/A) ->  | X48: =IF(ISNUMBER(Macrofw!U106),Macrofw!U106,#N/A) ->  | Y48: =IF(ISNUMBER(Macrofw!V106),Macrofw!V106,#N/A) ->  | Z48: =IF(ISNUMBER(Macrofw!W106),Macrofw!W106,#N/A) ->  | AA48: =IF(ISNUMBER(Macrofw!X106),Macrofw!X106,#N/A) ->  | AB48: =IF(ISNUMBER(Macrofw!Y106),Macrofw!Y106,#N/A) ->  | AC48: =IF(ISNUMBER(Macrofw!Z106),Macrofw!Z106,#N/A) ->  | AD48: =IF(ISNUMBER(Macrofw!AA106),Macrofw!AA106,#N/A) ->  | AE48: =IF(ISNUMBER(Macrofw!AB106),Macrofw!AB106,#N/A) -> 14.8443011 | AF48: =IF(ISNUMBER(Macrofw!AC106),Macrofw!AC106,#N/A) -> 17.28429538 | AG48: =IF(ISNUMBER(Macrofw!AD106),Macrofw!AD106,#N/A) ->  | AH48: =IF(ISNUMBER(Macrofw!AE106),Macrofw!AE106,#N/A) ->  | AI48: =IF(ISNUMBER(Macrofw!AF106),Macrofw!AF106,#N/A) ->  | AJ48: =IF(ISNUMBER(Macrofw!AG106),Macrofw!AG106,#N/A) ->  | AK48: =IF(ISNUMBER(Macrofw!AH106),Macrofw!AH106,#N/A) ->  | AL48: =IF(ISNUMBER(Macrofw!AI106),Macrofw!AI106,#N/A) ->  | AM48: =IF(ISNUMBER(Macrofw!AJ106),Macrofw!AJ106,#N/A) ->  | AN48: =IF(ISNUMBER(Macrofw!AK106),Macrofw!AK106,#N/A) ->  | AO48: =IF(ISNUMBER(Macrofw!AL106),Macrofw!AL106,#N/A) ->  | AP48: =IF(ISNUMBER(Macrofw!AM106),Macrofw!AM106,#N/A) ->  | AQ48: =IF(ISNUMBER(Macrofw!AN106),Macrofw!AN106,#N/A) ->  | AR48: =IF(ISNUMBER(Macrofw!AO106),Macrofw!AO106,#N/A) ->  | AS48: =IF(ISNUMBER(Macrofw!AP106),Macrofw!AP106,#N/A) ->  | AT48: =IF(ISNUMBER(Macrofw!AQ106),Macrofw!AQ106,#N/A) ->  | AU48: =IF(ISNUMBER(Macrofw!AR106),Macrofw!AR106,#N/A) ->  | AV48: =IF(ISNUMBER(Macrofw!AS106),Macrofw!AS106,#N/A) -> 
A50: P_LAW | C50: By governing law (enter perimeter in column G): | G50: General government
A51: GGXWDGLD_H | D51: Domestic law | G51: =UnitScale&" "&CurrencyName ->  | H51: =VLOOKUP($A51,Dictionary,H$5,FALSE) -> 2022 | I51: 2022 | AE51: =Macrofw!AB46 -> 76.81110981 | AF51: =Macrofw!AC63 -> 
A52: GGXWDGLI_H | D52: International law | G52: =UnitScale&" "&CurrencyName ->  | H52: 2022 | I52: 2022 | AE52: 0 | AF52: =Macrofw!AC64 -> 
A53: GGXWDGLM_H | D53: Multilateral | G53: =UnitScale&" "&CurrencyName ->  | H53: 2022 | I53: 2022 | AE53: 0 | AF53: =Macrofw!AC65 -> 
A55: P_MATURITY | C55: By residual maturity (enter perimter in column G): | G55: General government
A56: GGXWDGM1_H | D56: 1 year | G56: =UnitScale&" "&CurrencyName ->  | H56: =VLOOKUP($A56,Dictionary,H$5,FALSE) -> 2018 | I56: 2022 | AB56: =Macrofw!Y66 ->  | AC56: =Macrofw!Z66 ->  | AD56: =Macrofw!AA66 ->  | AE56: =Macrofw!AB66 ->  | AF56: =Macrofw!AC66 -> 
A57: GGXWDGM5_H | D57: 2-5 years | G57: =UnitScale&" "&CurrencyName ->  | H57: 2018 | I57: 2022 | AB57: =Macrofw!Y67 ->  | AC57: =Macrofw!Z67 ->  | AD57: =Macrofw!AA67 ->  | AE57: =Macrofw!AB67 ->  | AF57: =Macrofw!AC67 -> 
A58: GGXWDGML_H | D58: >5 years | G58: =UnitScale&" "&CurrencyName ->  | H58: 2018 | I58: 2022 | AB58: =Macrofw!Y68 ->  | AC58: =Macrofw!Z68 ->  | AD58: =Macrofw!AA68 ->  | AE58: =Macrofw!AB68 ->  | AF58: =Macrofw!AC68 -> 
A60: P_MARKET | C60: By marketability (enter perimeter in column G): | G60: General government
A61: GGXWDGTM_H | D61: Marketable preexisting | G61: =UnitScale&" "&CurrencyName ->  | H61: =VLOOKUP($A61,Dictionary,H$5,FALSE) -> 2018 | I61: =VLOOKUP($A61,Dictionary,I$5,FALSE) -> 2028 | AB61: =Macrofw!Y69 ->  | AC61: =Macrofw!Z69 ->  | AD61: =Macrofw!AA69 ->  | AE61: =Macrofw!AB69 ->  | AF61: =Macrofw!AC69 -> 
A62: GGXWDGTN_H | D62: Nonmarketable preexisting | G62: =UnitScale&" "&CurrencyName ->  | H62: =VLOOKUP($A62,Dictionary,H$5,FALSE) -> 2018 | I62: =VLOOKUP($A62,Dictionary,I$5,FALSE) -> 2028 | AB62: =Macrofw!Y70 ->  | AC62: =Macrofw!Z70 ->  | AD62: =Macrofw!AA70 ->  | AE62: =Macrofw!AB70 ->  | AF62: =Macrofw!AC70 -> 
A64: GGFA | C64: Total public debt amortization | G64: =UnitScale&" "&CurrencyName ->  | H64: =VLOOKUP($A64,Dictionary,H$5,FALSE) -> 2012 | I64: 2028 | T64: =Macrofw!Q31 -> 3.0218 | U64: =Macrofw!R31 -> 1.9945 | V64: =Macrofw!S31 -> 1.8382 | W64: =Macrofw!T31 -> 2.4816 | X64: =Macrofw!U31 -> 2.1301 | Y64: =Macrofw!V31 -> 3.2303 | Z64: =Macrofw!W31 -> 3.1343 | AA64: =Macrofw!X31 -> 5.5715 | AB64: =Macrofw!Y31 -> 5.8791 | AC64: =Macrofw!Z31 -> 4.0216 | AD64: =Macrofw!AA31 -> 9.0301 | AE64: =Macrofw!AB31 -> 7.0964 | AF64: =Macrofw!AC31 -> 6.0941 | AG64: =Macrofw!AD31 -> 10.19372301 | AH64: =Macrofw!AE31 -> 9.011118405 | AI64: =Macrofw!AF31 -> 6.793458867 | AJ64: =Macrofw!AG31 -> 11.93074505 | AK64: =Macrofw!AH31 -> 8.877138765 | AL64: =Macrofw!AI31 -> 4.771979469 | AM64: =Macrofw!AJ31 -> 4.978258925 | AN64: =Macrofw!AK31 -> 6.105770005 | AO64: =Macrofw!AL31 -> 5.76249808 | AP64: =Macrofw!AM31 -> 5.401004623 | AQ64: =Macrofw!AN31 -> 6.406531904 | AR64: =Macrofw!AO31 -> 2.046332785 | AS64: =Macrofw!AP31 ->  | AT64: =Macrofw!AQ31 ->  | AU64: =Macrofw!AR31 ->  | AV64: =Macrofw!AS31 -> 
A65: GGFACL | D65: Local currency public debt amortization | G65: =UnitScale&" "&CurrencyName ->  | H65: 2012 | I65: 2028 | T65: =Macrofw!Q32 -> 1.1257 | U65: =Macrofw!R32 -> 1.3644 | V65: =Macrofw!S32 -> 1.1267 | W65: =Macrofw!T32 -> 1.8858 | X65: =Macrofw!U32 -> 1.6075 | Y65: =Macrofw!V32 -> 2.6867 | Z65: =Macrofw!W32 -> 2.6072 | AA65: =Macrofw!X32 -> 5.0262 | AB65: =Macrofw!Y32 -> 5.1832 | AC65: =Macrofw!Z32 -> 3.1646 | AD65: =Macrofw!AA32 -> 8.0017 | AE65: =Macrofw!AB32 -> 5.8817 | AF65: =Macrofw!AC32 -> 4.9413 | AG65: =Macrofw!AD32 -> 8.945835791 | AH65: =Macrofw!AE32 -> 4.031204646 | AI65: =Macrofw!AF32 -> 5.4478622 | AJ65: =Macrofw!AG32 -> 3.326677902 | AK65: =Macrofw!AH32 -> 5.950916178 | AL65: =Macrofw!AI32 -> 2.738957825 | AM65: =Macrofw!AJ32 -> 3.499196813 | AN65: =Macrofw!AK32 -> 1.134250147 | AO65: =Macrofw!AL32 -> 4.033543004 | AP65: =Macrofw!AM32 -> 3.758849448 | AQ65: =Macrofw!AN32 -> 5.132367782 | AR65: =Macrofw!AO32 -> 1.058605448 | AS65: =Macrofw!AP32 ->  | AT65: =Macrofw!AQ32 ->  | AU65: =Macrofw!AR32 ->  | AV65: =Macrofw!AS32 -> 
A66: GGFACF | D66: Foreign currency debt amortization | G66: =UnitScale&" "&CurrencyName ->  | H66: 2012 | I66: 2028 | T66: =Macrofw!Q33 -> 1.8961 | U66: =Macrofw!R33 -> 0.6301 | V66: =Macrofw!S33 -> 0.7115 | W66: =Macrofw!T33 -> 0.5958 | X66: =Macrofw!U33 -> 0.5226 | Y66: =Macrofw!V33 -> 0.5436 | Z66: =Macrofw!W33 -> 0.5271 | AA66: =Macrofw!X33 -> 0.5453 | AB66: =Macrofw!Y33 -> 0.6959 | AC66: =Macrofw!Z33 -> 0.857 | AD66: =Macrofw!AA33 -> 1.0284 | AE66: =Macrofw!AB33 -> 1.2147 | AF66: =Macrofw!AC33 -> 1.1528 | AG66: =Macrofw!AD33 -> 1.247887218 | AH66: =Macrofw!AE33 -> 4.979913759 | AI66: =Macrofw!AF33 -> 1.345596667 | AJ66: =Macrofw!AG33 -> 8.604067152 | AK66: =Macrofw!AH33 -> 2.926222587 | AL66: =Macrofw!AI33 -> 2.033021645 | AM66: =Macrofw!AJ33 -> 1.479062112 | AN66: =Macrofw!AK33 -> 4.971519858 | AO66: =Macrofw!AL33 -> 1.728955076 | AP66: =Macrofw!AM33 -> 1.642155174 | AQ66: =Macrofw!AN33 -> 1.274164122 | AR66: =Macrofw!AO33 -> 0.9877273367 | AS66: =Macrofw!AP33 ->  | AT66: =Macrofw!AQ33 ->  | AU66: =Macrofw!AR33 ->  | AV66: =Macrofw!AS33 -> 
A67: GGFACI | D67: Local-linked debt amortization | G67: =UnitScale&" "&CurrencyName ->  | H67: 2012 | I67: 2028 | T67: =Macrofw!Q34+Macrofw!Q35 -> 0 | U67: =Macrofw!R34+Macrofw!R35 -> 0 | V67: =Macrofw!S34+Macrofw!S35 -> 0 | W67: =Macrofw!T34+Macrofw!T35 -> 0 | X67: =Macrofw!U34+Macrofw!U35 -> 0 | Y67: =Macrofw!V34+Macrofw!V35 -> 0 | Z67: =Macrofw!W34+Macrofw!W35 -> 0 | AA67: =Macrofw!X34+Macrofw!X35 -> 0 | AB67: =Macrofw!Y34+Macrofw!Y35 -> 0 | AC67: =Macrofw!Z34+Macrofw!Z35 -> 0 | AD67: =Macrofw!AA34+Macrofw!AA35 -> 0 | AE67: =Macrofw!AB34+Macrofw!AB35 -> 0 | AF67: =Macrofw!AC34+Macrofw!AC35 -> 0 | AG67: =Macrofw!AD34+Macrofw!AD35 -> 0 | AH67: =Macrofw!AE34+Macrofw!AE35 -> 0 | AI67: =Macrofw!AF34+Macrofw!AF35 -> 0 | AJ67: =Macrofw!AG34+Macrofw!AG35 -> 0 | AK67: =Macrofw!AH34+Macrofw!AH35 -> 0 | AL67: =Macrofw!AI34+Macrofw!AI35 -> 0 | AM67: =Macrofw!AJ34+Macrofw!AJ35 -> 0 | AN67: =Macrofw!AK34+Macrofw!AK35 -> 0 | AO67: =Macrofw!AL34+Macrofw!AL35 -> 0 | AP67: =Macrofw!AM34+Macrofw!AM35 -> 0 | AQ67: =Macrofw!AN34+Macrofw!AN35 -> 0 | AR67: =Macrofw!AO34+Macrofw!AO35 -> 0 | AS67: =Macrofw!AP34+Macrofw!AP35 -> 0 | AT67: =Macrofw!AQ34+Macrofw!AQ35 -> 0 | AU67: =Macrofw!AR34+Macrofw!AR35 -> 0 | AV67: =Macrofw!AS34+Macrofw!AS35 -> 0
D68: by currency:
A69: GGFACL_H | E69: Local currency existing public debt amortization | G69: =UnitScale&" "&CurrencyName ->  | H69: 2023 | I69: 2028 | AE69: =Macrofw!AB37 -> 5.8817 | AF69: =Macrofw!AC37 -> 4.9413 | AG69: =Macrofw!AD37 -> 8.945835791 | AH69: =Macrofw!AE37 -> 4.031204646 | AI69: =Macrofw!AF37 -> 5.4478622 | AJ69: =Macrofw!AG37 -> 3.326677902 | AK69: =Macrofw!AH37 -> 5.950916178 | AL69: =Macrofw!AI37 -> 2.738957825 | AM69: =Macrofw!AJ37 -> 3.499196813 | AN69: =Macrofw!AK37 -> 1.134250147 | AO69: =Macrofw!AL37 -> 4.033543004 | AP69: =Macrofw!AM37 -> 3.758849448 | AQ69: =Macrofw!AN37 -> 5.132367782 | AR69: =Macrofw!AO37 -> 1.058605448 | AS69: =Macrofw!AP37 ->  | AT69: =Macrofw!AQ37 ->  | AU69: =Macrofw!AR37 ->  | AV69: =Macrofw!AS37 -> 
A70: GGFACF_H | E70: Foreign currency existing public debt amortization | G70: =UnitScale&" "&CurrencyName ->  | H70: 2023 | I70: 2028 | AE70: =Macrofw!AB38 -> 1.2147 | AF70: =Macrofw!AC38 -> 1.1528 | AG70: =Macrofw!AD38 -> 1.247887218 | AH70: =Macrofw!AE38 -> 4.979913759 | AI70: =Macrofw!AF38 -> 1.345596667 | AJ70: =Macrofw!AG38 -> 8.604067152 | AK70: =Macrofw!AH38 -> 2.926222587 | AL70: =Macrofw!AI38 -> 2.033021645 | AM70: =Macrofw!AJ38 -> 1.479062112 | AN70: =Macrofw!AK38 -> 4.971519858 | AO70: =Macrofw!AL38 -> 1.728955076 | AP70: =Macrofw!AM38 -> 1.642155174 | AQ70: =Macrofw!AN38 -> 1.274164122 | AR70: =Macrofw!AO38 -> 0.9877273367 | AS70: =Macrofw!AP38 ->  | AT70: =Macrofw!AQ38 ->  | AU70: =Macrofw!AR38 ->  | AV70: =Macrofw!AS38 -> 
A71: GGFACI_H | E71: Local-linked existing public debt amortization | G71: =UnitScale&" "&CurrencyName ->  | H71: 2023 | I71: 2028 | AE71: =Macrofw!AB39+Macrofw!AB40 -> 0 | AF71: =Macrofw!AC39+Macrofw!AC40 -> 0 | AG71: =Macrofw!AD39+Macrofw!AD40 -> 0 | AH71: =Macrofw!AE39+Macrofw!AE40 -> 0 | AI71: =Macrofw!AF39+Macrofw!AF40 -> 0 | AJ71: =Macrofw!AG39+Macrofw!AG40 -> 0 | AK71: =Macrofw!AH39+Macrofw!AH40 -> 0 | AL71: =Macrofw!AI39+Macrofw!AI40 -> 0 | AM71: =Macrofw!AJ39+Macrofw!AJ40 -> 0 | AN71: =Macrofw!AK39+Macrofw!AK40 -> 0 | AO71: =Macrofw!AL39+Macrofw!AL40 -> 0 | AP71: =Macrofw!AM39+Macrofw!AM40 -> 0 | AQ71: =Macrofw!AN39+Macrofw!AN40 -> 0 | AR71: =Macrofw!AO39+Macrofw!AO40 -> 0 | AS71: =Macrofw!AP39+Macrofw!AP40 -> 0 | AT71: =Macrofw!AQ39+Macrofw!AQ40 -> 0 | AU71: =Macrofw!AR39+Macrofw!AR40 -> 0 | AV71: =Macrofw!AS39+Macrofw!AS40 -> 0
D72: by marketability:
A73: GGFATM_H | E73: Marketable instruments, preexisting | G73: =UnitScale&" "&CurrencyName ->  | H73: 2023 | I73: 2028 | AG73: =Macrofw!AD71 ->  | AH73: =Macrofw!AE71 ->  | AI73: =Macrofw!AF71 ->  | AJ73: =Macrofw!AG71 ->  | AK73: =Macrofw!AH71 ->  | AL73: =Macrofw!AI71 -> 
A74: GGFATN_H | E74: Nonmarketable instruments, preexisting | G74: =UnitScale&" "&CurrencyName ->  | H74: 2023 | I74: 2028 | AG74: =Macrofw!AD72 ->  | AH74: =Macrofw!AE72 ->  | AI74: =Macrofw!AF72 ->  | AJ74: =Macrofw!AG72 ->  | AK74: =Macrofw!AH72 ->  | AL74: =Macrofw!AI72 -> 
A76: GALL | C76: Recognition of contingent liabilities | G76: =UnitScale&" "&CurrencyName ->  | H76: =VLOOKUP($A76,Dictionary,H$5,FALSE) -> 2023 | I76: =VLOOKUP($A76,Dictionary,I$5,FALSE) -> 2028 | AE76: =Macrofw!AB41 -> 0 | AF76: =Macrofw!AC41 -> 0 | AG76: =Macrofw!AD41 -> 0 | AH76: =Macrofw!AE41 -> 0 | AI76: =Macrofw!AF41 -> 0 | AJ76: =Macrofw!AG41 -> 0 | AK76: =Macrofw!AH41 -> 0 | AL76: =Macrofw!AI41 -> 0 | AM76: =Macrofw!AJ41 -> 0 | AN76: =Macrofw!AK41 -> 0 | AO76: =Macrofw!AL41 -> 0 | AP76: =Macrofw!AM41 -> 0 | AQ76: =Macrofw!AN41 -> 0 | AR76: =Macrofw!AO41 -> 0 | AS76: =Macrofw!AP41 ->  | AT76: =Macrofw!AQ41 ->  | AU76: =Macrofw!AR41 ->  | AV76: =Macrofw!AS41 -> 
A78: ODCTL | C78: Other items (e.g. arrears), other debt creating transactions | G78: =UnitScale&" "&CurrencyName ->  | H78: =VLOOKUP($A78,Dictionary,H$5,FALSE) -> 2023 | I78: 2028 | AE78: =Macrofw!AB42 -> -6.9337 | AF78: =Macrofw!AC42 -> -1.7872 | AG78: =Macrofw!AD42 -> -1.0015 | AH78: =Macrofw!AE42 -> 0 | AI78: =Macrofw!AF42 -> 0 | AJ78: =Macrofw!AG42 -> 0 | AK78: =Macrofw!AH42 -> 0 | AL78: =Macrofw!AI42 -> 0 | AM78: =Macrofw!AJ42 -> 0 | AN78: =Macrofw!AK42 -> 0 | AO78: =Macrofw!AL42 -> 0 | AP78: =Macrofw!AM42 -> 0 | AQ78: =Macrofw!AN42 -> 0 | AR78: =Macrofw!AO42 -> 0 | AS78: =Macrofw!AP42 ->  | AT78: =Macrofw!AQ42 ->  | AU78: =Macrofw!AR42 ->  | AV78: =Macrofw!AS42 -> 
A79: ODCTA | C79: Use of asset buffers, other debt creating transactions | G79: =UnitScale&" "&CurrencyName ->  | H79: 2023 | I79: 2028 | AE79: =Macrofw!AB43 -> 0 | AF79: =Macrofw!AC43 -> 0 | AG79: =Macrofw!AD43 -> 0 | AH79: =Macrofw!AE43 -> 0 | AI79: =Macrofw!AF43 -> 0 | AJ79: =Macrofw!AG43 -> 0 | AK79: =Macrofw!AH43 -> 0 | AL79: =Macrofw!AI43 -> 0 | AM79: =Macrofw!AJ43 -> 0 | AN79: =Macrofw!AK43 -> 0 | AO79: =Macrofw!AL43 -> 0 | AP79: =Macrofw!AM43 -> 0 | AQ79: =Macrofw!AN43 -> 0 | AR79: =Macrofw!AO43 -> 0 | AS79: =Macrofw!AP43 ->  | AT79: =Macrofw!AQ43 ->  | AU79: =Macrofw!AR43 ->  | AV79: =Macrofw!AS43 -> 
A80: ODCTP | C80: Debt issuance outside of GFN (e.g. pre-financing) | G80: =UnitScale&" "&CurrencyName ->  | H80: 2023 | I80: 2028 | AE80: =Macrofw!AB44 -> 0 | AF80: =Macrofw!AC44 -> 0 | AG80: =Macrofw!AD44 -> 0 | AH80: =Macrofw!AE44 -> 0 | AI80: =Macrofw!AF44 -> 0 | AJ80: =Macrofw!AG44 -> 0 | AK80: =Macrofw!AH44 -> 0 | AL80: =Macrofw!AI44 -> 0 | AM80: =Macrofw!AJ44 -> 0 | AN80: =Macrofw!AK44 -> 0 | AO80: =Macrofw!AL44 -> 0 | AP80: =Macrofw!AM44 -> 0 | AQ80: =Macrofw!AN44 -> 0 | AR80: =Macrofw!AO44 -> 0 | AS80: =Macrofw!AP44 ->  | AT80: =Macrofw!AQ44 ->  | AU80: =Macrofw!AR44 ->  | AV80: =Macrofw!AS44 -> 
B82: Bond issuance
A83: GADLSOS_T | C83: New bond debt issued at up to 1 year maturities (original) | G83: =UnitScale&" "&CurrencyName ->  | H83: =VLOOKUP($A83,Dictionary,H$5,FALSE) -> 2017 | I83: 2022
A84: GADLSOM_T | C84: New bond debt issued at 2-5 year maturities (original) | G84: =UnitScale&" "&CurrencyName ->  | H84: 2017 | I84: 2022
A85: GADLSOL_T | C85: New bond debt issued at >5 year maturities (original) | G85: =UnitScale&" "&CurrencyName ->  | H85: 2017 | I85: 2022
B87: External sector items:
A88: ENDA | C88: Period average exchange rate | G88: =CurrencyName&" per "&ERBase ->  | H88: =VLOOKUP($A88,Dictionary,H$5,FALSE) -> 2000 | I88: 2028 | J88: =Macrofw!G13 -> 6.299796667 | K88: =Macrofw!H13 -> 6.233216667 | L88: =Macrofw!I13 -> 6.248683333 | M88: =Macrofw!J13 -> 6.2951 | N88: =Macrofw!K13 -> 6.298991667 | O88: =Macrofw!L13 -> 6.299558333 | P88: =Macrofw!M13 -> 6.312283333 | Q88: =Macrofw!N13 -> 6.308309503 | R88: =Macrofw!O13 -> 6.280478715 | S88: =Macrofw!P13 -> 6.311401267 | T88: =Macrofw!Q13 -> 6.375508333 | U88: =Macrofw!R13 -> 6.409300706 | V88: =Macrofw!S13 -> 6.429602656 | W88: =Macrofw!T13 -> 6.442629398 | X88: =Macrofw!U13 -> 6.409094578 | Y88: =Macrofw!V13 -> 6.377441667 | Z88: =Macrofw!W13 -> 6.666600461 | AA88: =Macrofw!X13 -> 6.779524999 | AB88: =Macrofw!Y13 -> 6.770750898 | AC88: =Macrofw!Z13 -> 6.754326683 | AD88: =Macrofw!AA13 -> 6.751052687 | AE88: =Macrofw!AB13 -> 6.758530049 | AF88: =Macrofw!AC13 -> 6.758033813 | AG88: =Macrofw!AD13 -> 6.758033813 | AH88: =Macrofw!AE13 -> 6.758033813 | AI88: =Macrofw!AF13 -> 6.758033813 | AJ88: =Macrofw!AG13 -> 6.758033813 | AK88: =Macrofw!AH13 -> 6.758033813 | AL88: =Macrofw!AI13 -> 6.758033813 | AM88: =Macrofw!AJ13 -> 6.758033813 | AN88: =Macrofw!AK13 -> 6.758033813 | AO88: =Macrofw!AL13 -> 6.758033813 | AP88: =Macrofw!AM13 -> 6.758033813 | AQ88: =Macrofw!AN13 -> 6.758033813 | AR88: =Macrofw!AO13 -> 6.758033813 | AS88: =Macrofw!AP13 -> 6.758033813 | AT88: =Macrofw!AQ13 -> 6.758033813 | AU88: =Macrofw!AR13 -> 6.758033813 | AV88: =Macrofw!AS13 -> 6.758033813
A89: ENDA_PCH | D89: Percent change (depreciation) | G89: Percent | H89: 2001 | I89: 2028 | K89: =K88/J88-1 -> -0.01056859507 | L89: 0.002481329864 | M89: 0.007428231547 | N89: 0.0006182056944 | O89: 8.996148854e-05 | P89: 0.002019982882 | Q89: -0.0006295392783 | R89: -0.004411766489 | S89: 0.004923598039 | T89: 0.01015734278 | U89: 0.005300341649 | V89: 0.003167576494 | W89: 0.002026057036 | X89: -0.005205144868 | Y89: -0.004938749342 | Z89: 0.04534087634 | AA89: 0.016938849 | AB89: -0.001294205854 | AC89: -0.002425759806 | AD89: -0.0004847257028 | AE89: 0.001107584609 | AF89: -7.342366284e-05 | AG89: 0 | AH89: 0 | AI89: 0 | AJ89: 0 | AK89: =AK88/AJ88-1 -> 0 | AL89: 0 | AM89: 0 | AN89: 0 | AO89: 0 | AP89: 0 | AQ89: 0 | AR89: 0 | AS89: 0 | AT89: 0 | AU89: 0 | AV89: 0
A90: ENDE | C90: End-of-period exchange rate | G90: =CurrencyName&" per "&ERBase ->  | H90: 2000 | I90: 2028 | J90: =Macrofw!G14 -> 6.2997 | K90: =Macrofw!H14 -> 6.2835 | L90: =Macrofw!I14 -> 6.2997 | M90: =Macrofw!J14 -> 6.2996 | N90: =Macrofw!K14 -> 6.2998 | O90: =Macrofw!L14 -> 6.3029 | P90: =Macrofw!M14 -> 6.3148 | Q90: =Macrofw!N14 -> 6.30517024 | R90: =Macrofw!O14 -> 6.2875 | S90: =Macrofw!P14 -> 6.3702 | T90: =Macrofw!Q14 -> 6.4026 | U90: =Macrofw!R14 -> 6.406284211 | V90: =Macrofw!S14 -> 6.4403 | W90: =Macrofw!T14 -> 6.4597 | X90: =Macrofw!U14 -> 6.3839 | Y90: =Macrofw!V14 -> 6.4342 | Z90: =Macrofw!W14 -> 6.780199985 | AA90: =Macrofw!X14 -> 6.7817 | AB90: =Macrofw!Y14 -> 6.766323529 | AC90: =Macrofw!Z14 -> 6.753127778 | AD90: =Macrofw!AA14 -> 6.760358824 | AE90: =Macrofw!AB14 -> 6.766425 | AF90: =Macrofw!AC14 -> 6.754136842 | AG90: =Macrofw!AD14 -> 6.754136842 | AH90: =Macrofw!AE14 -> 6.754136842 | AI90: =Macrofw!AF14 -> 6.754136842 | AJ90: =Macrofw!AG14 -> 6.754136842 | AK90: =Macrofw!AH14 -> 6.754136842 | AL90: =Macrofw!AI14 -> 6.754136842 | AM90: =Macrofw!AJ14 -> 6.754136842 | AN90: =Macrofw!AK14 -> 6.754136842 | AO90: =Macrofw!AL14 -> 6.754136842 | AP90: =Macrofw!AM14 -> 6.754136842 | AQ90: =Macrofw!AN14 -> 6.754136842 | AR90: =Macrofw!AO14 -> 6.754136842 | AS90: =Macrofw!AP14 -> 6.754136842 | AT90: =Macrofw!AQ14 -> 6.754136842 | AU90: =Macrofw!AR14 -> 6.754136842 | AV90: =Macrofw!AS14 -> 6.754136842
A91: ENDE_PCH | D91: Percent change (depreciation) | G91: Percent | H91: 2001 | I91: 2028 | K91: =K90/J90-1 -> -0.002571551026 | L91: 0.00257818095 | M91: -1.587377177e-05 | N91: 3.174804749e-05 | O91: 0.0004920791136 | P91: 0.0018880198 | Q91: -0.001524950973 | R91: -0.0028025 | S91: 0.01315308151 | T91: 0.005086182537 | U91: 0.0005754241287 | V91: 0.005309753416 | W91: 0.003012282037 | X91: -0.01173429107 | Y91: 0.007879196103 | Z91: 0.05377513683 | AA91: 0.0002212345675 | AB91: -0.002267347507 | AC91: -0.001950209974 | AD91: 0.00107076987 | AE91: 0.0008973157533 | AF91: -0.001816048784 | AG91: 0 | AH91: 0 | AI91: 0 | AJ91: 0 | AK91: =AK90/AJ90-1 -> 0 | AL91: 0 | AM91: 0 | AN91: 0 | AO91: 0 | AP91: 0 | AQ91: 0 | AR91: 0 | AS91: 0 | AT91: 0 | AU91: 0 | AV91: 0
A92: EREER | C92: Real effective exchange rate | G92: Index | H92: 2022 | I92: 2028 | AE92: =Macrofw!AB56 -> 129.3775308 | AF92: =Macrofw!AC56 -> 119.7759655 | AG92: =Macrofw!AD56 -> 127.3531561 | AH92: =Macrofw!AE56 -> 131.9497015 | AI92: =Macrofw!AF56 -> 135.0855424 | AJ92: =Macrofw!AG56 -> 137.8806551 | AK92: =Macrofw!AH56 -> 140.5604084 | AL92: =Macrofw!AI56 -> 143.2922435
A93: EREER_GAP | D93: Implied REER gap | G93: Percent | AF93: =Questions!$C68 -> 0.088 | AG93: =AF93+(AG92/AF92-1) -> 0.1512613608 | AH93: =AG93+(AH92/AG92-1) -> 0.1873542665 | AI93: 0.2111196928 | AJ93: 0.2318111204
A94: TXGO_PCT | C94: For commodity exporters: share of commodity exports | G94: Percent | H94: =VLOOKUP($A94,Dictionary,H$5,FALSE) -> 2022 | I94: =VLOOKUP($A94,Dictionary,I$5,FALSE) -> 2022
B96: Banking system items:
A97: FODASRT | C97: Total system assets | G97: =UnitScale&" "&CurrencyName ->  | H97: =VLOOKUP($A97,Dictionary,H$5,FALSE) -> 2022 | I97: 2028 | AC97: =Macrofw!Z123 -> 156.878824 | AD97: =Macrofw!AA123 -> 165.7983723 | AE97: =Macrofw!AB123 -> 168.898198 | AF97: =AE97*(1+AF15) -> 192.3836172 | AG97: 198.943193 | AH97: 203.4286832 | AI97: 210.1189118 | AJ97: 216.4270622 | AK97: 222.9777477 | AL97: 229.9148856 | AM97: 236.5403118 | AN97: 243.2121061 | AO97: 250.1241992 | AP97: 257.2853901 | AQ97: 264.7048011 | AR97: 272.3918895
A98: FODALGGSRT | D98: Claims on the general government | G98: =UnitScale&" "&CurrencyName ->  | H98: 2022 | I98: 2028 | AC98: =Macrofw!Z124 -> 20.15169 | AD98: =Macrofw!AA124 -> 25.34525765 | AE98: =Macrofw!AB124 -> 28.653115 | AF98: =Macrofw!AC124 -> 28.653115 | AG98: =Macrofw!AD124 -> N.A. | AH98: =Macrofw!AE124 -> N.A. | AI98: =Macrofw!AF124 -> N.A. | AJ98: =Macrofw!AG124 -> N.A. | AK98: =Macrofw!AH124 -> N.A. | AL98: =Macrofw!AI124 -> N.A. | AM98: =Macrofw!AJ124 -> N.A. | AN98: =Macrofw!AK124 -> N.A. | AO98: =Macrofw!AL124 -> N.A. | AP98: =Macrofw!AM124 -> N.A. | AQ98: =Macrofw!AN124 -> N.A. | AR98: =Macrofw!AO124 -> N.A. | AS98: =Macrofw!AP124 -> N.A. | AT98: =Macrofw!AQ124 -> N.A. | AU98: =Macrofw!AR124 -> N.A. | AV98: =Macrofw!AS124 -> N.A.
A99: FS_ODX_CT1SRT | C99: Tier 1 capital | G99: =UnitScale&" "&CurrencyName ->  | H99: 2022 | I99: 2022 | AC99: =Macrofw!Z122 -> 15.43084 | AD99: =Macrofw!AA122 -> 15.67895 | AE99: =Macrofw!AB122 -> 15.65892
A100: FSLTDSRT | C100: Loan-to-deposit ratio | G100: Percent | H100: 2022 | I100: 2022 | AC100: =Macrofw!Z120 -> 76.27838898 | AD100: =Macrofw!AA120 -> 70.27545929 | AE100: =Macrofw!AB120 -> 70.51567078
A101: FOSAOPCRDLTGDPSRT | C101: Three-year change in private credit-to-GDP | G101: Percentage points | H101: 2022 | I101: 2022 | AC101: =Macrofw!Z119 -> 2.46821022 | AD101: =Macrofw!AA119 -> 6.364910126 | AE101: =Macrofw!AB119 -> 6.816667557
A102: FOSAOPCRGAPSRT | C102: Credit gap | G102: Percent | H102: 2022 | I102: 2022 | AC102: =Macrofw!Z118 -> 5.402295113 | AD102: =Macrofw!AA118 -> 7.704205513 | AE102: =Macrofw!AB118 -> 6.633909702
A103: FPMISPRCSRT | C103: Economy-wide mispricing risk index | G103: Index | H103: 2022 | I103: 2022 | AC103: =Macrofw!Z121 -> 41 | AD103: =Macrofw!AA121 -> 35 | AE103: =Macrofw!AB121 -> 52.25

Sheet IdentFin
A1: HEAD1-SHEET | Q1: Identified financing assumptions (baseline)
A2: HEAD2-SHEET | Q2: Users should ensure this sheet contains correct information (being drawn from financing parts of macrofw).
A3: DATES | U3: =ProjYr+U4 -> 2023 | V3: 2024 | W3: 2025 | X3: 2026 | Y3: 2027 | Z3: 2028 | AA3: 2029 | AB3: 2030 | AC3: 2031 | AD3: 2032 | AE3: 2033 | AF3: 2034 | AG3: 2035 | AH3: 2036 | AI3: 2037 | AJ3: 2038 | AK3: 2039 | AL3: 2040 | AM3: 2041 | AN3: 2042 | AO3: 2043 | AP3: 2044 | AQ3: 2045 | AR3: 2046 | AS3: 2047 | AT3: 2048 | AU3: 2049 | AV3: 2050 | AW3: 2051 | AX3: 2052 | AY3: 2053 | AZ3: 2054 | BA3: 2055 | BB3: 2056 | BC3: 2057 | BD3: 2058 | BE3: 2059 | BF3: 2060 | BG3: 2061 | BH3: 2062 | BI3: 2063 | BJ3: 2064 | BK3: 2065 | BL3: 2066 | BM3: 2067 | BN3: 2068 | BO3: 2069 | BP3: 2070 | BQ3: 2071 | BR3: 2072 | BS3: 2073 | BT3: 2074 | BU3: 2075 | BV3: 2076 | BW3: 2077 | BX3: 2078 | BY3: 2079 | BZ3: 2080 | CA3: 2081 | CB3: 2082 | CC3: 2083 | CD3: 2084 | CE3: 2085 | CF3: 2086 | CG3: =ProjYr+CG4 -> 2087 | CH3: 2088 | CI3: 2089 | CJ3: 2090 | CK3: 2091 | CL3: 2092 | CM3: 2093 | CN3: 2094 | CO3: 2095 | CP3: 2096 | CQ3: 2097 | CR3: 2098 | CS3: 2099 | CT3: 2100 | CU3: 2101 | CV3: 2102 | CW3: 2103 | CX3: 2104 | CY3: 2105 | DE3: =$U3 -> 2023 | DF3: =$V3 -> 2024 | DG3: =$W3 -> 2025 | DH3: =$X3 -> 2026 | DI3: =$Y3 -> 2027 | DJ3: =$Z3 -> 2028 | DK3: =$AA3 -> 2029 | DL3: =$AB3 -> 2030 | DM3: =$AC3 -> 2031 | DN3: =$AD3 -> 2032 | DO3: =$AE3 -> 2033 | DP3: =$AF3 -> 2034 | DQ3: =$AG3 -> 2035 | DR3: =$AH3 -> 2036 | DS3: =$AI3 -> 2037 | DT3: =$AJ3 -> 2038 | EA3: =$U3 -> 2023 | EB3: =$V3 -> 2024 | EC3: =$W3 -> 2025 | ED3: =$X3 -> 2026 | EE3: =$Y3 -> 2027 | EF3: =$Z3 -> 2028 | EG3: =$AA3 -> 2029 | EH3: =$AB3 -> 2030 | EI3: =$AC3 -> 2031 | EJ3: =$AD3 -> 2032 | EK3: =$AE3 -> 2033 | EL3: =$AF3 -> 2034 | EM3: =$AG3 -> 2035 | EN3: =$AH3 -> 2036 | EO3: =$AI3 -> 2037 | EP3: =$AJ3 -> 2038 | EW3: =$U3 -> 2023 | EX3: =$V3 -> 2024 | EY3: =$W3 -> 2025 | EZ3: =$X3 -> 2026 | FA3: =$Y3 -> 2027 | FB3: =$Z3 -> 2028 | FC3: =$AA3 -> 2029 | FD3: =$AB3 -> 2030 | FE3: =$AC3 -> 2031 | FF3: =$AD3 -> 2032 | FG3: =$AE3 -> 2033 | FH3: =$AF3 -> 2034 | FI3: =$AG3 -> 2035 | FJ3: =$AH3 -> 2036 | FK3: =$AI3 -> 2037 | FL3: =$AJ3 -> 2038 | FS3: =$U3 -> 2023 | FT3: =$V3 -> 2024 | FU3: =$W3 -> 2025 | FV3: =$X3 -> 2026 | FW3: =$Y3 -> 2027 | FX3: =$Z3 -> 2028 | FY3: =$AA3 -> 2029 | FZ3: =$AB3 -> 2030 | GA3: =$AC3 -> 2031 | GB3: =$AD3 -> 2032 | GC3: =$AE3 -> 2033 | GD3: =$AF3 -> 2034 | GE3: =$AG3 -> 2035 | GF3: =$AH3 -> 2036 | GG3: =$AI3 -> 2037 | GH3: =$AJ3 -> 2038 | GN3: =$U3 -> 2023 | GO3: =$V3 -> 2024 | GP3: =$W3 -> 2025 | GQ3: =$X3 -> 2026 | GR3: =$Y3 -> 2027 | GS3: =$Z3 -> 2028 | GT3: =$AA3 -> 2029 | GU3: =$AB3 -> 2030 | GV3: =$AC3 -> 2031 | GW3: =$AD3 -> 2032 | GX3: =$AE3 -> 2033 | GY3: =$AF3 -> 2034 | GZ3: =$AG3 -> 2035 | HA3: =$AH3 -> 2036 | HB3: =$AI3 -> 2037 | HC3: =$AJ3 -> 2038
A4: YEARNUM | D4: Yr | G4: Yr | H4: Yr | I4: Yr | K4: Curr. | N4: Number of instruments | O4: Next Instrument Start | R4: META1 | U4: 0 | V4: 1 | W4: 2 | X4: 3 | Y4: 4 | Z4: 5 | AA4: 6 | AB4: 7 | AC4: 8 | AD4: 9 | AE4: 10 | AF4: 11 | AG4: 12 | AH4: 13 | AI4: 14 | AJ4: 15 | AK4: 16 | AL4: 17 | AM4: 18 | AN4: 19 | AO4: 20 | AP4: 21 | AQ4: 22 | AR4: 23 | AS4: 24 | AT4: 25 | AU4: 26 | AV4: 27 | AW4: 28 | AX4: 29 | AY4: 30 | AZ4: 31 | BA4: 32 | BB4: 33 | BC4: 34 | BD4: 35 | BE4: 36 | BF4: 37 | BG4: 38 | BH4: 39 | BI4: 40 | BJ4: 41 | BK4: 42 | BL4: 43 | BM4: 44 | BN4: 45 | BO4: 46 | BP4: 47 | BQ4: 48 | BR4: 49 | BS4: 50 | BT4: 51 | BU4: 52 | BV4: 53 | BW4: 54 | BX4: 55 | BY4: 56 | BZ4: 57 | CA4: 58 | CB4: 59 | CC4: 60 | CD4: 61 | CE4: 62 | CF4: 63 | CG4: 64 | CH4: 65 | CI4: 66 | CJ4: 67 | CK4: 68 | CL4: 69 | CM4: 70 | CN4: 71 | CO4: 72 | CP4: 73 | CQ4: 74 | CR4: 75 | CS4: 76 | CT4: 77 | CU4: 78 | CV4: 79 | CW4: 80 | CX4: 81 | CY4: 82
A5: Lookup out | B5: Lookup in | C5: Inst | D5: T | E5: Grace | F5: Mat | G5: Iss. | H5: Start | I5: Mat. | J5: ER | N5: =COUNT(C:C)/COUNT(C7:C180) -> 6 | O5: =(COUNT(C7:C180)+1)*COUNT(C:C)/COUNT(C7:C180)+7 -> 1057 | T5: Column in Macrofw | U5: =MATCH(U4,MacrofwDates,0) -> 30 | V5: 31 | W5: 32 | X5: 33 | Y5: 34 | Z5: 35 | AA5: 36 | AB5: 37 | AC5: 38 | AD5: 39 | AE5: 40 | AF5: 41 | AG5: 42 | AH5: 43 | AI5: 44 | AJ5: 45 | CG5: =MATCH(CG4,MacrofwDates,0) -> 
A6: TOPSPACE
A7: =C7&"-HEAD" -> 1-HEAD | B7: ="INST"&C7 -> INST1 | C7: =COUNTIF(D$1:D7,"=X")+$C$6 -> 1 | D7: X | Q7: ="Instrument "&RIGHT(B7,LEN(B7)-4) -> Instrument 1 | AK7: For use in long term modules
A8: =C8&"-CURR_IS" -> 1-CURR_IS | B8: =B7&"_A" -> INST1_A | C8: =COUNTIF(D$1:D8,"=X")+$C$6 -> 1 | Q8: Currency | R8: =IF(VLOOKUP($B7&"_C",FinancingIn,U$5,FALSE)=1,"Local",IF(VLOOKUP($B7&"_C",FinancingIn,U$5,FALSE)=2,"Foreign",IF(VLOOKUP($B7&"_C",FinancingIn,U$5,FALSE)=3,"Local-Linked 1","Local-Linked 2"))) -> Local | S8: Amount of debt issued | U8: =VLOOKUP($B8,FinancingIn,U$5,FALSE) -> 1.428182437 | V8: 0.8923094773 | W8: 1.03737582 | X8: 0.7461695901 | Y8: 1.071592032 | Z8: 0.6468124281 | AA8: 0.801849455 | AB8: 0.554154479 | AC8: 0.9924686691 | AD8: 1.022467772 | AE8: 1.271284405 | AF8: 0.8167642851 | AG8: 0 | AH8: 0 | AI8: 0 | AJ8: 0
A9: =C8&"-ITYP-IR" -> 1-ITYP-IR | B9: =B7&"_I" -> INST1_I | C9: =COUNTIF(D$1:D9,"=X")+$C$6 -> 1 | Q9: Interest type | R9: Fixed | S9: Interest rate | U9: 0.05 | V9: 0.03 | W9: 0.03 | X9: 0.03 | Y9: 0.03 | Z9: 0.03 | AA9: 0.03 | AB9: 0.03 | AC9: 0.03 | AD9: 0.03 | AE9: 0.03 | AF9: 0.03 | AG9: 0 | AH9: 0 | AI9: 0 | AJ9: 0
A10: =C10&"-MKTY-ER" -> 1-MKTY-ER | C10: =COUNTIF(D$1:D10,"=X")+$C$6 -> 1 | Q10: Marketability | R10: Market | S10: Applicable exchange rate | U10: =IF($R8="Local",1,IF($R8="Foreign",VLOOKUP("ENDA",MacrofwData,U$5,FALSE),IF(OR($R8="Local-Linked 1",$R8="Local-Linked 2"),VLOOKUP($R15,MacrofwData,U$5,FALSE),#N/A))) -> 1 | V10: 1 | W10: 1 | X10: 1 | Y10: 1 | Z10: 1 | AA10: 1 | AB10: 1 | AC10: 1 | AD10: 1 | AE10: 1 | AF10: 1 | AG10: 1 | AH10: 1 | AI10: 1 | AJ10: 1 | AK10: =AJ10 -> 1 | AL10: =AK10 -> 1 | AM10: 1 | AN10: 1 | AO10: 1 | AP10: 1 | AQ10: 1 | AR10: 1 | AS10: 1 | AT10: 1 | AU10: 1 | AV10: 1 | AW10: 1 | AX10: 1 | AY10: 1 | AZ10: 1 | BA10: 1 | BB10: 1 | BC10: 1 | BD10: 1 | BE10: 1 | BF10: 1 | BG10: 1 | BH10: 1 | BI10: 1 | BJ10: 1 | BK10: 1 | BL10: 1 | BM10: 1 | BN10: 1 | BO10: 1 | BP10: 1 | BQ10: 1 | BR10: 1 | BS10: 1 | BT10: 1 | BU10: 1 | BV10: 1 | BW10: 1 | BX10: 1 | BY10: 1 | BZ10: 1 | CA10: 1 | CB10: 1 | CC10: 1 | CD10: 1 | CE10: 1 | CF10: 1 | CG10: 1 | CH10: 1 | CI10: 1 | CJ10: 1 | CK10: 1 | CL10: 1 | CM10: 1 | CN10: 1 | CO10: 1 | CP10: 1 | CQ10: 1 | CR10: 1 | CS10: 1 | CT10: 1 | CU10: 1 | CV10: 1 | CW10: 1 | CX10: =CW10 -> 1 | CY10: 1
A11: =C11&"-FQ-X1" -> 1-FQ-X1 | C11: =COUNTIF(D$1:D11,"=X")+$C$6 -> 1 | Q11: Frequency | R11: =IF(VLOOKUP($B7&"_F",FinancingIn,U$5,FALSE)=0.5,"Semiannual","Annual") -> Annual | S11: ="Percent of "&Q7&" allocated to:" -> Percent of Instrument 1 allocated to:
A12: =C12&"-GP-SHDC" -> 1-GP-SHDC | B12: SH_GGDDC_AT | C12: =COUNTIF(D$1:D12,"=X")+$C$6 -> 1 | Q12: Grace | R12: =VLOOKUP(B7&"_G",FinancingIn,U$5,FALSE) -> 1 | T12: Domestic central bank | U12: =VLOOKUP($B12,MacrofwData,U$5-1,FALSE) -> 0.0857418181 | V12: =U12 -> 0.0857418181 | W12: 0.0857418181 | X12: 0.0857418181 | Y12: 0.0857418181 | Z12: 0.0857418181 | AA12: 0.0857418181 | AB12: 0.0857418181 | AC12: 0.0857418181 | AD12: 0.0857418181 | AE12: 0.0857418181 | AF12: 0.0857418181 | AG12: 0.0857418181 | AH12: 0.0857418181 | AI12: 0.0857418181 | AJ12: 0.0857418181
A13: =C13&"-MY-SHDB" -> 1-MY-SHDB | B13: SH_GGDDB_AT | C13: =COUNTIF(D$1:D13,"=X")+$C$6 -> 1 | Q13: Maturity | R13: =VLOOKUP(B7&"_M",FinancingIn,U$5,FALSE) -> 5 | T13: Domestic commercial banks | U13: =VLOOKUP($B13,MacrofwData,U$5-1,FALSE) -> 0.3601231337 | V13: 0.3601231337 | W13: 0.3601231337 | X13: 0.3601231337 | Y13: 0.3601231337 | Z13: 0.3601231337 | AA13: 0.3601231337 | AB13: 0.3601231337 | AC13: 0.3601231337 | AD13: 0.3601231337 | AE13: 0.3601231337 | AF13: 0.3601231337 | AG13: 0.3601231337 | AH13: 0.3601231337 | AI13: 0.3601231337 | AJ13: 0.3601231337
A14: =C14&"-PR-SHDN" -> 1-PR-SHDN | B14: SH_GGDDN_AT | C14: =COUNTIF(D$1:D14,"=X")+$C$6 -> 1 | Q14: Perimeter | R14: Cent. Govt | T14: Domestic other creditors | U14: =VLOOKUP($B14,MacrofwData,U$5-1,FALSE) -> 0.2282385605 | V14: 0.2282385605 | W14: 0.2282385605 | X14: 0.2282385605 | Y14: 0.2282385605 | Z14: 0.2282385605 | AA14: 0.2282385605 | AB14: 0.2282385605 | AC14: 0.2282385605 | AD14: 0.2282385605 | AE14: 0.2282385605 | AF14: 0.2282385605 | AG14: 0.2282385605 | AH14: 0.2282385605 | AI14: 0.2282385605 | AJ14: 0.2282385605
A15: =C15&"-LRSHXO" -> 1-LRSHXO | B15: SH_GGDXO_AT | C15: =COUNTIF(D$1:D15,"=X")+$C$6 -> 1 | Q15: Code for linked | R15: =IF(R8="Local-Linked 1","LLI1",IF(R8="Local-Linked 2","LLI2","n.a.")) -> n.a. | T15: External official creditors | U15: =VLOOKUP($B15,MacrofwData,U$5-1,FALSE) -> 0.1754787845 | V15: 0.1754787845 | W15: 0.1754787845 | X15: 0.1754787845 | Y15: 0.1754787845 | Z15: 0.1754787845 | AA15: 0.1754787845 | AB15: 0.1754787845 | AC15: 0.1754787845 | AD15: 0.1754787845 | AE15: 0.1754787845 | AF15: 0.1754787845 | AG15: 0.1754787845 | AH15: 0.1754787845 | AI15: 0.1754787845 | AJ15: 0.1754787845
A16: =C16&"-X2-SHXP" -> 1-X2-SHXP | B16: SH_GGDXP_AT | C16: =COUNTIF(D$1:D16,"=X")+$C$6 -> 1 | T16: External private creditors | U16: =VLOOKUP($B16,MacrofwData,U$5-1,FALSE) -> 0.1552173008 | V16: 0.1552173008 | W16: 0.1552173008 | X16: 0.1552173008 | Y16: 0.1552173008 | Z16: 0.1552173008 | AA16: 0.1552173008 | AB16: 0.1552173008 | AC16: 0.1552173008 | AD16: 0.1552173008 | AE16: 0.1552173008 | AF16: 0.1552173008 | AG16: 0.1552173008 | AH16: 0.1552173008 | AI16: 0.1552173008 | AJ16: 0.1552173008
A17: =C17&"-X3-CA" -> 1-X3-CA | C17: =COUNTIF(D$1:D17,"=X")+$C$6 -> 1 | Q17: Committed | R17: No | S17: Option: custom amortization
A18: =C18&"-X4-PJ" -> 1-X4-PJ | C18: =COUNTIF(D$1:D18,"=X")+$C$6 -> 1 | S18: Option: price re-set for linked
A19: =C19&"-ISSUANCE" -> 1-ISSUANCE | B19: Issuance | C19: =COUNTIF(D$1:D19,"=X")+$C$6 -> 1 | K19: =R8 -> Local | S19: Debt issued | U19: =U8 -> 1.428182437 | V19: =V8 -> 0.8923094773 | W19: 1.03737582 | X19: 0.7461695901 | Y19: 1.071592032 | Z19: 0.6468124281 | AA19: 0.801849455 | AB19: 0.554154479 | AC19: 0.9924686691 | AD19: 1.022467772 | AE19: 1.271284405 | AF19: 0.8167642851 | AG19: 0 | AH19: 0 | AI19: 0 | AJ19: 0 | AK19: =IF(AK8=0,0.000001,AK8) -> 1e-06 | AL19: =IF(AL8=0,0.000001,AL8) -> 1e-06 | AM19: =IF(AM8=0,0.000001,AM8) -> 1e-06 | AN19: 1e-06 | AO19: 1e-06 | AP19: 1e-06 | AQ19: 1e-06 | AR19: 1e-06 | AS19: 1e-06 | AT19: 1e-06 | AU19: 1e-06 | AV19: 1e-06 | AW19: 1e-06 | AX19: 1e-06 | AY19: 1e-06 | AZ19: 1e-06 | BA19: 1e-06 | BB19: 1e-06 | BC19: 1e-06 | BD19: 1e-06 | BE19: 1e-06 | BF19: 1e-06 | BG19: 1e-06 | BH19: 1e-06 | BI19: 1e-06 | BJ19: 1e-06 | BK19: 1e-06 | BL19: 1e-06 | BM19: 1e-06 | BN19: 1e-06 | BO19: 1e-06 | BP19: 1e-06 | BQ19: 1e-06 | BR19: 1e-06 | BS19: 1e-06 | BT19: 1e-06 | BU19: 1e-06 | BV19: 1e-06 | BW19: 1e-06 | BX19: 1e-06 | BY19: 1e-06 | BZ19: 1e-06 | CA19: 1e-06 | CB19: 1e-06 | CC19: 1e-06 | CD19: 1e-06 | CE19: 1e-06 | CF19: 1e-06 | CG19: 1e-06 | CH19: 1e-06 | CI19: 1e-06 | CJ19: 1e-06 | CK19: 1e-06 | CL19: 1e-06 | CM19: 1e-06 | CN19: 1e-06 | CO19: 1e-06 | CP19: 1e-06 | CQ19: 1e-06 | CR19: 1e-06 | CS19: 1e-06 | CT19: 1e-06 | CU19: 1e-06 | CV19: 1e-06 | CW19: 1e-06 | CX19: 1e-06 | CY19: =IF(CY8=0,0.000001,CY8) -> 1e-06
A20: =C20&"-ISHARE" -> 1-ISHARE | C20: =COUNTIF(D$1:D20,"=X")+$C$6 -> 1 | S20: Share of total debt issuance | U20: =U19/(SUMIF(IdentFin!$B:$B,"=Issuance",IdentFin!U:U)+SUMIF(ResidFin!$B:$B,"=Issuance",ResidFin!U:U)) -> 0.09846790121 | V20: =V19/(SUMIF(IdentFin!$B:$B,"=Issuance",IdentFin!V:V)+SUMIF(ResidFin!$B:$B,"=Issuance",ResidFin!V:V)) -> 0.06496153482 | W20: =W19/(SUMIF(IdentFin!$B:$B,"=Issuance",IdentFin!W:W)+SUMIF(ResidFin!$B:$B,"=Issuance",ResidFin!W:W)) -> 0.08688522605 | X20: =X19/(SUMIF(IdentFin!$B:$B,"=Issuance",IdentFin!X:X)+SUMIF(ResidFin!$B:$B,"=Issuance",ResidFin!X:X)) -> 0.04310506919 | Y20: =Y19/(SUMIF(IdentFin!$B:$B,"=Issuance",IdentFin!Y:Y)+SUMIF(ResidFin!$B:$B,"=Issuance",ResidFin!Y:Y)) -> 0.07488154738 | Z20: =Z19/(SUMIF(IdentFin!$B:$B,"=Issuance",IdentFin!Z:Z)+SUMIF(ResidFin!$B:$B,"=Issuance",ResidFin!Z:Z)) -> 0.06229154199 | AA20: =AA19/(SUMIF(IdentFin!$B:$B,"=Issuance",IdentFin!AA:AA)+SUMIF(ResidFin!$B:$B,"=Issuance",ResidFin!AA:AA)) -> 0.06738445046 | AB20: =AB19/(SUMIF(IdentFin!$B:$B,"=Issuance",IdentFin!AB:AB)+SUMIF(ResidFin!$B:$B,"=Issuance",ResidFin!AB:AB)) -> 0.03826625039 | AC20: =AC19/(SUMIF(IdentFin!$B:$B,"=Issuance",IdentFin!AC:AC)+SUMIF(ResidFin!$B:$B,"=Issuance",ResidFin!AC:AC)) -> 0.06381613745 | AD20: =AD19/(SUMIF(IdentFin!$B:$B,"=Issuance",IdentFin!AD:AD)+SUMIF(ResidFin!$B:$B,"=Issuance",ResidFin!AD:AD)) -> 0.06027237731 | AE20: =AE19/(SUMIF(IdentFin!$B:$B,"=Issuance",IdentFin!AE:AE)+SUMIF(ResidFin!$B:$B,"=Issuance",ResidFin!AE:AE)) -> 0.0655986707 | AF20: =AF19/(SUMIF(IdentFin!$B:$B,"=Issuance",IdentFin!AF:AF)+SUMIF(ResidFin!$B:$B,"=Issuance",ResidFin!AF:AF)) -> 0.04803767805 | AG20: =AG19/(SUMIF(IdentFin!$B:$B,"=Issuance",IdentFin!AG:AG)+SUMIF(ResidFin!$B:$B,"=Issuance",ResidFin!AG:AG)) ->  | AH20: =AH19/(SUMIF(IdentFin!$B:$B,"=Issuance",IdentFin!AH:AH)+SUMIF(ResidFin!$B:$B,"=Issuance",ResidFin!AH:AH)) ->  | AI20: =AI19/(SUMIF(IdentFin!$B:$B,"=Issuance",IdentFin!AI:AI)+SUMIF(ResidFin!$B:$B,"=Issuance",ResidFin!AI:AI)) ->  | AJ20: =AJ19/(SUMIF(IdentFin!$B:$B,"=Issuance",IdentFin!AJ:AJ)+SUMIF(ResidFin!$B:$B,"=Issuance",ResidFin!AJ:AJ)) ->  | AK20: =AK19/(SUMIF(IdentFin!$B:$B,"=Issuance",IdentFin!AK:AK)+SUMIF(ResidFin!$B:$B,"=Issuance",ResidFin!AK:AK)) -> 0.1666666667 | AL20: =AL19/(SUMIF(IdentFin!$B:$B,"=Issuance",IdentFin!AL:AL)+SUMIF(ResidFin!$B:$B,"=Issuance",ResidFin!AL:AL)) -> 0.1666666667 | AM20: =AM19/(SUMIF(IdentFin!$B:$B,"=Issuance",IdentFin!AM:AM)+SUMIF(ResidFin!$B:$B,"=Issuance",ResidFin!AM:AM)) -> 0.1666666667 | AN20: =AN19/(SUMIF(IdentFin!$B:$B,"=Issuance",IdentFin!AN:AN)+SUMIF(ResidFin!$B:$B,"=Issuance",ResidFin!AN:AN)) -> 0.1666666667 | AO20: =AO19/(SUMIF(IdentFin!$B:$B,"=Issuance",IdentFin!AO:AO)+SUMIF(ResidFin!$B:$B,"=Issuance",ResidFin!AO:AO)) -> 0.1666666667 | AP20: =AP19/(SUMIF(IdentFin!$B:$B,"=Issuance",IdentFin!AP:AP)+SUMIF(ResidFin!$B:$B,"=Issuance",ResidFin!AP:AP)) -> 0.1666666667 | AQ20: =AQ19/(SUMIF(IdentFin!$B:$B,"=Issuance",IdentFin!AQ:AQ)+SUMIF(ResidFin!$B:$B,"=Issuance",ResidFin!AQ:AQ)) -> 0.1666666667 | AR20: =AR19/(SUMIF(IdentFin!$B:$B,"=Issuance",IdentFin!AR:AR)+SUMIF(ResidFin!$B:$B,"=Issuance",ResidFin!AR:AR)) -> 0.1666666667 | AS20: =AS19/(SUMIF(IdentFin!$B:$B,"=Issuance",IdentFin!AS:AS)+SUMIF(ResidFin!$B:$B,"=Issuance",ResidFin!AS:AS)) -> 0.1666666667 | AT20: =AT19/(SUMIF(IdentFin!$B:$B,"=Issuance",IdentFin!AT:AT)+SUMIF(ResidFin!$B:$B,"=Issuance",ResidFin!AT:AT)) -> 0.1666666667 | AU20: =AU19/(SUMIF(IdentFin!$B:$B,"=Issuance",IdentFin!AU:AU)+SUMIF(ResidFin!$B:$B,"=Issuance",ResidFin!AU:AU)) -> 0.1666666667 | AV20: =AV19/(SUMIF(IdentFin!$B:$B,"=Issuance",IdentFin!AV:AV)+SUMIF(ResidFin!$B:$B,"=Issuance",ResidFin!AV:AV)) -> 0.1666666667 | AW20: =AW19/(SUMIF(IdentFin!$B:$B,"=Issuance",IdentFin!AW:AW)+SUMIF(ResidFin!$B:$B,"=Issuance",ResidFin!AW:AW)) -> 0.1666666667 | AX20: =AX19/(SUMIF(IdentFin!$B:$B,"=Issuance",IdentFin!AX:AX)+SUMIF(ResidFin!$B:$B,"=Issuance",ResidFin!AX:AX)) -> 0.1666666667 | AY20: =AY19/(SUMIF(IdentFin!$B:$B,"=Issuance",IdentFin!AY:AY)+SUMIF(ResidFin!$B:$B,"=Issuance",ResidFin!AY:AY)) -> 0.1666666667 | AZ20: =AZ19/(SUMIF(IdentFin!$B:$B,"=Issuance",IdentFin!AZ:AZ)+SUMIF(ResidFin!$B:$B,"=Issuance",ResidFin!AZ:AZ)) -> 0.1666666667 | BA20: =BA19/(SUMIF(IdentFin!$B:$B,"=Issuance",IdentFin!BA:BA)+SUMIF(ResidFin!$B:$B,"=Issuance",ResidFin!BA:BA)) -> 0.1666666667 | BB20: =BB19/(SUMIF(IdentFin!$B:$B,"=Issuance",IdentFin!BB:BB)+SUMIF(ResidFin!$B:$B,"=Issuance",ResidFin!BB:BB)) -> 0.1666666667 | BC20: =BC19/(SUMIF(IdentFin!$B:$B,"=Issuance",IdentFin!BC:BC)+SUMIF(ResidFin!$B:$B,"=Issuance",ResidFin!BC:BC)) -> 0.1666666667 | BD20: =BD19/(SUMIF(IdentFin!$B:$B,"=Issuance",IdentFin!BD:BD)+SUMIF(ResidFin!$B:$B,"=Issuance",ResidFin!BD:BD)) -> 0.1666666667 | BE20: =BE19/(SUMIF(IdentFin!$B:$B,"=Issuance",IdentFin!BE:BE)+SUMIF(ResidFin!$B:$B,"=Issuance",ResidFin!BE:BE)) -> 0.1666666667 | BF20: =BF19/(SUMIF(IdentFin!$B:$B,"=Issuance",IdentFin!BF:BF)+SUMIF(ResidFin!$B:$B,"=Issuance",ResidFin!BF:BF)) -> 0.1666666667 | BG20: =BG19/(SUMIF(IdentFin!$B:$B,"=Issuance",IdentFin!BG:BG)+SUMIF(ResidFin!$B:$B,"=Issuance",ResidFin!BG:BG)) -> 0.1666666667 | BH20: =BH19/(SUMIF(IdentFin!$B:$B,"=Issuance",IdentFin!BH:BH)+SUMIF(ResidFin!$B:$B,"=Issuance",ResidFin!BH:BH)) -> 0.1666666667 | BI20: =BI19/(SUMIF(IdentFin!$B:$B,"=Issuance",IdentFin!BI:BI)+SUMIF(ResidFin!$B:$B,"=Issuance",ResidFin!BI:BI)) -> 0.1666666667 | BJ20: =BJ19/(SUMIF(IdentFin!$B:$B,"=Issuance",IdentFin!BJ:BJ)+SUMIF(ResidFin!$B:$B,"=Issuance",ResidFin!BJ:BJ)) -> 0.1666666667 | BK20: =BK19/(SUMIF(IdentFin!$B:$B,"=Issuance",IdentFin!BK:BK)+SUMIF(ResidFin!$B:$B,"=Issuance",ResidFin!BK:BK)) -> 0.1666666667 | BL20: =BL19/(SUMIF(IdentFin!$B:$B,"=Issuance",IdentFin!BL:BL)+SUMIF(ResidFin!$B:$B,"=Issuance",ResidFin!BL:BL)) -> 0.1666666667 | BM20: =BM19/(SUMIF(IdentFin!$B:$B,"=Issuance",IdentFin!BM:BM)+SUMIF(ResidFin!$B:$B,"=Issuance",ResidFin!BM:BM)) -> 0.1666666667 | BN20: =BN19/(SUMIF(IdentFin!$B:$B,"=Issuance",IdentFin!BN:BN)+SUMIF(ResidFin!$B:$B,"=Issuance",ResidFin!BN:BN)) -> 0.1666666667 | BO20: =BO19/(SUMIF(IdentFin!$B:$B,"=Issuance",IdentFin!BO:BO)+SUMIF(ResidFin!$B:$B,"=Issuance",ResidFin!BO:BO)) -> 0.1666666667 | BP20: =BP19/(SUMIF(IdentFin!$B:$B,"=Issuance",IdentFin!BP:BP)+SUMIF(ResidFin!$B:$B,"=Issuance",ResidFin!BP:BP)) -> 0.1666666667 | BQ20: =BQ19/(SUMIF(IdentFin!$B:$B,"=Issuance",IdentFin!BQ:BQ)+SUMIF(ResidFin!$B:$B,"=Issuance",ResidFin!BQ:BQ)) -> 0.1666666667 | BR20: =BR19/(SUMIF(IdentFin!$B:$B,"=Issuance",IdentFin!BR:BR)+SUMIF(ResidFin!$B:$B,"=Issuance",ResidFin!BR:BR)) -> 0.1666666667 | BS20: =BS19/(SUMIF(IdentFin!$B:$B,"=Issuance",IdentFin!BS:BS)+SUMIF(ResidFin!$B:$B,"=Issuance",ResidFin!BS:BS)) -> 0.1666666667 | BT20: =BT19/(SUMIF(IdentFin!$B:$B,"=Issuance",IdentFin!BT:BT)+SUMIF(ResidFin!$B:$B,"=Issuance",ResidFin!BT:BT)) -> 0.1666666667 | BU20: =BU19/(SUMIF(IdentFin!$B:$B,"=Issuance",IdentFin!BU:BU)+SUMIF(ResidFin!$B:$B,"=Issuance",ResidFin!BU:BU)) -> 0.1666666667 | BV20: =BV19/(SUMIF(IdentFin!$B:$B,"=Issuance",IdentFin!BV:BV)+SUMIF(ResidFin!$B:$B,"=Issuance",ResidFin!BV:BV)) -> 0.1666666667 | BW20: =BW19/(SUMIF(IdentFin!$B:$B,"=Issuance",IdentFin!BW:BW)+SUMIF(ResidFin!$B:$B,"=Issuance",ResidFin!BW:BW)) -> 0.1666666667 | BX20: =BX19/(SUMIF(IdentFin!$B:$B,"=Issuance",IdentFin!BX:BX)+SUMIF(ResidFin!$B:$B,"=Issuance",ResidFin!BX:BX)) -> 0.1666666667 | BY20: =BY19/(SUMIF(IdentFin!$B:$B,"=Issuance",IdentFin!BY:BY)+SUMIF(ResidFin!$B:$B,"=Issuance",ResidFin!BY:BY)) -> 0.1666666667 | BZ20: =BZ19/(SUMIF(IdentFin!$B:$B,"=Issuance",IdentFin!BZ:BZ)+SUMIF(ResidFin!$B:$B,"=Issuance",ResidFin!BZ:BZ)) -> 0.1666666667 | CA20: =CA19/(SUMIF(IdentFin!$B:$B,"=Issuance",IdentFin!CA:CA)+SUMIF(ResidFin!$B:$B,"=Issuance",ResidFin!CA:CA)) -> 0.1666666667 | CB20: =CB19/(SUMIF(IdentFin!$B:$B,"=Issuance",IdentFin!CB:CB)+SUMIF(ResidFin!$B:$B,"=Issuance",ResidFin!CB:CB)) -> 0.1666666667 | CC20: =CC19/(SUMIF(IdentFin!$B:$B,"=Issuance",IdentFin!CC:CC)+SUMIF(ResidFin!$B:$B,"=Issuance",ResidFin!CC:CC)) -> 0.1666666667 | CD20: =CD19/(SUMIF(IdentFin!$B:$B,"=Issuance",IdentFin!CD:CD)+SUMIF(ResidFin!$B:$B,"=Issuance",ResidFin!CD:CD)) -> 0.1666666667 | CE20: =CE19/(SUMIF(IdentFin!$B:$B,"=Issuance",IdentFin!CE:CE)+SUMIF(ResidFin!$B:$B,"=Issuance",ResidFin!CE:CE)) -> 0.1666666667 | CF20: =CF19/(SUMIF(IdentFin!$B:$B,"=Issuance",IdentFin!CF:CF)+SUMIF(ResidFin!$B:$B,"=Issuance",ResidFin!CF:CF)) -> 0.1666666667 | CG20: =CG19/(SUMIF(IdentFin!$B:$B,"=Issuance",IdentFin!CG:CG)+SUMIF(ResidFin!$B:$B,"=Issuance",ResidFin!CG:CG)) -> 0.1666666667 | CH20: =CH19/(SUMIF(IdentFin!$B:$B,"=Issuance",IdentFin!CH:CH)+SUMIF(ResidFin!$B:$B,"=Issuance",ResidFin!CH:CH)) -> 0.1666666667 | CI20: =CI19/(SUMIF(IdentFin!$B:$B,"=Issuance",IdentFin!CI:CI)+SUMIF(ResidFin!$B:$B,"=Issuance",ResidFin!CI:CI)) -> 0.1666666667 | CJ20: =CJ19/(SUMIF(IdentFin!$B:$B,"=Issuance",IdentFin!CJ:CJ)+SUMIF(ResidFin!$B:$B,"=Issuance",ResidFin!CJ:CJ)) -> 0.1666666667 | CK20: =CK19/(SUMIF(IdentFin!$B:$B,"=Issuance",IdentFin!CK:CK)+SUMIF(ResidFin!$B:$B,"=Issuance",ResidFin!CK:CK)) -> 0.1666666667 | CL20: =CL19/(SUMIF(IdentFin!$B:$B,"=Issuance",IdentFin!CL:CL)+SUMIF(ResidFin!$B:$B,"=Issuance",ResidFin!CL:CL)) -> 0.1666666667 | CM20: =CM19/(SUMIF(IdentFin!$B:$B,"=Issuance",IdentFin!CM:CM)+SUMIF(ResidFin!$B:$B,"=Issuance",ResidFin!CM:CM)) -> 0.1666666667 | CN20: =CN19/(SUMIF(IdentFin!$B:$B,"=Issuance",IdentFin!CN:CN)+SUMIF(ResidFin!$B:$B,"=Issuance",ResidFin!CN:CN)) -> 0.1666666667 | CO20: =CO19/(SUMIF(IdentFin!$B:$B,"=Issuance",IdentFin!CO:CO)+SUMIF(ResidFin!$B:$B,"=Issuance",ResidFin!CO:CO)) -> 0.1666666667 | CP20: =CP19/(SUMIF(IdentFin!$B:$B,"=Issuance",IdentFin!CP:CP)+SUMIF(ResidFin!$B:$B,"=Issuance",ResidFin!CP:CP)) -> 0.1666666667 | CQ20: =CQ19/(SUMIF(IdentFin!$B:$B,"=Issuance",IdentFin!CQ:CQ)+SUMIF(ResidFin!$B:$B,"=Issuance",ResidFin!CQ:CQ)) -> 0.1666666667 | CR20: =CR19/(SUMIF(IdentFin!$B:$B,"=Issuance",IdentFin!CR:CR)+SUMIF(ResidFin!$B:$B,"=Issuance",ResidFin!CR:CR)) -> 0.1666666667 | CS20: =CS19/(SUMIF(IdentFin!$B:$B,"=Issuance",IdentFin!CS:CS)+SUMIF(ResidFin!$B:$B,"=Issuance",ResidFin!CS:CS)) -> 0.1666666667 | CT20: =CT19/(SUMIF(IdentFin!$B:$B,"=Issuance",IdentFin!CT:CT)+SUMIF(ResidFin!$B:$B,"=Issuance",ResidFin!CT:CT)) -> 0.1666666667 | CU20: =CU19/(SUMIF(IdentFin!$B:$B,"=Issuance",IdentFin!CU:CU)+SUMIF(ResidFin!$B:$B,"=Issuance",ResidFin!CU:CU)) -> 0.1666666667 | CV20: =CV19/(SUMIF(IdentFin!$B:$B,"=Issuance",IdentFin!CV:CV)+SUMIF(ResidFin!$B:$B,"=Issuance",ResidFin!CV:CV)) -> 0.1666666667 | CW20: =CW19/(SUMIF(IdentFin!$B:$B,"=Issuance",IdentFin!CW:CW)+SUMIF(ResidFin!$B:$B,"=Issuance",ResidFin!CW:CW)) -> 0.1666666667 | CX20: =CX19/(SUMIF(IdentFin!$B:$B,"=Issuance",IdentFin!CX:CX)+SUMIF(ResidFin!$B:$B,"=Issuance",ResidFin!CX:CX)) -> 0.1666666667 | CY20: =CY19/(SUMIF(IdentFin!$B:$B,"=Issuance",IdentFin!CY:CY)+SUMIF(ResidFin!$B:$B,"=Issuance",ResidFin!CY:CY)) -> 0.1666666667
A21: =C21&"-CONT_IRT" -> 1-CONT_IRT | C21: =COUNTIF(D$1:D21,"=X")+$C$6 -> 1 | Q21: IRContribT | S21: Contribution to total marginal effective IR | U21: =U9*U20 -> 0.00492339506 | V21: =V9*V20 -> 0.001948846045 | W21: 0.002606556782 | X21: 0.001293152076 | Y21: 0.002246446421 | Z21: 0.00186874626 | AA21: 0.002021533514 | AB21: 0.001147987512 | AC21: 0.001914484123 | AD21: 0.001808171319 | AE21: 0.001967960121 | AF21: 0.001441130341
A22: =C22&"-CONT_IRC" -> 1-CONT_IRC | C22: =COUNTIF(D$1:D22,"=X")+$C$6 -> 1 | K22: =R8 -> Local | Q22: IRContribC | S22: Contribution to currency marginal effective IR | U22: =U9*U19/(SUMIFS(IdentFin!U:U,IdentFin!$B:$B,"=Issuance",IdentFin!$K:$K,"="&$K22)+SUMIFS(ResidFin!U:U,ResidFin!$B:$B,"=Issuance",ResidFin!$K:$K,"="&$K22)) -> 0.006084978604 | V22: =V9*V19/(SUMIFS(IdentFin!V:V,IdentFin!$B:$B,"=Issuance",IdentFin!$K:$K,"="&$K22)+SUMIFS(ResidFin!V:V,ResidFin!$B:$B,"=Issuance",ResidFin!$K:$K,"="&$K22)) -> 0.003647192661 | W22: =W9*W19/(SUMIFS(IdentFin!W:W,IdentFin!$B:$B,"=Issuance",IdentFin!$K:$K,"="&$K22)+SUMIFS(ResidFin!W:W,ResidFin!$B:$B,"=Issuance",ResidFin!$K:$K,"="&$K22)) -> 0.003336314926 | X22: =X9*X19/(SUMIFS(IdentFin!X:X,IdentFin!$B:$B,"=Issuance",IdentFin!$K:$K,"="&$K22)+SUMIFS(ResidFin!X:X,ResidFin!$B:$B,"=Issuance",ResidFin!$K:$K,"="&$K22)) -> 0.002984729185 | Y22: =Y9*Y19/(SUMIFS(IdentFin!Y:Y,IdentFin!$B:$B,"=Issuance",IdentFin!$K:$K,"="&$K22)+SUMIFS(ResidFin!Y:Y,ResidFin!$B:$B,"=Issuance",ResidFin!$K:$K,"="&$K22)) -> 0.003479864147 | Z22: =Z9*Z19/(SUMIFS(IdentFin!Z:Z,IdentFin!$B:$B,"=Issuance",IdentFin!$K:$K,"="&$K22)+SUMIFS(ResidFin!Z:Z,ResidFin!$B:$B,"=Issuance",ResidFin!$K:$K,"="&$K22)) -> 0.002682997364 | AA22: =AA9*AA19/(SUMIFS(IdentFin!AA:AA,IdentFin!$B:$B,"=Issuance",IdentFin!$K:$K,"="&$K22)+SUMIFS(ResidFin!AA:AA,ResidFin!$B:$B,"=Issuance",ResidFin!$K:$K,"="&$K22)) -> 0.00306647791 | AB22: =AB9*AB19/(SUMIFS(IdentFin!AB:AB,IdentFin!$B:$B,"=Issuance",IdentFin!$K:$K,"="&$K22)+SUMIFS(ResidFin!AB:AB,ResidFin!$B:$B,"=Issuance",ResidFin!$K:$K,"="&$K22)) -> 0.002092520778 | AC22: =AC9*AC19/(SUMIFS(IdentFin!AC:AC,IdentFin!$B:$B,"=Issuance",IdentFin!$K:$K,"="&$K22)+SUMIFS(ResidFin!AC:AC,ResidFin!$B:$B,"=Issuance",ResidFin!$K:$K,"="&$K22)) -> 0.003062818585 | AD22: =AD9*AD19/(SUMIFS(IdentFin!AD:AD,IdentFin!$B:$B,"=Issuance",IdentFin!$K:$K,"="&$K22)+SUMIFS(ResidFin!AD:AD,ResidFin!$B:$B,"=Issuance",ResidFin!$K:$K,"="&$K22)) -> 0.002651898537 | AE22: =AE9*AE19/(SUMIFS(IdentFin!AE:AE,IdentFin!$B:$B,"=Issuance",IdentFin!$K:$K,"="&$K22)+SUMIFS(ResidFin!AE:AE,ResidFin!$B:$B,"=Issuance",ResidFin!$K:$K,"="&$K22)) -> 0.002915858467 | AF22: =AF9*AF19/(SUMIFS(IdentFin!AF:AF,IdentFin!$B:$B,"=Issuance",IdentFin!$K:$K,"="&$K22)+SUMIFS(ResidFin!AF:AF,ResidFin!$B:$B,"=Issuance",ResidFin!$K:$K,"="&$K22)) -> 0.002187810202 | AG22: =AG9*AG19/(SUMIFS(IdentFin!AG:AG,IdentFin!$B:$B,"=Issuance",IdentFin!$K:$K,"="&$K22)+SUMIFS(ResidFin!AG:AG,ResidFin!$B:$B,"=Issuance",ResidFin!$K:$K,"="&$K22)) ->  | AH22: =AH9*AH19/(SUMIFS(IdentFin!AH:AH,IdentFin!$B:$B,"=Issuance",IdentFin!$K:$K,"="&$K22)+SUMIFS(ResidFin!AH:AH,ResidFin!$B:$B,"=Issuance",ResidFin!$K:$K,"="&$K22)) ->  | AI22: =AI9*AI19/(SUMIFS(IdentFin!AI:AI,IdentFin!$B:$B,"=Issuance",IdentFin!$K:$K,"="&$K22)+SUMIFS(ResidFin!AI:AI,ResidFin!$B:$B,"=Issuance",ResidFin!$K:$K,"="&$K22)) ->  | AJ22: =AJ9*AJ19/(SUMIFS(IdentFin!AJ:AJ,IdentFin!$B:$B,"=Issuance",IdentFin!$K:$K,"="&$K22)+SUMIFS(ResidFin!AJ:AJ,ResidFin!$B:$B,"=Issuance",ResidFin!$K:$K,"="&$K22)) -> 
A23: =C23&"-YRSPOST" -> 1-YRSPOST | C23: =COUNTIF(D$1:D23,"=X")+$C$6 -> 1 | S23: Years since issuance: | U23: 0 | V23: 1 | W23: 2 | X23: 3 | Y23: 4 | Z23: 5 | AA23: 6 | AB23: 7 | AC23: 8 | AD23: 9 | AE23: 10 | AF23: 11 | AG23: 12 | AH23: 13 | AI23: 14 | AJ23: 15 | AK23: 16 | AL23: 17 | AM23: 18 | AN23: 19 | AO23: 20 | AP23: 21 | AQ23: 22 | AR23: 23 | AS23: 24 | AT23: 25 | AU23: 26 | AV23: 27 | AW23: 28 | AX23: 29 | AY23: 30 | AZ23: 31 | BA23: 32 | BB23: 33 | BC23: 34 | BD23: 35 | BE23: 36 | BF23: 37 | BG23: 38 | BH23: 39 | BI23: 40 | BJ23: 41 | BK23: 42 | BL23: 43 | BM23: 44 | BN23: 45 | BO23: 46 | BP23: 47 | BQ23: 48 | BR23: 49 | BS23: 50 | BT23: 51 | BU23: 52 | BV23: 53 | BW23: 54 | BX23: 55 | BY23: 56 | BZ23: 57 | CA23: 58 | CB23: 59 | CC23: 60 | CD23: 61 | CE23: 62 | CF23: 63 | CG23: 64 | CH23: 65 | CI23: 66 | CJ23: 67 | CK23: 68 | CL23: 69 | CM23: 70 | CN23: 71 | CO23: 72 | CP23: 73 | CQ23: 74 | CR23: 75 | CS23: 76 | CT23: 77 | CU23: 78 | CV23: 79 | CW23: 80 | CX23: 81 | CY23: 82
A24: =C24&"-SEMIANN_INT" -> 1-SEMIANN_INT | C24: =COUNTIF(D$1:D24,"=X")+$C$6 -> 1 | E24: =R12 -> 1 | F24: =R13 -> 5 | O24: =_xlfn.SWITCH(R11,"Semiannual",0.5,"Annual",1,"Custom",1) -> 1 | P24: =IF(R11="Custom","Custom",IF(R9="Zero-coupon","Zero-coupon",IF(E24=F24,"Bullet","Amortizing"))) -> Amortizing | S24: Semiannual adjustment, interest | U24: =IF(AND($O24=0.5,U23=0),0.5,IF(AND(U23>0,U23<=$F24),1,0)) -> 0 | V24: =IF(AND($O24=0.5,V23=0),0.5,IF(AND(V23>0,V23<=$F24),1,0)) -> 1 | W24: 1 | X24: 1 | Y24: 1 | Z24: 1 | AA24: 0 | AB24: 0 | AC24: 0 | AD24: 0 | AE24: 0 | AF24: 0 | AG24: 0 | AH24: 0 | AI24: 0 | AJ24: 0 | AK24: 0 | AL24: 0 | AM24: 0 | AN24: 0 | AO24: 0 | AP24: 0 | AQ24: 0 | AR24: 0 | AS24: 0 | AT24: 0 | AU24: 0 | AV24: 0 | AW24: 0 | AX24: 0 | AY24: 0 | AZ24: 0 | BA24: 0 | BB24: 0 | BC24: 0 | BD24: 0 | BE24: 0 | BF24: 0 | BG24: 0 | BH24: 0 | BI24: 0 | BJ24: 0 | BK24: 0 | BL24: 0 | BM24: 0 | BN24: 0 | BO24: 0 | BP24: 0 | BQ24: 0 | BR24: 0 | BS24: 0 | BT24: 0 | BU24: 0 | BV24: 0 | BW24: 0 | BX24: 0 | BY24: 0 | BZ24: 0 | CA24: 0 | CB24: 0 | CC24: 0 | CD24: 0 | CE24: 0 | CF24: 0 | CG24: 0 | CH24: =IF(AND($O24=0.5,CH23=0),0.5,IF(AND(CH23>0,CH23<=$F24),1,0)) -> 0 | CI24: 0 | CJ24: 0 | CK24: 0 | CL24: 0 | CM24: 0 | CN24: 0 | CO24: 0 | CP24: 0 | CQ24: 0 | CR24: 0 | CS24: 0 | CT24: 0 | CU24: 0 | CV24: 0 | CW24: 0 | CX24: 0 | CY24: 0
A25: =C25&"-SEMIANN_AMORT" -> 1-SEMIANN_AMORT | C25: =COUNTIF(D$1:D25,"=X")+$C$6 -> 1 | E25: =R12 -> 1 | F25: =R13 -> 5 | O25: =_xlfn.SWITCH(R11,"Semiannual",0.5,"Annual",1,"Custom",1) -> 1 | P25: =IF(R11="Custom","Custom",IF(R9="Zero-coupon","Zero-coupon",IF(E25=F25,"Bullet","Amortizing"))) -> Amortizing | S25: Semiannual adjustment, amortization | U25: =IF(AND($O25=0.5,OR(U23=$E25,U23=$F25)),0.5,IF(AND(U23>$E25,U23<=$F25),1,0)) -> 0 | V25: 0 | W25: 1 | X25: 1 | Y25: 1 | Z25: 1 | AA25: 0 | AB25: 0 | AC25: 0 | AD25: 0 | AE25: 0 | AF25: 0 | AG25: 0 | AH25: 0 | AI25: 0 | AJ25: 0 | AK25: =IF(AND($O25=0.5,OR(AK23=$E25,AK23=$F25)),0.5,IF(AND(AK23>$E25,AK23<=$F25),1,0)) -> 0 | AL25: 0 | AM25: =IF(AND($O25=0.5,OR(AM23=$E25,AM23=$F25)),0.5,IF(AND(AM23>$E25,AM23<=$F25),1,0)) -> 0 | AN25: 0 | AO25: 0 | AP25: 0 | AQ25: 0 | AR25: 0 | AS25: 0 | AT25: 0 | AU25: 0 | AV25: 0 | AW25: 0 | AX25: 0 | AY25: 0 | AZ25: 0 | BA25: 0 | BB25: 0 | BC25: 0 | BD25: 0 | BE25: 0 | BF25: 0 | BG25: 0 | BH25: 0 | BI25: 0 | BJ25: 0 | BK25: 0 | BL25: 0 | BM25: 0 | BN25: 0 | BO25: 0 | BP25: 0 | BQ25: 0 | BR25: 0 | BS25: 0 | BT25: 0 | BU25: 0 | BV25: 0 | BW25: 0 | BX25: 0 | BY25: 0 | BZ25: 0 | CA25: 0 | CB25: 0 | CC25: 0 | CD25: 0 | CE25: 0 | CF25: 0 | CG25: 0 | CH25: 0 | CI25: 0 | CJ25: 0 | CK25: 0 | CL25: 0 | CM25: 0 | CN25: 0 | CO25: 0 | CP25: 0 | CQ25: 0 | CR25: 0 | CS25: 0 | CT25: 0 | CU25: 0 | CV25: 0 | CW25: 0 | CX25: 0 | CY25: =IF(AND($O25=0.5,OR(CY23=$E25,CY23=$F25)),0.5,IF(AND(CY23>$E25,CY23<=$F25),1,0)) -> 0
A26: =C26&"-AMORT_SCH" -> 1-AMORT_SCH | C26: =COUNTIF(D$1:D26,"=X")+$C$6 -> 1 | E26: =R12 -> 1 | F26: =R13 -> 5 | O26: =_xlfn.SWITCH(R11,"Semiannual",0.5,"Annual",1,"Custom",1) -> 1 | P26: =IF(R11="Custom","Custom",IF(R9="Zero-coupon","Zero-coupon",IF(E26=F26,"Bullet","Amortizing"))) -> Amortizing | S26: Amortization schedule | U26: =_xlfn.SWITCH($P26,"Bullet",IF($F26=U$4,1,0),"Amortizing",1/($F26-$E26)*U25,"Zero-coupon",IF(U$4=$F26,1,0),"Custom",U17) -> 0 | V26: =_xlfn.SWITCH($P26,"Bullet",IF($F26=V$4,1,0),"Amortizing",1/($F26-$E26)*V25,"Zero-coupon",IF(V$4=$F26,1,0),"Custom",V17) -> 0 | W26: =_xlfn.SWITCH($P26,"Bullet",IF($F26=W$4,1,0),"Amortizing",1/($F26-$E26)*W25,"Zero-coupon",IF(W$4=$F26,1,0),"Custom",W17) -> 0.25 | X26: =_xlfn.SWITCH($P26,"Bullet",IF($F26=X$4,1,0),"Amortizing",1/($F26-$E26)*X25,"Zero-coupon",IF(X$4=$F26,1,0),"Custom",X17) -> 0.25 | Y26: =_xlfn.SWITCH($P26,"Bullet",IF($F26=Y$4,1,0),"Amortizing",1/($F26-$E26)*Y25,"Zero-coupon",IF(Y$4=$F26,1,0),"Custom",Y17) -> 0.25 | Z26: =_xlfn.SWITCH($P26,"Bullet",IF($F26=Z$4,1,0),"Amortizing",1/($F26-$E26)*Z25,"Zero-coupon",IF(Z$4=$F26,1,0),"Custom",Z17) -> 0.25 | AA26: =_xlfn.SWITCH($P26,"Bullet",IF($F26=AA$4,1,0),"Amortizing",1/($F26-$E26)*AA25,"Zero-coupon",IF(AA$4=$F26,1,0),"Custom",AA17) -> 0 | AB26: =_xlfn.SWITCH($P26,"Bullet",IF($F26=AB$4,1,0),"Amortizing",1/($F26-$E26)*AB25,"Zero-coupon",IF(AB$4=$F26,1,0),"Custom",AB17) -> 0 | AC26: =_xlfn.SWITCH($P26,"Bullet",IF($F26=AC$4,1,0),"Amortizing",1/($F26-$E26)*AC25,"Zero-coupon",IF(AC$4=$F26,1,0),"Custom",AC17) -> 0 | AD26: =_xlfn.SWITCH($P26,"Bullet",IF($F26=AD$4,1,0),"Amortizing",1/($F26-$E26)*AD25,"Zero-coupon",IF(AD$4=$F26,1,0),"Custom",AD17) -> 0 | AE26: =_xlfn.SWITCH($P26,"Bullet",IF($F26=AE$4,1,0),"Amortizing",1/($F26-$E26)*AE25,"Zero-coupon",IF(AE$4=$F26,1,0),"Custom",AE17) -> 0 | AF26: =_xlfn.SWITCH($P26,"Bullet",IF($F26=AF$4,1,0),"Amortizing",1/($F26-$E26)*AF25,"Zero-coupon",IF(AF$4=$F26,1,0),"Custom",AF17) -> 0 | AG26: =_xlfn.SWITCH($P26,"Bullet",IF($F26=AG$4,1,0),"Amortizing",1/($F26-$E26)*AG25,"Zero-coupon",IF(AG$4=$F26,1,0),"Custom",AG17) -> 0 | AH26: =_xlfn.SWITCH($P26,"Bullet",IF($F26=AH$4,1,0),"Amortizing",1/($F26-$E26)*AH25,"Zero-coupon",IF(AH$4=$F26,1,0),"Custom",AH17) -> 0 | AI26: =_xlfn.SWITCH($P26,"Bullet",IF($F26=AI$4,1,0),"Amortizing",1/($F26-$E26)*AI25,"Zero-coupon",IF(AI$4=$F26,1,0),"Custom",AI17) -> 0 | AJ26: =_xlfn.SWITCH($P26,"Bullet",IF($F26=AJ$4,1,0),"Amortizing",1/($F26-$E26)*AJ25,"Zero-coupon",IF(AJ$4=$F26,1,0),"Custom",AJ17) -> 0 | AK26: =_xlfn.SWITCH($P26,"Bullet",IF($F26=AK$4,1,0),"Amortizing",1/($F26-$E26)*AK25,"Zero-coupon",IF(AK$4=$F26,1,0),"Custom",AK17) -> 0 | AL26: =_xlfn.SWITCH($P26,"Bullet",IF($F26=AL$4,1,0),"Amortizing",1/($F26-$E26)*AL25,"Zero-coupon",IF(AL$4=$F26,1,0),"Custom",AL17) -> 0 | AM26: =_xlfn.SWITCH($P26,"Bullet",IF($F26=AM$4,1,0),"Amortizing",1/($F26-$E26)*AM25,"Zero-coupon",IF(AM$4=$F26,1,0),"Custom",AM17) -> 0 | AN26: =_xlfn.SWITCH($P26,"Bullet",IF($F26=AN$4,1,0),"Amortizing",1/($F26-$E26)*AN25,"Zero-coupon",IF(AN$4=$F26,1,0),"Custom",AN17) -> 0 | AO26: =_xlfn.SWITCH($P26,"Bullet",IF($F26=AO$4,1,0),"Amortizing",1/($F26-$E26)*AO25,"Zero-coupon",IF(AO$4=$F26,1,0),"Custom",AO17) -> 0 | AP26: =_xlfn.SWITCH($P26,"Bullet",IF($F26=AP$4,1,0),"Amortizing",1/($F26-$E26)*AP25,"Zero-coupon",IF(AP$4=$F26,1,0),"Custom",AP17) -> 0 | AQ26: =_xlfn.SWITCH($P26,"Bullet",IF($F26=AQ$4,1,0),"Amortizing",1/($F26-$E26)*AQ25,"Zero-coupon",IF(AQ$4=$F26,1,0),"Custom",AQ17) -> 0 | AR26: =_xlfn.SWITCH($P26,"Bullet",IF($F26=AR$4,1,0),"Amortizing",1/($F26-$E26)*AR25,"Zero-coupon",IF(AR$4=$F26,1,0),"Custom",AR17) -> 0 | AS26: =_xlfn.SWITCH($P26,"Bullet",IF($F26=AS$4,1,0),"Amortizing",1/($F26-$E26)*AS25,"Zero-coupon",IF(AS$4=$F26,1,0),"Custom",AS17) -> 0 | AT26: =_xlfn.SWITCH($P26,"Bullet",IF($F26=AT$4,1,0),"Amortizing",1/($F26-$E26)*AT25,"Zero-coupon",IF(AT$4=$F26,1,0),"Custom",AT17) -> 0 | AU26: =_xlfn.SWITCH($P26,"Bullet",IF($F26=AU$4,1,0),"Amortizing",1/($F26-$E26)*AU25,"Zero-coupon",IF(AU$4=$F26,1,0),"Custom",AU17) -> 0 | AV26: =_xlfn.SWITCH($P26,"Bullet",IF($F26=AV$4,1,0),"Amortizing",1/($F26-$E26)*AV25,"Zero-coupon",IF(AV$4=$F26,1,0),"Custom",AV17) -> 0 | AW26: =_xlfn.SWITCH($P26,"Bullet",IF($F26=AW$4,1,0),"Amortizing",1/($F26-$E26)*AW25,"Zero-coupon",IF(AW$4=$F26,1,0),"Custom",AW17) -> 0 | AX26: =_xlfn.SWITCH($P26,"Bullet",IF($F26=AX$4,1,0),"Amortizing",1/($F26-$E26)*AX25,"Zero-coupon",IF(AX$4=$F26,1,0),"Custom",AX17) -> 0 | AY26: =_xlfn.SWITCH($P26,"Bullet",IF($F26=AY$4,1,0),"Amortizing",1/($F26-$E26)*AY25,"Zero-coupon",IF(AY$4=$F26,1,0),"Custom",AY17) -> 0 | AZ26: =_xlfn.SWITCH($P26,"Bullet",IF($F26=AZ$4,1,0),"Amortizing",1/($F26-$E26)*AZ25,"Zero-coupon",IF(AZ$4=$F26,1,0),"Custom",AZ17) -> 0 | BA26: =_xlfn.SWITCH($P26,"Bullet",IF($F26=BA$4,1,0),"Amortizing",1/($F26-$E26)*BA25,"Zero-coupon",IF(BA$4=$F26,1,0),"Custom",BA17) -> 0 | BB26: =_xlfn.SWITCH($P26,"Bullet",IF($F26=BB$4,1,0),"Amortizing",1/($F26-$E26)*BB25,"Zero-coupon",IF(BB$4=$F26,1,0),"Custom",BB17) -> 0 | BC26: =_xlfn.SWITCH($P26,"Bullet",IF($F26=BC$4,1,0),"Amortizing",1/($F26-$E26)*BC25,"Zero-coupon",IF(BC$4=$F26,1,0),"Custom",BC17) -> 0 | BD26: =_xlfn.SWITCH($P26,"Bullet",IF($F26=BD$4,1,0),"Amortizing",1/($F26-$E26)*BD25,"Zero-coupon",IF(BD$4=$F26,1,0),"Custom",BD17) -> 0 | BE26: =_xlfn.SWITCH($P26,"Bullet",IF($F26=BE$4,1,0),"Amortizing",1/($F26-$E26)*BE25,"Zero-coupon",IF(BE$4=$F26,1,0),"Custom",BE17) -> 0 | BF26: =_xlfn.SWITCH($P26,"Bullet",IF($F26=BF$4,1,0),"Amortizing",1/($F26-$E26)*BF25,"Zero-coupon",IF(BF$4=$F26,1,0),"Custom",BF17) -> 0 | BG26: =_xlfn.SWITCH($P26,"Bullet",IF($F26=BG$4,1,0),"Amortizing",1/($F26-$E26)*BG25,"Zero-coupon",IF(BG$4=$F26,1,0),"Custom",BG17) -> 0 | BH26: =_xlfn.SWITCH($P26,"Bullet",IF($F26=BH$4,1,0),"Amortizing",1/($F26-$E26)*BH25,"Zero-coupon",IF(BH$4=$F26,1,0),"Custom",BH17) -> 0 | BI26: =_xlfn.SWITCH($P26,"Bullet",IF($F26=BI$4,1,0),"Amortizing",1/($F26-$E26)*BI25,"Zero-coupon",IF(BI$4=$F26,1,0),"Custom",BI17) -> 0 | BJ26: =_xlfn.SWITCH($P26,"Bullet",IF($F26=BJ$4,1,0),"Amortizing",1/($F26-$E26)*BJ25,"Zero-coupon",IF(BJ$4=$F26,1,0),"Custom",BJ17) -> 0 | BK26: =_xlfn.SWITCH($P26,"Bullet",IF($F26=BK$4,1,0),"Amortizing",1/($F26-$E26)*BK25,"Zero-coupon",IF(BK$4=$F26,1,0),"Custom",BK17) -> 0 | BL26: =_xlfn.SWITCH($P26,"Bullet",IF($F26=BL$4,1,0),"Amortizing",1/($F26-$E26)*BL25,"Zero-coupon",IF(BL$4=$F26,1,0),"Custom",BL17) -> 0 | BM26: =_xlfn.SWITCH($P26,"Bullet",IF($F26=BM$4,1,0),"Amortizing",1/($F26-$E26)*BM25,"Zero-coupon",IF(BM$4=$F26,1,0),"Custom",BM17) -> 0 | BN26: =_xlfn.SWITCH($P26,"Bullet",IF($F26=BN$4,1,0),"Amortizing",1/($F26-$E26)*BN25,"Zero-coupon",IF(BN$4=$F26,1,0),"Custom",BN17) -> 0 | BO26: =_xlfn.SWITCH($P26,"Bullet",IF($F26=BO$4,1,0),"Amortizing",1/($F26-$E26)*BO25,"Zero-coupon",IF(BO$4=$F26,1,0),"Custom",BO17) -> 0 | BP26: =_xlfn.SWITCH($P26,"Bullet",IF($F26=BP$4,1,0),"Amortizing",1/($F26-$E26)*BP25,"Zero-coupon",IF(BP$4=$F26,1,0),"Custom",BP17) -> 0 | BQ26: =_xlfn.SWITCH($P26,"Bullet",IF($F26=BQ$4,1,0),"Amortizing",1/($F26-$E26)*BQ25,"Zero-coupon",IF(BQ$4=$F26,1,0),"Custom",BQ17) -> 0 | BR26: =_xlfn.SWITCH($P26,"Bullet",IF($F26=BR$4,1,0),"Amortizing",1/($F26-$E26)*BR25,"Zero-coupon",IF(BR$4=$F26,1,0),"Custom",BR17) -> 0 | BS26: =_xlfn.SWITCH($P26,"Bullet",IF($F26=BS$4,1,0),"Amortizing",1/($F26-$E26)*BS25,"Zero-coupon",IF(BS$4=$F26,1,0),"Custom",BS17) -> 0 | BT26: =_xlfn.SWITCH($P26,"Bullet",IF($F26=BT$4,1,0),"Amortizing",1/($F26-$E26)*BT25,"Zero-coupon",IF(BT$4=$F26,1,0),"Custom",BT17) -> 0 | BU26: =_xlfn.SWITCH($P26,"Bullet",IF($F26=BU$4,1,0),"Amortizing",1/($F26-$E26)*BU25,"Zero-coupon",IF(BU$4=$F26,1,0),"Custom",BU17) -> 0 | BV26: =_xlfn.SWITCH($P26,"Bullet",IF($F26=BV$4,1,0),"Amortizing",1/($F26-$E26)*BV25,"Zero-coupon",IF(BV$4=$F26,1,0),"Custom",BV17) -> 0 | BW26: =_xlfn.SWITCH($P26,"Bullet",IF($F26=BW$4,1,0),"Amortizing",1/($F26-$E26)*BW25,"Zero-coupon",IF(BW$4=$F26,1,0),"Custom",BW17) -> 0 | BX26: =_xlfn.SWITCH($P26,"Bullet",IF($F26=BX$4,1,0),"Amortizing",1/($F26-$E26)*BX25,"Zero-coupon",IF(BX$4=$F26,1,0),"Custom",BX17) -> 0 | BY26: =_xlfn.SWITCH($P26,"Bullet",IF($F26=BY$4,1,0),"Amortizing",1/($F26-$E26)*BY25,"Zero-coupon",IF(BY$4=$F26,1,0),"Custom",BY17) -> 0 | BZ26: =_xlfn.SWITCH($P26,"Bullet",IF($F26=BZ$4,1,0),"Amortizing",1/($F26-$E26)*BZ25,"Zero-coupon",IF(BZ$4=$F26,1,0),"Custom",BZ17) -> 0 | CA26: =_xlfn.SWITCH($P26,"Bullet",IF($F26=CA$4,1,0),"Amortizing",1/($F26-$E26)*CA25,"Zero-coupon",IF(CA$4=$F26,1,0),"Custom",CA17) -> 0 | CB26: =_xlfn.SWITCH($P26,"Bullet",IF($F26=CB$4,1,0),"Amortizing",1/($F26-$E26)*CB25,"Zero-coupon",IF(CB$4=$F26,1,0),"Custom",CB17) -> 0 | CC26: =_xlfn.SWITCH($P26,"Bullet",IF($F26=CC$4,1,0),"Amortizing",1/($F26-$E26)*CC25,"Zero-coupon",IF(CC$4=$F26,1,0),"Custom",CC17) -> 0 | CD26: =_xlfn.SWITCH($P26,"Bullet",IF($F26=CD$4,1,0),"Amortizing",1/($F26-$E26)*CD25,"Zero-coupon",IF(CD$4=$F26,1,0),"Custom",CD17) -> 0 | CE26: =_xlfn.SWITCH($P26,"Bullet",IF($F26=CE$4,1,0),"Amortizing",1/($F26-$E26)*CE25,"Zero-coupon",IF(CE$4=$F26,1,0),"Custom",CE17) -> 0 | CF26: =_xlfn.SWITCH($P26,"Bullet",IF($F26=CF$4,1,0),"Amortizing",1/($F26-$E26)*CF25,"Zero-coupon",IF(CF$4=$F26,1,0),"Custom",CF17) -> 0 | CG26: =_xlfn.SWITCH($P26,"Bullet",IF($F26=CG$4,1,0),"Amortizing",1/($F26-$E26)*CG25,"Zero-coupon",IF(CG$4=$F26,1,0),"Custom",CG17) -> 0 | CH26: =_xlfn.SWITCH($P26,"Bullet",IF($F26=CH$4,1,0),"Amortizing",1/($F26-$E26)*CH25,"Zero-coupon",IF(CH$4=$F26,1,0),"Custom",CH17) -> 0 | CI26: =_xlfn.SWITCH($P26,"Bullet",IF($F26=CI$4,1,0),"Amortizing",1/($F26-$E26)*CI25,"Zero-coupon",IF(CI$4=$F26,1,0),"Custom",CI17) -> 0 | CJ26: =_xlfn.SWITCH($P26,"Bullet",IF($F26=CJ$4,1,0),"Amortizing",1/($F26-$E26)*CJ25,"Zero-coupon",IF(CJ$4=$F26,1,0),"Custom",CJ17) -> 0 | CK26: =_xlfn.SWITCH($P26,"Bullet",IF($F26=CK$4,1,0),"Amortizing",1/($F26-$E26)*CK25,"Zero-coupon",IF(CK$4=$F26,1,0),"Custom",CK17) -> 0 | CL26: =_xlfn.SWITCH($P26,"Bullet",IF($F26=CL$4,1,0),"Amortizing",1/($F26-$E26)*CL25,"Zero-coupon",IF(CL$4=$F26,1,0),"Custom",CL17) -> 0 | CM26: =_xlfn.SWITCH($P26,"Bullet",IF($F26=CM$4,1,0),"Amortizing",1/($F26-$E26)*CM25,"Zero-coupon",IF(CM$4=$F26,1,0),"Custom",CM17) -> 0 | CN26: =_xlfn.SWITCH($P26,"Bullet",IF($F26=CN$4,1,0),"Amortizing",1/($F26-$E26)*CN25,"Zero-coupon",IF(CN$4=$F26,1,0),"Custom",CN17) -> 0 | CO26: =_xlfn.SWITCH($P26,"Bullet",IF($F26=CO$4,1,0),"Amortizing",1/($F26-$E26)*CO25,"Zero-coupon",IF(CO$4=$F26,1,0),"Custom",CO17) -> 0 | CP26: =_xlfn.SWITCH($P26,"Bullet",IF($F26=CP$4,1,0),"Amortizing",1/($F26-$E26)*CP25,"Zero-coupon",IF(CP$4=$F26,1,0),"Custom",CP17) -> 0 | CQ26: =_xlfn.SWITCH($P26,"Bullet",IF($F26=CQ$4,1,0),"Amortizing",1/($F26-$E26)*CQ25,"Zero-coupon",IF(CQ$4=$F26,1,0),"Custom",CQ17) -> 0 | CR26: =_xlfn.SWITCH($P26,"Bullet",IF($F26=CR$4,1,0),"Amortizing",1/($F26-$E26)*CR25,"Zero-coupon",IF(CR$4=$F26,1,0),"Custom",CR17) -> 0 | CS26: =_xlfn.SWITCH($P26,"Bullet",IF($F26=CS$4,1,0),"Amortizing",1/($F26-$E26)*CS25,"Zero-coupon",IF(CS$4=$F26,1,0),"Custom",CS17) -> 0 | CT26: =_xlfn.SWITCH($P26,"Bullet",IF($F26=CT$4,1,0),"Amortizing",1/($F26-$E26)*CT25,"Zero-coupon",IF(CT$4=$F26,1,0),"Custom",CT17) -> 0 | CU26: =_xlfn.SWITCH($P26,"Bullet",IF($F26=CU$4,1,0),"Amortizing",1/($F26-$E26)*CU25,"Zero-coupon",IF(CU$4=$F26,1,0),"Custom",CU17) -> 0 | CV26: =_xlfn.SWITCH($P26,"Bullet",IF($F26=CV$4,1,0),"Amortizing",1/($F26-$E26)*CV25,"Zero-coupon",IF(CV$4=$F26,1,0),"Custom",CV17) -> 0 | CW26: =_xlfn.SWITCH($P26,"Bullet",IF($F26=CW$4,1,0),"Amortizing",1/($F26-$E26)*CW25,"Zero-coupon",IF(CW$4=$F26,1,0),"Custom",CW17) -> 0 | CX26: =_xlfn.SWITCH($P26,"Bullet",IF($F26=CX$4,1,0),"Amortizing",1/($F26-$E26)*CX25,"Zero-coupon",IF(CX$4=$F26,1,0),"Custom",CX17) -> 0 | CY26: =_xlfn.SWITCH($P26,"Bullet",IF($F26=CY$4,1,0),"Amortizing",1/($F26-$E26)*CY25,"Zero-coupon",IF(CY$4=$F26,1,0),"Custom",CY17) -> 0
A27: =Q27&"_"&C27&"_"&D27 -> HEAD_FI_1_ | C27: =COUNTIF(D$1:D27,"=X")+$C$6 -> 1 | Q27: HEAD_FI | R27: Interest rate triangle
A28: =Q28&"_"&C28&"_"&D28 -> FI_1_0 | B28: =_xlfn.SWITCH(R17,"Yes","Committed","No","Uncommitted","Not given") -> Uncommitted | C28: =COUNTIF(D$1:D28,"=X")+$C$6 -> 1 | D28: 0 | E28: =R12 -> 1 | F28: =R13 -> 5 | G28: =ProjYr+D28 -> 2023 | H28: =G28+E28 -> 2024 | I28: =G28+F28 -> 2028 | J28: =U10 -> 1 | K28: =R8 -> Local | L28: =R10 -> Market | M28: =R9 -> Fixed | N28: =R14 -> Cent. Govt | O28: =_xlfn.SWITCH(R11,"Semiannual",0.5,"Annual",1,"Custom",1) -> 1 | P28: =IF(R11="Custom","Custom",IF(R9="Zero-coupon","Zero-coupon",IF(E28=F28,"Bullet","Amortizing"))) -> Amortizing | Q28: FI | R28: Note on the formula: There are 2 parts: (1) The SWITCH statement assigns the applicable interest rate, if "Fixed" it is the user's entry in the year of issuance; if "Floating", then it is the user's entry in the current year; if "Zero-coupon", it is the interest rate the user entered in the issuance year, compounded to maturity. (2) A frequency component, if there are semiannual payments it is 0.5 and it is the first/last year, otherwise it is 1 (annual or custom). | U28: =_xlfn.SWITCH($M28,"Fixed",$U9,"Floating",U9,"Zero-coupon",IF(U$3=$I28,(1+$U9)^$F28-1,0))*U24 -> 0 | V28: =_xlfn.SWITCH($M28,"Fixed",$U9,"Floating",V9,"Zero-coupon",IF(V$3=$I28,(1+$U9)^$F28-1,0))*V24 -> 0.05 | W28: =_xlfn.SWITCH($M28,"Fixed",$U9,"Floating",W9,"Zero-coupon",IF(W$3=$I28,(1+$U9)^$F28-1,0))*W24 -> 0.05 | X28: =_xlfn.SWITCH($M28,"Fixed",$U9,"Floating",X9,"Zero-coupon",IF(X$3=$I28,(1+$U9)^$F28-1,0))*X24 -> 0.05 | Y28: =_xlfn.SWITCH($M28,"Fixed",$U9,"Floating",Y9,"Zero-coupon",IF(Y$3=$I28,(1+$U9)^$F28-1,0))*Y24 -> 0.05 | Z28: =_xlfn.SWITCH($M28,"Fixed",$U9,"Floating",Z9,"Zero-coupon",IF(Z$3=$I28,(1+$U9)^$F28-1,0))*Z24 -> 0.05 | AA28: =_xlfn.SWITCH($M28,"Fixed",$U9,"Floating",AA9,"Zero-coupon",IF(AA$3=$I28,(1+$U9)^$F28-1,0))*AA24 -> 0 | AB28: =_xlfn.SWITCH($M28,"Fixed",$U9,"Floating",AB9,"Zero-coupon",IF(AB$3=$I28,(1+$U9)^$F28-1,0))*AB24 -> 0 | AC28: =_xlfn.SWITCH($M28,"Fixed",$U9,"Floating",AC9,"Zero-coupon",IF(AC$3=$I28,(1+$U9)^$F28-1,0))*AC24 -> 0 | AD28: =_xlfn.SWITCH($M28,"Fixed",$U9,"Floating",AD9,"Zero-coupon",IF(AD$3=$I28,(1+$U9)^$F28-1,0))*AD24 -> 0 | AE28: =_xlfn.SWITCH($M28,"Fixed",$U9,"Floating",AE9,"Zero-coupon",IF(AE$3=$I28,(1+$U9)^$F28-1,0))*AE24 -> 0 | AF28: =_xlfn.SWITCH($M28,"Fixed",$U9,"Floating",AF9,"Zero-coupon",IF(AF$3=$I28,(1+$U9)^$F28-1,0))*AF24 -> 0 | AG28: =_xlfn.SWITCH($M28,"Fixed",$U9,"Floating",AG9,"Zero-coupon",IF(AG$3=$I28,(1+$U9)^$F28-1,0))*AG24 -> 0 | AH28: =_xlfn.SWITCH($M28,"Fixed",$U9,"Floating",AH9,"Zero-coupon",IF(AH$3=$I28,(1+$U9)^$F28-1,0))*AH24 -> 0 | AI28: =_xlfn.SWITCH($M28,"Fixed",$U9,"Floating",AI9,"Zero-coupon",IF(AI$3=$I28,(1+$U9)^$F28-1,0))*AI24 -> 0 | AJ28: =_xlfn.SWITCH($M28,"Fixed",$U9,"Floating",AJ9,"Zero-coupon",IF(AJ$3=$I28,(1+$U9)^$F28-1,0))*AJ24 -> 0 | AK28: =_xlfn.SWITCH($M28,"Fixed",$U9,"Floating",AK9,"Zero-coupon",IF(AK$3=$I28,(1+$U9)^$F28-1,0))*AK24 -> 0 | AL28: =_xlfn.SWITCH($M28,"Fixed",$U9,"Floating",AL9,"Zero-coupon",IF(AL$3=$I28,(1+$U9)^$F28-1,0))*AL24 -> 0 | AM28: =_xlfn.SWITCH($M28,"Fixed",$U9,"Floating",AM9,"Zero-coupon",IF(AM$3=$I28,(1+$U9)^$F28-1,0))*AM24 -> 0 | AN28: =_xlfn.SWITCH($M28,"Fixed",$U9,"Floating",AN9,"Zero-coupon",IF(AN$3=$I28,(1+$U9)^$F28-1,0))*AN24 -> 0 | AO28: =_xlfn.SWITCH($M28,"Fixed",$U9,"Floating",AO9,"Zero-coupon",IF(AO$3=$I28,(1+$U9)^$F28-1,0))*AO24 -> 0 | AP28: =_xlfn.SWITCH($M28,"Fixed",$U9,"Floating",AP9,"Zero-coupon",IF(AP$3=$I28,(1+$U9)^$F28-1,0))*AP24 -> 0 | AQ28: =_xlfn.SWITCH($M28,"Fixed",$U9,"Floating",AQ9,"Zero-coupon",IF(AQ$3=$I28,(1+$U9)^$F28-1,0))*AQ24 -> 0 | AR28: =_xlfn.SWITCH($M28,"Fixed",$U9,"Floating",AR9,"Zero-coupon",IF(AR$3=$I28,(1+$U9)^$F28-1,0))*AR24 -> 0 | AS28: =_xlfn.SWITCH($M28,"Fixed",$U9,"Floating",AS9,"Zero-coupon",IF(AS$3=$I28,(1+$U9)^$F28-1,0))*AS24 -> 0 | AT28: =_xlfn.SWITCH($M28,"Fixed",$U9,"Floating",AT9,"Zero-coupon",IF(AT$3=$I28,(1+$U9)^$F28-1,0))*AT24 -> 0 | AU28: =_xlfn.SWITCH($M28,"Fixed",$U9,"Floating",AU9,"Zero-coupon",IF(AU$3=$I28,(1+$U9)^$F28-1,0))*AU24 -> 0 | AV28: =_xlfn.SWITCH($M28,"Fixed",$U9,"Floating",AV9,"Zero-coupon",IF(AV$3=$I28,(1+$U9)^$F28-1,0))*AV24 -> 0 | AW28: =_xlfn.SWITCH($M28,"Fixed",$U9,"Floating",AW9,"Zero-coupon",IF(AW$3=$I28,(1+$U9)^$F28-1,0))*AW24 -> 0 | AX28: =_xlfn.SWITCH($M28,"Fixed",$U9,"Floating",AX9,"Zero-coupon",IF(AX$3=$I28,(1+$U9)^$F28-1,0))*AX24 -> 0 | AY28: =_xlfn.SWITCH($M28,"Fixed",$U9,"Floating",AY9,"Zero-coupon",IF(AY$3=$I28,(1+$U9)^$F28-1,0))*AY24 -> 0 | AZ28: =_xlfn.SWITCH($M28,"Fixed",$U9,"Floating",AZ9,"Zero-coupon",IF(AZ$3=$I28,(1+$U9)^$F28-1,0))*AZ24 -> 0 | BA28: =_xlfn.SWITCH($M28,"Fixed",$U9,"Floating",BA9,"Zero-coupon",IF(BA$3=$I28,(1+$U9)^$F28-1,0))*BA24 -> 0 | BB28: =_xlfn.SWITCH($M28,"Fixed",$U9,"Floating",BB9,"Zero-coupon",IF(BB$3=$I28,(1+$U9)^$F28-1,0))*BB24 -> 0 | BC28: =_xlfn.SWITCH($M28,"Fixed",$U9,"Floating",BC9,"Zero-coupon",IF(BC$3=$I28,(1+$U9)^$F28-1,0))*BC24 -> 0 | BD28: =_xlfn.SWITCH($M28,"Fixed",$U9,"Floating",BD9,"Zero-coupon",IF(BD$3=$I28,(1+$U9)^$F28-1,0))*BD24 -> 0 | BE28: =_xlfn.SWITCH($M28,"Fixed",$U9,"Floating",BE9,"Zero-coupon",IF(BE$3=$I28,(1+$U9)^$F28-1,0))*BE24 -> 0 | BF28: =_xlfn.SWITCH($M28,"Fixed",$U9,"Floating",BF9,"Zero-coupon",IF(BF$3=$I28,(1+$U9)^$F28-1,0))*BF24 -> 0 | BG28: =_xlfn.SWITCH($M28,"Fixed",$U9,"Floating",BG9,"Zero-coupon",IF(BG$3=$I28,(1+$U9)^$F28-1,0))*BG24 -> 0 | BH28: =_xlfn.SWITCH($M28,"Fixed",$U9,"Floating",BH9,"Zero-coupon",IF(BH$3=$I28,(1+$U9)^$F28-1,0))*BH24 -> 0 | BI28: =_xlfn.SWITCH($M28,"Fixed",$U9,"Floating",BI9,"Zero-coupon",IF(BI$3=$I28,(1+$U9)^$F28-1,0))*BI24 -> 0 | BJ28: =_xlfn.SWITCH($M28,"Fixed",$U9,"Floating",BJ9,"Zero-coupon",IF(BJ$3=$I28,(1+$U9)^$F28-1,0))*BJ24 -> 0 | BK28: =_xlfn.SWITCH($M28,"Fixed",$U9,"Floating",BK9,"Zero-coupon",IF(BK$3=$I28,(1+$U9)^$F28-1,0))*BK24 -> 0 | BL28: =_xlfn.SWITCH($M28,"Fixed",$U9,"Floating",BL9,"Zero-coupon",IF(BL$3=$I28,(1+$U9)^$F28-1,0))*BL24 -> 0 | BM28: =_xlfn.SWITCH($M28,"Fixed",$U9,"Floating",BM9,"Zero-coupon",IF(BM$3=$I28,(1+$U9)^$F28-1,0))*BM24 -> 0 | BN28: =_xlfn.SWITCH($M28,"Fixed",$U9,"Floating",BN9,"Zero-coupon",IF(BN$3=$I28,(1+$U9)^$F28-1,0))*BN24 -> 0 | BO28: =_xlfn.SWITCH($M28,"Fixed",$U9,"Floating",BO9,"Zero-coupon",IF(BO$3=$I28,(1+$U9)^$F28-1,0))*BO24 -> 0 | BP28: =_xlfn.SWITCH($M28,"Fixed",$U9,"Floating",BP9,"Zero-coupon",IF(BP$3=$I28,(1+$U9)^$F28-1,0))*BP24 -> 0 | BQ28: =_xlfn.SWITCH($M28,"Fixed",$U9,"Floating",BQ9,"Zero-coupon",IF(BQ$3=$I28,(1+$U9)^$F28-1,0))*BQ24 -> 0 | BR28: =_xlfn.SWITCH($M28,"Fixed",$U9,"Floating",BR9,"Zero-coupon",IF(BR$3=$I28,(1+$U9)^$F28-1,0))*BR24 -> 0 | BS28: =_xlfn.SWITCH($M28,"Fixed",$U9,"Floating",BS9,"Zero-coupon",IF(BS$3=$I28,(1+$U9)^$F28-1,0))*BS24 -> 0 | BT28: =_xlfn.SWITCH($M28,"Fixed",$U9,"Floating",BT9,"Zero-coupon",IF(BT$3=$I28,(1+$U9)^$F28-1,0))*BT24 -> 0 | BU28: =_xlfn.SWITCH($M28,"Fixed",$U9,"Floating",BU9,"Zero-coupon",IF(BU$3=$I28,(1+$U9)^$F28-1,0))*BU24 -> 0 | BV28: =_xlfn.SWITCH($M28,"Fixed",$U9,"Floating",BV9,"Zero-coupon",IF(BV$3=$I28,(1+$U9)^$F28-1,0))*BV24 -> 0 | BW28: =_xlfn.SWITCH($M28,"Fixed",$U9,"Floating",BW9,"Zero-coupon",IF(BW$3=$I28,(1+$U9)^$F28-1,0))*BW24 -> 0 | BX28: =_xlfn.SWITCH($M28,"Fixed",$U9,"Floating",BX9,"Zero-coupon",IF(BX$3=$I28,(1+$U9)^$F28-1,0))*BX24 -> 0 | BY28: =_xlfn.SWITCH($M28,"Fixed",$U9,"Floating",BY9,"Zero-coupon",IF(BY$3=$I28,(1+$U9)^$F28-1,0))*BY24 -> 0 | BZ28: =_xlfn.SWITCH($M28,"Fixed",$U9,"Floating",BZ9,"Zero-coupon",IF(BZ$3=$I28,(1+$U9)^$F28-1,0))*BZ24 -> 0 | CA28: =_xlfn.SWITCH($M28,"Fixed",$U9,"Floating",CA9,"Zero-coupon",IF(CA$3=$I28,(1+$U9)^$F28-1,0))*CA24 -> 0 | CB28: =_xlfn.SWITCH($M28,"Fixed",$U9,"Floating",CB9,"Zero-coupon",IF(CB$3=$I28,(1+$U9)^$F28-1,0))*CB24 -> 0 | CC28: =_xlfn.SWITCH($M28,"Fixed",$U9,"Floating",CC9,"Zero-coupon",IF(CC$3=$I28,(1+$U9)^$F28-1,0))*CC24 -> 0 | CD28: =_xlfn.SWITCH($M28,"Fixed",$U9,"Floating",CD9,"Zero-coupon",IF(CD$3=$I28,(1+$U9)^$F28-1,0))*CD24 -> 0 | CE28: =_xlfn.SWITCH($M28,"Fixed",$U9,"Floating",CE9,"Zero-coupon",IF(CE$3=$I28,(1+$U9)^$F28-1,0))*CE24 -> 0 | CF28: =_xlfn.SWITCH($M28,"Fixed",$U9,"Floating",CF9,"Zero-coupon",IF(CF$3=$I28,(1+$U9)^$F28-1,0))*CF24 -> 0 | CG28: =_xlfn.SWITCH($M28,"Fixed",$U9,"Floating",CG9,"Zero-coupon",IF(CG$3=$I28,(1+$U9)^$F28-1,0))*CG24 -> 0 | CH28: =_xlfn.SWITCH($M28,"Fixed",$U9,"Floating",CH9,"Zero-coupon",IF(CH$3=$I28,(1+$U9)^$F28-1,0))*CH24 -> 0 | CI28: =_xlfn.SWITCH($M28,"Fixed",$U9,"Floating",CI9,"Zero-coupon",IF(CI$3=$I28,(1+$U9)^$F28-1,0))*CI24 -> 0 | CJ28: =_xlfn.SWITCH($M28,"Fixed",$U9,"Floating",CJ9,"Zero-coupon",IF(CJ$3=$I28,(1+$U9)^$F28-1,0))*CJ24 -> 0 | CK28: =_xlfn.SWITCH($M28,"Fixed",$U9,"Floating",CK9,"Zero-coupon",IF(CK$3=$I28,(1+$U9)^$F28-1,0))*CK24 -> 0 | CL28: =_xlfn.SWITCH($M28,"Fixed",$U9,"Floating",CL9,"Zero-coupon",IF(CL$3=$I28,(1+$U9)^$F28-1,0))*CL24 -> 0 | CM28: =_xlfn.SWITCH($M28,"Fixed",$U9,"Floating",CM9,"Zero-coupon",IF(CM$3=$I28,(1+$U9)^$F28-1,0))*CM24 -> 0 | CN28: =_xlfn.SWITCH($M28,"Fixed",$U9,"Floating",CN9,"Zero-coupon",IF(CN$3=$I28,(1+$U9)^$F28-1,0))*CN24 -> 0 | CO28: =_xlfn.SWITCH($M28,"Fixed",$U9,"Floating",CO9,"Zero-coupon",IF(CO$3=$I28,(1+$U9)^$F28-1,0))*CO24 -> 0 | CP28: =_xlfn.SWITCH($M28,"Fixed",$U9,"Floating",CP9,"Zero-coupon",IF(CP$3=$I28,(1+$U9)^$F28-1,0))*CP24 -> 0 | CQ28: =_xlfn.SWITCH($M28,"Fixed",$U9,"Floating",CQ9,"Zero-coupon",IF(CQ$3=$I28,(1+$U9)^$F28-1,0))*CQ24 -> 0 | CR28: =_xlfn.SWITCH($M28,"Fixed",$U9,"Floating",CR9,"Zero-coupon",IF(CR$3=$I28,(1+$U9)^$F28-1,0))*CR24 -> 0 | CS28: =_xlfn.SWITCH($M28,"Fixed",$U9,"Floating",CS9,"Zero-coupon",IF(CS$3=$I28,(1+$U9)^$F28-1,0))*CS24 -> 0 | CT28: =_xlfn.SWITCH($M28,"Fixed",$U9,"Floating",CT9,"Zero-coupon",IF(CT$3=$I28,(1+$U9)^$F28-1,0))*CT24 -> 0 | CU28: =_xlfn.SWITCH($M28,"Fixed",$U9,"Floating",CU9,"Zero-coupon",IF(CU$3=$I28,(1+$U9)^$F28-1,0))*CU24 -> 0 | CV28: =_xlfn.SWITCH($M28,"Fixed",$U9,"Floating",CV9,"Zero-coupon",IF(CV$3=$I28,(1+$U9)^$F28-1,0))*CV24 -> 0 | CW28: =_xlfn.SWITCH($M28,"Fixed",$U9,"Floating",CW9,"Zero-coupon",IF(CW$3=$I28,(1+$U9)^$F28-1,0))*CW24 -> 0 | CX28: =_xlfn.SWITCH($M28,"Fixed",$U9,"Floating",CX9,"Zero-coupon",IF(CX$3=$I28,(1+$U9)^$F28-1,0))*CX24 -> 0 | CY28: =_xlfn.SWITCH($M28,"Fixed",$U9,"Floating",CY9,"Zero-coupon",IF(CY$3=$I28,(1+$U9)^$F28-1,0))*CY24 -> 0
A29: =Q29&"_"&C29&"_"&D29 -> FI_1_1 | B29: =_xlfn.SWITCH(R17,"Yes","Committed","No","Uncommitted","Not given") -> Uncommitted | C29: =COUNTIF(D$1:D29,"=X")+$C$6 -> 1 | D29: 1 | E29: =R12 -> 1 | F29: =R13 -> 5 | G29: 2024 | H29: =G29+E29 -> 2025 | I29: =G29+F29 -> 2029 | J29: =V10 -> 1 | K29: =R8 -> Local | L29: =R10 -> Market | M29: =R9 -> Fixed | N29: =R14 -> Cent. Govt | O29: =_xlfn.SWITCH(R11,"Semiannual",0.5,"Annual",1,"Custom",1) -> 1 | P29: =IF(R11="Custom","Custom",IF(R9="Zero-coupon","Zero-coupon",IF(E29=F29,"Bullet","Amortizing"))) -> Amortizing | Q29: FI | V29: =_xlfn.SWITCH($M29,"Fixed",$V9,"Floating",V9,"Zero-coupon",IF(V$3=$I29,(1+$V9)^$F29-1,0))*U24 -> 0 | W29: =_xlfn.SWITCH($M29,"Fixed",$V9,"Floating",W9,"Zero-coupon",IF(W$3=$I29,(1+$V9)^$F29-1,0))*V24 -> 0.03 | X29: =_xlfn.SWITCH($M29,"Fixed",$V9,"Floating",X9,"Zero-coupon",IF(X$3=$I29,(1+$V9)^$F29-1,0))*W24 -> 0.03 | Y29: =_xlfn.SWITCH($M29,"Fixed",$V9,"Floating",Y9,"Zero-coupon",IF(Y$3=$I29,(1+$V9)^$F29-1,0))*X24 -> 0.03 | Z29: =_xlfn.SWITCH($M29,"Fixed",$V9,"Floating",Z9,"Zero-coupon",IF(Z$3=$I29,(1+$V9)^$F29-1,0))*Y24 -> 0.03 | AA29: =_xlfn.SWITCH($M29,"Fixed",$V9,"Floating",AA9,"Zero-coupon",IF(AA$3=$I29,(1+$V9)^$F29-1,0))*Z24 -> 0.03 | AB29: =_xlfn.SWITCH($M29,"Fixed",$V9,"Floating",AB9,"Zero-coupon",IF(AB$3=$I29,(1+$V9)^$F29-1,0))*AA24 -> 0 | AC29: =_xlfn.SWITCH($M29,"Fixed",$V9,"Floating",AC9,"Zero-coupon",IF(AC$3=$I29,(1+$V9)^$F29-1,0))*AB24 -> 0 | AD29: =_xlfn.SWITCH($M29,"Fixed",$V9,"Floating",AD9,"Zero-coupon",IF(AD$3=$I29,(1+$V9)^$F29-1,0))*AC24 -> 0 | AE29: =_xlfn.SWITCH($M29,"Fixed",$V9,"Floating",AE9,"Zero-coupon",IF(AE$3=$I29,(1+$V9)^$F29-1,0))*AD24 -> 0 | AF29: =_xlfn.SWITCH($M29,"Fixed",$V9,"Floating",AF9,"Zero-coupon",IF(AF$3=$I29,(1+$V9)^$F29-1,0))*AE24 -> 0 | AG29: =_xlfn.SWITCH($M29,"Fixed",$V9,"Floating",AG9,"Zero-coupon",IF(AG$3=$I29,(1+$V9)^$F29-1,0))*AF24 -> 0 | AH29: =_xlfn.SWITCH($M29,"Fixed",$V9,"Floating",AH9,"Zero-coupon",IF(AH$3=$I29,(1+$V9)^$F29-1,0))*AG24 -> 0 | AI29: =_xlfn.SWITCH($M29,"Fixed",$V9,"Floating",AI9,"Zero-coupon",IF(AI$3=$I29,(1+$V9)^$F29-1,0))*AH24 -> 0 | AJ29: =_xlfn.SWITCH($M29,"Fixed",$V9,"Floating",AJ9,"Zero-coupon",IF(AJ$3=$I29,(1+$V9)^$F29-1,0))*AI24 -> 0 | AK29: =_xlfn.SWITCH($M29,"Fixed",$V9,"Floating",AK9,"Zero-coupon",IF(AK$3=$I29,(1+$V9)^$F29-1,0))*AJ24 -> 0 | AL29: =_xlfn.SWITCH($M29,"Fixed",$V9,"Floating",AL9,"Zero-coupon",IF(AL$3=$I29,(1+$V9)^$F29-1,0))*AK24 -> 0 | AM29: =_xlfn.SWITCH($M29,"Fixed",$V9,"Floating",AM9,"Zero-coupon",IF(AM$3=$I29,(1+$V9)^$F29-1,0))*AL24 -> 0 | AN29: =_xlfn.SWITCH($M29,"Fixed",$V9,"Floating",AN9,"Zero-coupon",IF(AN$3=$I29,(1+$V9)^$F29-1,0))*AM24 -> 0 | AO29: =_xlfn.SWITCH($M29,"Fixed",$V9,"Floating",AO9,"Zero-coupon",IF(AO$3=$I29,(1+$V9)^$F29-1,0))*AN24 -> 0 | AP29: =_xlfn.SWITCH($M29,"Fixed",$V9,"Floating",AP9,"Zero-coupon",IF(AP$3=$I29,(1+$V9)^$F29-1,0))*AO24 -> 0 | AQ29: =_xlfn.SWITCH($M29,"Fixed",$V9,"Floating",AQ9,"Zero-coupon",IF(AQ$3=$I29,(1+$V9)^$F29-1,0))*AP24 -> 0 | AR29: =_xlfn.SWITCH($M29,"Fixed",$V9,"Floating",AR9,"Zero-coupon",IF(AR$3=$I29,(1+$V9)^$F29-1,0))*AQ24 -> 0 | AS29: =_xlfn.SWITCH($M29,"Fixed",$V9,"Floating",AS9,"Zero-coupon",IF(AS$3=$I29,(1+$V9)^$F29-1,0))*AR24 -> 0 | AT29: =_xlfn.SWITCH($M29,"Fixed",$V9,"Floating",AT9,"Zero-coupon",IF(AT$3=$I29,(1+$V9)^$F29-1,0))*AS24 -> 0 | AU29: =_xlfn.SWITCH($M29,"Fixed",$V9,"Floating",AU9,"Zero-coupon",IF(AU$3=$I29,(1+$V9)^$F29-1,0))*AT24 -> 0 | AV29: =_xlfn.SWITCH($M29,"Fixed",$V9,"Floating",AV9,"Zero-coupon",IF(AV$3=$I29,(1+$V9)^$F29-1,0))*AU24 -> 0 | AW29: =_xlfn.SWITCH($M29,"Fixed",$V9,"Floating",AW9,"Zero-coupon",IF(AW$3=$I29,(1+$V9)^$F29-1,0))*AV24 -> 0 | AX29: =_xlfn.SWITCH($M29,"Fixed",$V9,"Floating",AX9,"Zero-coupon",IF(AX$3=$I29,(1+$V9)^$F29-1,0))*AW24 -> 0 | AY29: =_xlfn.SWITCH($M29,"Fixed",$V9,"Floating",AY9,"Zero-coupon",IF(AY$3=$I29,(1+$V9)^$F29-1,0))*AX24 -> 0 | AZ29: =_xlfn.SWITCH($M29,"Fixed",$V9,"Floating",AZ9,"Zero-coupon",IF(AZ$3=$I29,(1+$V9)^$F29-1,0))*AY24 -> 0 | BA29: =_xlfn.SWITCH($M29,"Fixed",$V9,"Floating",BA9,"Zero-coupon",IF(BA$3=$I29,(1+$V9)^$F29-1,0))*AZ24 -> 0 | BB29: =_xlfn.SWITCH($M29,"Fixed",$V9,"Floating",BB9,"Zero-coupon",IF(BB$3=$I29,(1+$V9)^$F29-1,0))*BA24 -> 0 | BC29: =_xlfn.SWITCH($M29,"Fixed",$V9,"Floating",BC9,"Zero-coupon",IF(BC$3=$I29,(1+$V9)^$F29-1,0))*BB24 -> 0 | BD29: =_xlfn.SWITCH($M29,"Fixed",$V9,"Floating",BD9,"Zero-coupon",IF(BD$3=$I29,(1+$V9)^$F29-1,0))*BC24 -> 0 | BE29: =_xlfn.SWITCH($M29,"Fixed",$V9,"Floating",BE9,"Zero-coupon",IF(BE$3=$I29,(1+$V9)^$F29-1,0))*BD24 -> 0 | BF29: =_xlfn.SWITCH($M29,"Fixed",$V9,"Floating",BF9,"Zero-coupon",IF(BF$3=$I29,(1+$V9)^$F29-1,0))*BE24 -> 0 | BG29: =_xlfn.SWITCH($M29,"Fixed",$V9,"Floating",BG9,"Zero-coupon",IF(BG$3=$I29,(1+$V9)^$F29-1,0))*BF24 -> 0 | BH29: =_xlfn.SWITCH($M29,"Fixed",$V9,"Floating",BH9,"Zero-coupon",IF(BH$3=$I29,(1+$V9)^$F29-1,0))*BG24 -> 0 | BI29: =_xlfn.SWITCH($M29,"Fixed",$V9,"Floating",BI9,"Zero-coupon",IF(BI$3=$I29,(1+$V9)^$F29-1,0))*BH24 -> 0 | BJ29: =_xlfn.SWITCH($M29,"Fixed",$V9,"Floating",BJ9,"Zero-coupon",IF(BJ$3=$I29,(1+$V9)^$F29-1,0))*BI24 -> 0 | BK29: =_xlfn.SWITCH($M29,"Fixed",$V9,"Floating",BK9,"Zero-coupon",IF(BK$3=$I29,(1+$V9)^$F29-1,0))*BJ24 -> 0 | BL29: =_xlfn.SWITCH($M29,"Fixed",$V9,"Floating",BL9,"Zero-coupon",IF(BL$3=$I29,(1+$V9)^$F29-1,0))*BK24 -> 0 | BM29: =_xlfn.SWITCH($M29,"Fixed",$V9,"Floating",BM9,"Zero-coupon",IF(BM$3=$I29,(1+$V9)^$F29-1,0))*BL24 -> 0 | BN29: =_xlfn.SWITCH($M29,"Fixed",$V9,"Floating",BN9,"Zero-coupon",IF(BN$3=$I29,(1+$V9)^$F29-1,0))*BM24 -> 0 | BO29: =_xlfn.SWITCH($M29,"Fixed",$V9,"Floating",BO9,"Zero-coupon",IF(BO$3=$I29,(1+$V9)^$F29-1,0))*BN24 -> 0 | BP29: =_xlfn.SWITCH($M29,"Fixed",$V9,"Floating",BP9,"Zero-coupon",IF(BP$3=$I29,(1+$V9)^$F29-1,0))*BO24 -> 0 | BQ29: =_xlfn.SWITCH($M29,"Fixed",$V9,"Floating",BQ9,"Zero-coupon",IF(BQ$3=$I29,(1+$V9)^$F29-1,0))*BP24 -> 0 | BR29: =_xlfn.SWITCH($M29,"Fixed",$V9,"Floating",BR9,"Zero-coupon",IF(BR$3=$I29,(1+$V9)^$F29-1,0))*BQ24 -> 0 | BS29: =_xlfn.SWITCH($M29,"Fixed",$V9,"Floating",BS9,"Zero-coupon",IF(BS$3=$I29,(1+$V9)^$F29-1,0))*BR24 -> 0 | BT29: =_xlfn.SWITCH($M29,"Fixed",$V9,"Floating",BT9,"Zero-coupon",IF(BT$3=$I29,(1+$V9)^$F29-1,0))*BS24 -> 0 | BU29: =_xlfn.SWITCH($M29,"Fixed",$V9,"Floating",BU9,"Zero-coupon",IF(BU$3=$I29,(1+$V9)^$F29-1,0))*BT24 -> 0 | BV29: =_xlfn.SWITCH($M29,"Fixed",$V9,"Floating",BV9,"Zero-coupon",IF(BV$3=$I29,(1+$V9)^$F29-1,0))*BU24 -> 0 | BW29: =_xlfn.SWITCH($M29,"Fixed",$V9,"Floating",BW9,"Zero-coupon",IF(BW$3=$I29,(1+$V9)^$F29-1,0))*BV24 -> 0 | BX29: =_xlfn.SWITCH($M29,"Fixed",$V9,"Floating",BX9,"Zero-coupon",IF(BX$3=$I29,(1+$V9)^$F29-1,0))*BW24 -> 0 | BY29: =_xlfn.SWITCH($M29,"Fixed",$V9,"Floating",BY9,"Zero-coupon",IF(BY$3=$I29,(1+$V9)^$F29-1,0))*BX24 -> 0 | BZ29: =_xlfn.SWITCH($M29,"Fixed",$V9,"Floating",BZ9,"Zero-coupon",IF(BZ$3=$I29,(1+$V9)^$F29-1,0))*BY24 -> 0 | CA29: =_xlfn.SWITCH($M29,"Fixed",$V9,"Floating",CA9,"Zero-coupon",IF(CA$3=$I29,(1+$V9)^$F29-1,0))*BZ24 -> 0 | CB29: =_xlfn.SWITCH($M29,"Fixed",$V9,"Floating",CB9,"Zero-coupon",IF(CB$3=$I29,(1+$V9)^$F29-1,0))*CA24 -> 0 | CC29: =_xlfn.SWITCH($M29,"Fixed",$V9,"Floating",CC9,"Zero-coupon",IF(CC$3=$I29,(1+$V9)^$F29-1,0))*CB24 -> 0 | CD29: =_xlfn.SWITCH($M29,"Fixed",$V9,"Floating",CD9,"Zero-coupon",IF(CD$3=$I29,(1+$V9)^$F29-1,0))*CC24 -> 0 | CE29: =_xlfn.SWITCH($M29,"Fixed",$V9,"Floating",CE9,"Zero-coupon",IF(CE$3=$I29,(1+$V9)^$F29-1,0))*CD24 -> 0 | CF29: =_xlfn.SWITCH($M29,"Fixed",$V9,"Floating",CF9,"Zero-coupon",IF(CF$3=$I29,(1+$V9)^$F29-1,0))*CE24 -> 0 | CG29: =_xlfn.SWITCH($M29,"Fixed",$V9,"Floating",CG9,"Zero-coupon",IF(CG$3=$I29,(1+$V9)^$F29-1,0))*CF24 -> 0 | CH29: =_xlfn.SWITCH($M29,"Fixed",$V9,"Floating",CH9,"Zero-coupon",IF(CH$3=$I29,(1+$V9)^$F29-1,0))*CG24 -> 0 | CI29: =_xlfn.SWITCH($M29,"Fixed",$V9,"Floating",CI9,"Zero-coupon",IF(CI$3=$I29,(1+$V9)^$F29-1,0))*CH24 -> 0 | CJ29: =_xlfn.SWITCH($M29,"Fixed",$V9,"Floating",CJ9,"Zero-coupon",IF(CJ$3=$I29,(1+$V9)^$F29-1,0))*CI24 -> 0 | CK29: =_xlfn.SWITCH($M29,"Fixed",$V9,"Floating",CK9,"Zero-coupon",IF(CK$3=$I29,(1+$V9)^$F29-1,0))*CJ24 -> 0 | CL29: =_xlfn.SWITCH($M29,"Fixed",$V9,"Floating",CL9,"Zero-coupon",IF(CL$3=$I29,(1+$V9)^$F29-1,0))*CK24 -> 0 | CM29: =_xlfn.SWITCH($M29,"Fixed",$V9,"Floating",CM9,"Zero-coupon",IF(CM$3=$I29,(1+$V9)^$F29-1,0))*CL24 -> 0 | CN29: =_xlfn.SWITCH($M29,"Fixed",$V9,"Floating",CN9,"Zero-coupon",IF(CN$3=$I29,(1+$V9)^$F29-1,0))*CM24 -> 0 | CO29: =_xlfn.SWITCH($M29,"Fixed",$V9,"Floating",CO9,"Zero-coupon",IF(CO$3=$I29,(1+$V9)^$F29-1,0))*CN24 -> 0 | CP29: =_xlfn.SWITCH($M29,"Fixed",$V9,"Floating",CP9,"Zero-coupon",IF(CP$3=$I29,(1+$V9)^$F29-1,0))*CO24 -> 0 | CQ29: =_xlfn.SWITCH($M29,"Fixed",$V9,"Floating",CQ9,"Zero-coupon",IF(CQ$3=$I29,(1+$V9)^$F29-1,0))*CP24 -> 0 | CR29: =_xlfn.SWITCH($M29,"Fixed",$V9,"Floating",CR9,"Zero-coupon",IF(CR$3=$I29,(1+$V9)^$F29-1,0))*CQ24 -> 0 | CS29: =_xlfn.SWITCH($M29,"Fixed",$V9,"Floating",CS9,"Zero-coupon",IF(CS$3=$I29,(1+$V9)^$F29-1,0))*CR24 -> 0 | CT29: =_xlfn.SWITCH($M29,"Fixed",$V9,"Floating",CT9,"Zero-coupon",IF(CT$3=$I29,(1+$V9)^$F29-1,0))*CS24 -> 0 | CU29: =_xlfn.SWITCH($M29,"Fixed",$V9,"Floating",CU9,"Zero-coupon",IF(CU$3=$I29,(1+$V9)^$F29-1,0))*CT24 -> 0 | CV29: =_xlfn.SWITCH($M29,"Fixed",$V9,"Floating",CV9,"Zero-coupon",IF(CV$3=$I29,(1+$V9)^$F29-1,0))*CU24 -> 0 | CW29: =_xlfn.SWITCH($M29,"Fixed",$V9,"Floating",CW9,"Zero-coupon",IF(CW$3=$I29,(1+$V9)^$F29-1,0))*CV24 -> 0 | CX29: =_xlfn.SWITCH($M29,"Fixed",$V9,"Floating",CX9,"Zero-coupon",IF(CX$3=$I29,(1+$V9)^$F29-1,0))*CW24 -> 0 | CY29: =_xlfn.SWITCH($M29,"Fixed",$V9,"Floating",CY9,"Zero-coupon",IF(CY$3=$I29,(1+$V9)^$F29-1,0))*CX24 -> 0
A30: FI_1_2 | B30: =_xlfn.SWITCH(R17,"Yes","Committed","No","Uncommitted","Not given") -> Uncommitted | C30: =COUNTIF(D$1:D30,"=X")+$C$6 -> 1 | D30: 2 | E30: =R12 -> 1 | F30: =R13 -> 5 | G30: 2025 | H30: 2026 | I30: 2030 | J30: =W10 -> 1 | K30: =R8 -> Local | L30: =R10 -> Market | M30: =R9 -> Fixed | N30: =R14 -> Cent. Govt | O30: =_xlfn.SWITCH(R11,"Semiannual",0.5,"Annual",1,"Custom",1) -> 1 | P30: =IF(R11="Custom","Custom",IF(R9="Zero-coupon","Zero-coupon",IF(E30=F30,"Bullet","Amortizing"))) -> Amortizing | Q30: FI | W30: =_xlfn.SWITCH($M30,"Fixed",$W9,"Floating",W9,"Zero-coupon",IF(W$3=$I30,(1+$W9)^$F30-1,0))*U24 -> 0 | X30: =_xlfn.SWITCH($M30,"Fixed",$W9,"Floating",X9,"Zero-coupon",IF(X$3=$I30,(1+$W9)^$F30-1,0))*V24 -> 0.03 | Y30: =_xlfn.SWITCH($M30,"Fixed",$W9,"Floating",Y9,"Zero-coupon",IF(Y$3=$I30,(1+$W9)^$F30-1,0))*W24 -> 0.03 | Z30: =_xlfn.SWITCH($M30,"Fixed",$W9,"Floating",Z9,"Zero-coupon",IF(Z$3=$I30,(1+$W9)^$F30-1,0))*X24 -> 0.03 | AA30: =_xlfn.SWITCH($M30,"Fixed",$W9,"Floating",AA9,"Zero-coupon",IF(AA$3=$I30,(1+$W9)^$F30-1,0))*Y24 -> 0.03 | AB30: =_xlfn.SWITCH($M30,"Fixed",$W9,"Floating",AB9,"Zero-coupon",IF(AB$3=$I30,(1+$W9)^$F30-1,0))*Z24 -> 0.03 | AC30: =_xlfn.SWITCH($M30,"Fixed",$W9,"Floating",AC9,"Zero-coupon",IF(AC$3=$I30,(1+$W9)^$F30-1,0))*AA24 -> 0 | AD30: =_xlfn.SWITCH($M30,"Fixed",$W9,"Floating",AD9,"Zero-coupon",IF(AD$3=$I30,(1+$W9)^$F30-1,0))*AB24 -> 0 | AE30: =_xlfn.SWITCH($M30,"Fixed",$W9,"Floating",AE9,"Zero-coupon",IF(AE$3=$I30,(1+$W9)^$F30-1,0))*AC24 -> 0 | AF30: =_xlfn.SWITCH($M30,"Fixed",$W9,"Floating",AF9,"Zero-coupon",IF(AF$3=$I30,(1+$W9)^$F30-1,0))*AD24 -> 0 | AG30: =_xlfn.SWITCH($M30,"Fixed",$W9,"Floating",AG9,"Zero-coupon",IF(AG$3=$I30,(1+$W9)^$F30-1,0))*AE24 -> 0 | AH30: =_xlfn.SWITCH($M30,"Fixed",$W9,"Floating",AH9,"Zero-coupon",IF(AH$3=$I30,(1+$W9)^$F30-1,0))*AF24 -> 0 | AI30: =_xlfn.SWITCH($M30,"Fixed",$W9,"Floating",AI9,"Zero-coupon",IF(AI$3=$I30,(1+$W9)^$F30-1,0))*AG24 -> 0 | AJ30: =_xlfn.SWITCH($M30,"Fixed",$W9,"Floating",AJ9,"Zero-coupon",IF(AJ$3=$I30,(1+$W9)^$F30-1,0))*AH24 -> 0 | AK30: =_xlfn.SWITCH($M30,"Fixed",$W9,"Floating",AK9,"Zero-coupon",IF(AK$3=$I30,(1+$W9)^$F30-1,0))*AI24 -> 0 | AL30: =_xlfn.SWITCH($M30,"Fixed",$W9,"Floating",AL9,"Zero-coupon",IF(AL$3=$I30,(1+$W9)^$F30-1,0))*AJ24 -> 0 | AM30: =_xlfn.SWITCH($M30,"Fixed",$W9,"Floating",AM9,"Zero-coupon",IF(AM$3=$I30,(1+$W9)^$F30-1,0))*AK24 -> 0 | AN30: =_xlfn.SWITCH($M30,"Fixed",$W9,"Floating",AN9,"Zero-coupon",IF(AN$3=$I30,(1+$W9)^$F30-1,0))*AL24 -> 0 | AO30: =_xlfn.SWITCH($M30,"Fixed",$W9,"Floating",AO9,"Zero-coupon",IF(AO$3=$I30,(1+$W9)^$F30-1,0))*AM24 -> 0 | AP30: =_xlfn.SWITCH($M30,"Fixed",$W9,"Floating",AP9,"Zero-coupon",IF(AP$3=$I30,(1+$W9)^$F30-1,0))*AN24 -> 0 | AQ30: =_xlfn.SWITCH($M30,"Fixed",$W9,"Floating",AQ9,"Zero-coupon",IF(AQ$3=$I30,(1+$W9)^$F30-1,0))*AO24 -> 0 | AR30: =_xlfn.SWITCH($M30,"Fixed",$W9,"Floating",AR9,"Zero-coupon",IF(AR$3=$I30,(1+$W9)^$F30-1,0))*AP24 -> 0 | AS30: =_xlfn.SWITCH($M30,"Fixed",$W9,"Floating",AS9,"Zero-coupon",IF(AS$3=$I30,(1+$W9)^$F30-1,0))*AQ24 -> 0 | AT30: =_xlfn.SWITCH($M30,"Fixed",$W9,"Floating",AT9,"Zero-coupon",IF(AT$3=$I30,(1+$W9)^$F30-1,0))*AR24 -> 0 | AU30: =_xlfn.SWITCH($M30,"Fixed",$W9,"Floating",AU9,"Zero-coupon",IF(AU$3=$I30,(1+$W9)^$F30-1,0))*AS24 -> 0 | AV30: =_xlfn.SWITCH($M30,"Fixed",$W9,"Floating",AV9,"Zero-coupon",IF(AV$3=$I30,(1+$W9)^$F30-1,0))*AT24 -> 0 | AW30: =_xlfn.SWITCH($M30,"Fixed",$W9,"Floating",AW9,"Zero-coupon",IF(AW$3=$I30,(1+$W9)^$F30-1,0))*AU24 -> 0 | AX30: =_xlfn.SWITCH($M30,"Fixed",$W9,"Floating",AX9,"Zero-coupon",IF(AX$3=$I30,(1+$W9)^$F30-1,0))*AV24 -> 0 | AY30: =_xlfn.SWITCH($M30,"Fixed",$W9,"Floating",AY9,"Zero-coupon",IF(AY$3=$I30,(1+$W9)^$F30-1,0))*AW24 -> 0 | AZ30: =_xlfn.SWITCH($M30,"Fixed",$W9,"Floating",AZ9,"Zero-coupon",IF(AZ$3=$I30,(1+$W9)^$F30-1,0))*AX24 -> 0 | BA30: =_xlfn.SWITCH($M30,"Fixed",$W9,"Floating",BA9,"Zero-coupon",IF(BA$3=$I30,(1+$W9)^$F30-1,0))*AY24 -> 0 | BB30: =_xlfn.SWITCH($M30,"Fixed",$W9,"Floating",BB9,"Zero-coupon",IF(BB$3=$I30,(1+$W9)^$F30-1,0))*AZ24 -> 0 | BC30: =_xlfn.SWITCH($M30,"Fixed",$W9,"Floating",BC9,"Zero-coupon",IF(BC$3=$I30,(1+$W9)^$F30-1,0))*BA24 -> 0 | BD30: =_xlfn.SWITCH($M30,"Fixed",$W9,"Floating",BD9,"Zero-coupon",IF(BD$3=$I30,(1+$W9)^$F30-1,0))*BB24 -> 0 | BE30: =_xlfn.SWITCH($M30,"Fixed",$W9,"Floating",BE9,"Zero-coupon",IF(BE$3=$I30,(1+$W9)^$F30-1,0))*BC24 -> 0 | BF30: =_xlfn.SWITCH($M30,"Fixed",$W9,"Floating",BF9,"Zero-coupon",IF(BF$3=$I30,(1+$W9)^$F30-1,0))*BD24 -> 0 | BG30: =_xlfn.SWITCH($M30,"Fixed",$W9,"Floating",BG9,"Zero-coupon",IF(BG$3=$I30,(1+$W9)^$F30-1,0))*BE24 -> 0 | BH30: =_xlfn.SWITCH($M30,"Fixed",$W9,"Floating",BH9,"Zero-coupon",IF(BH$3=$I30,(1+$W9)^$F30-1,0))*BF24 -> 0 | BI30: =_xlfn.SWITCH($M30,"Fixed",$W9,"Floating",BI9,"Zero-coupon",IF(BI$3=$I30,(1+$W9)^$F30-1,0))*BG24 -> 0 | BJ30: =_xlfn.SWITCH($M30,"Fixed",$W9,"Floating",BJ9,"Zero-coupon",IF(BJ$3=$I30,(1+$W9)^$F30-1,0))*BH24 -> 0 | BK30: =_xlfn.SWITCH($M30,"Fixed",$W9,"Floating",BK9,"Zero-coupon",IF(BK$3=$I30,(1+$W9)^$F30-1,0))*BI24 -> 0 | BL30: =_xlfn.SWITCH($M30,"Fixed",$W9,"Floating",BL9,"Zero-coupon",IF(BL$3=$I30,(1+$W9)^$F30-1,0))*BJ24 -> 0 | BM30: =_xlfn.SWITCH($M30,"Fixed",$W9,"Floating",BM9,"Zero-coupon",IF(BM$3=$I30,(1+$W9)^$F30-1,0))*BK24 -> 0 | BN30: =_xlfn.SWITCH($M30,"Fixed",$W9,"Floating",BN9,"Zero-coupon",IF(BN$3=$I30,(1+$W9)^$F30-1,0))*BL24 -> 0 | BO30: =_xlfn.SWITCH($M30,"Fixed",$W9,"Floating",BO9,"Zero-coupon",IF(BO$3=$I30,(1+$W9)^$F30-1,0))*BM24 -> 0 | BP30: =_xlfn.SWITCH($M30,"Fixed",$W9,"Floating",BP9,"Zero-coupon",IF(BP$3=$I30,(1+$W9)^$F30-1,0))*BN24 -> 0 | BQ30: =_xlfn.SWITCH($M30,"Fixed",$W9,"Floating",BQ9,"Zero-coupon",IF(BQ$3=$I30,(1+$W9)^$F30-1,0))*BO24 -> 0 | BR30: =_xlfn.SWITCH($M30,"Fixed",$W9,"Floating",BR9,"Zero-coupon",IF(BR$3=$I30,(1+$W9)^$F30-1,0))*BP24 -> 0 | BS30: =_xlfn.SWITCH($M30,"Fixed",$W9,"Floating",BS9,"Zero-coupon",IF(BS$3=$I30,(1+$W9)^$F30-1,0))*BQ24 -> 0 | BT30: =_xlfn.SWITCH($M30,"Fixed",$W9,"Floating",BT9,"Zero-coupon",IF(BT$3=$I30,(1+$W9)^$F30-1,0))*BR24 -> 0 | BU30: =_xlfn.SWITCH($M30,"Fixed",$W9,"Floating",BU9,"Zero-coupon",IF(BU$3=$I30,(1+$W9)^$F30-1,0))*BS24 -> 0 | BV30: =_xlfn.SWITCH($M30,"Fixed",$W9,"Floating",BV9,"Zero-coupon",IF(BV$3=$I30,(1+$W9)^$F30-1,0))*BT24 -> 0 | BW30: =_xlfn.SWITCH($M30,"Fixed",$W9,"Floating",BW9,"Zero-coupon",IF(BW$3=$I30,(1+$W9)^$F30-1,0))*BU24 -> 0 | BX30: =_xlfn.SWITCH($M30,"Fixed",$W9,"Floating",BX9,"Zero-coupon",IF(BX$3=$I30,(1+$W9)^$F30-1,0))*BV24 -> 0 | BY30: =_xlfn.SWITCH($M30,"Fixed",$W9,"Floating",BY9,"Zero-coupon",IF(BY$3=$I30,(1+$W9)^$F30-1,0))*BW24 -> 0 | BZ30: =_xlfn.SWITCH($M30,"Fixed",$W9,"Floating",BZ9,"Zero-coupon",IF(BZ$3=$I30,(1+$W9)^$F30-1,0))*BX24 -> 0 | CA30: =_xlfn.SWITCH($M30,"Fixed",$W9,"Floating",CA9,"Zero-coupon",IF(CA$3=$I30,(1+$W9)^$F30-1,0))*BY24 -> 0 | CB30: =_xlfn.SWITCH($M30,"Fixed",$W9,"Floating",CB9,"Zero-coupon",IF(CB$3=$I30,(1+$W9)^$F30-1,0))*BZ24 -> 0 | CC30: =_xlfn.SWITCH($M30,"Fixed",$W9,"Floating",CC9,"Zero-coupon",IF(CC$3=$I30,(1+$W9)^$F30-1,0))*CA24 -> 0 | CD30: =_xlfn.SWITCH($M30,"Fixed",$W9,"Floating",CD9,"Zero-coupon",IF(CD$3=$I30,(1+$W9)^$F30-1,0))*CB24 -> 0 | CE30: =_xlfn.SWITCH($M30,"Fixed",$W9,"Floating",CE9,"Zero-coupon",IF(CE$3=$I30,(1+$W9)^$F30-1,0))*CC24 -> 0 | CF30: =_xlfn.SWITCH($M30,"Fixed",$W9,"Floating",CF9,"Zero-coupon",IF(CF$3=$I30,(1+$W9)^$F30-1,0))*CD24 -> 0 | CG30: =_xlfn.SWITCH($M30,"Fixed",$W9,"Floating",CG9,"Zero-coupon",IF(CG$3=$I30,(1+$W9)^$F30-1,0))*CE24 -> 0 | CH30: =_xlfn.SWITCH($M30,"Fixed",$W9,"Floating",CH9,"Zero-coupon",IF(CH$3=$I30,(1+$W9)^$F30-1,0))*CF24 -> 0 | CI30: =_xlfn.SWITCH($M30,"Fixed",$W9,"Floating",CI9,"Zero-coupon",IF(CI$3=$I30,(1+$W9)^$F30-1,0))*CG24 -> 0 | CJ30: =_xlfn.SWITCH($M30,"Fixed",$W9,"Floating",CJ9,"Zero-coupon",IF(CJ$3=$I30,(1+$W9)^$F30-1,0))*CH24 -> 0 | CK30: =_xlfn.SWITCH($M30,"Fixed",$W9,"Floating",CK9,"Zero-coupon",IF(CK$3=$I30,(1+$W9)^$F30-1,0))*CI24 -> 0 | CL30: =_xlfn.SWITCH($M30,"Fixed",$W9,"Floating",CL9,"Zero-coupon",IF(CL$3=$I30,(1+$W9)^$F30-1,0))*CJ24 -> 0 | CM30: =_xlfn.SWITCH($M30,"Fixed",$W9,"Floating",CM9,"Zero-coupon",IF(CM$3=$I30,(1+$W9)^$F30-1,0))*CK24 -> 0 | CN30: =_xlfn.SWITCH($M30,"Fixed",$W9,"Floating",CN9,"Zero-coupon",IF(CN$3=$I30,(1+$W9)^$F30-1,0))*CL24 -> 0 | CO30: =_xlfn.SWITCH($M30,"Fixed",$W9,"Floating",CO9,"Zero-coupon",IF(CO$3=$I30,(1+$W9)^$F30-1,0))*CM24 -> 0 | CP30: =_xlfn.SWITCH($M30,"Fixed",$W9,"Floating",CP9,"Zero-coupon",IF(CP$3=$I30,(1+$W9)^$F30-1,0))*CN24 -> 0 | CQ30: =_xlfn.SWITCH($M30,"Fixed",$W9,"Floating",CQ9,"Zero-coupon",IF(CQ$3=$I30,(1+$W9)^$F30-1,0))*CO24 -> 0 | CR30: =_xlfn.SWITCH($M30,"Fixed",$W9,"Floating",CR9,"Zero-coupon",IF(CR$3=$I30,(1+$W9)^$F30-1,0))*CP24 -> 0 | CS30: =_xlfn.SWITCH($M30,"Fixed",$W9,"Floating",CS9,"Zero-coupon",IF(CS$3=$I30,(1+$W9)^$F30-1,0))*CQ24 -> 0 | CT30: =_xlfn.SWITCH($M30,"Fixed",$W9,"Floating",CT9,"Zero-coupon",IF(CT$3=$I30,(1+$W9)^$F30-1,0))*CR24 -> 0 | CU30: =_xlfn.SWITCH($M30,"Fixed",$W9,"Floating",CU9,"Zero-coupon",IF(CU$3=$I30,(1+$W9)^$F30-1,0))*CS24 -> 0 | CV30: =_xlfn.SWITCH($M30,"Fixed",$W9,"Floating",CV9,"Zero-coupon",IF(CV$3=$I30,(1+$W9)^$F30-1,0))*CT24 -> 0 | CW30: =_xlfn.SWITCH($M30,"Fixed",$W9,"Floating",CW9,"Zero-coupon",IF(CW$3=$I30,(1+$W9)^$F30-1,0))*CU24 -> 0 | CX30: =_xlfn.SWITCH($M30,"Fixed",$W9,"Floating",CX9,"Zero-coupon",IF(CX$3=$I30,(1+$W9)^$F30-1,0))*CV24 -> 0 | CY30: =_xlfn.SWITCH($M30,"Fixed",$W9,"Floating",CY9,"Zero-coupon",IF(CY$3=$I30,(1+$W9)^$F30-1,0))*CW24 -> 0
A31: FI_1_3 | B31: =_xlfn.SWITCH(R17,"Yes","Committed","No","Uncommitted","Not given") -> Uncommitted | C31: =COUNTIF(D$1:D31,"=X")+$C$6 -> 1 | D31: 3 | E31: =R12 -> 1 | F31: =R13 -> 5 | G31: 2026 | H31: 2027 | I31: 2031 | J31: =X10 -> 1 | K31: =R8 -> Local | L31: =R10 -> Market | M31: =R9 -> Fixed | N31: =R14 -> Cent. Govt | O31: =_xlfn.SWITCH(R11,"Semiannual",0.5,"Annual",1,"Custom",1) -> 1 | P31: =IF(R11="Custom","Custom",IF(R9="Zero-coupon","Zero-coupon",IF(E31=F31,"Bullet","Amortizing"))) -> Amortizing | Q31: FI | X31: =_xlfn.SWITCH($M31,"Fixed",$X9,"Floating",X9,"Zero-coupon",IF(X$3=$I31,(1+$X9)^$F31-1,0))*U24 -> 0 | Y31: =_xlfn.SWITCH($M31,"Fixed",$X9,"Floating",Y9,"Zero-coupon",IF(Y$3=$I31,(1+$X9)^$F31-1,0))*V24 -> 0.03 | Z31: =_xlfn.SWITCH($M31,"Fixed",$X9,"Floating",Z9,"Zero-coupon",IF(Z$3=$I31,(1+$X9)^$F31-1,0))*W24 -> 0.03 | AA31: =_xlfn.SWITCH($M31,"Fixed",$X9,"Floating",AA9,"Zero-coupon",IF(AA$3=$I31,(1+$X9)^$F31-1,0))*X24 -> 0.03 | AB31: =_xlfn.SWITCH($M31,"Fixed",$X9,"Floating",AB9,"Zero-coupon",IF(AB$3=$I31,(1+$X9)^$F31-1,0))*Y24 -> 0.03 | AC31: =_xlfn.SWITCH($M31,"Fixed",$X9,"Floating",AC9,"Zero-coupon",IF(AC$3=$I31,(1+$X9)^$F31-1,0))*Z24 -> 0.03 | AD31: =_xlfn.SWITCH($M31,"Fixed",$X9,"Floating",AD9,"Zero-coupon",IF(AD$3=$I31,(1+$X9)^$F31-1,0))*AA24 -> 0 | AE31: =_xlfn.SWITCH($M31,"Fixed",$X9,"Floating",AE9,"Zero-coupon",IF(AE$3=$I31,(1+$X9)^$F31-1,0))*AB24 -> 0 | AF31: =_xlfn.SWITCH($M31,"Fixed",$X9,"Floating",AF9,"Zero-coupon",IF(AF$3=$I31,(1+$X9)^$F31-1,0))*AC24 -> 0 | AG31: =_xlfn.SWITCH($M31,"Fixed",$X9,"Floating",AG9,"Zero-coupon",IF(AG$3=$I31,(1+$X9)^$F31-1,0))*AD24 -> 0 | AH31: =_xlfn.SWITCH($M31,"Fixed",$X9,"Floating",AH9,"Zero-coupon",IF(AH$3=$I31,(1+$X9)^$F31-1,0))*AE24 -> 0 | AI31: =_xlfn.SWITCH($M31,"Fixed",$X9,"Floating",AI9,"Zero-coupon",IF(AI$3=$I31,(1+$X9)^$F31-1,0))*AF24 -> 0 | AJ31: =_xlfn.SWITCH($M31,"Fixed",$X9,"Floating",AJ9,"Zero-coupon",IF(AJ$3=$I31,(1+$X9)^$F31-1,0))*AG24 -> 0 | AK31: =_xlfn.SWITCH($M31,"Fixed",$X9,"Floating",AK9,"Zero-coupon",IF(AK$3=$I31,(1+$X9)^$F31-1,0))*AH24 -> 0 | AL31: =_xlfn.SWITCH($M31,"Fixed",$X9,"Floating",AL9,"Zero-coupon",IF(AL$3=$I31,(1+$X9)^$F31-1,0))*AI24 -> 0 | AM31: =_xlfn.SWITCH($M31,"Fixed",$X9,"Floating",AM9,"Zero-coupon",IF(AM$3=$I31,(1+$X9)^$F31-1,0))*AJ24 -> 0 | AN31: =_xlfn.SWITCH($M31,"Fixed",$X9,"Floating",AN9,"Zero-coupon",IF(AN$3=$I31,(1+$X9)^$F31-1,0))*AK24 -> 0 | AO31: =_xlfn.SWITCH($M31,"Fixed",$X9,"Floating",AO9,"Zero-coupon",IF(AO$3=$I31,(1+$X9)^$F31-1,0))*AL24 -> 0 | AP31: =_xlfn.SWITCH($M31,"Fixed",$X9,"Floating",AP9,"Zero-coupon",IF(AP$3=$I31,(1+$X9)^$F31-1,0))*AM24 -> 0 | AQ31: =_xlfn.SWITCH($M31,"Fixed",$X9,"Floating",AQ9,"Zero-coupon",IF(AQ$3=$I31,(1+$X9)^$F31-1,0))*AN24 -> 0 | AR31: =_xlfn.SWITCH($M31,"Fixed",$X9,"Floating",AR9,"Zero-coupon",IF(AR$3=$I31,(1+$X9)^$F31-1,0))*AO24 -> 0 | AS31: =_xlfn.SWITCH($M31,"Fixed",$X9,"Floating",AS9,"Zero-coupon",IF(AS$3=$I31,(1+$X9)^$F31-1,0))*AP24 -> 0 | AT31: =_xlfn.SWITCH($M31,"Fixed",$X9,"Floating",AT9,"Zero-coupon",IF(AT$3=$I31,(1+$X9)^$F31-1,0))*AQ24 -> 0 | AU31: =_xlfn.SWITCH($M31,"Fixed",$X9,"Floating",AU9,"Zero-coupon",IF(AU$3=$I31,(1+$X9)^$F31-1,0))*AR24 -> 0 | AV31: =_xlfn.SWITCH($M31,"Fixed",$X9,"Floating",AV9,"Zero-coupon",IF(AV$3=$I31,(1+$X9)^$F31-1,0))*AS24 -> 0 | AW31: =_xlfn.SWITCH($M31,"Fixed",$X9,"Floating",AW9,"Zero-coupon",IF(AW$3=$I31,(1+$X9)^$F31-1,0))*AT24 -> 0 | AX31: =_xlfn.SWITCH($M31,"Fixed",$X9,"Floating",AX9,"Zero-coupon",IF(AX$3=$I31,(1+$X9)^$F31-1,0))*AU24 -> 0 | AY31: =_xlfn.SWITCH($M31,"Fixed",$X9,"Floating",AY9,"Zero-coupon",IF(AY$3=$I31,(1+$X9)^$F31-1,0))*AV24 -> 0 | AZ31: =_xlfn.SWITCH($M31,"Fixed",$X9,"Floating",AZ9,"Zero-coupon",IF(AZ$3=$I31,(1+$X9)^$F31-1,0))*AW24 -> 0 | BA31: =_xlfn.SWITCH($M31,"Fixed",$X9,"Floating",BA9,"Zero-coupon",IF(BA$3=$I31,(1+$X9)^$F31-1,0))*AX24 -> 0 | BB31: =_xlfn.SWITCH($M31,"Fixed",$X9,"Floating",BB9,"Zero-coupon",IF(BB$3=$I31,(1+$X9)^$F31-1,0))*AY24 -> 0 | BC31: =_xlfn.SWITCH($M31,"Fixed",$X9,"Floating",BC9,"Zero-coupon",IF(BC$3=$I31,(1+$X9)^$F31-1,0))*AZ24 -> 0 | BD31: =_xlfn.SWITCH($M31,"Fixed",$X9,"Floating",BD9,"Zero-coupon",IF(BD$3=$I31,(1+$X9)^$F31-1,0))*BA24 -> 0 | BE31: =_xlfn.SWITCH($M31,"Fixed",$X9,"Floating",BE9,"Zero-coupon",IF(BE$3=$I31,(1+$X9)^$F31-1,0))*BB24 -> 0 | BF31: =_xlfn.SWITCH($M31,"Fixed",$X9,"Floating",BF9,"Zero-coupon",IF(BF$3=$I31,(1+$X9)^$F31-1,0))*BC24 -> 0 | BG31: =_xlfn.SWITCH($M31,"Fixed",$X9,"Floating",BG9,"Zero-coupon",IF(BG$3=$I31,(1+$X9)^$F31-1,0))*BD24 -> 0 | BH31: =_xlfn.SWITCH($M31,"Fixed",$X9,"Floating",BH9,"Zero-coupon",IF(BH$3=$I31,(1+$X9)^$F31-1,0))*BE24 -> 0 | BI31: =_xlfn.SWITCH($M31,"Fixed",$X9,"Floating",BI9,"Zero-coupon",IF(BI$3=$I31,(1+$X9)^$F31-1,0))*BF24 -> 0 | BJ31: =_xlfn.SWITCH($M31,"Fixed",$X9,"Floating",BJ9,"Zero-coupon",IF(BJ$3=$I31,(1+$X9)^$F31-1,0))*BG24 -> 0 | BK31: =_xlfn.SWITCH($M31,"Fixed",$X9,"Floating",BK9,"Zero-coupon",IF(BK$3=$I31,(1+$X9)^$F31-1,0))*BH24 -> 0 | BL31: =_xlfn.SWITCH($M31,"Fixed",$X9,"Floating",BL9,"Zero-coupon",IF(BL$3=$I31,(1+$X9)^$F31-1,0))*BI24 -> 0 | BM31: =_xlfn.SWITCH($M31,"Fixed",$X9,"Floating",BM9,"Zero-coupon",IF(BM$3=$I31,(1+$X9)^$F31-1,0))*BJ24 -> 0 | BN31: =_xlfn.SWITCH($M31,"Fixed",$X9,"Floating",BN9,"Zero-coupon",IF(BN$3=$I31,(1+$X9)^$F31-1,0))*BK24 -> 0 | BO31: =_xlfn.SWITCH($M31,"Fixed",$X9,"Floating",BO9,"Zero-coupon",IF(BO$3=$I31,(1+$X9)^$F31-1,0))*BL24 -> 0 | BP31: =_xlfn.SWITCH($M31,"Fixed",$X9,"Floating",BP9,"Zero-coupon",IF(BP$3=$I31,(1+$X9)^$F31-1,0))*BM24 -> 0 | BQ31: =_xlfn.SWITCH($M31,"Fixed",$X9,"Floating",BQ9,"Zero-coupon",IF(BQ$3=$I31,(1+$X9)^$F31-1,0))*BN24 -> 0 | BR31: =_xlfn.SWITCH($M31,"Fixed",$X9,"Floating",BR9,"Zero-coupon",IF(BR$3=$I31,(1+$X9)^$F31-1,0))*BO24 -> 0 | BS31: =_xlfn.SWITCH($M31,"Fixed",$X9,"Floating",BS9,"Zero-coupon",IF(BS$3=$I31,(1+$X9)^$F31-1,0))*BP24 -> 0 | BT31: =_xlfn.SWITCH($M31,"Fixed",$X9,"Floating",BT9,"Zero-coupon",IF(BT$3=$I31,(1+$X9)^$F31-1,0))*BQ24 -> 0 | BU31: =_xlfn.SWITCH($M31,"Fixed",$X9,"Floating",BU9,"Zero-coupon",IF(BU$3=$I31,(1+$X9)^$F31-1,0))*BR24 -> 0 | BV31: =_xlfn.SWITCH($M31,"Fixed",$X9,"Floating",BV9,"Zero-coupon",IF(BV$3=$I31,(1+$X9)^$F31-1,0))*BS24 -> 0 | BW31: =_xlfn.SWITCH($M31,"Fixed",$X9,"Floating",BW9,"Zero-coupon",IF(BW$3=$I31,(1+$X9)^$F31-1,0))*BT24 -> 0 | BX31: =_xlfn.SWITCH($M31,"Fixed",$X9,"Floating",BX9,"Zero-coupon",IF(BX$3=$I31,(1+$X9)^$F31-1,0))*BU24 -> 0 | BY31: =_xlfn.SWITCH($M31,"Fixed",$X9,"Floating",BY9,"Zero-coupon",IF(BY$3=$I31,(1+$X9)^$F31-1,0))*BV24 -> 0 | BZ31: =_xlfn.SWITCH($M31,"Fixed",$X9,"Floating",BZ9,"Zero-coupon",IF(BZ$3=$I31,(1+$X9)^$F31-1,0))*BW24 -> 0 | CA31: =_xlfn.SWITCH($M31,"Fixed",$X9,"Floating",CA9,"Zero-coupon",IF(CA$3=$I31,(1+$X9)^$F31-1,0))*BX24 -> 0 | CB31: =_xlfn.SWITCH($M31,"Fixed",$X9,"Floating",CB9,"Zero-coupon",IF(CB$3=$I31,(1+$X9)^$F31-1,0))*BY24 -> 0 | CC31: =_xlfn.SWITCH($M31,"Fixed",$X9,"Floating",CC9,"Zero-coupon",IF(CC$3=$I31,(1+$X9)^$F31-1,0))*BZ24 -> 0 | CD31: =_xlfn.SWITCH($M31,"Fixed",$X9,"Floating",CD9,"Zero-coupon",IF(CD$3=$I31,(1+$X9)^$F31-1,0))*CA24 -> 0 | CE31: =_xlfn.SWITCH($M31,"Fixed",$X9,"Floating",CE9,"Zero-coupon",IF(CE$3=$I31,(1+$X9)^$F31-1,0))*CB24 -> 0 | CF31: =_xlfn.SWITCH($M31,"Fixed",$X9,"Floating",CF9,"Zero-coupon",IF(CF$3=$I31,(1+$X9)^$F31-1,0))*CC24 -> 0 | CG31: =_xlfn.SWITCH($M31,"Fixed",$X9,"Floating",CG9,"Zero-coupon",IF(CG$3=$I31,(1+$X9)^$F31-1,0))*CD24 -> 0 | CH31: =_xlfn.SWITCH($M31,"Fixed",$X9,"Floating",CH9,"Zero-coupon",IF(CH$3=$I31,(1+$X9)^$F31-1,0))*CE24 -> 0 | CI31: =_xlfn.SWITCH($M31,"Fixed",$X9,"Floating",CI9,"Zero-coupon",IF(CI$3=$I31,(1+$X9)^$F31-1,0))*CF24 -> 0 | CJ31: =_xlfn.SWITCH($M31,"Fixed",$X9,"Floating",CJ9,"Zero-coupon",IF(CJ$3=$I31,(1+$X9)^$F31-1,0))*CG24 -> 0 | CK31: =_xlfn.SWITCH($M31,"Fixed",$X9,"Floating",CK9,"Zero-coupon",IF(CK$3=$I31,(1+$X9)^$F31-1,0))*CH24 -> 0 | CL31: =_xlfn.SWITCH($M31,"Fixed",$X9,"Floating",CL9,"Zero-coupon",IF(CL$3=$I31,(1+$X9)^$F31-1,0))*CI24 -> 0 | CM31: =_xlfn.SWITCH($M31,"Fixed",$X9,"Floating",CM9,"Zero-coupon",IF(CM$3=$I31,(1+$X9)^$F31-1,0))*CJ24 -> 0 | CN31: =_xlfn.SWITCH($M31,"Fixed",$X9,"Floating",CN9,"Zero-coupon",IF(CN$3=$I31,(1+$X9)^$F31-1,0))*CK24 -> 0 | CO31: =_xlfn.SWITCH($M31,"Fixed",$X9,"Floating",CO9,"Zero-coupon",IF(CO$3=$I31,(1+$X9)^$F31-1,0))*CL24 -> 0 | CP31: =_xlfn.SWITCH($M31,"Fixed",$X9,"Floating",CP9,"Zero-coupon",IF(CP$3=$I31,(1+$X9)^$F31-1,0))*CM24 -> 0 | CQ31: =_xlfn.SWITCH($M31,"Fixed",$X9,"Floating",CQ9,"Zero-coupon",IF(CQ$3=$I31,(1+$X9)^$F31-1,0))*CN24 -> 0 | CR31: =_xlfn.SWITCH($M31,"Fixed",$X9,"Floating",CR9,"Zero-coupon",IF(CR$3=$I31,(1+$X9)^$F31-1,0))*CO24 -> 0 | CS31: =_xlfn.SWITCH($M31,"Fixed",$X9,"Floating",CS9,"Zero-coupon",IF(CS$3=$I31,(1+$X9)^$F31-1,0))*CP24 -> 0 | CT31: =_xlfn.SWITCH($M31,"Fixed",$X9,"Floating",CT9,"Zero-coupon",IF(CT$3=$I31,(1+$X9)^$F31-1,0))*CQ24 -> 0 | CU31: =_xlfn.SWITCH($M31,"Fixed",$X9,"Floating",CU9,"Zero-coupon",IF(CU$3=$I31,(1+$X9)^$F31-1,0))*CR24 -> 0 | CV31: =_xlfn.SWITCH($M31,"Fixed",$X9,"Floating",CV9,"Zero-coupon",IF(CV$3=$I31,(1+$X9)^$F31-1,0))*CS24 -> 0 | CW31: =_xlfn.SWITCH($M31,"Fixed",$X9,"Floating",CW9,"Zero-coupon",IF(CW$3=$I31,(1+$X9)^$F31-1,0))*CT24 -> 0 | CX31: =_xlfn.SWITCH($M31,"Fixed",$X9,"Floating",CX9,"Zero-coupon",IF(CX$3=$I31,(1+$X9)^$F31-1,0))*CU24 -> 0 | CY31: =_xlfn.SWITCH($M31,"Fixed",$X9,"Floating",CY9,"Zero-coupon",IF(CY$3=$I31,(1+$X9)^$F31-1,0))*CV24 -> 0
A32: FI_1_4 | B32: =_xlfn.SWITCH(R17,"Yes","Committed","No","Uncommitted","Not given") -> Uncommitted | C32: =COUNTIF(D$1:D32,"=X")+$C$6 -> 1 | D32: 4 | E32: =R12 -> 1 | F32: =R13 -> 5 | G32: 2027 | H32: 2028 | I32: 2032 | J32: =Y10 -> 1 | K32: =R8 -> Local | L32: =R10 -> Market | M32: =R9 -> Fixed | N32: =R14 -> Cent. Govt | O32: =_xlfn.SWITCH(R11,"Semiannual",0.5,"Annual",1,"Custom",1) -> 1 | P32: =IF(R11="Custom","Custom",IF(R9="Zero-coupon","Zero-coupon",IF(E32=F32,"Bullet","Amortizing"))) -> Amortizing | Q32: FI | Y32: =_xlfn.SWITCH($M32,"Fixed",$Y9,"Floating",Y9,"Zero-coupon",IF(Y$3=$I32,(1+$Y9)^$F32-1,0))*U24 -> 0 | Z32: =_xlfn.SWITCH($M32,"Fixed",$Y9,"Floating",Z9,"Zero-coupon",IF(Z$3=$I32,(1+$Y9)^$F32-1,0))*V24 -> 0.03 | AA32: =_xlfn.SWITCH($M32,"Fixed",$Y9,"Floating",AA9,"Zero-coupon",IF(AA$3=$I32,(1+$Y9)^$F32-1,0))*W24 -> 0.03 | AB32: =_xlfn.SWITCH($M32,"Fixed",$Y9,"Floating",AB9,"Zero-coupon",IF(AB$3=$I32,(1+$Y9)^$F32-1,0))*X24 -> 0.03 | AC32: =_xlfn.SWITCH($M32,"Fixed",$Y9,"Floating",AC9,"Zero-coupon",IF(AC$3=$I32,(1+$Y9)^$F32-1,0))*Y24 -> 0.03 | AD32: =_xlfn.SWITCH($M32,"Fixed",$Y9,"Floating",AD9,"Zero-coupon",IF(AD$3=$I32,(1+$Y9)^$F32-1,0))*Z24 -> 0.03 | AE32: =_xlfn.SWITCH($M32,"Fixed",$Y9,"Floating",AE9,"Zero-coupon",IF(AE$3=$I32,(1+$Y9)^$F32-1,0))*AA24 -> 0 | AF32: =_xlfn.SWITCH($M32,"Fixed",$Y9,"Floating",AF9,"Zero-coupon",IF(AF$3=$I32,(1+$Y9)^$F32-1,0))*AB24 -> 0 | AG32: =_xlfn.SWITCH($M32,"Fixed",$Y9,"Floating",AG9,"Zero-coupon",IF(AG$3=$I32,(1+$Y9)^$F32-1,0))*AC24 -> 0 | AH32: =_xlfn.SWITCH($M32,"Fixed",$Y9,"Floating",AH9,"Zero-coupon",IF(AH$3=$I32,(1+$Y9)^$F32-1,0))*AD24 -> 0 | AI32: =_xlfn.SWITCH($M32,"Fixed",$Y9,"Floating",AI9,"Zero-coupon",IF(AI$3=$I32,(1+$Y9)^$F32-1,0))*AE24 -> 0 | AJ32: =_xlfn.SWITCH($M32,"Fixed",$Y9,"Floating",AJ9,"Zero-coupon",IF(AJ$3=$I32,(1+$Y9)^$F32-1,0))*AF24 -> 0 | AK32: =_xlfn.SWITCH($M32,"Fixed",$Y9,"Floating",AK9,"Zero-coupon",IF(AK$3=$I32,(1+$Y9)^$F32-1,0))*AG24 -> 0 | AL32: =_xlfn.SWITCH($M32,"Fixed",$Y9,"Floating",AL9,"Zero-coupon",IF(AL$3=$I32,(1+$Y9)^$F32-1,0))*AH24 -> 0 | AM32: =_xlfn.SWITCH($M32,"Fixed",$Y9,"Floating",AM9,"Zero-coupon",IF(AM$3=$I32,(1+$Y9)^$F32-1,0))*AI24 -> 0 | AN32: =_xlfn.SWITCH($M32,"Fixed",$Y9,"Floating",AN9,"Zero-coupon",IF(AN$3=$I32,(1+$Y9)^$F32-1,0))*AJ24 -> 0 | AO32: =_xlfn.SWITCH($M32,"Fixed",$Y9,"Floating",AO9,"Zero-coupon",IF(AO$3=$I32,(1+$Y9)^$F32-1,0))*AK24 -> 0 | AP32: =_xlfn.SWITCH($M32,"Fixed",$Y9,"Floating",AP9,"Zero-coupon",IF(AP$3=$I32,(1+$Y9)^$F32-1,0))*AL24 -> 0 | AQ32: =_xlfn.SWITCH($M32,"Fixed",$Y9,"Floating",AQ9,"Zero-coupon",IF(AQ$3=$I32,(1+$Y9)^$F32-1,0))*AM24 -> 0 | AR32: =_xlfn.SWITCH($M32,"Fixed",$Y9,"Floating",AR9,"Zero-coupon",IF(AR$3=$I32,(1+$Y9)^$F32-1,0))*AN24 -> 0 | AS32: =_xlfn.SWITCH($M32,"Fixed",$Y9,"Floating",AS9,"Zero-coupon",IF(AS$3=$I32,(1+$Y9)^$F32-1,0))*AO24 -> 0 | AT32: =_xlfn.SWITCH($M32,"Fixed",$Y9,"Floating",AT9,"Zero-coupon",IF(AT$3=$I32,(1+$Y9)^$F32-1,0))*AP24 -> 0 | AU32: =_xlfn.SWITCH($M32,"Fixed",$Y9,"Floating",AU9,"Zero-coupon",IF(AU$3=$I32,(1+$Y9)^$F32-1,0))*AQ24 -> 0 | AV32: =_xlfn.SWITCH($M32,"Fixed",$Y9,"Floating",AV9,"Zero-coupon",IF(AV$3=$I32,(1+$Y9)^$F32-1,0))*AR24 -> 0 | AW32: =_xlfn.SWITCH($M32,"Fixed",$Y9,"Floating",AW9,"Zero-coupon",IF(AW$3=$I32,(1+$Y9)^$F32-1,0))*AS24 -> 0 | AX32: =_xlfn.SWITCH($M32,"Fixed",$Y9,"Floating",AX9,"Zero-coupon",IF(AX$3=$I32,(1+$Y9)^$F32-1,0))*AT24 -> 0 | AY32: =_xlfn.SWITCH($M32,"Fixed",$Y9,"Floating",AY9,"Zero-coupon",IF(AY$3=$I32,(1+$Y9)^$F32-1,0))*AU24 -> 0 | AZ32: =_xlfn.SWITCH($M32,"Fixed",$Y9,"Floating",AZ9,"Zero-coupon",IF(AZ$3=$I32,(1+$Y9)^$F32-1,0))*AV24 -> 0 | BA32: =_xlfn.SWITCH($M32,"Fixed",$Y9,"Floating",BA9,"Zero-coupon",IF(BA$3=$I32,(1+$Y9)^$F32-1,0))*AW24 -> 0 | BB32: =_xlfn.SWITCH($M32,"Fixed",$Y9,"Floating",BB9,"Zero-coupon",IF(BB$3=$I32,(1+$Y9)^$F32-1,0))*AX24 -> 0 | BC32: =_xlfn.SWITCH($M32,"Fixed",$Y9,"Floating",BC9,"Zero-coupon",IF(BC$3=$I32,(1+$Y9)^$F32-1,0))*AY24 -> 0 | BD32: =_xlfn.SWITCH($M32,"Fixed",$Y9,"Floating",BD9,"Zero-coupon",IF(BD$3=$I32,(1+$Y9)^$F32-1,0))*AZ24 -> 0 | BE32: =_xlfn.SWITCH($M32,"Fixed",$Y9,"Floating",BE9,"Zero-coupon",IF(BE$3=$I32,(1+$Y9)^$F32-1,0))*BA24 -> 0 | BF32: =_xlfn.SWITCH($M32,"Fixed",$Y9,"Floating",BF9,"Zero-coupon",IF(BF$3=$I32,(1+$Y9)^$F32-1,0))*BB24 -> 0 | BG32: =_xlfn.SWITCH($M32,"Fixed",$Y9,"Floating",BG9,"Zero-coupon",IF(BG$3=$I32,(1+$Y9)^$F32-1,0))*BC24 -> 0 | BH32: =_xlfn.SWITCH($M32,"Fixed",$Y9,"Floating",BH9,"Zero-coupon",IF(BH$3=$I32,(1+$Y9)^$F32-1,0))*BD24 -> 0 | BI32: =_xlfn.SWITCH($M32,"Fixed",$Y9,"Floating",BI9,"Zero-coupon",IF(BI$3=$I32,(1+$Y9)^$F32-1,0))*BE24 -> 0 | BJ32: =_xlfn.SWITCH($M32,"Fixed",$Y9,"Floating",BJ9,"Zero-coupon",IF(BJ$3=$I32,(1+$Y9)^$F32-1,0))*BF24 -> 0 | BK32: =_xlfn.SWITCH($M32,"Fixed",$Y9,"Floating",BK9,"Zero-coupon",IF(BK$3=$I32,(1+$Y9)^$F32-1,0))*BG24 -> 0 | BL32: =_xlfn.SWITCH($M32,"Fixed",$Y9,"Floating",BL9,"Zero-coupon",IF(BL$3=$I32,(1+$Y9)^$F32-1,0))*BH24 -> 0 | BM32: =_xlfn.SWITCH($M32,"Fixed",$Y9,"Floating",BM9,"Zero-coupon",IF(BM$3=$I32,(1+$Y9)^$F32-1,0))*BI24 -> 0 | BN32: =_xlfn.SWITCH($M32,"Fixed",$Y9,"Floating",BN9,"Zero-coupon",IF(BN$3=$I32,(1+$Y9)^$F32-1,0))*BJ24 -> 0 | BO32: =_xlfn.SWITCH($M32,"Fixed",$Y9,"Floating",BO9,"Zero-coupon",IF(BO$3=$I32,(1+$Y9)^$F32-1,0))*BK24 -> 0 | BP32: =_xlfn.SWITCH($M32,"Fixed",$Y9,"Floating",BP9,"Zero-coupon",IF(BP$3=$I32,(1+$Y9)^$F32-1,0))*BL24 -> 0 | BQ32: =_xlfn.SWITCH($M32,"Fixed",$Y9,"Floating",BQ9,"Zero-coupon",IF(BQ$3=$I32,(1+$Y9)^$F32-1,0))*BM24 -> 0 | BR32: =_xlfn.SWITCH($M32,"Fixed",$Y9,"Floating",BR9,"Zero-coupon",IF(BR$3=$I32,(1+$Y9)^$F32-1,0))*BN24 -> 0 | BS32: =_xlfn.SWITCH($M32,"Fixed",$Y9,"Floating",BS9,"Zero-coupon",IF(BS$3=$I32,(1+$Y9)^$F32-1,0))*BO24 -> 0 | BT32: =_xlfn.SWITCH($M32,"Fixed",$Y9,"Floating",BT9,"Zero-coupon",IF(BT$3=$I32,(1+$Y9)^$F32-1,0))*BP24 -> 0 | BU32: =_xlfn.SWITCH($M32,"Fixed",$Y9,"Floating",BU9,"Zero-coupon",IF(BU$3=$I32,(1+$Y9)^$F32-1,0))*BQ24 -> 0 | BV32: =_xlfn.SWITCH($M32,"Fixed",$Y9,"Floating",BV9,"Zero-coupon",IF(BV$3=$I32,(1+$Y9)^$F32-1,0))*BR24 -> 0 | BW32: =_xlfn.SWITCH($M32,"Fixed",$Y9,"Floating",BW9,"Zero-coupon",IF(BW$3=$I32,(1+$Y9)^$F32-1,0))*BS24 -> 0 | BX32: =_xlfn.SWITCH($M32,"Fixed",$Y9,"Floating",BX9,"Zero-coupon",IF(BX$3=$I32,(1+$Y9)^$F32-1,0))*BT24 -> 0 | BY32: =_xlfn.SWITCH($M32,"Fixed",$Y9,"Floating",BY9,"Zero-coupon",IF(BY$3=$I32,(1+$Y9)^$F32-1,0))*BU24 -> 0 | BZ32: =_xlfn.SWITCH($M32,"Fixed",$Y9,"Floating",BZ9,"Zero-coupon",IF(BZ$3=$I32,(1+$Y9)^$F32-1,0))*BV24 -> 0 | CA32: =_xlfn.SWITCH($M32,"Fixed",$Y9,"Floating",CA9,"Zero-coupon",IF(CA$3=$I32,(1+$Y9)^$F32-1,0))*BW24 -> 0 | CB32: =_xlfn.SWITCH($M32,"Fixed",$Y9,"Floating",CB9,"Zero-coupon",IF(CB$3=$I32,(1+$Y9)^$F32-1,0))*BX24 -> 0 | CC32: =_xlfn.SWITCH($M32,"Fixed",$Y9,"Floating",CC9,"Zero-coupon",IF(CC$3=$I32,(1+$Y9)^$F32-1,0))*BY24 -> 0 | CD32: =_xlfn.SWITCH($M32,"Fixed",$Y9,"Floating",CD9,"Zero-coupon",IF(CD$3=$I32,(1+$Y9)^$F32-1,0))*BZ24 -> 0 | CE32: =_xlfn.SWITCH($M32,"Fixed",$Y9,"Floating",CE9,"Zero-coupon",IF(CE$3=$I32,(1+$Y9)^$F32-1,0))*CA24 -> 0 | CF32: =_xlfn.SWITCH($M32,"Fixed",$Y9,"Floating",CF9,"Zero-coupon",IF(CF$3=$I32,(1+$Y9)^$F32-1,0))*CB24 -> 0 | CG32: =_xlfn.SWITCH($M32,"Fixed",$Y9,"Floating",CG9,"Zero-coupon",IF(CG$3=$I32,(1+$Y9)^$F32-1,0))*CC24 -> 0 | CH32: =_xlfn.SWITCH($M32,"Fixed",$Y9,"Floating",CH9,"Zero-coupon",IF(CH$3=$I32,(1+$Y9)^$F32-1,0))*CD24 -> 0 | CI32: =_xlfn.SWITCH($M32,"Fixed",$Y9,"Floating",CI9,"Zero-coupon",IF(CI$3=$I32,(1+$Y9)^$F32-1,0))*CE24 -> 0 | CJ32: =_xlfn.SWITCH($M32,"Fixed",$Y9,"Floating",CJ9,"Zero-coupon",IF(CJ$3=$I32,(1+$Y9)^$F32-1,0))*CF24 -> 0 | CK32: =_xlfn.SWITCH($M32,"Fixed",$Y9,"Floating",CK9,"Zero-coupon",IF(CK$3=$I32,(1+$Y9)^$F32-1,0))*CG24 -> 0 | CL32: =_xlfn.SWITCH($M32,"Fixed",$Y9,"Floating",CL9,"Zero-coupon",IF(CL$3=$I32,(1+$Y9)^$F32-1,0))*CH24 -> 0 | CM32: =_xlfn.SWITCH($M32,"Fixed",$Y9,"Floating",CM9,"Zero-coupon",IF(CM$3=$I32,(1+$Y9)^$F32-1,0))*CI24 -> 0 | CN32: =_xlfn.SWITCH($M32,"Fixed",$Y9,"Floating",CN9,"Zero-coupon",IF(CN$3=$I32,(1+$Y9)^$F32-1,0))*CJ24 -> 0 | CO32: =_xlfn.SWITCH($M32,"Fixed",$Y9,"Floating",CO9,"Zero-coupon",IF(CO$3=$I32,(1+$Y9)^$F32-1,0))*CK24 -> 0 | CP32: =_xlfn.SWITCH($M32,"Fixed",$Y9,"Floating",CP9,"Zero-coupon",IF(CP$3=$I32,(1+$Y9)^$F32-1,0))*CL24 -> 0 | CQ32: =_xlfn.SWITCH($M32,"Fixed",$Y9,"Floating",CQ9,"Zero-coupon",IF(CQ$3=$I32,(1+$Y9)^$F32-1,0))*CM24 -> 0 | CR32: =_xlfn.SWITCH($M32,"Fixed",$Y9,"Floating",CR9,"Zero-coupon",IF(CR$3=$I32,(1+$Y9)^$F32-1,0))*CN24 -> 0 | CS32: =_xlfn.SWITCH($M32,"Fixed",$Y9,"Floating",CS9,"Zero-coupon",IF(CS$3=$I32,(1+$Y9)^$F32-1,0))*CO24 -> 0 | CT32: =_xlfn.SWITCH($M32,"Fixed",$Y9,"Floating",CT9,"Zero-coupon",IF(CT$3=$I32,(1+$Y9)^$F32-1,0))*CP24 -> 0 | CU32: =_xlfn.SWITCH($M32,"Fixed",$Y9,"Floating",CU9,"Zero-coupon",IF(CU$3=$I32,(1+$Y9)^$F32-1,0))*CQ24 -> 0 | CV32: =_xlfn.SWITCH($M32,"Fixed",$Y9,"Floating",CV9,"Zero-coupon",IF(CV$3=$I32,(1+$Y9)^$F32-1,0))*CR24 -> 0 | CW32: =_xlfn.SWITCH($M32,"Fixed",$Y9,"Floating",CW9,"Zero-coupon",IF(CW$3=$I32,(1+$Y9)^$F32-1,0))*CS24 -> 0 | CX32: =_xlfn.SWITCH($M32,"Fixed",$Y9,"Floating",CX9,"Zero-coupon",IF(CX$3=$I32,(1+$Y9)^$F32-1,0))*CT24 -> 0 | CY32: =_xlfn.SWITCH($M32,"Fixed",$Y9,"Floating",CY9,"Zero-coupon",IF(CY$3=$I32,(1+$Y9)^$F32-1,0))*CU24 -> 0
